Workbook

Sheet EtOH Summary (hidden)
C1: Summary of the Starch Ethanol Pathway for the California Low Carbon Fuel Standard Program
C3: Applicant: | D3: =EtOH!E6 -> ABC Company | G3: =CONCATENATE("Location: ",EtOH!I6) -> Location: U.S.
C4: Description: | D4: =EtOH!E7 -> Corn, Sorghum, and Corn Fiber Ethanol from Midwest, transported 1,800 miles to California to be used as transportation fuel in California
C6: Feedstock Production Electricity Mix | E6: 1- U.S Ave Mix | G6: Fuel Production Electricity Mix | H6: =EtOH!L16 -> 7-MROW Mix
C7: Feedstock Production | G7: Fuel Production | J7: Different Scenarios of Starch Ethanol Production | L7: Carbon Intensity (gCO2e/MJ) | M7: Correspondent Volumes (gallons)
C8: Feedstock Production | D8: Column2 | E8: Column1 | G8: Fuel Production | H8: Column1 | J8: Different Scenarios of Ethanol Production | K8: Column1 | L8: Carbon Intensity, g/MJ | M8: Correspondent Volumes, gallons
C9: Corn Use, bushels | E9: =EtOH!C46 -> 7679004 | G9: Total Undenatured Ethanol, gallons | H9: =EtOH!AT46+EtOH!BA46 -> 103532237 | K9: Dry DG | L9: =EtOH!H217 -> 0 | M9: =EtOH!I169 -> 0
C10: Sorghum Use, bushels | E10: =EtOH!J46 -> 16531829.38 | G10: Total Undenatured Starch Ethanol, gallons | H10: =EtOH!AT46 -> 103532237 | J10: Corn Ethanol | K10: Modified DG | L10: =EtOH!H218 -> 0 | M10: =EtOH!I176 -> 0
C11: Ethanol Yield, gal/bu | E11: =EtOH!D58 -> 4.276277292 | G11: Total Undenatured Fiber Ethanol, gallons | H11: =EtOH!BA46 -> 0 | K11: Wet DG | L11: =EtOH!H219 -> 0 | M11: =EtOH!I182 -> 0
J12: Subtotal | M12: =SUBTOTAL(109,M9:M11) -> 0
C13: Feedstock Transport (Weighted Average) | G13: Energy Consumption | K13: Dry DG | L13: =EtOH!H221 -> 0 | M13: =EtOH!I221 -> 0
C14: Corn Transport by HD Truck, miles | E14: =EtOH!F46 -> 80 | G14: Natural, HHV in MMBtu | H14: =EtOH!BB47 -> 2154680 | J14: Sorghum Ethanol | K14: Modified DG | L14: =EtOH!H222 -> 0 | M14: =EtOH!I222 -> 
C15: Corn Transport by Rail, miles | E15: =EtOH!G46 -> 0 | G15: Coal, HHV in tons | H15: =EtOH!BH46 -> 0 | K15: Wet DG | L15: =EtOH!H223 -> 0 | M15: =EtOH!I223 -> 0
C16: Corn Transport by Barge, miles | E16: =EtOH!H46 -> 0 | G16: Biomass, HHV in dry tons | H16: =EtOH!BE46 -> 0 | J16: Subtotal | M16: =SUBTOTAL(109,M13:M15) -> 
C17: Sorghum Transport by HD Truck, miles | E17: =EtOH!M46 -> 80 | G17: Biomethane, HHV in MMBtu | H17: =EtOH!BC46 -> 0 | J17: Corn Fiber Ethanol | L17: =EtOH!H224 -> 0 | M17: =EtOH!BA46 -> 0
C18: Sorghum Transport by Rail, miles | E18: =EtOH!N46 -> 0 | G18: Electricity, kWh | H18: =EtOH!BI46 -> 50828240 | J18: Subtotal | M18: =SUBTOTAL(109,M17) -> 0
C19: Sorghum Transport by Barge, miles | E19: =EtOH!O46 -> 0 | G19: Other Electricity, kWh | H19: =EtOH!BJ46 -> 0 | J19: Corn Ethanol | K19: Composite DG | L19: =EtOH!H216 ->  | M19: =EtOH!M169 -> 32837550.43
J20: Sorghum Ethanol | K20: Composite DG | L20: =EtOH!M171 ->  | M20: =EtOH!M176 -> 70694686.57
C21: Co-Product Yield, bone-dry lb./gal | E21: =(E22*(1-E23)+E25*(1-E26)+E28*(1-E29)+E30*(1-#REF!)+E31*(1-#REF!))*2000/H9 ->  | G21: Chemical Usage for Cellulosic | J21: Subtotal | M21: =SUBTOTAL(109,M19:M20) -> 103532237
C22: Dry Distiller Grains, tons | E22: =EtOH!Q46 -> 78262.61 | G22: Cellulosic Enzyme, lbs. | H22: =EtOH!AX46 -> 0 | J22: Other Ethanol | M22: 0
C23: Moisture, % | E23: =EtOH!T46 -> 0.1132583333 | M23: =SUBTOTAL(109,M22) -> 0
C24: Drying Energy, HHV in MMBtu | E24: =EtOH!U46 -> 0 | G24: Fuel Transport
C25: Modified Distiller Grains, tons | E25: =EtOH!W46 -> 0 | G25: By HD Truck, miles | H25: =EtOH!BL24 -> 100 | J25: Total Undenatured Ethanol Production, gallons | M25: =M12+M16+M18+M21+M23 -> 
C26: Moisture, % | E26: =EtOH!Z46 -> 0.55 | G26: By Rail, miles | H26: =EtOH!BL22 -> 1800
C27: Drying Energy, HHV in MMBtu | E27: =EtOH!AA46 -> 0 | G27: By Barge, miles | H27: =EtOH!BL26 -> 0
C28: Wet Distiller Grains, tons | E28: =EtOH!AC46 -> 520172.49
C29: Moisture, % | E29: =EtOH!AF46 -> 0.6636375 | G29: Denaturant Usage
C30: Syrup DGS, tons | E30: =EtOH!AH46 -> 0 | G30: Denaturant, gallons | H30: =EtOH!AU46 -> 2400000
C31: Corn Oil, tons | E31: =EtOH!AL46/2000 -> 5275

Sheet RNG Summary
C1: Summary of the Tier 1 Simplified CI Calculator for Biomethane from Anaerobic Digestion of Organic Waste Release date: March 15, 2022
C3: Applicant: | D3: =IF(RNG!C15="","",RNG!C15) ->  | G3: =CONCATENATE("Digester Location: ",RNG!C18) -> Digester Location:
C4: Application Number | D4: =IF(RNG!F15="","",RNG!F15) -> 
C6: Digester Gas Production Electricity Mix | E6: =RNG!F22 -> 1-U.S. Ave Mix | G6: Fuel Production Electricity Mix | I6: See below for each fuel | K6: Pathway Descriptions and Results
C7: Digester Gas Production | G7: Fuel Production | K7: Finished Fuels | M7: Carbon Intensity from Inputs (gCO2e/MJ) | N7: Optional Headroom Carbon Intensity (gCO2e/MJ) | O7: Total Carbon Intensity (gCO2e/MJ)
C8: Feedstock Production | D8: Column2 | E8: Column1 | G8: Fuel Production | H8: Column2 | I8: Column1 | K8: Different Scenarios of Ethanol Production | L8: Column1 | M8: Carbon Intensity, g/MJ
C9: Biogas Production | G9: Compressed Natural Gas (CNG) Production | K9: Compressed Natural Gas (CNG) | M9: =RNG!I106 -> 0 | N9: 0 | O9: =M9+N9 -> 0
C10: Raw Inlet Gas as Feedstock, SCF at 60°F | E10: =RNG!K50 -> 0 | G10: CNG Production Electricity Mix | I10: 2-WAMX Mix | K10: =RNG!D10 -> Pathway Description: RNG produced from anaerobic digestion of organic waste, processed in , pipelined to Washington for Compressed Natural Gas (CNG) dispensing.
C11: Average Methane Content, % CH4 | E11: =RNG!L50 -> 0
G12: Liquefied Natural Gas (LNG) Production
C13: Biogas Processing | G13: Liquefaction Facility Location | I13: =RNG!C19 -> 0
C14: Natural Gas, HHV in MMBtu | E14: =RNG!O50 -> 0 | G14: LNG Production Electricity Mix | I14: =RNG!AA22 -> 1-U.S. Ave Mix | K14: Liquefied Natural Gas (LNG) | M14: =RNG!I107 -> 0 | N14: 0 | O14: =M14+N14 -> 0
C15: Electricity, kWh | E15: =RNG!P50 -> 0 | G15: Total LNG production, gallons | I15: =RNG!X50 -> 0 | K15: =RNG!D11 -> Pathway Description: RNG produced from anaerobic digestion of organic waste, processed in , pipelined to Washington for liquefaction, then transported and distributed by truck to Washington LNG stations.
G16: Total Natural Gas Purchase, HHV in MMBtu | I16: =RNG!W50 -> 0
C17: Biomethane Production | G17: Electricity, kWh | I17: =RNG!Z50 -> 0
C18: Biomethane, HHV MMBtu | E18: =RNG!S50 -> 0 | K18: Liquefied CNG (or L-CNG) | M18: =RNG!I108 -> 0 | N18: 0 | O18: =M18+N18 -> 0
G19: LNG Transport | K19: =RNG!D12 -> Pathway Description: RNG produced from anaerobic digestion of organic waste, processed in , pipelined to Washington for liquefaction, then transported by truck to Washington LNG stations, re-gasified and compresses to Liquefied CNG.
C20: Natural Gas Transport | G20: Truck, miles | I20: =RNG!AB31 -> 0
C21: NG Transport Electricity Mix | E21: =RNG!B82 -> 1-U.S. Ave Mix
C22: Pipeline Distance to Centroid of CNG stations, miles | E22: =RNG!T32 -> 0
C23: Pipeline Distance to LNG facility, miles | E23: =RNG!T38 -> 0

Sheet Summary old (hidden)
A1: Summary of the Fuel Pathway (For ARB Staff Use Only)
A2: Applicant: | D2: Fuel | E2: CNG | G2: Fuel Production Electricity Mix | I2: =EtOH!L16 -> 7-MROW Mix
A3: Description:
A4: Feedstock Production | D4: Fuel Production | G4: Different Scenarios of Ethanol Production | I4: Carbon Intensity, g/MJ | J4: Correspondent Volumes, gallons
A5: Corn Use, bushels | B5: =EtOH!C46 -> 7679004 | D5: Total Undenatured Ethanol, gallons | E5: =EtOH!AT46+EtOH!BA46 -> 103532237 | G5: Corn Ethanol | H5: Dry DG | I5: =EtOH!H217 -> 0 | J5: =EtOH!I169 -> 0
A6: Sorghum Use, bushels | B6: =EtOH!J46 -> 16531829.38 | D6: Starch Ethanol, gallons | E6: =EtOH!AT46 -> 103532237 | H6: Modified DG | I6: =EtOH!H218 -> 0 | J6: =EtOH!I176 -> 0
A7: Ethanol Yield, gal/bu | B7: =EtOH!D58 -> 4.276277292 | D7: Fiber Ethanol, gallons | E7: =EtOH!BA46 -> 0 | H7: Wet DG | I7: =EtOH!H219 -> 0 | J7: =EtOH!I182 -> 0
A8: Feedstock Transport | D8: Energy Consumption | G8: Sorghum Ethanol | H8: Dry DG | I8: =EtOH!H221 -> 0 | J8: =EtOH!I221 -> 0
D9: Natural, HHV in MMBtu | E9: =EtOH!BB46 -> 2154680 | H9: Modified DG | I9: =EtOH!H222 -> 0 | J9: =EtOH!I222 -> 
A10: Corn Transport by HD Truck, miles | B10: =EtOH!F46 -> 80 | D10: Coal, HHV in tons | E10: =EtOH!BH46 -> 0 | H10: Wet DG | I10: =EtOH!H223 -> 0 | J10: =EtOH!I223 -> 0
A11: Corn Transport by Rail, miles | B11: =EtOH!H46 -> 0 | D11: Electricity, kWh | E11: =EtOH!BI46 -> 50828240 | G11: Corn Fiber Ethanol | I11: =EtOH!#REF! ->  | J11: =EtOH!BA46 -> 0
G12: Corn Ethanol | H12: Composite DG | I12: =EtOH!H216 ->  | J12: =EtOH!E169+EtOH!BA46 -> 103532237
A13: Sorghum Transport by HD Truck, miles | B13: =EtOH!M46 -> 80 | G13: Sorghum Ethanol | H13: Composite DG | I13: =EtOH!M171 ->  | J13: =EtOH!M176 -> 70694686.57
A14: Sorghum Transport by Rail, miles | B14: =EtOH!O46 -> 0
D15: Chemical Usage for Cellulosic
A16: Other Feedstock Transport by HD Truck, miles | D16: Cellulosic Enzyme, lbs | E16: =EtOH!AX46 -> 0
A17: Other Feedstock Transport by Rail, miles
A18: Co-Product Yield, bone-dry lb/gal | B18: =(B19*(1-B20)+B22*(1-B23)+B25*(1-B26)+B27*(1-#REF!)+B28*(1-#REF!))*2000/E5 -> 
A19: Dry Distiller Grains, tons | B19: =EtOH!Q46 -> 78262.61 | D19: Fuel Transport
A20: Moisture, % | B20: =EtOH!T46 -> 0.1132583333 | D20: By HD Truck, miles | E20: =EtOH!BL24 -> 100
A21: Drying Energy, HHV in MMBtu | B21: =EtOH!U46 -> 0 | D21: By Rail, miles | E21: =EtOH!BL22 -> 1800
A22: Modified Distiller Grains, tons | B22: =EtOH!W46 -> 0 | D22: By Barge, miles | E22: =EtOH!BL26 -> 0
A23: Moisture, % | B23: =EtOH!Z46 -> 0.55
A24: Drying Energy, HHV in MMBtu | B24: =EtOH!AA46 -> 0
A25: Wet Distiller Grains, tons | B25: =EtOH!AC46 -> 520172.49
A26: Moisture, % | B26: =EtOH!AF46 -> 0.6636375
A27: Syrup DGS, tons | B27: =EtOH!AH46 -> 0
A28: Corn Oil, tons | B28: =EtOH!AL46/2000 -> 5275
A29: Select Feedstock | B29: Feedstock 1 | C29: Feedstock 2 | D29: Feedstock 3 | E29: Feedstock 4 | F29: Feedstock 5 | G29: Feedstock 6 | H29: Feedstock 7 | I29: Feedstock 8 | J29: Feedstock 9 | K29: Feedstock 10 | L29: Feedstock 11 | M29: Feedstock 12
B30: Corn | C30: Corn | D30: Corn | E30: Corn | F30: Cellulosic (Fiber) | G30: Grain Sorghum | H30: Grain Sorghum | I30: Grain Sorghum | J30: Grain Sorghum | K30: None | L30: None | M30: None
A31: Feedstock Production Electricity Mix Resources | B31: 1-U.S Ave Mix | C31: 1-U.S Ave Mix | D31: 1-U.S Ave Mix | E31: 1-U.S Ave Mix | F31: 1-U.S Ave Mix | G31: 1-U.S Ave Mix | H31: 1-U.S Ave Mix | I31: 1-U.S Ave Mix | J31: 1-U.S Ave Mix
A32: Crude Sources | B32: U.S Crude | C32: U.S Crude | D32: U.S Crude | E32: U.S Crude | F32: U.S Crude | G32: U.S Crude | H32: U.S Crude | I32: U.S Crude | J32: U.S Crude | K32: U.S Crude | L32: U.S Crude | M32: U.S Crude | R32: Position | S32: ID
A33: Natural Gas Sources | B33: North American NG | C33: North American NG | D33: North American NG | E33: North American NG | F33: North American NG | G33: North American NG | H33: North American NG | I33: North American NG | J33: North American NG | K33: North American NG | L33: North American NG | M33: North American NG | R33: 1 | S33: =B30&" "&R33 -> Corn 1
A34: Types of Co-products | B34: =B127 -> Composite DGS | C34: =C127 -> Wet DGS | D34: Modified DGS | E34: Dry DGS | G34: Composite DGS | H34: Wet DGS | I34: Modified DGS | J34: Dry DGS | R34: 2 | S34: =C30&" "&R34 -> Corn 2
A35: Composite Distiller Grains CI | B35: =B152 ->  | F35: =F152 ->  | G35: =G152 ->  | R35: 3 | S35: =D30&" "&R35 -> Corn 3
A36: Fuel Volumes, gallons | B36: =E48 -> 66778004 | F36: =E58 -> 307870 | R36: 4 | S36: =E30&" "&R36 -> Corn 4
A37: Dry Distiller Grains | E37: =E152 ->  | J37: =J152 ->  | R37: 5 | S37: =F30&" "&R37 -> Cellulosic (Fiber) 5
A38: Fuel Volumes, gallons | E38: =E48*C104 -> 3506074.56 | R38: 6 | S38: =G30&" "&R38 -> Grain Sorghum 6
A39: Modified Distiller Grains | D39: =D152 -> N/A | I39: =I152 ->  | R39: 7 | S39: =H30&" "&R39 -> Grain Sorghum 7
A40: Fuel Volumes, gallons | D40: =E48*C106 -> 0 | R40: 8 | S40: =I30&" "&R40 -> Grain Sorghum 8
A41: Wet Distiller Grains | C41: =C152 ->  | H41: =H152 ->  | R41: 9 | S41: =J30&" "&R41 -> Grain Sorghum 9
A42: Fuel Volumes, gallons | C42: =E48*C108 -> 1488116.105 | R42: 10 | S42: =K30&" "&R42 -> None 10
A43: Feedstock Use, bushels | B43: =B5 -> 7679004 | G43: =B6 -> 16531829.38 | R43: 11 | S43: =L30&" "&R43 -> None 11
R44: 12 | S44: =M30&" "&R44 -> None 12
A46: Feedstock Production | D46: Fuel Production
A47: Feedstock 1 Transport | C47: Shares | D47: Fuel Yield | E47: =E49/(B43+G43)*0+2.75 -> 2.75 | F47: =CONCATENATE(F48,"/bushels") -> Gallons/bushels
A48: By Heavy Duty Truck, miles | B48: =B10 -> 80 | C48: 0.5 | D48: Total Ethanol Production | E48: =E49+E58 -> 66778004 | F48: Gallons
A49: By Rail, miles | B49: =B11 -> 0 | C49: 0.5 | D49: Corn Ethanol (Composite DG) | E49: 66470134 | F49: Gallons
A50: By Barge, miles | B50: 0 | C50: 0 | D50: Corn Ethanol (Wet DG) | E50: =E49*C104 -> 3489910.327 | F50: Gallons
A51: Feedstock 2 Transport | D51: Corn Ethanol (Modified DG) | E51: =E49*C106 -> 0 | F51: Gallons
A52: By Heavy Duty Truck, miles | B52: 0 | D52: Corn Ethanol (Dry DG) | E52: =E49*C108 -> 1481255.368 | F52: Gallons
A53: By Rail, miles | B53: 0 | D53: Sorghum Ethanol (Composite DG) | F53: Gallons
A54: By Barge, miles | B54: 0 | D54: Sorghum Ethanol (Wet DG) | F54: Gallons
A55: Feedstock 3 Transport | D55: Sorghum Ethanol (Modified DG) | F55: Gallons
A56: By Heavy Duty Truck, miles | B56: 0 | D56: Sorghum Ethanol (Dry DG) | F56: Gallons
A57: By Rail, miles | B57: 0
A58: By Barge, miles | B58: 0 | D58: Cellulosic Ethanol | E58: 307870 | F58: Gallons
A59: Feedstock 4 Transport
A60: By Heavy Duty Truck, miles | B60: 0
A61: By Rail, miles | B61: 0
A62: By Barge, miles | B62: 0
D64: Energy Usage (in High Heating Values)
D65: Residual oil | E65: 0 | F65: Gallons
D66: Diesel fuel | E66: 0 | F66: Gallons
D67: Gasoline | E67: 0 | F67: Gallons
D68: Natural gas | E68: =E9 -> 2154680 | F68: MMBtu | G68: =E68*Reference!F13*10^6/E48 -> 29133.66154
D69: Coal | E69: =EtOH!BH46 -> 0 | F69: Dry Tons | G69: =E69*Reference!#REF!/E48 -> 
D70: Liquefied petroleum gas | E70: 0 | F70: Gallons
D71: Biomass | E71: 0 | F71: Dry Tons
D72: Electricity | E72: =E11 -> 50828240 | F72: kWh | G72: =E72*Reference!F46/E48 -> 2597.159901
D73: Renewable natural gas | E73: 0 | F73: MMBtu
D74: Other | F74: Gallons
D75: Drying Energy
D76: NG use for Mod. DGS | E76: 500000 | F76: MMBtu
D77: NG use for Dry DGS | E77: 1000000 | F77: MMBtu
D78: Chemicals Usage
D79: Alpha Amylase | E79: 2.612692051 | F79: grams
D80: Gluco Amylase | E80: 5.621246534 | F80: grams
D81: Cellulase | E81: 0 | F81: grams
D82: Yeast | E82: 2.85020951 | F82: grams
D83: Sulfuric acid (H2SO4 | E83: 4.835380434 | F83: grams
D84: Urea | E84: 18.52636182 | F84: grams
D85: NaOH | E85: 23.23712476 | F85: grams
D86: CaO | E86: 11.0841481 | F86: grams
D91: Other - Specify here (grams)
A100: Corn Oil Displaced Soy Oil | B100: 14750000
A102: Co-Product Credit | B102: =(B103*(1-B104)+B105*(1-B106)+(B107+B109+B110/2000)*(1-B108))*2000/E48 -> 3.486562731 | C102: Bone-dry lbs.
A103: Wet DGS, ton | B103: 232019 | C103: =B103*(1-B104) -> 81206.65
A104: Moisture Content, % | B104: 0.65 | C104: =C103/($C$103+$C$105+$C$107+$C$109+$C$110) -> 0.05250343451
A105: Medium DGS, ton | B105: 0 | C105: =B105*(1-B106) -> 0
A106: Moisture Content, % | B106: 0.55 | C106: =C105/($C$103+$C$105+$C$107+$C$109+$C$110) -> 0
A107: Dry DGS, ton | B107: 38297 | C107: =B107*(1-B108) -> 34467.3
A108: Moisture Content, % | B108: 0.1 | C108: =C107/($C$103+$C$105+$C$107+$C$109+$C$110) -> 0.02228452508
A109: Syrup DGS, ton | B109: 26 | C109: =B109*(1-30%) -> 18.2
A110: Corn Oil,lbs | B110: 1590000 | C110: =B110*(1-10%) -> 1431000
A111: Ethanol Transport
A112: By Heavy Duty Truck, miles | B112: 100 | C112: 1
A113: By Rail, miles | B113: 1000 | C113: 1
A114: By Barge, miles | B114: 0 | C114: 1
A115: By Ocean Tanker, miles | B115: 0 | C115: 1
A116: By Pipeline, miles | B116: 0 | C116: 1
A118: Indirect Land Use
A120: Denaturant
A122: Tailpipe Emissions
B124: Feedstock 1 | C124: Feedstock 2 | D124: Feedstock 3 | E124: Feedstock 4 | F124: Feedstock 5 | G124: Feedstock 6 | H124: Feedstock 7 | I124: Feedstock 8 | J124: Feedstock 9 | K124: Feedstock 10 | L124: Feedstock 11 | M124: Feedstock 12
A125: Fuel | B125: =E2 -> CNG
A126: Feedstock | B126: =B30 -> Corn | C126: =IF(B107=0,"None",C30) -> Corn | D126: =IF(B105=0,"None",D30) -> None | E126: =IF(B107=0,"None",E30) -> Corn | F126: =F30 -> Cellulosic (Fiber) | G126: Grain Sorghum | H126: Grain Sorghum | I126: Grain Sorghum | J126: Grain Sorghum | K126: None | L126: None | M126: None
A127: Co-product Types | B127: Composite DGS | C127: Wet DGS | D127: Modified DGS | E127: Dry DGS | G127: Composite DGS | H127: Wet DGS | I127: Modified DGS | J127: Dry DGS
A128: Farming | B128: =HLOOKUP(#REF!,'EF Table'!$C$2:$AH$2,3,FALSE)*$E$47/2.75 ->  | C128: =HLOOKUP(#REF!,'EF Table'!$C$2:$AH$2,3,FALSE)*$E$47/2.75 ->  | D128: =HLOOKUP(#REF!,'EF Table'!$C$2:$AH$2,3,FALSE)*$E$47/2.75 ->  | E128: =HLOOKUP(#REF!,'EF Table'!$C$2:$AH$2,3,FALSE)*$E$47/2.75 ->  | F128: 0 | G128: =HLOOKUP(#REF!,'EF Table'!$C$2:$AH$2,38,FALSE)*$E$47/2.75 ->  | H128: =HLOOKUP(#REF!,'EF Table'!$C$2:$AH$2,38,FALSE)*$E$47/2.75 ->  | I128: =HLOOKUP(#REF!,'EF Table'!$C$2:$AH$2,38,FALSE)*$E$47/2.75 ->  | J128: =HLOOKUP(#REF!,'EF Table'!$C$2:$AH$2,38,FALSE)*$E$47/2.75 -> 
A129: Fertilizers | B129: =HLOOKUP(#REF!,'EF Table'!$C$2:$AH$2,4,FALSE)*$E$47/2.75 ->  | C129: =HLOOKUP(#REF!,'EF Table'!$C$2:$AH$2,4,FALSE)*$E$47/2.75 ->  | D129: =HLOOKUP(#REF!,'EF Table'!$C$2:$AH$2,4,FALSE)*$E$47/2.75 ->  | E129: =HLOOKUP(#REF!,'EF Table'!$C$2:$AH$2,4,FALSE)*$E$47/2.75 ->  | F129: 0 | G129: =HLOOKUP(#REF!,'EF Table'!$C$2:$AH$2,39,FALSE)*$E$47/2.75 ->  | H129: =HLOOKUP(#REF!,'EF Table'!$C$2:$AH$2,39,FALSE)*$E$47/2.75 ->  | I129: =HLOOKUP(#REF!,'EF Table'!$C$2:$AH$2,39,FALSE)*$E$47/2.75 ->  | J129: =HLOOKUP(#REF!,'EF Table'!$C$2:$AH$2,39,FALSE)*$E$47/2.75 -> 
A130: N2O in Soil | B130: =HLOOKUP(#REF!,'EF Table'!$C$2:$AH$2,5,FALSE)*$E$47/2.75 ->  | C130: =HLOOKUP(#REF!,'EF Table'!$C$2:$AH$2,5,FALSE)*$E$47/2.75 ->  | D130: =HLOOKUP(#REF!,'EF Table'!$C$2:$AH$2,5,FALSE)*$E$47/2.75 ->  | E130: =HLOOKUP(#REF!,'EF Table'!$C$2:$AH$2,5,FALSE)*$E$47/2.75 ->  | F130: 0 | G130: =HLOOKUP(#REF!,'EF Table'!$C$2:$AH$2,40,FALSE)*$E$47/2.75 ->  | H130: =HLOOKUP(#REF!,'EF Table'!$C$2:$AH$2,40,FALSE)*$E$47/2.75 ->  | I130: =HLOOKUP(#REF!,'EF Table'!$C$2:$AH$2,40,FALSE)*$E$47/2.75 ->  | J130: =HLOOKUP(#REF!,'EF Table'!$C$2:$AH$2,40,FALSE)*$E$47/2.75 -> 
A131: Feedstock Transport | B131: =HLOOKUP(#REF!,'EF Table'!$C$2:$AH$2,7,FALSE)+HLOOKUP(#REF!,'EF Table'!$C$2:$AH$2,8,FALSE)*$B$48/50*$C$48+HLOOKUP(#REF!,'EF Table'!$C$2:$AH$2,9,FALSE)*$B$49/500*$C$49+HLOOKUP(#REF!,'EF Table'!$C$2:$AH$2,10,FALSE)*$B$50/500*$C$50 ->  | C131: =HLOOKUP(#REF!,'EF Table'!$C$2:$AH$2,7,FALSE)+HLOOKUP(#REF!,'EF Table'!$C$2:$AH$2,8,FALSE)*$B$48/50+HLOOKUP(#REF!,'EF Table'!$C$2:$AH$2,9,FALSE)*$B$49/1000 ->  | D131: =HLOOKUP(#REF!,'EF Table'!$C$2:$AH$2,7,FALSE)+HLOOKUP(#REF!,'EF Table'!$C$2:$AH$2,8,FALSE)*$B$48/50+HLOOKUP(#REF!,'EF Table'!$C$2:$AH$2,9,FALSE)*$B$49/1000 ->  | E131: =HLOOKUP(#REF!,'EF Table'!$C$2:$AH$2,7,FALSE)+HLOOKUP(#REF!,'EF Table'!$C$2:$AH$2,8,FALSE)*$B$48/50+HLOOKUP(#REF!,'EF Table'!$C$2:$AH$2,9,FALSE)*$B$49/1000 ->  | F131: 0 | G131: =HLOOKUP(#REF!,'EF Table'!$C$2:$AH$2,7,FALSE)+HLOOKUP(#REF!,'EF Table'!$C$2:$AH$2,8,FALSE)*$B$52/50+HLOOKUP(#REF!,'EF Table'!$C$2:$AH$2,9,FALSE)*$B$49/1000 ->  | H131: =HLOOKUP(#REF!,'EF Table'!$C$2:$AH$2,7,FALSE)+HLOOKUP(#REF!,'EF Table'!$C$2:$AH$2,8,FALSE)*$B$52/50+HLOOKUP(#REF!,'EF Table'!$C$2:$AH$2,9,FALSE)*$B$49/1000 ->  | I131: =HLOOKUP(#REF!,'EF Table'!$C$2:$AH$2,7,FALSE)+HLOOKUP(#REF!,'EF Table'!$C$2:$AH$2,8,FALSE)*$B$52/50+HLOOKUP(#REF!,'EF Table'!$C$2:$AH$2,9,FALSE)*$B$49/1000 ->  | J131: =HLOOKUP(#REF!,'EF Table'!$C$2:$AH$2,7,FALSE)+HLOOKUP(#REF!,'EF Table'!$C$2:$AH$2,8,FALSE)*$B$52/50+HLOOKUP(#REF!,'EF Table'!$C$2:$AH$2,9,FALSE)*$B$49/1000 -> 
A132: Co-product Credits | B132: =HLOOKUP(#REF!,'EF Table'!$C$2:$AH$2,11,FALSE)*$B$102/5.5636 ->  | C132: 0
A133: Soy Oil Displacement Credit
A134: Ethanol Production | B134: =SUM(B135:B143) ->  | C134: =SUM(C135:C143) ->  | D134: =SUM(D135:D143) ->  | E134: =SUM(E135:E143) ->  | F134: =B134 ->  | G134: =SUM(G135:G143) ->  | H134: =SUM(H135:H143) ->  | I134: =SUM(I135:I143) ->  | J134: =SUM(J135:J143) -> 
A135: Residual oil | B135: =($E$65*Reference!#REF!/$E$48*(100%*EF!$L16+'EF Table'!#REF!*#REF!+'EF Table'!#REF!))/10^6 ->  | C135: =(E65*Reference!#REF!/$E$49*(100%*EF!$L$16+'EF Table'!#REF!*#REF!+'EF Table'!#REF!))/10^6 ->  | D135: =($E65*Reference!#REF!/$E$49*(100%*EF!$L$16+'EF Table'!#REF!*#REF!+'EF Table'!#REF!))/10^6 ->  | E135: =($E65*Reference!#REF!/$E$49*(100%*EF!$L$16+'EF Table'!#REF!*#REF!+'EF Table'!#REF!))/10^6 ->  | G135: =($E$65*Reference!#REF!/$E$49*(100%*EF!$L16+'EF Table'!#REF!*#REF!+'EF Table'!#REF!))/10^6 ->  | H135: =($E$65*Reference!#REF!/$E$49*(100%*EF!$L16+'EF Table'!#REF!*#REF!+'EF Table'!#REF!))/10^6 ->  | I135: =($E$65*Reference!#REF!/$E$49*(100%*EF!$L16+'EF Table'!#REF!*#REF!+'EF Table'!#REF!))/10^6 ->  | J135: =($E$65*Reference!#REF!/$E$49*(100%*EF!$L16+'EF Table'!#REF!*#REF!+'EF Table'!#REF!))/10^6 -> 
A136: Diesel fuel | B136: =($E$66*Reference!$B$7/$E$48*(20%*EF!$R6+80%*EF!$S6+'EF Table'!#REF!*#REF!+HLOOKUP(#REF!,'EF Table'!$C$2:$AH$2,16,FALSE)))/10^6 ->  | C136: =(E66*Reference!$B$7/$E$49*(20%*EF!$R$6+80%*EF!$S6+'EF Table'!#REF!*#REF!+HLOOKUP(#REF!,'EF Table'!$C$2:$AH$2,16,FALSE)))/10^6 ->  | D136: =($E66*Reference!$B$7/$E$49*(20%*EF!$R$6+80%*EF!$S6+'EF Table'!#REF!*#REF!+HLOOKUP(#REF!,'EF Table'!$C$2:$AH$2,16,FALSE)))/10^6 ->  | E136: =($E66*Reference!$B$7/$E$49*(20%*EF!$R$6+80%*EF!$S6+'EF Table'!#REF!*#REF!+HLOOKUP(#REF!,'EF Table'!$C$2:$AH$2,16,FALSE)))/10^6 ->  | G136: =($E$66*Reference!$B$7/$E$49*(20%*EF!$R6+80%*EF!$S6+'EF Table'!#REF!*#REF!+HLOOKUP(#REF!,'EF Table'!$C$2:$AH$2,16,FALSE)))/10^6 ->  | H136: =($E$66*Reference!$B$7/$E$49*(20%*EF!$R6+80%*EF!$S6+'EF Table'!#REF!*#REF!+HLOOKUP(#REF!,'EF Table'!$C$2:$AH$2,16,FALSE)))/10^6 ->  | I136: =($E$66*Reference!$B$7/$E$49*(20%*EF!$R6+80%*EF!$S6+'EF Table'!#REF!*#REF!+HLOOKUP(#REF!,'EF Table'!$C$2:$AH$2,16,FALSE)))/10^6 ->  | J136: =($E$66*Reference!$B$7/$E$49*(20%*EF!$R6+80%*EF!$S6+'EF Table'!#REF!*#REF!+HLOOKUP(#REF!,'EF Table'!$C$2:$AH$2,16,FALSE)))/10^6 -> 
A137: Gasoline | B137: =$E$67*Reference!#REF!/$E$48*(EF!$U6+'EF Table'!#REF!*#REF!+HLOOKUP(#REF!,'EF Table'!$C$2:$AH$2,17,FALSE))/10^6 ->  | C137: =E67*Reference!#REF!/$E$49*(EF!$U6+'EF Table'!#REF!*#REF!+HLOOKUP(#REF!,'EF Table'!$C$2:$AH$2,17,FALSE))/10^6 ->  | D137: =$E67*Reference!#REF!/$E$49*(EF!$U6+'EF Table'!#REF!*#REF!+HLOOKUP(#REF!,'EF Table'!$C$2:$AH$2,17,FALSE))/10^6 ->  | E137: =$E67*Reference!#REF!/$E$49*(EF!$U6+'EF Table'!#REF!*#REF!+HLOOKUP(#REF!,'EF Table'!$C$2:$AH$2,17,FALSE))/10^6 ->  | G137: =$E$67*Reference!#REF!/$E$49*(EF!$U6+'EF Table'!#REF!*#REF!+HLOOKUP(#REF!,'EF Table'!$C$2:$AH$2,17,FALSE))/10^6 ->  | H137: =$E$67*Reference!#REF!/$E$49*(EF!$U6+'EF Table'!#REF!*#REF!+HLOOKUP(#REF!,'EF Table'!$C$2:$AH$2,17,FALSE))/10^6 ->  | I137: =$E$67*Reference!#REF!/$E$49*(EF!$U6+'EF Table'!#REF!*#REF!+HLOOKUP(#REF!,'EF Table'!$C$2:$AH$2,17,FALSE))/10^6 ->  | J137: =$E$67*Reference!#REF!/$E$49*(EF!$U6+'EF Table'!#REF!*#REF!+HLOOKUP(#REF!,'EF Table'!$C$2:$AH$2,17,FALSE))/10^6 -> 
A138: Natural gas | B138: =$E$68*Reference!$F$13*10^6/$E$48*(50%*EF!$B$16+50%*EF!$C$16+HLOOKUP(#REF!,'EF Table'!$C$2:$AH$2,23,FALSE))*#REF!/Reference!#REF! ->  | C138: =(E68-E76-E77)*Reference!$F$13*10^6/$E$49*(50%*EF!$B$16+50%*EF!$C$16+HLOOKUP(#REF!,'EF Table'!$C$2:$AH$2,18,FALSE))/Reference!#REF!*#REF!*#REF! ->  | D138: =($E68-E77)*Reference!$F$13*10^6/$E$49*(50%*EF!$B$16+50%*EF!$C$16+HLOOKUP(#REF!,'EF Table'!$C$2:$AH$2,18,FALSE))/Reference!#REF!*#REF!*#REF! ->  | E138: =($E68-$E76)*Reference!$F$13*10^6/$E$49*(50%*EF!$B$16+50%*EF!$C$16+HLOOKUP(#REF!,'EF Table'!$C$2:$AH$2,18,FALSE))/Reference!#REF!*#REF!*#REF! ->  | G138: =($E$68)*Reference!$F$13*10^6/$E$49*(50%*EF!$B$16+50%*EF!$C$16+HLOOKUP(#REF!,'EF Table'!$C$2:$AH$2,18,FALSE))/Reference!#REF!*#REF!*#REF! ->  | H138: =($E$68-$E$76-$E$77)*Reference!$F$13*10^6/$E$49*(50%*EF!$B$16+50%*EF!$C$16+HLOOKUP(#REF!,'EF Table'!$C$2:$AH$2,18,FALSE))/Reference!#REF!*#REF!*#REF! ->  | I138: =($E$68-$E$77)*Reference!$F$13*10^6/$E$49*(50%*EF!$B$16+50%*EF!$C$16+HLOOKUP(#REF!,'EF Table'!$C$2:$AH$2,18,FALSE))/Reference!#REF!*#REF!*#REF! ->  | J138: =($E$68-$E$76)*Reference!$F$13*10^6/$E$49*(50%*EF!$B$16+50%*EF!$C$16+HLOOKUP(#REF!,'EF Table'!$C$2:$AH$2,18,FALSE))/Reference!#REF!*#REF!*#REF! -> 
A139: Coal | B139: =$E$69*Reference!#REF!/$E$48*(100%*EF!$AC16+HLOOKUP(#REF!,'EF Table'!$C$2:$AH$2,24,FALSE))/Reference!#REF!*#REF! ->  | C139: =E69*Reference!#REF!/$E$49*(100%*EF!$AC6+HLOOKUP(#REF!,'EF Table'!$C$2:$AH$2,19,FALSE))/Reference!#REF!*#REF!*#REF! ->  | D139: =E69*Reference!#REF!/$E$49*(100%*EF!$AC6+HLOOKUP(#REF!,'EF Table'!$C$2:$AH$2,19,FALSE))/Reference!#REF!*#REF!*#REF! ->  | E139: =E69*Reference!#REF!/$E$49*(100%*EF!$AC6+HLOOKUP(#REF!,'EF Table'!$C$2:$AH$2,19,FALSE))/Reference!#REF!*#REF!*#REF! ->  | G139: =$E$69*Reference!#REF!/$E$49*(100%*EF!$AC6+HLOOKUP(#REF!,'EF Table'!$C$2:$AH$2,19,FALSE))/Reference!#REF!*#REF!*#REF! ->  | H139: =$E$69*Reference!#REF!/$E$49*(100%*EF!$AC6+HLOOKUP(#REF!,'EF Table'!$C$2:$AH$2,19,FALSE))/Reference!#REF!*#REF!*#REF! ->  | I139: =$E$69*Reference!#REF!/$E$49*(100%*EF!$AC6+HLOOKUP(#REF!,'EF Table'!$C$2:$AH$2,19,FALSE))/Reference!#REF!*#REF!*#REF! ->  | J139: =$E$69*Reference!#REF!/$E$49*(100%*EF!$AC6+HLOOKUP(#REF!,'EF Table'!$C$2:$AH$2,19,FALSE))/Reference!#REF!*#REF!*#REF! -> 
A140: Liquefied petroleum gas | B140: =$E$70*Reference!$B$10/$E$48*(EF!$Z6+35%*('EF Table'!#REF!*#REF!+'EF Table'!#REF!)+65%*('EF Table'!#REF!))/10^6 ->  | C140: =E70*Reference!$B$10/$E$49*(EF!$Z6+35%*('EF Table'!#REF!*#REF!+'EF Table'!#REF!)+65%*('EF Table'!#REF!))/10^6 ->  | D140: =E70*Reference!$B$10/$E$49*(EF!$Z6+35%*('EF Table'!#REF!*#REF!+'EF Table'!#REF!)+65%*('EF Table'!#REF!))/10^6 ->  | E140: =E70*Reference!$B$10/$E$49*(EF!$Z6+35%*('EF Table'!#REF!*#REF!+'EF Table'!#REF!)+65%*('EF Table'!#REF!))/10^6 ->  | G140: =$E$70*Reference!$B$10/$E$49*(EF!$Z6+35%*('EF Table'!#REF!*#REF!+'EF Table'!#REF!)+65%*('EF Table'!#REF!))/10^6 ->  | H140: =$E$70*Reference!$B$10/$E$49*(EF!$Z6+35%*('EF Table'!#REF!*#REF!+'EF Table'!#REF!)+65%*('EF Table'!#REF!))/10^6 ->  | I140: =$E$70*Reference!$B$10/$E$49*(EF!$Z6+35%*('EF Table'!#REF!*#REF!+'EF Table'!#REF!)+65%*('EF Table'!#REF!))/10^6 ->  | J140: =$E$70*Reference!$B$10/$E$49*(EF!$Z6+35%*('EF Table'!#REF!*#REF!+'EF Table'!#REF!)+65%*('EF Table'!#REF!))/10^6 -> 
A141: Biomass | B141: =$E$71*Reference!#REF!/$E$48*(100%*EF!$AV$16+HLOOKUP(#REF!,'EF Table'!$C$2:$AH$2,21,FALSE)/Reference!#REF!)/Reference!#REF!*#REF! ->  | C141: =E71*Reference!#REF!/$E$49*(100%*EF!$AV$16+HLOOKUP(#REF!,'EF Table'!$C$2:$AH$2,21,FALSE)/Reference!#REF!)/Reference!#REF!*#REF!*#REF! ->  | D141: =E71*Reference!#REF!/$E$49*(100%*EF!$AV$16+HLOOKUP(#REF!,'EF Table'!$C$2:$AH$2,21,FALSE)/Reference!#REF!)/Reference!#REF!*#REF!*#REF! ->  | E141: =E71*Reference!#REF!/$E$49*(100%*EF!$AV$16+HLOOKUP(#REF!,'EF Table'!$C$2:$AH$2,21,FALSE)/Reference!#REF!)/Reference!#REF!*#REF!*#REF! ->  | G141: =$E$71*Reference!#REF!/$E$49*(100%*EF!$AV$16+HLOOKUP(#REF!,'EF Table'!$C$2:$AH$2,21,FALSE)/Reference!#REF!)/Reference!#REF!*#REF!*#REF! ->  | H141: =$E$71*Reference!#REF!/$E$49*(100%*EF!$AV$16+HLOOKUP(#REF!,'EF Table'!$C$2:$AH$2,21,FALSE)/Reference!#REF!)/Reference!#REF!*#REF!*#REF! ->  | I141: =$E$71*Reference!#REF!/$E$49*(100%*EF!$AV$16+HLOOKUP(#REF!,'EF Table'!$C$2:$AH$2,21,FALSE)/Reference!#REF!)/Reference!#REF!*#REF!*#REF! ->  | J141: =$E$71*Reference!#REF!/$E$49*(100%*EF!$AV$16+HLOOKUP(#REF!,'EF Table'!$C$2:$AH$2,21,FALSE)/Reference!#REF!)/Reference!#REF!*#REF!*#REF! -> 
A142: Electricity | B142: =$E$72*Reference!$F$46/$E$48*(HLOOKUP(#REF!,'EF Table'!$C$2:$AH$2,27,FALSE))/Reference!#REF!*#REF! ->  | C142: =E72*Reference!$F$46/$E$49*(HLOOKUP(#REF!,'EF Table'!$C$2:$AH$2,22,FALSE))/Reference!#REF!*#REF!*#REF! ->  | D142: =E72*Reference!$F$46/$E$49*(HLOOKUP(#REF!,'EF Table'!$C$2:$AH$2,22,FALSE))/Reference!#REF!*#REF!*#REF! ->  | E142: =E72*Reference!$F$46/$E$49*(HLOOKUP(#REF!,'EF Table'!$C$2:$AH$2,22,FALSE))/Reference!#REF!*#REF!*#REF! ->  | G142: =$E$72*Reference!$F$46/$E$49*(HLOOKUP(#REF!,'EF Table'!$C$2:$AH$2,22,FALSE))/Reference!#REF!*#REF!*#REF! ->  | H142: =$E$72*Reference!$F$46/$E$49*(HLOOKUP(#REF!,'EF Table'!$C$2:$AH$2,22,FALSE))/Reference!#REF!*#REF!*#REF! ->  | I142: =$E$72*Reference!$F$46/$E$49*(HLOOKUP(#REF!,'EF Table'!$C$2:$AH$2,22,FALSE))/Reference!#REF!*#REF!*#REF! ->  | J142: =$E$72*Reference!$F$46/$E$49*(HLOOKUP(#REF!,'EF Table'!$C$2:$AH$2,22,FALSE))/Reference!#REF!*#REF!*#REF! -> 
A143: Renewable natural gas | B143: =$E$73*Reference!$F$13*10^6/$E$48*(100%*EF!$BH$16+HLOOKUP(#REF!,'EF Table'!$C$2:$AH$2,23,FALSE))/Reference!#REF!*#REF!*#REF! ->  | C143: =E73*Reference!$F$13*10^6/$E$49*(100%*EF!$BH$16+HLOOKUP(#REF!,'EF Table'!$C$2:$AH$2,23,FALSE))/Reference!#REF!*#REF!*#REF! ->  | D143: =E73*Reference!$F$13*10^6/$E$49*(100%*EF!$BH$16+HLOOKUP(#REF!,'EF Table'!$C$2:$AH$2,23,FALSE))/Reference!#REF!*#REF!*#REF! ->  | E143: =E73*Reference!$F$13*10^6/$E$49*(100%*EF!$BH$16+HLOOKUP(#REF!,'EF Table'!$C$2:$AH$2,23,FALSE))/Reference!#REF!*#REF!*#REF! ->  | G143: =$E$73*Reference!$F$13*10^6/$E$49*(100%*EF!$BH$16+HLOOKUP(#REF!,'EF Table'!$C$2:$AH$2,23,FALSE))/Reference!#REF!*#REF!*#REF! ->  | H143: =$E$73*Reference!$F$13*10^6/$E$49*(100%*EF!$BH$16+HLOOKUP(#REF!,'EF Table'!$C$2:$AH$2,23,FALSE))/Reference!#REF!*#REF!*#REF! ->  | I143: =$E$73*Reference!$F$13*10^6/$E$49*(100%*EF!$BH$16+HLOOKUP(#REF!,'EF Table'!$C$2:$AH$2,23,FALSE))/Reference!#REF!*#REF!*#REF! ->  | J143: =$E$73*Reference!$F$13*10^6/$E$49*(100%*EF!$BH$16+HLOOKUP(#REF!,'EF Table'!$C$2:$AH$2,23,FALSE))/Reference!#REF!*#REF!*#REF! -> 
A144: Other
A145: Chemical Use | B145: 1.803353946 | C145: =B145 -> 1.803353946 | D145: 1.803353946 | E145: 1.803353946 | F145: 1.803353946 | G145: 1.803353946 | H145: 1.803353946 | I145: =H145 -> 1.803353946 | J145: =I145 -> 1.803353946
A148: Ethanol Transport | B148: =$B$112*'EF Table'!#REF!/50*$C$112+$B$113/500*'EF Table'!#REF!*$C$113 ->  | C148: =$B$112*'EF Table'!#REF!/50*$C$112+$B$113/500*'EF Table'!#REF!*$C$113 ->  | D148: =$B$112*'EF Table'!#REF!/50*$C$112+$B$113/500*'EF Table'!#REF!*$C$113+$B$114/500*'EF Table'!#REF!*$C$114+B115/5000*'EF Table'!#REF!*$C$115 ->  | E148: =$B$112*'EF Table'!#REF!/50*$C$112+$B$113/500*'EF Table'!#REF!*$C$113+$B$114/500*'EF Table'!#REF!*$C$114+C115/5000*'EF Table'!#REF!*$C$115 ->  | F148: =$B$112*'EF Table'!#REF!/50*$C$112+$B$113/500*'EF Table'!#REF!*$C$113+$B$114/500*'EF Table'!#REF!*$C$114+D115/5000*'EF Table'!#REF!*$C$115 ->  | G148: =$B$112*'EF Table'!#REF!/50*$C$112+$B$113/500*'EF Table'!#REF!*$C$113+$B$114/500*'EF Table'!#REF!*$C$114+E115/5000*'EF Table'!#REF!*$C$115 ->  | H148: =$B$112*'EF Table'!#REF!/50*$C$112+$B$113/500*'EF Table'!#REF!*$C$113+$B$114/500*'EF Table'!#REF!*$C$114+F115/5000*'EF Table'!#REF!*$C$115 ->  | I148: =$B$112*'EF Table'!#REF!/50*$C$112+$B$113/500*'EF Table'!#REF!*$C$113+$B$114/500*'EF Table'!#REF!*$C$114+G115/5000*'EF Table'!#REF!*$C$115 ->  | J148: =$B$112*'EF Table'!#REF!/50*$C$112+$B$113/500*'EF Table'!#REF!*$C$113+$B$114/500*'EF Table'!#REF!*$C$114+H115/5000*'EF Table'!#REF!*$C$115 -> 
A149: Indirect Land Use | B149: 19.8 | C149: 19.8 | D149: 19.8 | E149: 19.8 | F149: 0 | G149: 19.4 | H149: =G149 -> 19.4 | I149: =H149 -> 19.4 | J149: =I149 -> 19.4
A150: Denaturant | B150: =(1-#REF!)*(C128+C129+C130+C131+C132+C134+C148+C149)+#REF!*#REF!-(C128+C129+C130+C131+C132+C134+C148+C149) ->  | C150: =(1-#REF!)*(C128+C129+C130+C131+C132+C134+C148+C149)+#REF!*#REF!-(C128+C129+C130+C131+C132+C134+C148+C149) ->  | D150: =(1-#REF!)*(D128+D129+D130+D131+D132+D134+D148+D149)+#REF!*#REF!-(D128+D129+D130+D131+D132+D134+D148+D149) ->  | E150: =(1-#REF!)*(E128+E129+E130+E131+E132+E134+E148+E149)+#REF!*#REF!-(E128+E129+E130+E131+E132+E134+E148+E149) ->  | F150: =(1-#REF!)*(F128+F129+F130+F131+F132+F134+F148+F149)+#REF!*#REF!-(F128+F129+F130+F131+F132+F134+F148+F149) ->  | G150: =(1-#REF!)*(G128+G129+G130+G131+G132+G134+G148+G149)+#REF!*#REF!-(G128+G129+G130+G131+G132+G134+G148+G149) ->  | H150: =(1-#REF!)*(H128+H129+H130+H131+H132+H134+H148+H149)+#REF!*#REF!-(H128+H129+H130+H131+H132+H134+H148+H149) ->  | I150: =(1-#REF!)*(I128+I129+I130+I131+I132+I134+I148+I149)+#REF!*#REF!-(I128+I129+I130+I131+I132+I134+I148+I149) ->  | J150: =(1-#REF!)*(J128+J129+J130+J131+J132+J134+J148+J149)+#REF!*#REF!-(J128+J129+J130+J131+J132+J134+J148+J149) -> 
A151: Tailpipe Emissions | B151: 0 | C151: =B151 -> 0 | D151: 0 | E151: 0 | F151: 0 | G151: 0 | H151: 0 | I151: 0 | J151: 0
A152: Total CI | B152: =SUM(B128:B134,B145,B148,B149,B150,B151) ->  | C152: =SUM(C128:C134,C145,C148,C149,C150,C151) ->  | D152: =IF(D126="None","N/A",SUM(D128:D134,D145,D148,D149,D150,D151)) -> N/A | E152: =IF(E126="None","N/A",SUM(E128:E134,E145,E148,E149,E150,E151)) ->  | F152: =SUM(F128:F151) ->  | G152: =SUM(G128:G151) ->  | H152: =SUM(H128:H151) ->  | I152: =SUM(I128:I151) ->  | J152: =SUM(J128:J151) -> 
A157: =$E$68*Reference!$F$13*10^6/$E$48*(50%*EF!$B$16+50%*EF!$C$16+HLOOKUP(#REF!,'EF Table'!$C$2:$AH$2,23,FALSE))/Reference!#REF!*#REF!*#REF! ->  | B157: =$E$68*Reference!$F$13*10^6/$E$48 -> 29133.66154 | C157: =(50%*EF!$B$16+50%*EF!$C$16+HLOOKUP(#REF!,'EF Table'!$C$2:$AH$2,23,FALSE))/Reference!#REF!*#REF! ->  | D157: =HLOOKUP(#REF!,'EF Table'!$C$2:$AH$2,23,FALSE) -> 

Sheet EtOH (hidden)
A1: Color Legend: | G1: DRAFT - FOR DISCUSSION ONLY - DO NOT USE
A2: Yellow Cells require user input | D2: Light Blue Cells show CI results
A3: Green Cells show the calculation button | D3: Gray Cells are Calculated Values
D5: Step 1 | E5: Applicant Information
A6: Starch Ethanol Calculator | D6: Applicant: | E6: ABC Company | G6: Feedstock Production Location: | I6: U.S. | J6: Ethanol Production Location: | L6: City, State
D7: Pathway Summary: | E7: Corn, Sorghum, and Corn Fiber Ethanol from Midwest, transported 1,800 miles to California to be used as transportation fuel in California
D8: Corn Ethanol Composite CI, g/MJ | F8: =H216 ->  | G8: Sorghum Ethanol (Composite CI), g/MJ | I8: =IF($J$46=0," ",H220) ->  | J8: Corn Fiber Ethanol CI, g/MJ | L8: =IF(BA46=0," ",H224) -> 
D9: Volume, gal | F9: =I216 -> 32837550.43 | G9: Volume, gal | I9: =IF($J$46=0," ",I220) -> 70694686.57 | J9: Ethanol Volume, gal | L9: =IF(BA46=0," ",I224) -> 
D10: Corn Ethanol (Dry DGS) CI, g/MJ | F10: =IF($U$46=0," ",H217) ->  | G10: Sorghum Ethanol (Dry DGS) CI, g/MJ | I10: =IF($U$46=0," ",H221) -> 
D11: Volume, gal | F11: =IF($U$46=0," ",I217) ->  | G11: Volume, gal | I11: =IF($U$46=0," ",I221) -> 
D12: Corn Ethanol (Modified DGS) CI, g/MJ | F12: =IF($AA$46=0," ",H218) ->  | G12: Sorghum Ethanol (Modified DGS) CI, g/MJ | I12: =IF($AA$46=0," ",H222) -> 
D13: Volume, gal | F13: =IF($UAC$46=0," ",I218) ->  | G13: Volume, gal | I13: =IF($U$46=0," ",I222) -> 
D14: Corn Ethanol (Wet DGS) CI, g/MJ | F14: =IF(H219=0, " ", H219) ->  | G14: Sorghum Ethanol (Wet DGS) CI, g/MJ | I14: =IF(H223=0," ",H223) -> 
D15: Volume, gal | F15: =IF(U46=0," ",I219) ->  | G15: Volume, gal | I15: =IF(U46=0," ",I223) -> 
D16: Electricity Mix Region for Feedstock | G16: 1-U.S Ave Mix | J16: Electricity Mix Region for Fuel | L16: 7-MROW Mix
B18: Corn as Feedstock | F18: Corn Transport | I18: Sorghum as Feedstock | M18: Sorghum Transport | P18: Co-Product Production | AP18: Fuel Production
A19: Step 2 | B19: Corn Inventory | F19: Conditional Default for Corn Transport Outside of CA | I19: Sorghum Inventory | M19: Conditional Default for Sorghum Transport Outside of CA | P19: Co-Products: Dry Distiller Grains | V19: Modified Distiller Grains | AB19: Wet Distiller Grains | AG19: Syrup | AK19: Corn/Sorghum Oil | AP19: Starch Ethanol Production | AV19: Cellulosic Ethanol Production | BB19: Step 3 | BC19: Energy Consumption (Natural Gas, Biomass, Coal, and Electricity) | BK19: Fuel Transport and Distribution
A20: Monthly Data | B20: Beginning Corn Inventory | C20: Corn Used (Calculated) | D20: Corn Received | E20: Ending Corn Inventory | F20: Corn Transport from Collection Center to Ethanol Plant (Monthly weighted average) | I20: Beginning Sorghum Inventory | J20: Sorghum Used (Calculated) | K20: Sorghum Received | L20: Ending Sorghum Inventory | M20: Sorghum Transport from Collection Center to Ethanol Plant (Monthly weighted average) | P20: Dry DG Beginning Inventory | Q20: Dry Distiller Grains Produced | R20: Dry Distiller Grains Sales | S20: Dry DG Ending Inventory | T20: Moisture Content | U20: Drying Energy | V20: Modified DG Beginning Inventory | W20: Modified Distiller Grains Produced | X20: Modified Distiller Grains Sales | Y20: Modified DG Ending Inventory | Z20: Moisture Content | AA20: Drying Energy | AB20: Wet DG Beginning Inventory | AC20: Wet Distiller Grains Produced | AD20: Wet Distiller Grains Sales | AE20: Wet DG Ending Inventory | AF20: Moisture Content | AG20: Syrup Beginning Inventory | AH20: Syrup Produced | AI20: Syrup Sales | AJ20: Syrup Ending Inventory | AK20: Beginning Oil Inventory | AL20: Oil Produced | AM20: Oil Sales | AN20: Ending Oil Inventory | AO20: Co-product Yield | AP20: Beginning Undenatured Ethanol | AQ20: Denatured Ethanol Sales | AR20: Undenatured Ethanol Sales | AS20: Ending Undenatured Ethanol | AT20: Undenatured Ethanol Produced | AU20: Site-Specific Denaturant | AV20: Beginning Cellulosic Enzyme | AW20: Cellulosic Enzyme Purchase | AX20: Cellulosic Enzyme Use | AY20: Ending Cellulosic Enzyme | AZ20: Corn Fiber Allocation | BA20: Undenatured Corn Fiber Ethanol | BB20: NG Use | BC20: Biogas Use | BD20: Biogas Source Distance | BE20: Biomass Use | BF20: Biomass Moisture | BG20: Biomass Transport Distance | BH20: Coal Use from Invoices | BI20: Electricity Use from grid | BJ20: Electricity from Co-located Solar or Wind | BK20: Finished Fuel Transport
A21: Unit | B21: Bushels | C21: Bushels | D21: Bushels | E21: Bushels | F21: By HDDT, miles | G21: By Rail, miles | H21: By Barge, miles | I21: Bushels | J21: Bushels | K21: Bushels | L21: Bushels | M21: By HDDT, miles | N21: By Rail, miles | O21: By Barge, miles | P21: Tons | Q21: Tons | R21: Tons | S21: Tons | T21: % | U21: MMBtu, HHV | V21: Tons | W21: Tons | X21: Tons | Y21: Tons | Z21: % | AA21: MMBtu, HHV | AC21: Tons | AD21: Tons | AE21: Tons | AF21: % | AG21: Tons | AH21: Tons | AI21: Tons | AJ21: Tons | AK21: lbs. | AL21: lbs. | AM21: lbs. | AN21: lbs. | AO21: Dry matter lbs./gal EtOH | AP21: Gallons @ 60o F | AQ21: Gallons @ 60o F | AR21: Gallons @ 60o F | AS21: Gallons @ 60o F | AT21: Gallons @ 60o F | AU21: Gallons | AV21: lbs. | AW21: lbs. | AX21: lbs. | AY21: lbs. | AZ21: % | BA21: Gallons @ 60o F | BB21: MMBtu (HHV) | BC21: MMBtu (HHV) | BD21: miles | BE21: Dry Tons | BF21: % | BG21: miles | BH21: Dry Tons | BI21: kWh | BJ21: kWh | BK21: Mode | BL21: Miles
A22: Month 1 | B22: 1000000 | C22: =B22+D22-E22 -> 0 | D22: 0 | E22: 1000000 | F22: 80 | G22: 0 | I22: 0 | J22: =I22+K22-L22 -> 1063963.75 | K22: 1063963.75 | L22: 0 | M22: 80 | N22: 0 | P22: 100000 | Q22: =R22+S22-P22 -> 4217 | R22: 4217 | S22: 100000 | T22: 0.1089 | U22: 0 | V22: 0 | W22: =X22+Y22-V22 -> 0 | X22: 0 | Y22: 0 | Z22: 0.55 | AA22: 0 | AB22: 100000 | AC22: =AD22+AE22-AB22 -> 21121.12 | AD22: 21121.12 | AE22: 100000 | AF22: 0.6622 | AG22: 8 | AH22: =AI22+AJ22-AG22 -> 0 | AI22: 0 | AJ22: 8 | AK22: 80000 | AL22: =AM22+AN22-AK22 -> 400000 | AM22: 400000 | AN22: 80000 | AO22: =(((Q22*(1-T22)+W22*(1-Z22)+AC22*(1-AF22)+AH22*(1-0.3))*2000))/(AT22+BA22) -> 10.54084569 | AP22: 13000000 | AQ22: 4066719 | AR22: 100000 | AS22: 11000000 | AT22: =AS22-AP22+AQ22+AR22-AU22 -> 2066719 | AU22: 100000 | AV22: 8 | AW22: 0 | AX22: =AV22-AY22+AW22 -> 0 | AY22: 8 | AZ22: 0 | BA22: =AZ22*AT22 -> 0 | BB22: 96481 | BH22: 0 | BI22: 2050883.353 | BK22: By Rail | BL22: 1800
A23: Month 2 | B23: =E22 -> 1000000 | C23: =B23+D23-E23 -> 0 | D23: 0 | E23: 1000000 | F23: 80 | G23: 0 | I23: =L22 -> 0 | J23: =I23+K23-L23 -> 1094237.64 | K23: 1094237.64 | L23: 0 | M23: 80 | N23: 0 | P23: =S22 -> 100000 | Q23: =R23+S23-P23 -> 3600 | R23: 3600 | S23: 100000 | T23: 0.1133 | U23: 0 | V23: =Y22 -> 0 | W23: =X23+Y23-V23 -> 0 | X23: 0 | Y23: 0 | Z23: 0.55 | AA23: 0 | AB23: =AE22 -> 100000 | AC23: =AD23+AE23-AB23 -> 21578.36 | AD23: 21578.36 | AE23: 100000 | AF23: 0.6675 | AG23: =AJ22 -> 8 | AH23: =AI23+AJ23-AG23 -> 0 | AI23: 0 | AJ23: 8 | AK23: =AN22 -> 80000 | AL23: =AM23+AN23-AK23 -> 500000 | AM23: 500000 | AN23: 80000 | AO23: 4.539882878 | AP23: =AS22 -> 11000000 | AQ23: 4167045 | AR23: 500000 | AS23: 11000000 | AT23: =AS23-AP23+AQ23+AR23-AU23 -> 4567045 | AU23: 100000 | AV23: =AY22 -> 8 | AW23: 0 | AX23: =AV23-AY23+AW23 -> 0 | AY23: 8 | AZ23: 0 | BA23: =AZ23*AT23 -> 0 | BB23: 99788 | BH23: 0 | BI23: 2068199.647
A24: Month 3 | B24: =E23 -> 1000000 | C24: 0 | D24: 0 | E24: 1000000 | F24: 80 | G24: 0 | I24: =L23 -> 0 | J24: 876094 | K24: 876094 | L24: 0 | M24: 80 | N24: 0 | P24: =S23 -> 100000 | Q24: =R24+S24-P24 -> 2394 | R24: 2394 | S24: 100000 | T24: 0.1112 | U24: 0 | V24: =Y23 -> 0 | W24: 0 | X24: 0 | Y24: 0 | Z24: 0.55 | AA24: 0 | AB24: =AE23 -> 100000 | AC24: 21204.17 | AD24: 21204.17 | AE24: 100000 | AF24: 0.6697 | AG24: =AJ23 -> 8 | AH24: 0 | AI24: 0 | AJ24: 8 | AK24: =AN23 -> 80000 | AL24: =AM24+AN24-AK24 -> 500000 | AM24: 500000 | AN24: 80000 | AO24: 4.344329622 | AP24: 11000000 | AQ24: 3803882 | AR24: 500000 | AS24: 11000000 | AT24: 4203882 | AU24: 100000 | AV24: =AY23 -> 8 | AW24: 0 | AX24: 0 | AY24: 8 | AZ24: 0 | BA24: 0 | BB24: 90580 | BH24: 0 | BI24: 1946033 | BK24: By HDD Truck | BL24: 100
A25: Month 4 | B25: 1000000 | C25: 0 | D25: 0 | E25: 1000000 | F25: 80 | G25: 0 | I25: 0 | J25: 918330 | K25: 918330 | L25: 0 | M25: 80 | N25: 0 | P25: 100000 | Q25: 2681.25 | R25: 2681.25 | S25: 100000 | T25: 0.1109 | U25: 0 | V25: 0 | W25: 0 | X25: 0 | Y25: 0 | Z25: 0.55 | AA25: 0 | AB25: 100000 | AC25: 20378 | AD25: 20378 | AE25: 100000 | AF25: 0.6677 | AG25: 8 | AH25: 0 | AI25: 0 | AJ25: 8 | AK25: 80000 | AL25: 500000 | AM25: 500000 | AN25: 80000 | AO25: 4.594449468 | AP25: 11000000 | AQ25: 3585465 | AR25: 500000 | AS25: 11000000 | AT25: 3985465 | AU25: 100000 | AV25: 8 | AW25: 0 | AX25: =AV25-AY25+AW25 -> 0 | AY25: 8 | AZ25: 0 | BA25: 0 | BB25: 80188 | BH25: 0 | BI25: 1793837
A26: Month 5 | B26: 1000000 | C26: 0 | D26: 0 | E26: 1000000 | F26: 80 | G26: 0 | I26: 0 | J26: 1094500 | K26: 1094500 | L26: 0 | M26: 80 | N26: 0 | P26: 100000 | Q26: 4014.18 | R26: 4014.18 | S26: 100000 | T26: 0.1227 | U26: 0 | V26: 0 | W26: 0 | X26: 0 | Y26: 0 | Z26: 0.55 | AA26: 0 | AB26: 100000 | AC26: 23102.54 | AD26: 23102.54 | AE26: 100000 | AF26: 0.6669 | AG26: 8 | AH26: 0 | AI26: 0 | AJ26: 8 | AK26: 80000 | AL26: 500000 | AM26: 500000 | AN26: 80000 | AO26: 4.746604976 | AP26: 11000000 | AQ26: 4326366 | AR26: 500000 | AS26: 11000000 | AT26: 4726366 | AU26: 100000 | AV26: 8 | AW26: 0 | AX26: =AV26-AY26+AW26 -> 0 | AY26: 8 | AZ26: 0 | BA26: 0 | BB26: 101860 | BH26: 0 | BI26: 2156354 | BK26: By Barge | BL26: 0
A27: Month 6 | B27: 1000000 | C27: 0 | D27: 0 | E27: 1000000 | F27: 80 | G27: 0 | I27: 0 | J27: 969748 | K27: 969748 | L27: 0 | M27: 80 | N27: 0 | P27: 100000 | Q27: 2730.52 | R27: 2730.52 | S27: 100000 | T27: 0.1239 | U27: 0 | V27: 0 | W27: 0 | X27: 0 | Y27: 0 | Z27: 0.55 | AA27: 0 | AB27: 100000 | AC27: 22923.38 | AD27: 22923.38 | AE27: 100000 | AF27: 0.6675 | AG27: 8 | AH27: 0 | AI27: 0 | AJ27: 8 | AK27: 80000 | AL27: 500000 | AM27: 500000 | AN27: 80000 | AO27: 4.759680643 | AP27: 11000000 | AQ27: 3807943 | AR27: 500000 | AS27: 11000000 | AT27: 4207943 | AU27: 100000 | AV27: 8 | AW27: 0 | AX27: 0 | AY27: 8 | AZ27: 0 | BA27: 0 | BB27: 84541 | BH27: 0 | BI27: 1992869
A28: Month 7 | B28: 1000000 | C28: =B28+D28-E28 -> 0 | D28: 0 | E28: 1000000 | F28: 80 | G28: 0 | I28: 0 | J28: 1124983 | K28: 1124983 | L28: 0 | M28: 80 | N28: 0 | P28: 100000 | Q28: 3576 | R28: 3576 | S28: 100000 | T28: 0.1213 | U28: 0 | V28: 0 | W28: 0 | X28: 0 | Y28: 0 | Z28: 0.55 | AA28: 0 | AB28: 100000 | AC28: 24657 | AD28: 24657 | AE28: 100000 | AF28: 0.6622 | AG28: 8 | AH28: 0 | AI28: 0 | AJ28: 8 | AK28: 80000 | AL28: =AM28+AN28-AK28 -> 500000 | AM28: 500000 | AN28: 80000 | AO28: 4.85716606 | AP28: 11000000 | AQ28: 4323481 | AR28: 500000 | AS28: 11000000 | AT28: 4723481 | AU28: 100000 | AV28: 8 | AW28: 0 | AX28: 0 | AY28: 8 | AZ28: 0 | BA28: 0 | BB28: 95134 | BH28: 0 | BI28: 2150707.581
A29: Month 8 | B29: 1000000 | C29: 0 | D29: 0 | E29: 1000000 | F29: 80 | G29: 0 | I29: 0 | J29: 1118850.04 | K29: 1118850.04 | L29: 0 | M29: 80 | N29: 0 | P29: 100000 | Q29: 4644.04 | R29: 4644.04 | S29: 100000 | T29: 0.1253 | U29: 0 | V29: 0 | W29: 0 | X29: 0 | Y29: 0 | Z29: 0.55 | AA29: 0 | AB29: 100000 | AC29: 22027.77 | AD29: 22027.77 | AE29: 100000 | AF29: 0.6778 | AG29: 8 | AH29: 0 | AI29: 0 | AJ29: 8 | AK29: 80000 | AL29: 500000 | AM29: 500000 | AN29: 80000 | AO29: 4.846520598 | AP29: 11000000 | AQ29: 4205155 | AR29: 500000 | AS29: 11000000 | AT29: 4605155 | AU29: 100000 | AV29: 8 | AW29: 0 | AX29: 0 | AY29: 8 | AZ29: 0 | BA29: 0 | BB29: 96561 | BH29: 0 | BI29: 2344427.419
A30: Month 9 | B30: 1000000 | C30: 0 | D30: 0 | E30: 1000000 | F30: 80 | G30: 0 | I30: 0 | J30: 1060576 | K30: 1060576 | L30: 0 | M30: 80 | N30: 0 | P30: 100000 | Q30: 3595.83 | R30: 3595.83 | S30: 100000 | T30: 0.1247 | U30: 0 | V30: 0 | W30: 0 | X30: 0 | Y30: 0 | Z30: 0.55 | AA30: 0 | AB30: 100000 | AC30: 23277.54 | AD30: 23277.54 | AE30: 100000 | AF30: 0.665 | AG30: 8 | AH30: 0 | AI30: 0 | AJ30: 8 | AK30: 80000 | AL30: 500000 | AM30: 500000 | AN30: 80000 | AO30: 4.863087028 | AP30: 11000000 | AQ30: 4101423 | AR30: 500000 | AS30: 11000000 | AT30: 4501423 | AU30: 100000 | AV30: 8 | AW30: 0 | AX30: 0 | AY30: 8 | AZ30: 0 | BA30: 0 | BB30: 89458 | BH30: 0 | BI30: 2279997 | BK30: Finished Fuel Distribution Standard Value is at 90 miles by HDDT
A31: Month 10 | B31: 1000000 | C31: 0 | D31: 0 | E31: 1000000 | F31: 80 | G31: 0 | I31: 0 | J31: 1058019 | K31: 1058019 | L31: 0 | M31: 80 | N31: 0 | P31: 100000 | Q31: 3661.76 | R31: 3661.76 | S31: 100000 | T31: 0.1176 | U31: 0 | V31: 0 | W31: 0 | X31: 0 | Y31: 0 | Z31: 0.55 | AA31: 0 | AB31: 100000 | AC31: 22562.88 | AD31: 22562.88 | AE31: 100000 | AF31: 0.6647 | AG31: 8 | AH31: 0 | AI31: 0 | AJ31: 8 | AK31: 80000 | AL31: 500000 | AM31: 500000 | AN31: 80000 | AO31: 4.722914119 | AP31: 11000000 | AQ31: 4171953 | AR31: 500000 | AS31: 11000000 | AT31: 4571953 | AU31: 100000 | AV31: 8 | AW31: 0 | AX31: 0 | AY31: 8 | AZ31: 0 | BA31: 0 | BB31: 90515 | BH31: 0 | BI31: 2372708.938
A32: Month 11 | B32: 1000000 | C32: 0 | D32: 0 | E32: 1000000 | F32: 80 | G32: 0 | I32: 0 | J32: 1071557 | K32: 1071557 | L32: 0 | M32: 80 | N32: 0 | P32: 100000 | Q32: 4044.32 | R32: 4044.32 | S32: 100000 | T32: 0.1161 | U32: 0 | V32: 0 | W32: 0 | X32: 0 | Y32: 0 | Z32: 0.55 | AA32: 0 | AB32: 100000 | AC32: 22429.4 | AD32: 22429.4 | AE32: 100000 | AF32: 0.661 | AG32: 8 | AH32: 0 | AI32: 0 | AJ32: 8 | AK32: 80000 | AL32: 500000 | AM32: 500000 | AN32: 80000 | AO32: 4.908373047 | AP32: 11000000 | AQ32: 4154805 | AR32: 500000 | AS32: 11000000 | AT32: 4554805 | AU32: 100000 | AV32: 8 | AW32: 0 | AX32: 0 | AY32: 8 | AZ32: 0 | BA32: 0 | BB32: 94094 | BH32: 0 | BI32: 2269199.062
A33: Month 12 | B33: 1000000 | C33: 94606 | D33: 94606 | E33: 1000000 | F33: 80 | G33: 0 | I33: 0 | J33: 1002691 | K33: 1002691 | L33: 0 | M33: 80 | N33: 0 | P33: 100000 | Q33: 2977.71 | R33: 2977.71 | S33: 100000 | T33: 0.114 | U33: 0 | V33: 0 | W33: 0 | X33: 0 | Y33: 0 | Z33: 0.55 | AA33: 0 | AB33: 100000 | AC33: 25052.33 | AD33: 25052.33 | AE33: 100000 | AF33: 0.6633 | AG33: 8 | AH33: 0 | AI33: 0 | AJ33: 8 | AK33: 80000 | AL33: 500000 | AM33: 500000 | AN33: 80000 | AO33: 4.797914418 | AP33: 11000000 | AQ33: 4215910 | AR33: 500000 | AS33: 11000000 | AT33: 4615910 | AU33: 100000 | AV33: 8 | AW33: 0 | AX33: 0 | AY33: 8 | AZ33: 0 | BA33: 0 | BB33: 92934 | BH33: 0 | BI33: 2105887
A34: Month 13 | B34: 1000000 | C34: 0 | D34: 0 | E34: 1000000 | F34: 80 | G34: 0 | I34: 0 | J34: 1090222 | K34: 1090222 | L34: 0 | M34: 80 | N34: 0 | P34: 100000 | Q34: 1903 | R34: 1903 | S34: 100000 | T34: 0.1015 | U34: 0 | V34: 0 | W34: 0 | X34: 0 | Y34: 0 | Z34: 0 | AA34: 0 | AB34: 100000 | AC34: 25965 | AD34: 25965 | AE34: 100000 | AF34: 0.6685 | AG34: 8 | AH34: 0 | AI34: 0 | AJ34: 8 | AK34: 80000 | AL34: 400000 | AM34: 500000 | AN34: 80000 | AO34: 4.794179927 | AP34: 11000000 | AQ34: 3904070 | AR34: 500000 | AS34: 11000000 | AT34: 4304070 | AU34: 100000 | AV34: 8 | AW34: 0 | AX34: 0 | AY34: 8 | AZ34: 0 | BA34: 0 | BB34: 84293 | BH34: 0 | BI34: 1798943.971
A35: Month 14 | B35: 1000000 | C35: 159050 | D35: 159050 | E35: 1000000 | F35: 80 | G35: 0 | I35: 0 | J35: 910710 | K35: 910710 | L35: 0 | M35: 80 | N35: 0 | P35: 100000 | Q35: 3131 | R35: 3131 | S35: 100000 | T35: 0.1074 | U35: 0 | V35: 0 | W35: 0 | X35: 0 | Y35: 0 | Z35: 0 | AA35: 0 | AB35: 100000 | AC35: 24087 | AD35: 24087 | AE35: 100000 | AF35: 0.669 | AG35: 8 | AH35: 0 | AI35: 0 | AJ35: 8 | AK35: 80000 | AL35: 400000 | AM35: 500000 | AN35: 80000 | AO35: 4.613422572 | AP35: 11000000 | AQ35: 4267913 | AR35: 500000 | AS35: 11000000 | AT35: 4667913 | AU35: 100000 | AV35: 8 | AW35: 0 | AX35: 0 | AY35: 8 | AZ35: 0 | BA35: 0 | BB35: 95261 | BH35: 0 | BI35: 1990626.029
A36: Month 15 | B36: 1000000 | C36: 47706 | D36: 47706 | E36: 1000000 | F36: 80 | G36: 0 | I36: 0 | J36: 980371.29 | K36: 980371.29 | L36: 0 | M36: 80 | N36: 0 | P36: 100000 | Q36: 3670 | R36: 3670 | S36: 100000 | T36: 0.1105 | U36: 0 | V36: 0 | W36: 0 | X36: 0 | Y36: 0 | Z36: 0 | AA36: 0 | AB36: 100000 | AC36: 22103 | AD36: 22103 | AE36: 100000 | AF36: 0.6671 | AG36: 8 | AH36: 0 | AI36: 0 | AJ36: 8 | AK36: 80000 | AL36: 400000 | AM36: 500000 | AN36: 80000 | AO36: 4.657583799 | AP36: 11000000 | AQ36: 4161401 | AR36: 500000 | AS36: 11000000 | AT36: 4561401 | AU36: 100000 | AV36: 8 | AW36: 0 | AX36: 0 | AY36: 8 | AZ36: 0 | BA36: 0 | BB36: 97754 | BI36: 1991064.929
A37: Month 16 | B37: =E36 -> 1000000 | C37: 877972 | D37: 877972 | E37: 1000000 | F37: 80 | G37: 0 | I37: 0 | J37: 18758.76 | K37: 18758.76 | L37: 0 | M37: 80 | N37: 0 | P37: 100000 | Q37: 3183 | R37: 3183 | S37: 100000 | T37: 0.1164 | U37: 0 | V37: 0 | W37: 0 | X37: 0 | Y37: 0 | Z37: 0 | AA37: 0 | AB37: 100000 | AC37: 18134 | AD37: 18134 | AE37: 100000 | AF37: 0.6698 | AG37: 8 | AH37: 0 | AI37: 0 | AJ37: 8 | AK37: 80000 | AL37: 400000 | AM37: 500000 | AN37: 80000 | AO37: 4.297755146 | AP37: 11000000 | AQ37: 3695322 | AR37: 500000 | AS37: 11000000 | AT37: 4095322 | AU37: 100000 | AV37: 8 | AW37: 0 | AX37: 0 | AY37: 8 | AZ37: 0 | BA37: 0 | BB37: 85323 | BI37: 1798256.728
A38: Month 17 | B38: 1000000 | C38: 824493 | D38: 824493 | E38: 1000000 | F38: 80 | G38: 0 | I38: 0 | J38: 0 | K38: 0 | L38: 0 | M38: 80 | N38: 0 | P38: 100000 | Q38: 2339 | R38: 2339 | S38: 100000 | T38: 0.111 | U38: 0 | V38: 0 | W38: 0 | X38: 0 | Y38: 0 | Z38: 0 | AA38: 0 | AB38: 100000 | AC38: 19120 | AD38: 19120 | AE38: 100000 | AF38: 0.6596 | AG38: 8 | AH38: 0 | AI38: 0 | AJ38: 8 | AK38: 80000 | AL38: 400000 | AM38: 500000 | AN38: 80000 | AO38: 4.310394604 | AP38: 11000000 | AQ38: 3584702 | AR38: 500000 | AS38: 11000000 | AT38: 3984702 | AU38: 100000 | AV38: 8 | AW38: 0 | AX38: 0 | AY38: 8 | AZ38: 0 | BA38: 0 | BB38: 81334 | BI38: 1890090.344
A39: Month 18 | B39: 1000000 | C39: 715561 | D39: 715561 | E39: 1000000 | F39: 80 | G39: 0 | I39: 0 | J39: 0 | K39: 0 | L39: 0 | M39: 80 | N39: 0 | P39: 100000 | Q39: 1367 | R39: 1367 | S39: 100000 | T39: 0.1077 | U39: 0 | V39: 0 | W39: 0 | X39: 0 | Y39: 0 | Z39: 0 | AA39: 0 | AB39: 100000 | AC39: 17444 | AD39: 17444 | AE39: 100000 | AF39: 0.6557 | AG39: 8 | AH39: 0 | AI39: 0 | AJ39: 8 | AK39: 80000 | AL39: 400000 | AM39: 500000 | AN39: 80000 | AO39: 4.070105237 | AP39: 11000000 | AQ39: 3150642 | AR39: 500000 | AS39: 11000000 | AT39: 3550642 | AU39: 100000 | AV39: 8 | AW39: 0 | AX39: 0 | AY39: 8 | AZ39: 0 | BA39: 0 | BB39: 68394 | BI39: 1992869
A40: Month 19 | B40: 1000000 | C40: 1021642 | D40: 1021642 | E40: 1000000 | F40: 80 | G40: 0 | I40: 0 | J40: 0 | K40: 0 | L40: 0 | M40: 80 | N40: 0 | P40: 100000 | Q40: 3301 | R40: 3301 | S40: 100000 | T40: 0.1101 | U40: 0 | V40: 0 | W40: 0 | X40: 0 | Y40: 0 | Z40: 0 | AA40: 0 | AB40: 100000 | AC40: 20794 | AD40: 20794 | AE40: 100000 | AF40: 0.6461 | AG40: 8 | AH40: 0 | AI40: 0 | AJ40: 8 | AK40: 80000 | AL40: 400000 | AM40: 500000 | AN40: 80000 | AO40: 4.627760478 | AP40: 11000000 | AQ40: 4049909 | AR40: 500000 | AS40: 11000000 | AT40: 4449909 | AU40: 100000 | AV40: 8 | AW40: 0 | AX40: 0 | AY40: 8 | AZ40: 0 | BA40: 0 | BB40: 89145 | BI40: 2135446.25
A41: Month 20 | B41: 1000000 | C41: 1002586 | D41: 1002586 | E41: 1000000 | F41: 80 | G41: 0 | I41: 0 | J41: 0 | K41: 0 | L41: 0 | M41: 80 | N41: 0 | P41: 100000 | Q41: 2921 | R41: 2921 | S41: 100000 | T41: 0.1102 | U41: 0 | V41: 0 | W41: 0 | X41: 0 | Y41: 0 | Z41: 0 | AA41: 0 | AB41: 100000 | AC41: 20250 | AD41: 20250 | AE41: 100000 | AF41: 0.656 | AG41: 8 | AH41: 0 | AI41: 0 | AJ41: 8 | AK41: 80000 | AL41: 400000 | AM41: 500000 | AN41: 80000 | AO41: 4.321577763 | AP41: 11000000 | AQ41: 4026673 | AR41: 500000 | AS41: 11000000 | AT41: 4426673 | AU41: 100000 | AV41: 8 | AW41: 0 | AX41: 0 | AY41: 8 | AZ41: 0 | BA41: 0 | BB41: 83690 | BI41: 2232048.75
A42: Month 21 | B42: 1000000 | C42: 1082907 | D42: 1082907 | E42: 1000000 | F42: 80 | G42: 0 | I42: 0 | J42: 0 | K42: 0 | L42: 0 | M42: 80 | N42: 0 | P42: 100000 | Q42: 3855 | R42: 3855 | S42: 100000 | T42: 0.1101 | U42: 0 | V42: 0 | W42: 0 | X42: 0 | Y42: 0 | Z42: 0 | AA42: 0 | AB42: 100000 | AC42: 21471 | AD42: 21471 | AE42: 100000 | AF42: 0.6622 | AG42: 8 | AH42: 0 | AI42: 0 | AJ42: 8 | AK42: 80000 | AL42: 400000 | AM42: 500000 | AN42: 80000 | AO42: 4.525365078 | AP42: 11000000 | AQ42: 4321594 | AR42: 500000 | AS42: 11000000 | AT42: 4721594 | AU42: 100000 | AV42: 8 | AW42: 0 | AX42: 0 | AY42: 8 | AZ42: 0 | BA42: 0 | BB42: 92615 | BI42: 2534011
A43: Month 22 | B43: 1000000 | C43: 1007522 | D43: 1007522 | E43: 1000000 | F43: 80 | G43: 0 | I43: 0 | J43: 0 | K43: 0 | L43: 0 | M43: 80 | N43: 0 | P43: 100000 | Q43: 3226 | R43: 3226 | S43: 100000 | T43: 0.1073 | U43: 0 | V43: 0 | W43: 0 | X43: 0 | Y43: 0 | Z43: 0 | AA43: 0 | AB43: 100000 | AC43: 20576 | AD43: 20576 | AE43: 100000 | AF43: 0.6562 | AG43: 8 | AH43: 0 | AI43: 0 | AJ43: 8 | AK43: 80000 | AL43: 400000 | AM43: 500000 | AN43: 80000 | AO43: 4.29530749 | AP43: 11000000 | AQ43: 4234769 | AR43: 500000 | AS43: 11000000 | AT43: 4634769 | AU43: 100000 | AV43: 8 | AW43: 0 | AX43: 0 | AY43: 8 | AZ43: 0 | BA43: 0 | BB43: 90277 | BI43: 2428932
A44: Month 23 | B44: 1000000 | C44: 844959 | D44: 844959 | E44: 1000000 | F44: 80 | G44: 0 | I44: 0 | J44: 105329.9 | K44: 105329.9 | L44: 0 | M44: 80 | N44: 0 | P44: 100000 | Q44: 3090 | R44: 3090 | S44: 100000 | T44: 0.1083 | U44: 0 | V44: 0 | W44: 0 | X44: 0 | Y44: 0 | Z44: 0 | AA44: 0 | AB44: 100000 | AC44: 19860 | AD44: 19860 | AE44: 100000 | AF44: 0.6622 | AG44: 8 | AH44: 0 | AI44: 0 | AJ44: 8 | AK44: 80000 | AL44: 500000 | AM44: 500000 | AN44: 80000 | AO44: 4.373079397 | AP44: 11000000 | AQ44: 3928328 | AR44: 500000 | AS44: 11000000 | AT44: 4328328 | AU44: 100000 | AV44: 8 | AW44: 0 | AX44: 0 | AY44: 8 | AZ44: 0 | BA44: 0 | BB44: 83675 | BI44: 2417237
A45: Month 24 | B45: 1000000 | C45: 0 | D45: 0 | E45: 1000000 | F45: 80 | G45: 0 | I45: 0 | J45: 972888 | K45: 972888 | L45: 0 | M45: 80 | N45: 0 | P45: 100000 | Q45: 4140 | R45: 4140 | S45: 100000 | T45: 0.1078 | U45: 0 | V45: 0 | W45: 0 | X45: 0 | Y45: 0 | Z45: 0 | AA45: 0 | AB45: 100000 | AC45: 20054 | AD45: 20054 | AE45: 100000 | AF45: 0.6594 | AG45: 8 | AH45: 0 | AI45: 0 | AJ45: 8 | AK45: 80000 | AL45: 150000 | AM45: 150000 | AN45: 80000 | AO45: 4.701652063 | AP45: 11000000 | AQ45: 4076767 | AR45: 500000 | AS45: 11000000 | AT45: 4476767 | AU45: 100000 | AV45: 8 | AW45: 0 | AX45: 0 | AY45: 8 | AZ45: 0 | BA45: =AZ45*AT45 -> 0 | BB45: 90785 | BI45: 2087611
A46: Total or Ave. | B46: =SUM(B22:B45) -> 24000000 | C46: =SUM(C22:C45) -> 7679004 | D46: =SUM(D22:D45) -> 7679004 | E46: =SUM(E22:E45) -> 24000000 | F46: =IFERROR(AVERAGE(F22:F45),"0") -> 80 | G46: =IFERROR(AVERAGE(G22:G45),"0") -> 0 | H46: =IFERROR(AVERAGE(H22:H45),"0") -> 0 | I46: 0 | J46: =SUM(J22:J45) -> 16531829.38 | K46: 16531829.38 | L46: 0 | M46: =IF(AND(K46=0,L46=0),"N/A",SUMPRODUCT($K$22:$K$45,M22:M45)/SUM($K$22:$K$45)) -> 80 | N46: =IF(AND(K46=0,L46=0),"N/A",SUMPRODUCT($K$22:$K$45,N22:N45)/SUM($K$22:$K$45)) -> 0 | O46: =IF(AND(K46=0,L46=0),"N/A",SUMPRODUCT($K$22:$K$45,O22:O45)/SUM($K$22:$K$45)) -> 0 | P46: =SUM(P22:P45) -> 2400000 | Q46: =SUM(Q22:Q45) -> 78262.61 | R46: =SUM(R22:R45) -> 78262.61 | S46: =SUM(S22:S45) -> 2400000 | T46: =IF(MAX($T22:$T45)<=0,"No Data",SUMIF($T22:$T45,">0")/COUNTIF($T22:$T45,">0")) -> 0.1132583333 | U46: =SUM(U23:U45) -> 0 | V46: =SUM(V22:V45) -> 0 | W46: =SUM(W22:W45) -> 0 | X46: =SUM(X22:X45) -> 0 | Y46: =SUM(Y22:Y45) -> 0 | Z46: =IF(MAX($Z22:$Z45)<=0,"No Data",SUMIF($Z22:$Z45,">0")/COUNTIF($Z22:$Z45,">0")) -> 0.55 | AA46: =SUM(AA22:AA45) -> 0 | AB46: =SUM(AB22:AB45) -> 2400000 | AC46: =SUM(AC22:AC45) -> 520172.49 | AD46: =SUM(AD22:AD45) -> 520172.49 | AE46: =SUM(AE22:AE45) -> 2400000 | AF46: =IF(MAX($AF22:$AF45)<=0,"No Data",SUMIF($AF22:$AF45,">0")/COUNTIF($AF22:$AF45,">0")) -> 0.6636375 | AG46: =SUM(AG22:AG45) -> 192 | AH46: =SUM(AH22:AH45) -> 0 | AI46: 0 | AJ46: 192 | AK46: =SUM(AK22:AK45) -> 1920000 | AL46: =SUM(AL22:AL45) -> 10550000 | AM46: 11550000 | AN46: =SUM(AN22:AN45) -> 1920000 | AO46: 4.720563246 | AP46: =SUM(AP22:AP45) -> 266000000 | AQ46: 96332237 | AR46: =SUM(AR22:AR45) -> 11600000 | AS46: 264000000 | AT46: =SUM(AT22:AT45) -> 103532237 | AU46: =SUM(AU22:AU45) -> 2400000 | AV46: 192 | AW46: 0 | AX46: 0 | AY46: 192 | AZ46: =AVERAGE(AZ20:AZ45) -> 0 | BA46: =SUM(BA22:BA45) -> 0 | BB46: =SUM(BB22:BB45) -> 2154680 | BC46: =SUM(BC22:BC45) -> 0 | BE46: =SUM(BE22:BE45) -> 0 | BF46: =IFERROR(AVERAGE(BF22:BF45),0) -> 0 | BG46: =IFERROR(AVERAGE(BG22:BG45),0) -> 0 | BH46: =SUM(BH22:BH45) -> 0 | BI46: =SUM(BI22:BI45) -> 50828240 | BJ46: =SUM(BJ22:BJ45) -> 0
A47: Total MMBtu in HHV | U47: =U46 -> 0 | AA47: =AA46 -> 0 | AT47: =AT46*Reference!#REF!/10^6 ->  | BA47: =BA46*Reference!#REF!/10^6 ->  | BB47: =IF(BB21="MMBtu (HHV)",BB46,IF(BB21="SCF (HHV)",BB46*983/10^6,IF(BB21="Therms (HHV)",BB46*10))) -> 2154680 | BE47: =BE46*BF46*Reference!#REF! ->  | BH47: =BH46*Reference!#REF!/10^6 ->  | BI47: =SUM(BI22:BI45)*Reference!$F$46/10^6 -> 173433.1543
A48: Convert to MMBtu, in LHV | U48: =U47*Reference!$F$13 -> 0 | AA48: =AA47*Reference!$F$13 -> 0 | AT48: =AT47*Reference!#REF! ->  | BB48: =BB47*Reference!$F$13 -> 1945487.767 | BC48: =BC46*Reference!$B$13/10^6 -> 0 | BE48: =BE46*BF46*Reference!#REF! ->  | BH48: =BH47*Reference!#REF! ->  | BI48: =BI47 -> 173433.1543
A49: Convert to Btu/gallons fuel throughput | U49: =U48*10^6/$AT$46 -> 0 | AA49: =AA48*10^6/$AT$46 -> 0 | BB49: =BB48*10^6/($AT$46+$BA$46) -> 18791.13041 | BC49: =BC48*10^6/($AT$46+$BA$46) -> 0 | BE49: =BE48*10^6/($AT$46+$BA$46) ->  | BH49: =BH48/($AT$46+BA46)*10^6 ->  | BI49: =BI48*10^6/($AT$46+BA46) -> 1675.16089
A50: Process Shares and Efficiency, % | C50: =C46/($C$46+$J$46) -> 0.3171722295 | J50: =J46/($C$46+$J$46) -> 0.6828277705 | Q50: =Q46/($Q$46+$W$46+$AC$46+$AH$46+$AL$46/2000) -> 0.1296360786 | W50: =W46/($Q$46+$W$46+$AC$46+$AH$46+$AL$46/2000) -> 0 | AC50: =AC46/($Q$46+$W$46+$AC$46+$AH$46+$AL$46/2000) -> 0.8616262839 | AH50: =AH46/($Q$46+$W$46+$AC$46+$AH$46+$AL$46/2000) -> 0 | AL50: =AL46/2000/($Q$46+$W$46+$AC$46+$AH$46+$AL$46/2000) -> 0.008737637485 | AU50: =AU46/AQ46 -> 0.02491377834 | BB50: =BB49/($BB$49+$BC$49+$BE$49+$BI$49+$BH$49+$BJ$49) ->  | BC50: =BC49/($BB$49+$BC$49+$BE$49+$BI$49+$BH$49+$BJ$49) ->  | BE50: =BE49/($BB$49+$BC$49+$BE$49+$BI$49+$BH$49+$BJ$49) ->  | BH50: =BH49/($BB$49+$BC$49+$BE$49+$BI$49+$BH$49+$BJ$49) ->  | BI50: =BI49/($BB$49+$BC$49+$BE$49+$BI$49+$BH$49+$BJ$49) ->  | BJ50: =BJ49/($BB$49+$BC$49+$BE$49+$BI$49+$BH$49+$BJ$49) -> 
BJ51: kWh/gal
BJ52: =BI46/AT46 -> 0.4909411935
A56: Corn Ethanol - Dry Mill | G56: Sorghum Ethanol - Dry Mill | J56: Corn Fiber
A57: eGRID (Electricity Mix) region | D57: =G16 -> 1-U.S Ave Mix | E57: Shares | F57: CI Outputs, g/MJ | G57: =G16 -> 1-U.S Ave Mix | H57: Shares | I57: CI Outputs, g/MJ | J57: =G16 -> 1-U.S Ave Mix | K57: Shares | L57: CI Outputs, g/MJ
A58: Feedstock Production | B58: Ethanol Yield, gal/bu | D58: =IF(C46=0,0,(AT46+BA46)/(C46+J46)) -> 4.276277292 | F58: =F60+F62+F63+F65+F71+F84 ->  | G58: =IF(J46=0,0,(AT46+BA46)/(C46+J46)) -> 4.276277292 | I58: =I60+I62+I63+I65+I71+I84 ->  | J58: =BA46/$C$46 -> 0 | L58: =L60 -> 0
B59: DGS Yield | D59: =AO46 -> 4.720563246 | G59: =IF(J46=0,0,AO46) -> 4.720563246 | J59: 0
B60: Corn or Sorghum Farming | F60: =IFERROR(HLOOKUP($D$57,'EF Table'!$C$2:$AH$2,3,FALSE)*1/$D$58*2.75,0) -> 0 | I60: =IFERROR(HLOOKUP($G$57,'EF Table'!$C$2:$AH$2,38,FALSE)*1/$G$58*2.75,0) -> 0 | L60: 0
B61: Farming Energy, Btu/bu | D61: 9608 | G61: 16741
B62: Fertilizers and Ag Chemicals | F62: =HLOOKUP($D$57,'EF Table'!$C$2:$AH$2,4,FALSE)*1/$D$58*2.75 ->  | I62: =IFERROR(HLOOKUP($G$57,'EF Table'!$C$2:$AH$2,39,FALSE)*1/$G$58*2.75,0) -> 0
B63: N2O in Soil | F63: =HLOOKUP($D$57,'EF Table'!C2:AH2,5,FALSE)*1/D58*2.75 ->  | I63: =IFERROR(HLOOKUP($G$57,'EF Table'!$C$2:$AH$2,40,FALSE)*1/$G$58*2.75,0) -> 0
B64: N content above and below ground, g N2/bu | D64: 141.6 | G64: 141.6
B65: Corn or Sorghum Transport | F65: =(F66+F67+F68+F69) ->  | I65: =IF(G58=0,0,I66+I67+I68) -> 0
C66: Corn or Sorghum transport by MDT, miles | D66: 10 | E66: 1 | F66: =HLOOKUP($D$57,'EF Table'!$C$2:$AH$2,7,FALSE)*D66/10 ->  | G66: 10 | H66: 1 | I66: =IFERROR(HLOOKUP($G$57,'EF Table'!$C$2:$AH$2,7,FALSE)*G66/10,0) -> 0
C67: Corn or Sorghum transport by HDDT, miles | D67: =F46 -> 80 | E67: 1 | F67: =HLOOKUP($D$57,'EF Table'!$C$2:$AH$2,8,FALSE)*E67*D67/50 ->  | G67: =M46 -> 80 | H67: 1 | I67: =IFERROR(HLOOKUP($G$57,'EF Table'!$C$2:$AH$2,8,FALSE)*G67/50,0) -> 0
C68: Corn or Sorghum transport by Rail, miles | D68: =G46 -> 0 | E68: 1 | F68: =HLOOKUP($D$57,'EF Table'!$C$2:$AH$2,9,FALSE)*E68*D68/500 ->  | G68: =N46 -> 0 | H68: 1 | I68: =IFERROR(HLOOKUP($G$57,'EF Table'!$C$2:$AH$2,7,FALSE)*G68/500,0) -> 0
C69: Corn or Sorghum transport by Barge, miles | D69: =H46 -> 0 | E69: 1 | F69: =HLOOKUP($D$57,'EF Table'!$C$2:$AH$2,10,FALSE)*E69*D69/500 ->  | G69: =O46 -> 0 | H69: 1
C70: Corn or Sorghum transport locally, miles | D70: 0 | E70: 1 | H70: 1
B71: Co-product Credit | F71: ='EF Table'!#REF!*$D$59/5.5636 ->  | I71: ='EF Table'!#REF!*$G$59/5.5636 -> 
C72: Dry Distiller Grains (DDGS), tons | D72: =Q46 -> 78262.61 | E72: =D72*(1-D73)/(($D$72*(1-$D$73)+$D$74*(1-$D$75)+$D$76*(1-$D$77)+$D$78/2000*(1-$D$79)+$D$80*(1-$D$81))) ->  | G72: =Q46 -> 78262.61 | H72: =G72*(1-G73)/(($G$72*(1-$G$73)+$G$74*(1-$G$75)+$G$76*(1-$G$77)+$G$78/2000*(1-$G$79)+$G$80*(1-$G$81))) -> 
C73: Moisture content of DDGS, % | D73: =T46 -> 0.1132583333 | G73: =T46 -> 0.1132583333
C74: Modified Distiller Grains (MDGS), tons | D74: =W46 -> 0 | E74: =D74*(1-D75)/(($D$72*(1-$D$73)+$D$74*(1-$D$75)+$D$76*(1-$D$77)+$D$78/2000*(1-$D$79)+$D$80*(1-$D$81))) ->  | G74: =W46 -> 0 | H74: =G74*(1-G75)/(($G$72*(1-$G$73)+$G$74*(1-$G$75)+$G$76*(1-$G$77)+$G$78/2000*(1-$G$79)+$G$80*(1-$G$81))) -> 
C75: Moisture content of MDGS, % | D75: =Z46 -> 0.55 | G75: =Z46 -> 0.55
C76: Wet Distiller Grains (WDGS), tons | D76: =AC46 -> 520172.49 | E76: =D76*(1-D77)/(($D$72*(1-$D$73)+$D$74*(1-$D$75)+$D$76*(1-$D$77)+$D$78/2000*(1-$D$79)+$D$80*(1-$D$81))) ->  | G76: =AC46 -> 520172.49 | H76: =G76*(1-G77)/(($G$72*(1-$G$73)+$G$74*(1-$G$75)+$G$76*(1-$G$77)+$G$78/2000*(1-$G$79)+$G$80*(1-$G$81))) -> 
C77: Moisture content of WDGS, % | D77: =AF46 -> 0.6636375 | G77: =AF46 -> 0.6636375
C78: Corn Oil, lbs. | D78: =AL46 -> 10550000 | E78: =D78/2000*(1-D79)/(($D$72*(1-$D$73)+$D$74*(1-$D$75)+$D$76*(1-$D$77)+$D$78/2000*(1-$D$79)+$D$80*(1-$D$81))) ->  | G78: =D78 -> 10550000 | H78: =G78/2000*(1-G79)/(($G$72*(1-$G$73)+$G$74*(1-$G$75)+$G$76*(1-$G$77)+$G$78/2000*(1-$G$79)+$G$80*(1-$G$81))) -> 
C79: Moisture content of corn oil,% | D79: =#REF! ->  | G79: =#REF! -> 
C80: Syrup, tons | D80: =AH46 -> 0 | E80: =D80*(1-D81)/(($D$72*(1-$D$73)+$D$74*(1-$D$75)+$D$76*(1-$D$77)+$D$78/2000*(1-$D$79)+$D$80*(1-$D$81))) ->  | G80: =AH46 -> 0 | H80: =G80*(1-G81)/(($G$72*(1-$G$73)+$G$74*(1-$G$75)+$G$76*(1-$G$77)+$G$78/2000*(1-$G$79)+$G$80*(1-$G$81))) -> 
C81: Moisture content of syrup, % | D81: =#REF! ->  | G81: 0.01
C82: Total lbs. of bone-dry DGS, lbs. | D82: =(D72*(1-D73)+D74*(1-D75)+D76*(1-D77)+D78*(1-D79)/2000+D80*(1-D81))*2000 ->  | G82: =IF(J46=0,0,(G72*(1-G73)+G74*(1-G75)+G76*(1-G77)+G78*(1-G79)/2000+G80*(1-G81))*2000) -> 
B83: DGS Yield (bone-dry lbs./gal EtOH) | D83: =D82/($AT$46+$BA$46) ->  | G83: =G82/$AT$46 -> 
B84: Corn Oil Displacement Soy Oi, lb./lb | D84: =#REF! ->  | F84: =IF(D86=0,0,F87+F88+F89+F90+F91) -> 
B85: Corn Oil yield, lbs. corn oil/gal EtOH | D85: =D78*D79/(AT46+BA46) -> 
B86: Total pounds of corn oil | D86: =AL46 -> 10550000
B87: Soy Farming | F87: =-('EF Table'!#REF!)/Reference!#REF!*D85/Reference!#REF!*10^6 -> 
C88: Fertilizers | F88: =-('EF Table'!#REF!)/Reference!#REF!*D85/Reference!#REF!*10^6 -> 
C89: Soy Transport | F89: =-('EF Table'!#REF!+'EF Table'!#REF!)/Reference!#REF!*D85/Reference!#REF!*10^6 -> 
C90: Soy Oil extraction | F90: =-('EF Table'!#REF!*Reference!#REF!)/Reference!#REF!*D85/Reference!#REF!*10^6 -> 
C91: Indrirect Land Use | F91: =-EtOH!D86/EtOH!D95/Reference!#REF!*(#REF!/Reference!D46*Reference!#REF!*Reference!#REF!) -> 
A92: Ethanol Production | D92: =L16 -> 7-MROW Mix | F92: =F93+F139 ->  | G92: =L16 -> 7-MROW Mix | I92: =I93+I132+I139 ->  | L92: =IF(BA46=0,0,L93+L132+L139+F92) -> 0 | N92: =0.02*D95 -> 2070644.74
B93: Ethanol Production | F93: =F98+F100+F102+F104+F112+F114+F118+F120+F122+F123+F125+F127+F131+F132 ->  | I93: =IF(G58=0,0,I98+I100+I102+I104+I112+I114+I118+I120+I122+I123+I125+I127+I131+I132) ->  | L93: =L98+L100+L102+L106+L112+L114+L118+L120+L122+L134+L136+L138+L123 -> 
B94: Total feedstock used, bushels | D94: =C46 -> 7679004 | G94: =J46 -> 16531829.38
B95: Total undenatured ethanol, gallons | D95: =AT46+BA46 -> 103532237 | G95: =AT46 -> 103532237
B96: Ethanol Yield, gal ethanol /bushel | D96: =D95/(C46+J46) -> 4.276277292 | G96: =G95/(C46+J46) -> 4.276277292
B97: Residual oil (HHV), gallons | D97: 0 | G97: 0
B98: Convert to Btu/gal EtOH | D98: =D97*Reference!#REF!/$D$95 ->  | F98: =D98*(100%*EF!$L$16+Petroleum!$B$95)/Reference!#REF!*#REF! ->  | G98: =G97*Reference!#REF!/$D$95 ->  | I98: =G98*(100%*EF!$L$16+Petroleum!$B$95)/Reference!#REF!*#REF!*#REF! -> 
B99: Diesel (HHV), gallons | D99: 0 | G99: 0
B100: Convert to Btu/gal EtOH | D100: =D99*Reference!B7/$D$95 -> 0 | F100: =D100*(100%*EF!$P$16+Petroleum!$B$52)/Reference!#REF!*#REF! ->  | G100: =G99*Reference!E7/$D$95 -> 0 | I100: =G100*(100%*EF!$P$16+Petroleum!$B$52)/Reference!#REF!*#REF!*#REF! -> 
B101: Gasoline (HHV), gallons | D101: 0 | G101: 0
B102: Convert to Btu/gal EtOH | D102: =D101*Reference!#REF!/$D$95 ->  | F102: =D102*(100%*EF!$U$16+Petroleum!$B$52)/Reference!#REF!*#REF! ->  | G102: =G101*Reference!#REF!/$D$95 ->  | I102: =G102*(100%*EF!$U$16+Petroleum!$B$52)/Reference!#REF!*#REF!*#REF! -> 
B103: NG use for Composite DGS, (HHV) Btu | D103: =BB47*10^6 -> 2154680000000 | G103: =BB47*10^6 -> 2154680000000
B104: Convert to Btu/gal EtOH | D104: =D103*Reference!$F$13/$D$95 -> 18791.13041 | F104: =D104*(50%*EF!$B$16+50%*EF!$C$16+HLOOKUP($D$92,'EF Table'!$C$2:$AH$2,23,FALSE)*D104/10000)/Reference!#REF!*#REF! ->  | G104: =G103*Reference!$F$13/$D$95 -> 18791.13041 | I104: =G104*(50%*EF!$B$16+50%*EF!$C$16+HLOOKUP($G$92,'EF Table'!$C$2:$AH$2,23,FALSE))/Reference!#REF!*#REF! -> 
B105: NG use for Dry DGS, (HHV) Btu | D105: =U46*10^6+D107 -> 0 | G105: =U46*10^6+D107 -> 0
B106: Convert to Btu/gal EtOH | D106: =D105*Reference!$F$13/$D$95 -> 0 | F106: =D106*(50%*EF!$B$16+50%*EF!$C$16+HLOOKUP($D$92,'EF Table'!$C$2:$AH$2,23,FALSE))/Reference!#REF!*#REF! ->  | G106: =G105*Reference!$F$13/$D$95 -> 0 | I106: =G106*(50%*EF!$B$16+50%*EF!$C$16+HLOOKUP($G$92,'EF Table'!$C$2:$AH$2,23,FALSE))/Reference!#REF!*#REF! -> 
B107: NG use for Modified DGS, (HHV) Btu | D107: =AA46*10^6 -> 0 | G107: =AA46*10^6 -> 0
B108: Convert to Btu/gal EtOH | D108: =D107*Reference!$F$13/$D$95 -> 0 | F108: =D108*(50%*EF!$B$16+50%*EF!$C$16+HLOOKUP($D$92,'EF Table'!$C$2:$AH$2,23,FALSE))/Reference!#REF!*#REF! ->  | G108: =G107*Reference!$F$13/$D$95 -> 0 | I108: =G108*(50%*EF!$B$16+50%*EF!$C$16+HLOOKUP($G$92,'EF Table'!$C$2:$AH$2,23,FALSE))/Reference!#REF!*#REF! -> 
B109: NG use for Wet DGS, (HHV) Btu | D109: =IF(OR(D105=0,D107=0),0,D103-D105-D107) -> 0 | G109: =BB46*10^6-G107-G105 -> 2154680000000
B110: Convert to Btu/gal EtOH | D110: =D109*Reference!$F$13/$D$95 -> 0 | F110: =D110*(50%*EF!$B$16+50%*EF!$C$16+HLOOKUP($D$92,'EF Table'!$C$2:$AH$2,23,FALSE))/Reference!#REF!*#REF! ->  | G110: =G109*Reference!$F$13/$D$95 -> 18791.13041 | I110: =G110*(50%*EF!$B$16+50%*EF!$C$16+HLOOKUP($G$92,'EF Table'!$C$2:$AH$2,23,FALSE))/Reference!#REF!*#REF! -> 
B111: Coal (HHV), tons | D111: =BH46 -> 0 | G111: =BH46 -> 0
B112: Convert to Btu/gal EtOH | D112: =D111*Reference!#REF!/$D$95 ->  | F112: =D112*(100%*EF!$AC$16+HLOOKUP($D$92,'EF Table'!$C$2:$AH$2,24,FALSE)*D112/10000)/Reference!#REF!*#REF! ->  | G112: =G111*Reference!#REF!/$D$95 ->  | I112: =G112*(100%*EF!$AC$16+HLOOKUP($D$92,'EF Table'!$C$2:$AH$2,24,FALSE))/Reference!#REF!*#REF! -> 
B113: Liquefied petroleum gas (HHV), Btu | D113: 0 | G113: 0
B114: Convert to Btu/gal EtOH | D114: =D113/$D$95 -> 0 | F114: =D114*(100%*EF!$Y$16+HLOOKUP($D$92,'EF Table'!$C$2:$AH$2,21,FALSE))/Reference!#REF!*#REF! ->  | G114: =G113/$D$95 -> 0 | I114: =G114*(100%*EF!$Y$16+HLOOKUP($D$92,'EF Table'!$C$2:$AH$2,21,FALSE))/Reference!#REF!*#REF! -> 
B115: Biomass (HHV), tons | D115: =BE46 -> 0 | G115: 0
C116: Average Moisture, % | D116: =BF46 -> 0
C117: Biomass Transport Distance, miles | D117: =BG46 -> 0
B118: Convert to Btu/gal EtOH | D118: =D115*Reference!#REF!/$D$95 ->  | F118: =D118*(100%*EF!$AV$16+HLOOKUP($D$92,'EF Table'!$C$2:$AH$2,26,FALSE))/Reference!#REF!*#REF! ->  | G118: =G115*Reference!#REF!/$D$95 ->  | I118: =G118*(100%*EF!$AV$16+HLOOKUP($G$92,'EF Table'!$C$2:$AH$2,26,FALSE))/Reference!#REF!*#REF! -> 
B119: Electricity, kWh | D119: =BI46 -> 50828240 | G119: =BI46 -> 50828240
B120: Convert to kWh/gal EtOH | D120: =D119/$D$95 -> 0.4909411935 | F120: =D120*Reference!$F$46*(HLOOKUP($D$92,'EF Table'!$C$2:$AH$2,27,FALSE)/Reference!#REF!*#REF!) ->  | G120: =G119*Reference!$F$46/$D$95 -> 1675.16089 | I120: =G120*(HLOOKUP($G$92,'EF Table'!$C$2:$AH$2,27,FALSE)/Reference!#REF!*#REF!) -> 
B121: Renewable Natural gas (HHV), Btu | D121: =BC46 -> 0 | G121: 0
B122: Convert to Btu/gal EtOH | D122: =D121*Reference!$B$13/$D$95 -> 0 | F122: =D122*(100%*EF!$BH$16+HLOOKUP($D$92,'EF Table'!$C$2:$AH$2,28,FALSE)*D122/10000)/Reference!#REF!*#REF! ->  | G122: =G121*Reference!$B$13/$D$95 -> 0 | I122: =G122*(100%*EF!$BH$16+HLOOKUP($G$92,'EF Table'!$C$2:$AH$2,28,FALSE))/Reference!#REF!*#REF! -> 
B123: Non-combustion CI | F123: ='EF Table'!#REF! ->  | I123: ='EF Table'!#REF! -> 
B124: Other Thermal Energy Sources (HHV) | D124: 0 | G124: =BK46 -> 0
B125: Convert to Btu/gal EtOH | D125: =D124/$D$95 -> 0 | G125: =G124/$D$95 -> 0
B126: Other Electricity Sources, kWh | D126: =BJ46 -> 0 | G126: =BM46 -> 0
B127: Convert to kWhgal EtOH | D127: =D126*Reference!$F$46/$D$95 -> 0 | F127: 0 | G127: =G126*Reference!$F$46/$D$95 -> 0 | I127: 0
B128: Total Thermal Energy, Btu/gal EtOH | D128: =D98+D100+D102+D106+D112+D114+D118+D122+D104 ->  | G128: =G98+G100+G102+G106+G112+G114+G118+G122+G125+G104 -> 
B129: Total Electricity Energy, Btu/gal EtOH | D129: =D119*Reference!$F$46/$D$95 -> 1675.16089 | G129: =G119*Reference!$F$46/$D$95 -> 1675.16089
B130: Total Plant Energy Consumption, Btu/gal | D130: =D128+D129 ->  | G130: =G128+G129 -> 
B131: Chemicals Usage (Standard) | F131: =(HLOOKUP($D$92,'EF Table'!$C$2:$AH$2,36,FALSE)) ->  | I131: =IF(J46=0,0,#REF!) -> 
B132: Extra Chemicals Usage | F132: =SUM(F133:F138) ->  | I132: =SUM(I133:I138) -> 
C133: Cellulase, lbs. | G133: =AJ61 -> 0 | J133: =AX46 -> 0
B134: Convert to (grams/gal) | F134: =(D134*Enzymes_Yeast!$J$19)/Reference!$F$27/Reference!#REF!*10^6/Reference!$H$43 ->  | G134: =G133*2000*Reference!$E$27/$D$95 -> 0 | I134: =(G134*Enzymes_Yeast!M19)/Reference!$F$27/Reference!#REF!*10^6/Reference!$H$43 ->  | J134: =J133*Reference!$E$27/$D$95 -> 0 | L134: =(J134*'EF Table'!#REF!/Reference!#REF!*10^6/Reference!$H$43) -> 
C135: Yeast, lbs. | J135: 0
B136: Convert to (grams/gal) | F136: =(D136*Enzymes_Yeast!K19)/Reference!$F$27/Reference!#REF!*10^6/Reference!$H$43 ->  | I136: =(G136*Enzymes_Yeast!N19)/Reference!$F$27/Reference!#REF!*10^6/Reference!$H$43 ->  | J136: =J135*Reference!$E$27/$D$95 -> 0
C137: Urea, lbs. | J137: 0
C138: Convert to (grams/gal) | F138: =(D138*#REF!)/Reference!$F$27/Reference!#REF!*10^6/Reference!$H$43 ->  | I138: =(G138*#REF!)/Reference!$F$27/Reference!#REF!*10^6/Reference!$H$43 ->  | J138: =J137*Reference!$E$27/$D$95 -> 0
B139: Ethanol Transport | F139: =F141+F143+F145+F147+F149 ->  | I139: =IF(J46=0,0,I141+I143+I145+I147+I149) ->  | L139: =IF(BA46=0,0,L141+L143+L145+L147+L149) -> 0
C140: From EtOH Plant to railyard | D140: HDD Truck | E140: 1 | G140: HDD Truck | H140: 1
C141: Miles | D141: =50*E140 -> 50 | F141: =HLOOKUP($D$92,'EF Table'!$C$2:$AH$2,31,FALSE)*(D141/50) ->  | G141: 50 | I141: =HLOOKUP($G$92,'EF Table'!$C$2:$AH$2,31,FALSE)*(G141/100) ->  | L141: =F141 -> 
C142: From railyard to CA railyard | D142: Rail | E142: 1 | G142: Rail | H142: 1
C143: Miles | D143: =BL22*E142 -> 1800 | F143: =HLOOKUP($D$92,'EF Table'!$C$2:$AH$2,32,FALSE)*D143/500 ->  | G143: =BL22*H142 -> 1800 | I143: =HLOOKUP($D$92,'EF Table'!$C$2:$AH$2,31,FALSE)*G143/500 ->  | L143: =F143 -> 
C144: From railyard 80% to blending terminal | D144: HDD Truck | E144: 0.8 | G144: HDD Truck | H144: 0.8
C145: Miles | D145: =BL24*E144 -> 80 | F145: =HLOOKUP($D$92,'EF Table'!$C$2:$AH$2,31,FALSE)*D145/50 ->  | G145: =BL24*H144 -> 80 | I145: =HLOOKUP($D$92,'EF Table'!$C$2:$AH$2,31,FALSE)*G145/100 ->  | L145: =F145 -> 
C146: Other Transport | D146: =BK32 -> 0 | E146: 1 | H146: 1
C147: Miles | D147: =BL32 -> 0 | F147: =D147/100*'T&D'!$BB$43 -> 0 | L147: =F147 -> 0
B148: Ethanol Distribution | C148: From terminal to fuel stations | D148: HDD Truck | E148: 1 | G148: HDD Truck | H148: 1 | J148: HDD Truck | K148: 1
C149: Miles | D149: =#REF! ->  | F149: =D149/100*0.45 ->  | G149: =#REF! ->  | I149: =G149/100*0.45 ->  | J149: =#REF! ->  | L149: =J149/100*0.45 -> 
B150: Denaturant, g/MJ | F150: =#REF! ->  | I150: =IF($J$46=0,0,#REF!) ->  | L150: =IF(BA46=0,0,#REF!) -> 0
B151: Indirect Land Use, g/MJ | F151: =#REF! ->  | I151: =IF($J$46=0,0,#REF!) ->  | L151: 0
B152: Total Well-to-Tank CI, g/MJ | F152: =F58+F92+F150+F151+F84-F106-F108 ->  | I152: =I58+I92+I150+I151 ->  | L152: =L58+L92+L150+L151+L139 -> 0
B153: Feedstock Ratio, %
A154: Feedstock 1 | B154: Corn (Composite DGS) | E154: 1
A155: Feedstock 2 | B155: Corn (Segregated DGS)
A156: Feedstock 3 | B156: Corn and Sorghum (Composite DGS) | E156: =C46/(C46+J46) -> 0.3171722295 | H156: =J46/(C46+J46) -> 0.6828277705
A157: Feedstock 4 | B157: Corn and Sorghum (Segregated DGS) | E157: =C46/(C46+J46) -> 0.3171722295 | H157: =J46/(C46+J46) -> 0.6828277705
A158: Feedstock 5 | B158: Corn and Corn Fiber (Composite DGS) | E158: =1-K158 -> 1 | K158: =$AZ$46 -> 0
A159: Feedstock 6 | B159: Corn and Corn Fiber (Segregated DGS) | E159: =1-K159 -> 1 | K159: =$AZ$46 -> 0
A160: Feedstock 7 | B160: Corn, Sorghum (Composite DGS) and Corn Fiber | E160: =1-K160 -> 1 | H160: =J46/(C46+J46) -> 0.6828277705 | K160: =$AZ$46 -> 0
A161: Feedstock 8 | B161: Corn, Sorghum (Segregated DGS) and Corn Fiber | E161: =1-K161 -> 1 | H161: =J46/(C46+J46) -> 0.6828277705 | K161: =$AZ$46 -> 0
B163: Feedstock 1 | C163: =B154 -> Corn (Composite DGS) | E163: =F216 -> 1 | F163: Feedstock 2 | G163: =B155 -> Corn (Segregated DGS) | J163: Feedstock 3 | K163: Corn and Sorghum (Composite CI) | N163: Feedstock 4 | O163: =B157 -> Corn and Sorghum (Segregated DGS) | R163: Feedstock 5 | S163: =$B$154 -> Corn (Composite DGS) | V163: Feedstock 6 | W163: =B159 -> Corn and Corn Fiber (Segregated DGS) | Z163: Feedstock 7 | AA163: Corn and Sorghum (Composite DGS) | AE163: Feedstock 8 | AF163: =B161 -> Corn, Sorghum (Segregated DGS) and Corn Fiber
B164: Corn Ethanol Composite CI, g/MJ | E164: =SUM(E165:E168) ->  | F164: Corn Ethanol (Dry DGS) CI, g/MJ | I164: =IF($U$46=0,0,SUM(I165:I168)) -> 0 | J164: Corn (Composite CI), g/MJ | M164: =SUM(M165:M168) ->  | N164: Corn (Dry DGS), g/MJ | Q164: =SUM(Q165:Q168) ->  | R164: Corn (Composite CI), g/MJ | U164: =SUM(U165:U168) ->  | V164: Corn (Dry DGS), g/MJ | Y164: =SUM(Y165:Y168) ->  | Z164: Corn (Composite CI), g/MJ | AD164: =SUM(AD165:AD168) ->  | AE164: Corn (Dry DGS), g/MJ | AH164: =SUM(AH165:AH168) -> 
B165: Feedstock Production, gCO2e/MJ | E165: =$F$58 ->  | F165: Feedstock Production, gCO2e/MJ | I165: =$F$58 ->  | J165: Feedstock Production, gCO2e/MJ | M165: =$F$58 ->  | N165: Feedstock Production, gCO2e/MJ | Q165: =$F$58 ->  | R165: Feedstock Production, gCO2e/MJ | U165: =$F$58 ->  | V165: Feedstock Production, gCO2e/MJ | Y165: =$F$58 ->  | Z165: Feedstock Production, gCO2e/MJ | AD165: =$F$58 ->  | AE165: Feedstock Production, gCO2e/MJ | AH165: =$F$58 -> 
B166: Fuel Production, gCO2e/MJ | E166: =$F$92 ->  | F166: Fuel Production, gCO2e/MJ | I166: =$F$92+$F$106-F104+F110 ->  | J166: Fuel Production, gCO2e/MJ | M166: =$F$92 ->  | N166: Fuel Production, gCO2e/MJ | Q166: =$F$92+$F$106 ->  | R166: Fuel Production, gCO2e/MJ | U166: =$F$92 ->  | V166: Fuel Production, gCO2e/MJ | Y166: =$F$92+$F$106 ->  | Z166: Fuel Production, gCO2e/MJ | AD166: =$F$92 ->  | AE166: Fuel Production, gCO2e/MJ | AH166: =$F$92+$F$106 -> 
B167: Indirect Land Use, gCO2e/MJ | E167: =$F$151 ->  | F167: Indirect Land Use, gCO2e/MJ | I167: =$F$151 ->  | J167: Indirect Land Use, gCO2e/MJ | M167: =$F$151 ->  | N167: Indirect Land Use, gCO2e/MJ | Q167: =$F$151 ->  | R167: Indirect Land Use, gCO2e/MJ | U167: =$F$151 ->  | V167: Indirect Land Use, gCO2e/MJ | Y167: =$F$151 ->  | Z167: Indirect Land Use, gCO2e/MJ | AD167: =$F$151 ->  | AE167: Indirect Land Use, gCO2e/MJ | AH167: =$F$151 -> 
B168: Denaturant, gCO2e/MJ | E168: =(1-#REF!)*(EtOH!E165+EtOH!E166+EtOH!E167)+#REF!*#REF!-(EtOH!E165+EtOH!E166+EtOH!E167) ->  | F168: Denaturant, gCO2e/MJ | I168: =(1-#REF!)*(EtOH!I165+EtOH!I166+EtOH!I167)+#REF!*#REF!-(EtOH!I165+EtOH!I166+EtOH!I167) ->  | J168: Denaturant, gCO2e/MJ | M168: =(1-#REF!)*(EtOH!M165+EtOH!M166+EtOH!M167)+#REF!*#REF!-(EtOH!M165+EtOH!M166+EtOH!M167) ->  | N168: Denaturant, gCO2e/MJ | Q168: =(1-#REF!)*(EtOH!Q165+EtOH!Q166+EtOH!Q167)+#REF!*#REF!-(EtOH!Q165+EtOH!Q166+EtOH!Q167) ->  | R168: Denaturant, gCO2e/MJ | U168: =(1-#REF!)*(EtOH!U165+EtOH!U166+EtOH!U167)+#REF!*#REF!-(EtOH!U165+EtOH!U166+EtOH!U167) ->  | V168: Denaturant, gCO2e/MJ | Y168: =(1-#REF!)*(EtOH!Y165+EtOH!Y166+EtOH!Y167)+#REF!*#REF!-(EtOH!Y165+EtOH!Y166+EtOH!Y167) ->  | Z168: Denaturant, gCO2e/MJ | AD168: =(1-#REF!)*(EtOH!AD165+EtOH!AD166+EtOH!AD167)+#REF!*#REF!-(EtOH!AD165+EtOH!AD166+EtOH!AD167) ->  | AE168: Denaturant, gCO2e/MJ | AH168: =(1-#REF!)*(EtOH!AH165+EtOH!AH166+EtOH!AH167)+#REF!*#REF!-(EtOH!AH165+EtOH!AH166+EtOH!AH167) -> 
B169: Ethanol Volume associated with Corn only, gal | E169: =$AT$46 -> 103532237 | F169: Ethanol Volume associated with DDGS, gal | I169: =IF(I164=0,0,($AT$46+$BA$46)*(E72+E78+E80)) -> 0 | J169: Ethanol Volume associated with Corn only, gal | M169: =($AT$46)*$E$156 -> 32837550.43 | N169: Ethanol Volume associated with DDGS, gal | Q169: =($AT$46)*($E$72+$E$78+$E$80)*$E$157 ->  | R169: Ethanol Volume associated with Corn only, gal | U169: =($AT$46)*$E$158 -> 103532237 | V169: Ethanol Volume associated with DDGS, gal | Y169: =($AT$46)*($E$72+$E$78+$E$80)*$E$158 ->  | Z169: Ethanol Volume associated with Corn only, gal | AD169: =($AT$46)*$E$160 -> 103532237 | AE169: Ethanol Volume associated with DDGS, gal | AH169: =($AT$46)*($E$72+$E$78+$E$80)*$E$161 -> 
J170: Feedstock 3 | K170: =B156 -> Corn and Sorghum (Composite DGS) | R170: Feedstock 5 | S170: Corn Fiber | Z170: Feedstock 7 | AA170: Corn and Sorghum (Composite DGS)
F171: Corn Ethanol (Modified DGS) CI, g/MJ | I171: =IF($AA$46=0,0,SUM(I172:I175)) -> 0 | J171: Sorghum Ethanol (Composite CI), g/MJ | M171: =SUM(M172:M175) ->  | N171: Corn (Modified DGS), g/MJ | Q171: =SUM(Q172:Q175) ->  | R171: Corn Fiber, g/MJ | U171: =SUM(U172:U175) ->  | V171: Corn (Modified DGS), g/MJ | Y171: =SUM(Y172:Y175) ->  | Z171: Sorghum (Composite CI), g/MJ | AD171: =SUM(AD172:AD175) ->  | AE171: Corn (Modified DGS), g/MJ | AH171: =SUM(AH172:AH175) -> 
F172: Feedstock Production, gCO2e/MJ | I172: =$F$58 ->  | J172: Feedstock Production, gCO2e/MJ | M172: =$I$58 ->  | N172: Feedstock Production, gCO2e/MJ | Q172: =$F$58 ->  | R172: Feedstock Production, gCO2e/MJ | U172: 0 | V172: Feedstock Production, gCO2e/MJ | Y172: =$F$58 ->  | Z172: Feedstock Production, gCO2e/MJ | AD172: =$I$58 ->  | AE172: Feedstock Production, gCO2e/MJ | AH172: =$F$58 -> 
F173: Fuel Production, gCO2e/MJ | I173: =$F$92+$F$108-F104+F110 ->  | J173: Fuel Production, gCO2e/MJ | M173: =$I$92 ->  | N173: Fuel Production, gCO2e/MJ | Q173: =$F$92+$F$108 ->  | R173: Fuel Production, gCO2e/MJ | U173: =$L$92 -> 0 | V173: Fuel Production, gCO2e/MJ | Y173: =$F$92+$F$108 ->  | Z173: Fuel Production, gCO2e/MJ | AD173: =$I$92 ->  | AE173: Fuel Production, gCO2e/MJ | AH173: =$F$92+$F$108 -> 
F174: Indirect Land Use, gCO2e/MJ | I174: =$F$151 ->  | J174: Indirect Land Use, gCO2e/MJ | M174: =$I$151 ->  | N174: Indirect Land Use, gCO2e/MJ | Q174: =$F$151 ->  | R174: Indirect Land Use, gCO2e/MJ | U174: 0 | V174: Indirect Land Use, gCO2e/MJ | Y174: =$F$151 ->  | Z174: Indirect Land Use, gCO2e/MJ | AD174: =$I$151 ->  | AE174: Indirect Land Use, gCO2e/MJ | AH174: =$F$151 -> 
F175: Denaturant, gCO2e/MJ | I175: =(1-#REF!)*(EtOH!I172+EtOH!I173+EtOH!I174)+#REF!*#REF!-(EtOH!I172+EtOH!I173+EtOH!I174) ->  | J175: Denaturant, gCO2e/MJ | M175: =IF($J$46=0,0,(1-#REF!)*(EtOH!M172+EtOH!M173+EtOH!M174)+#REF!*#REF!-(EtOH!M172+EtOH!M173+EtOH!M174)) ->  | N175: Denaturant, gCO2e/MJ | Q175: =(1-#REF!)*(EtOH!Q172+EtOH!Q173+EtOH!Q174)+#REF!*#REF!-(EtOH!Q172+EtOH!Q173+EtOH!Q174) ->  | R175: Denaturant, gCO2e/MJ | U175: =(1-#REF!)*(EtOH!U172+EtOH!U173+EtOH!U174)+#REF!*#REF!-(EtOH!U172+EtOH!U173+EtOH!U174) ->  | V175: Denaturant, gCO2e/MJ | Y175: =(1-#REF!)*(EtOH!Y172+EtOH!Y173+EtOH!Y174)+#REF!*#REF!-(EtOH!Y172+EtOH!Y173+EtOH!Y174) ->  | Z175: Denaturant, gCO2e/MJ | AD175: =IF($J$46=0,0,(1-#REF!)*(EtOH!AD172+EtOH!AD173+EtOH!AD174)+#REF!*#REF!-(EtOH!AD172+EtOH!AD173+EtOH!AD174)) ->  | AE175: Denaturant, gCO2e/MJ | AH175: =(1-#REF!)*(EtOH!AH172+EtOH!AH173+EtOH!AH174)+#REF!*#REF!-(EtOH!AH172+EtOH!AH173+EtOH!AH174) -> 
F176: Ethanol Volume associated with MDGS, gal | I176: =IF(I171=0,0,($AT$46+$BA$46)*$E$74) -> 0 | J176: Ethanol Volume associated with Sorghum, gal | M176: =($AT$46+$BA$46)*H157 -> 70694686.57 | N176: Ethanol Volume associated with MDGS, gal | Q176: =($AT$46)*$E$74*$E$157 ->  | R176: Ethanol Volume associated with Corn Fiber, gal | U176: =($AT$46)*$K$158 -> 0 | V176: Ethanol Volume associated with MDGS, gal | Y176: =($AT$46)*$E$74*$E$158 ->  | Z176: Ethanol Volume associated with Sorghum, gal | AD176: =($AT$46+$BA$46)*$H$160 -> 70694686.57 | AE176: Ethanol Volume associated with MDGS, gal | AH176: =($AT$46)*$E$74*$E$161 -> 
F177: Corn Ethanol (Wet DGS) CI, g/MJ | I177: =IF(AND($I$164=0,$I$171=0),0,SUM(I178:I181)) -> 0 | J177: Total Ethanol Volume, gal | M177: =M169+M176 -> 103532237 | N177: Corn (Wet DGS), g/MJ | Q177: =SUM(Q178:Q181) ->  | R177: Total Ethanol Volume, gal | U177: =U169+U176 -> 103532237 | V177: Corn (Wet DGS), g/MJ | Y177: =SUM(Y178:Y181) ->  | Z177: Feedstock 7 | AA177: Corn Fiber | AE177: Corn (Wet DGS), g/MJ | AH177: =SUM(AH178:AH181) -> 
F178: Feedstock Production, gCO2e/MJ | I178: =$F$58 ->  | N178: Feedstock Production, gCO2e/MJ | Q178: =$F$58 ->  | V178: Feedstock Production, gCO2e/MJ | Y178: =$F$58 ->  | Z178: Corn Fiber, g/MJ | AD178: =SUM(AD179:AD182) ->  | AE178: Feedstock Production, gCO2e/MJ | AH178: =$F$58 -> 
F179: Fuel Production, gCO2e/MJ | I179: =$F$92+$F$108-F104 ->  | N179: Fuel Production, gCO2e/MJ | Q179: =$F$92 ->  | V179: Fuel Production, gCO2e/MJ | Y179: =$F$92 ->  | Z179: Feedstock Production, gCO2e/MJ | AD179: =L60 -> 0 | AE179: Fuel Production, gCO2e/MJ | AH179: =$F$92 -> 
F180: Indirect Land Use, gCO2e/MJ | I180: =F151 ->  | N180: Indirect Land Use, gCO2e/MJ | Q180: =$F$151 ->  | V180: Indirect Land Use, gCO2e/MJ | Y180: =$F$151 ->  | Z180: Fuel Production, gCO2e/MJ | AD180: =$L$92 -> 0 | AE180: Indirect Land Use, gCO2e/MJ | AH180: =$F$151 -> 
F181: Denaturant, gCO2e/MJ | I181: =(1-#REF!)*(EtOH!I178+EtOH!I179+EtOH!I180)+#REF!*#REF!-(EtOH!I178+EtOH!I179+EtOH!I180) ->  | N181: Denaturant, gCO2e/MJ | Q181: =(1-#REF!)*(EtOH!Q178+EtOH!Q179+EtOH!Q180)+#REF!*#REF!-(EtOH!Q178+EtOH!Q179+EtOH!Q180) ->  | V181: Denaturant, gCO2e/MJ | Y181: =(1-#REF!)*(EtOH!Y178+EtOH!Y179+EtOH!Y180)+#REF!*#REF!-(EtOH!Y178+EtOH!Y179+EtOH!Y180) ->  | Z181: Indirect Land Use, gCO2e/MJ | AD181: 0 | AE181: Denaturant, gCO2e/MJ | AH181: =(1-#REF!)*(EtOH!AH178+EtOH!AH179+EtOH!AH180)+#REF!*#REF!-(EtOH!AH178+EtOH!AH179+EtOH!AH180) -> 
F182: Ethanol Volume associated with WDGS, gal | I182: =IF(I177=0,0,($AT$46+$BA$46)*$E$76) -> 0 | N182: Ethanol Volume associated with WDGS, gal | Q182: =($AT$46)*$E$76*$E$157 ->  | V182: Ethanol Volume associated with WDGS, gal | Y182: =($AT$46)*$E$76*$E$158 ->  | Z182: Denaturant, gCO2e/MJ | AD182: =(1-#REF!)*(EtOH!AD179+EtOH!AD180+EtOH!AD181)+#REF!*#REF!-(EtOH!AD179+EtOH!AD180+EtOH!AD181) ->  | AE182: Ethanol Volume associated with WDGS, gal | AH182: =($AT$46)*$E$76*$E$161 -> 
F183: Total Ethanol Volume, gal | I183: =I169+I176+I182 -> 0 | N183: Sub Total Ethanol Volume, gal | Q183: =Q169+Q176+Q182 ->  | V183: Total Ethanol Volume, gal | Y183: =Y169+Y176+Y182 ->  | Z183: Ethanol Volume, gal | AD183: =($AT$46)*$K$158 -> 0 | AE183: Total Ethanol Volume, gal | AH183: =AH169+AH176+AH182 -> 
N184: Feedstock 4 | O184: =B157 -> Corn and Sorghum (Segregated DGS) | V184: Feedstock 6 | W184: Corn Fiber | Z184: Total Ethanol Volume, gal | AD184: =AD169+AD176+AD183 -> 174226923.6 | AE184: Feedstock 8 | AF184: =B161 -> Corn, Sorghum (Segregated DGS) and Corn Fiber
N185: Sorghum Ethanol (Dry DGS) CI, g/MJ | Q185: =IF($U$46=0,0,SUM(Q186:Q189)) -> 0 | V185: Corn Fiber, g/MJ | Y185: =SUM(Y186:Y189) ->  | AE185: Sorghum Ethanol (Dry DGS) CI, g/MJ | AH185: =SUM(AH186:AH189) -> 
N186: Feedstock Production, gCO2e/MJ | Q186: =$I$58 ->  | V186: Feedstock Production, gCO2e/MJ | Y186: 0 | AE186: Feedstock Production, gCO2e/MJ | AH186: =$I$58 -> 
N187: Fuel Production, gCO2e/MJ | Q187: =$I$92 ->  | V187: Fuel Production, gCO2e/MJ | Y187: =$L$92 -> 0 | AE187: Fuel Production, gCO2e/MJ | AH187: =$I$92+$I$110 -> 
N188: Indirect Land Use, gCO2e/MJ | Q188: =$I$151 ->  | V188: Indirect Land Use, gCO2e/MJ | Y188: =$AH$57 -> 0 | AE188: Indirect Land Use, gCO2e/MJ | AH188: =$I$151 -> 
N189: Denaturant, gCO2e/MJ | Q189: =IF($J$46=0,0,(1-#REF!)*(EtOH!Q186+EtOH!Q187+EtOH!Q188)+#REF!*#REF!-(EtOH!Q186+EtOH!Q187+EtOH!Q188)) ->  | V189: Denaturant, gCO2e/MJ | Y189: =(1-#REF!)*(EtOH!Y186+EtOH!Y187+EtOH!Y188)+#REF!*#REF!-(EtOH!Y186+EtOH!Y187+EtOH!Y188) ->  | AE189: Denaturant, gCO2e/MJ | AH189: =IF($J$46=0,0,(1-#REF!)*(EtOH!AH186+EtOH!AH187+EtOH!AH188)+#REF!*#REF!-(EtOH!AH186+EtOH!AH187+EtOH!AH188)) -> 
N190: Ethanol Volume, gal | Q190: =IF(Q185=0,0,($AT$46)*($E$72+$E$78+$E$80)*$H$157) -> 0 | V190: Ethanol Volume, gal | Y190: =$AT$46*$K$158 -> 0 | AE190: Ethanol Volume, gal | AH190: =($AT$46+$BA$46)*($E$72+$E$78+$E$80)*$H$161 -> 
V191: Total Ethanol Volume, gal | Y191: =Y183+Y190 -> 
N192: Sorghum Ethanol (Modified DGS) CI, g/MJ | Q192: =IF($U$46=0,0,SUM(Q193:Q196)) -> 0 | AE192: Sorghum Ethanol (Modified DGS) CI, g/MJ | AH192: =SUM(AH193:AH196) -> 
N193: Feedstock Production, gCO2e/MJ | Q193: =$I$58 ->  | AE193: Feedstock Production, gCO2e/MJ | AH193: =$I$58 -> 
N194: Fuel Production, gCO2e/MJ | Q194: =$I$92 ->  | AE194: Fuel Production, gCO2e/MJ | AH194: =$I$92+$I$108 -> 
N195: Indirect Land Use, gCO2e/MJ | Q195: =$I$151 ->  | AE195: Indirect Land Use, gCO2e/MJ | AH195: =$I$151 -> 
N196: Denaturant, gCO2e/MJ | Q196: =IF($J$46=0,0,(1-#REF!)*(EtOH!Q193+EtOH!Q194+EtOH!Q195)+#REF!*#REF!-(EtOH!Q193+EtOH!Q194+EtOH!Q195)) ->  | AE196: Denaturant, gCO2e/MJ | AH196: =IF($J$46=0,0,(1-#REF!)*(EtOH!AH193+EtOH!AH194+EtOH!AH195)+#REF!*#REF!-(EtOH!AH193+EtOH!AH194+EtOH!AH195)) -> 
N197: Ethanol Volume, gal | Q197: =($AT$46)*$E$74*$H$157 ->  | AE197: Ethanol Volume, gal | AH197: =($AT$46+$BA$46)*$E$74*$H$161 -> 
N198: Sorghum Ethanol (Wet DGS) CI, g/MJ | Q198: =IF(AND($I$164=0,$I$171=0),0,SUM(Q199:Q202)) -> 0 | AE198: Sorghum Ethanol (Wet DGS) CI, g/MJ | AH198: =SUM(AH199:AH202) -> 
N199: Feedstock Production, gCO2e/MJ | Q199: =$I$58 ->  | AE199: Feedstock Production, gCO2e/MJ | AH199: =$I$58 -> 
N200: Fuel Production, gCO2e/MJ | Q200: =$I$92 ->  | AE200: Fuel Production, gCO2e/MJ | AH200: =$I$92 -> 
N201: Indirect Land Use, gCO2e/MJ | Q201: =$I$151 ->  | AE201: Indirect Land Use, gCO2e/MJ | AH201: =$I$151 -> 
N202: Denaturant, gCO2e/MJ | Q202: =IF($J$46=0,0,(1-#REF!)*(EtOH!Q199+EtOH!Q200+EtOH!Q201)+#REF!*#REF!-(EtOH!Q199+EtOH!Q200+EtOH!Q201)) ->  | AE202: Denaturant, gCO2e/MJ | AH202: =IF($J$46=0,0,(1-#REF!)*(EtOH!AH199+EtOH!AH200+EtOH!AH201)+#REF!*#REF!-(EtOH!AH199+EtOH!AH200+EtOH!AH201)) -> 
N203: Ethanol Volume, gal | Q203: =IF(Q198=0,0,($AT$46)*$E$76*$H$157) -> 0 | AE203: Ethanol Volume, gal | AH203: =($AT$46+$BA$46)*$E$76*$H$161 -> 
N204: Sub Total Ethanol Volume, gal | Q204: =Q190+Q197+Q203 ->  | AE204: Total Ethanol Volume, gal | AH204: =AH190+AH197+AH203 -> 
N205: Total Ethanol Volume, gal | Q205: =Q183+Q204 ->  | AE205: Feedstock 8 | AF205: Corn Fiber
AE206: Corn Fiber, g/MJ | AH206: =SUM(AH207:AH210) -> 
... 15 more rows

Sheet RNG
H2: Yellow cells require user input
C3: Tier 1 Simplified CI Calculator for Biomethane from Anaerobic Digestion of Organic Waste | H3: Light Blue cells show CI results
H4: Green Cells show the calculation button
H5: Gray Cells are calculated values
H6: Orange Cells are elements in flow charts that are credited to pathway
B9: Pathway Summary and Estimated CI (g/MJ)
B10: CNG CI | C10: =I106 -> 0 | D10: =CONCATENATE("Pathway Description: RNG produced from anaerobic digestion of organic waste, processed in ", C18, ", pipelined to Washington for Compressed Natural Gas (CNG) dispensing.") -> Pathway Description: RNG produced from anaerobic digestion of organic waste, processed in , pipelined to Washington for Compressed Natural Gas (CNG) dispensing.
B11: LNG CI | C11: =I107 -> 0 | D11: =CONCATENATE("Pathway Description: RNG produced from anaerobic digestion of organic waste, processed in ",C18, ", pipelined to Washington for liquefaction, then transported and distributed by truck to Washington LNG stations.") -> Pathway Description: RNG produced from anaerobic digestion of organic waste, processed in , pipelined to Washington for liquefaction, then transported and distributed by truck to Washington LNG stations.
B12: L-CNG CI | C12: =I108 -> 0 | D12: =CONCATENATE("Pathway Description: RNG produced from anaerobic digestion of organic waste, processed in ", C18, ", pipelined to Washington for liquefaction, then transported by truck to Washington LNG stations, re-gasified and compresses to Liquefied CNG.") -> Pathway Description: RNG produced from anaerobic digestion of organic waste, processed in , pipelined to Washington for liquefaction, then transported by truck to Washington LNG stations, re-gasified and compresses to Liquefied CNG.
B14: Section 1. Applicant Information
B15: 1.1 Company Name | E15: 1.6 Application Number
B16: 1.2 Company ID | E16: 1.7 CNG Dispensing Station(s) Location (Street, City, State)
B17: 1.3 Facility ID | E17: 1.8 LNG Dispensing Station(s) Location (Street, City, State)
B18: 1.4 Digester Name and Location (Street, City, State) | E18: 1.9 LNG and/or L-CNG Dispensing Station(s) Location (Street, City, State)
B19: 1.5 LNG Liquefaction Facility Location (Street, City, State) | E19: 1.10 Provisional Pathway?
B21: Section 2. Information for Biomethane Production | W21: Section 3. Information for CNG, LNG, and L-CNG Production
D22: 2.1 Select Electricity Mix for Biomethane | F22: 1-U.S. Ave Mix | H22: =IF(F22="32-User Defined Mix", "Enter User Defined Electricity GHG EF in cell U26","") ->  | W22: 3.1 Select Regional Electricity Mix for LNG Production | AA22: 1-U.S. Ave Mix | AC22: =IF(AA22="32-User Defined Mix", "Enter User Defined Electricity GHG EF in cell AC28","") -> 
B23: Process | C23: Feedstock Quantities Input to Digester | K23: Biogas Production, Upgrading, and Biomethane Injection | T23: Biomethane Transport | U23: =IF($F$22="32-User Defined Mix", "User-Defined Electricity EF","") ->  | W23: Energy Consumption for Liquefaction and Fuel Transport
B24: 2.2 Reporting Month (MM/YYYY) | C24: 2.3 Food Scraps Throughput | D24: 2.4 Food Scraps Weighted Mean Transport Distance by HDT | E24: 2.5 Urban Landscaping Waste Throughput | F24: 2.6 Urban Landscaping Wastes Weighted Mean Transport Distance by HDT | G24: 2.7 Other Organic Waste Throughput | H24: 2.8 Other Organic Waste Weighted Mean Transport Distance by HDT | I24: 2.9 User Defined Factors for Other Organic Waste | J24: 2.10 Diesel Fuel Use in Material Handling Equipment (Hydrolysis Loading) | K24: 2.11 Digester Gas Flow, (metered) | L24: 2.12 Methane Content (% Methane) | M24: 2.13 Digester Gas Use in Facility Boiler or Bypass to Flare/TO | N24: 2.14 Biogas Upgrading - Tail Gas to Flare or TO | O24: 2.15 Facility Consumption of Utility-sourced NG | P24: 2.16 Facility Consumption of Grid Electricity | Q24: 2.17 Buy back fossil NG to boost Btu prior to Pipeline Injection | R24: 2.18 Propane used to boost Btu prior to Pipeline Injection | S24: 2.19 Biomethane Injected into Pipeline, (metered) (subtract buyback NG and Propane if used to boost Btu) | T24: 2.20 NG Pipeline Transmission | U24: =IF(F22="32-User Defined Mix", "2.21 Specify GHG Emission Factor for Electricity Mix","User Defined Parameters ") -> User Defined Parameters | W24: 3.2 NG from NG purchase invoices | X24: 3.3 LNG Production from Production Log | Y24: 3.4 NG as process fuel (Calculated) | Z24: 3.5 Grid Electricity Consumption from Utility Invoices | AA24: 3.6 LNG Transport and Distribution | AC24: 3.7 User Defined Parameters
C25: tons, wet | D25: miles | E25: tons, wet | F25: miles | G25: tons, wet | H25: miles | J25: Gallons, at 60oF | K25: Standard Cubic Feet at 60°F, 1 atm | L25: % | M25: Standard Cubic Feet at 60°F, 1 atm | N25: MMBtu, HHV | O25: MMBtu, HHV | P25: kWh | Q25: MMBtu, HHV | R25: Gallons | S25: MMBtu, HHV | T25: Miles | U25: gCO2e/kWh | W25: MMBtu, HHV | X25: Gallons | Y25: MMBtu, HHV | Z25: kWh | AB25: miles | AC25: =IF(AA22="32-User Defined Mix", "Specify GHG Emissions Factor for Electricity Mix (gCO2e/kWh)","N/A") -> N/A
I26: 2.9.a Diversion Fate of Other Organic Waste: | Y26: =W26*Reference!$F$13-X26*Reference!$C$11/10^6 -> 0 | AA26: 3.6.a Select to affirm LNG delivery trucks are equipped with Boil-Off Recovery | AB26: Yes
Y27: =W27*Reference!$F$13-X27*Reference!$C$11/10^6 -> 0
I28: (%) to Landfill | T28: 2.20.a From upgrading facility to CNG station. | U28: =IF(F22="32-User Defined Mix", "","N/A") -> N/A | Y28: =W28*Reference!$F$13-X28*Reference!$C$11/10^6 -> 0
Y29: =W29*Reference!$F$13-X29*Reference!$C$11/10^6 -> 0
I30: (%) Other Treatments | Y30: =W30*Reference!$F$13-X30*Reference!$C$11/10^6 -> 0
I31: =1-I29 -> 1 | Y31: =W31*Reference!$F$13-X31*Reference!$C$11/10^6 -> 0 | AA31: 3.6.b Enter Transport Distance from Liquefaction Plant to Dispensing Station by HD Truck
Y32: =W32*Reference!$F$13-X32*Reference!$C$11/10^6 -> 0
I33: 2.9.b Degradable Organic Carbon (DOC), wet basis (fraction) | Y33: =W33*Reference!$F$13-X33*Reference!$C$11/10^6 -> 0
T34: 2.20.b From upgrading facility to LNG plant | Y34: =W34*Reference!$F$13-X34*Reference!$C$11/10^6 -> 0
Y35: =W35*Reference!$F$13-X35*Reference!$C$11/10^6 -> 0
Y36: =W36*Reference!$F$13-X36*Reference!$C$11/10^6 -> 0
Y37: =W37*Reference!$F$13-X37*Reference!$C$11/10^6 -> 0
I38: 2.9.c Fraction of DOC that decomposes (DOCf) (fraction) | Y38: =W38*Reference!$F$13-X38*Reference!$C$11/10^6 -> 0
Y39: =W39*Reference!$F$13-X39*Reference!$C$11/10^6 -> 0
Y40: =W40*Reference!$F$13-X40*Reference!$C$11/10^6 -> 0
Y41: =W41*Reference!$F$13-X41*Reference!$C$11/10^6 -> 0
Y42: =W42*Reference!$F$13-X42*Reference!$C$11/10^6 -> 0
I43: 2.9.d Moisture Content (%) | Y43: =W43*Reference!$F$13-X43*Reference!$C$11/10^6 -> 0
Y44: =W44*Reference!$F$13-X44*Reference!$C$11/10^6 -> 0 | AA44: Standard values of compression efficiency, energy consumption, and transport are applied to fueling facilities for all CNG, LNG, and L-CNG pathways
Y45: =W45*Reference!$F$13-X45*Reference!$C$11/10^6 -> 0
Y46: =W46*Reference!$F$13-X46*Reference!$C$11/10^6 -> 0
I47: 2.9.e Volatile Solids (%, dry basis) | Y47: =W47*Reference!$F$13-X47*Reference!$C$11/10^6 -> 0
Y48: =W48*Reference!$F$13-X48*Reference!$C$11/10^6 -> 0
Y49: =W49*Reference!$F$13-X49*Reference!$C$11/10^6 -> 0
B50: Total/Weighted Average | C50: =IFERROR(SUM(C26:C49),0) -> 0 | D50: =IFERROR(SUMPRODUCT(C26:C49,D26:D49)/SUM(C26:C49), 0) -> 0 | E50: =IFERROR(SUM(E26:E49),0) -> 0 | F50: =IFERROR(SUMPRODUCT(E26:E49,F26:F49)/SUM(E26:E49),0) -> 0 | G50: =IFERROR(SUM(G26:G49),0) -> 0 | H50: =IFERROR(SUMPRODUCT(G26:G49,H26:H49)/SUM(G26:G49),0) -> 0 | J50: =SUM(J26:J49) -> 0 | K50: =SUM(K26:K49) -> 0 | L50: =IF(MAX($L26:$L49)<=0,"0",(SUMPRODUCT(K26:K49,L26:L49)/K50)) -> 0 | M50: =SUM(M26:M49) -> 0 | N50: 0 | O50: 0 | P50: 0 | Q50: 0 | R50: 0 | S50: =SUM(S26:S49) -> 0 | W50: =SUM(W26:W49) -> 0 | X50: =SUM(X26:X49) -> 0 | Y50: =W50*Reference!F13-X50*Reference!$C$11/10^6 -> 0 | Z50: =SUM(Z26:Z49) -> 0
B51: Diversion Credit, gCO2e/m.t. | C51: =IF(C50=0, 0, 'FS Fate'!C58) -> 0 | E51: =IF(E50=0, 0, 'ULW Fate'!C59) -> 0 | G51: =IFERROR('OW Fate'!C57,0) -> 0
B52: Diversion Credit, gCO2e | C52: =IFERROR(C51*C50*Reference!F29,0) -> 0 | E52: =IFERROR(E51*E50*Reference!F29,0) -> 0 | G52: =IFERROR(G51*G50*Reference!F29,0) -> 0
B53: Methane, scf | L53: =K50*L50 -> 0 | M53: =M50*L50 -> 0
B54: MMBtu, HHV | L54: =L53*Reference!$D$14/10^6 -> 0 | M54: =M53*Reference!$D$14/10^6 -> 0 | N54: =N50 -> 0 | O54: =O50 -> 0 | S54: =S50 -> 0 | W54: =W50 -> 0 | X54: =X50*Reference!$D$11/10^6 -> 0
B55: MMBtu, LHV | L55: =L53*Reference!$C$14/1000000 -> 0 | M55: =M53*Reference!$C$14/1000000 -> 0 | N55: =N54*Reference!F14 -> 0 | O55: =O54*Reference!$C$13/Reference!$D$13 -> 0 | S55: =(S54*Reference!$F$14)-O55 -> 0 | T55: Biomethane Transport - CNG Station | W55: =W54*Reference!F13 -> 0 | X55: =X54*Reference!F11 -> 0 | Y55: =W55-X55 -> 0 | AA55: Biomethane Transport - Liquefaction Plant | AC55: LNG Transportation
B56: EF Units | C56: gCO2e/mmBtu | D56: gCO2e/metric ton-mile | E56: gCO2e/mmBtu | F56: gCO2e/metric ton-mile | G56: gCO2e/mmBtu | H56: gCO2e/metric ton-mile | J56: gCO2e/gallon | M56: gCO2e/mmBtu | N56: gCO2e/mmBtu | O56: gCO2e/mmBtu | P56: gCO2e/kWh | T56: gCO2e/MMBtu-mile | U56: CH4 Leakage in gCO2e/MMBtu-mile | Y56: gCO2e/MMBtu | Z56: gCO2e/kWh | AA56: gCO2e/MMBTU-mile | AB56: CH4 Leakage | AC56: gCO2e/MMBTU-mile | AD56: gCO2e/MMBtu With boil off recovery | AE56: gCO2e/MMBtu Without boil off recovery
B57: EF | C57: =IFERROR(C52/S55,0) -> 0 | D57: ='EF Table'!$F$85 -> 138.3985938 | E57: =IFERROR(E52/S55,0) -> 0 | F57: ='EF Table'!$F$85 -> 138.3985938 | G57: =IFERROR(G52/S55,0) -> 0 | H57: ='EF Table'!$F$85 -> 138.3985938 | J57: ='EF Table'!H97 -> 12694.98872 | M57: ='EF Table'!E62 -> 130.8 | N57: ='EF Table'!H62 -> 1117.475 | O57: ='EF Table'!$H$18 -> 0 | P57: =HLOOKUP($F$22,'EF Table'!$C$2:$AH$6,2,FALSE) -> 578.8154711 | T57: ='EF Table'!D22 -> 4.074504367 | U57: ='EF Table'!E22 -> 1.716911765 | Y57: ='EF Table'!$H$19 -> 81987.0907 | Z57: =HLOOKUP(AA22,'EF Table'!C2:AH6,3,FALSE) -> 578.8154711 | AA57: ='EF Table'!D14 -> 4.074504367 | AB57: ='EF Table'!E14 -> 1.716911765 | AC57: ='EF Table'!C29 -> 5.00369077 | AD57: 10.84824757 | AE57: 54.24123783
B58: GHG Emissions, gCO2e | C58: =-C52 -> 0 | D58: =IFERROR(D57*D50*C50,0) -> 0 | E58: =-E52 -> 0 | F58: =IFERROR(F57*F50*E50,0) -> 0 | G58: =-G52 -> 0 | H58: =IFERROR(H57*H50*G50,0) -> 0 | J58: =J57*J50 -> 0 | M58: =M57*M55 -> 0 | N58: =N57*N55 -> 0 | O58: =O55*O57 -> 0 | P58: =P50*P57 -> 0 | T58: =$S$55*T57*$T$32 -> 0 | U58: =$S$55*(U57*$T$32+'EF Table'!E24) -> 0 | Y58: =Y55*Y57 -> 0 | Z58: =Z57*Z50 -> 0 | AA58: =AA57*W55*$T$38 -> 0 | AB58: =W55*AB57*$T$38 -> 0 | AC58: =AC57*AB31*X55 -> 0 | AD58: =AD57*X55 -> 0 | AE58: =AE57*X55 -> 0
B61: Section 4. CI Calculation Details
B63: RNG-to-LNG | E63: Inputs | F63: Values | G63: GHG Emissions, gCO2e | H63: CI, gCO2e/MMBtu | I63: gCO2e/MJ
B64: 1-U.S. Ave Mix | C64: Feedstock Transport and Handling | H64: =SUM(H65:H66) -> 0 | I64: =SUM(I65:I66) -> 0
D65: Transport by truck, metric ton-mile | F65: =IFERROR(C50*D50+E50*F50+G50*H50,0) -> 0 | G65: =D58+F58+H58 -> 0 | H65: =IFERROR(G65/$F$69*10^6,0) -> 0 | I65: =H65/Reference!$H$43 -> 0
D66: Diesel, gallons | F66: =J50 -> 0 | G66: =J58 -> 0 | H66: =IFERROR(G66/$F$69*10^6,0) -> 0 | I66: =H66/Reference!$H$43 -> 0
B67: =F22 -> 1-U.S. Ave Mix | C67: Biogas Production | D67: Biomethane as processing fuel, scf | F67: =M50*L50 -> 0 | G67: =M58 -> 0 | H67: =IFERROR(G67/$F$69*10^6,0) -> 0 | I67: =H67/Reference!$H$43 -> 0
C68: Gas Processing | D68: Outlet Biomethane, MMBtu (HHV) | F68: =$S$50 -> 0 | H68: =SUM(H72:H81) -> 0 | I68: =SUM(I69:I81) -> 0
E69: Convert to Btu (LHV) | F69: =$S$55*10^6 -> 0
D72: NG use, Btu (HHV) | F72: =O50*1000000 -> 0
E73: Convert to Btu (LHV) | F73: =O55*10^6 -> 0 | G73: =O58 -> 0 | H73: =IFERROR(G73/$F$69*10^6,0) -> 0 | I73: =H73/Reference!$H$43 -> 0
D74: Electricity, kWh | F74: =$P$50 -> 0
G75: =$P$58 -> 0 | H75: =IFERROR(G75/$F$69*10^6,0) -> 0 | I75: =H75/Reference!$H$43 -> 0
D76: Tail gas to flare or TO, MMBtu (HHV) | F76: =N50 -> 0
E77: Convert to Btu (LHV) | F77: =N55*1000000 -> 0 | G77: =N58 -> 0 | H77: =IFERROR(G77/$F$69*10^6,0) -> 0 | I77: =H77/Reference!$H$43 -> 0
D78: Processing Fugitive | F78: 0.01
E79: Convert to Btu (LHV) | F79: =(L55-S55)*F78*10^6 -> 0 | G79: =F79/Reference!$B$14*Reference!$E$14*Reference!$B$18 -> 0 | H79: =IFERROR(G79/$F$69*10^6,0) -> 0 | I79: =H79/Reference!$H$43 -> 0
D80: Digester Feed Loss (Fugitive Emissions), % | F80: 0.01
E81: Convert to Btu (LHV) | F81: =L55*(1/(1-F80)-1)*10^6 -> 0 | G81: =F81/Reference!$B$14*Reference!$E$14*Reference!$B$18 -> 0 | H81: =IFERROR(G81/$F$69*10^6,0) -> 0 | I81: =H81/Reference!$H$43 -> 0
B82: 1-U.S. Ave Mix | C82: NG Transmission | D82: by pipeline, miles to LNG Plant | F82: =T38 -> 0 | G82: =AA58+AB58 -> 0 | H82: =IFERROR(G82/X54,0) -> 0 | I82: =IFERROR(H82/Reference!$H$43,0) -> 0
D83: by pipeline, miles to CNG Stations | F83: =T32 -> 0 | G83: =T58+U58 -> 0 | H83: =IFERROR(G83/F69*10^6,0) -> 0 | I83: =IFERROR(H83/Reference!$H$43,0) -> 0
B84: =AA22 -> 1-U.S. Ave Mix | C84: LNG Production | D84: LNG produced, gallons | F84: =X50 -> 0 | H84: =IFERROR(SUM(H87:H92),0) -> 0 | I84: =I87+I90 -> 0
D85: MMBtu (LHV) | F85: =X55 -> 0
D87: NG used as process fuel, Btu (LHV) | F87: =Y55*10^6 -> 0 | G87: =Y58 -> 0 | H87: =IFERROR(G87/F85,0) -> 0 | I87: =IFERROR(H87/Reference!$H$43,0) -> 0
E88: Convert to Btu/gal | F88: =IFERROR(F87/F84,0) -> 0
D90: Electricity, kWh | F90: =Z50 -> 0 | G90: =Z58 -> 0 | H90: =IFERROR(G90/F85,0) -> 0 | I90: =IFERROR(H90/Reference!$H$43,0) -> 0
E91: Convert to kWh/gal | F91: =IFERROR(F90/F84,0) -> 0
C93: LNG Transport and Distribution | H93: =IFERROR(SUM(H94:H97),0) -> 0 | I93: =IFERROR(H93/Reference!$H$43,0) -> 0
D95: By Truck, miles | F95: =AB31 -> 0
E96: With LNG Boil-off Recovery System | F96: =AB26 -> Yes | G96: =IF(F96="No",AC58+AE58,AC58+AD58) -> 0 | H96: =IFERROR(G96/F85,0) -> 0 | I96: =H96/Reference!$H$43 -> 0
C97: LNG Storage | E97: With LNG Boil-off Recovery System | F97: Yes | G97: =IF(F97="No",'EF Table'!C37,'EF Table'!E37) -> 0 | H97: =IFERROR(G97/F85,0) -> 0 | I97: =H97/Reference!$H$43 -> 0
B98: Digester Gas-to-Liquefied CNG (L-CNG) | F98: Values | G98: Shares | H98: CI, gCO2e/MMBtu
B99: 2-WAMX Mix | C99: L-CNG and CNG Production | D99: CI for Compression of CNG (standard Value) | H99: =I99/Reference!D47 -> 2073.427722 | I99: ='EF Table'!H14 -> 1.965230298
C101: Tailpipe Emissions
D102: CNG Vehicles | H102: =IFERROR((Reference!B56-('FS Fate'!E24*1000*50%*(1-'FS Fate'!F26)/12*16*C50*Reference!F29+'ULW Fate'!E25*1000*50%*(1-'ULW Fate'!F27)/12*16*E50*Reference!F29+'OW Fate'!E24*1000*50%*(1-'OW Fate'!F26)/12*16*G50*Reference!F29)/Reference!E14*Reference!C14/1000000*'EF Table'!I59/($F$69/1000000))*Reference!$B$18+MAX(0, (Reference!B57-('FS Fate'!E24*1000*50%*(1-'FS Fate'!F26)/12*16*C50*Reference!F29+'ULW Fate'!E25*1000*50%*(1-'ULW Fate'!F27)/12*16*E50*Reference!F29+'OW Fate'!E24*1000*50%*(1-'OW Fate'!F26)/12*16*G50*Reference!F29)/Reference!E14*Reference!C14/1000000*'EF Table'!I60/($F$69/1000000))*Reference!$B$19), 0) -> 0 | I102: =H102/Reference!$H$43 -> 0
D103: LNG Vehicles | H103: =IFERROR((Reference!D56-('FS Fate'!E24*1000*50%*(1-'FS Fate'!F26)/12*16*C50*Reference!F29+'ULW Fate'!E25*1000*50%*(1-'ULW Fate'!F27)/12*16*E50*Reference!F29+'OW Fate'!E24*1000*50%*(1-'OW Fate'!F26)/12*16*G50*Reference!F29)/Reference!E14*Reference!C14/1000000*'EF Table'!I59/($F$69/1000000))*Reference!$B$18+MAX(0, (Reference!D57-('FS Fate'!E24*1000*50%*(1-'FS Fate'!F26)/12*16*C50*Reference!F29+'ULW Fate'!E25*1000*50%*(1-'ULW Fate'!F27)/12*16*E50*Reference!F29+'OW Fate'!E24*1000*50%*(1-'OW Fate'!F26)/12*16*G50*Reference!F29)/Reference!E14*Reference!C14/1000000*'EF Table'!I60/($F$69/1000000))*Reference!$B$19), 0) -> 0 | I103: =H103/Reference!$H$43 -> 0
C104: Credits | H104: =IF((L55*1000000/Reference!C14*Reference!E14/1000)<=(('FS Fate'!C60*RNG!C50+'ULW Fate'!C61*RNG!E50+'OW Fate'!C59*RNG!G50)*Reference!F29), IFERROR(SUM(C58,E58,G58)/(F69/1000000)*(L55*1000000/Reference!C14*Reference!E14/1000/(('FS Fate'!C60*RNG!C50+'ULW Fate'!C61*RNG!E50+'OW Fate'!C59*RNG!G50)*Reference!F29)), 0), SUM(C58,E58,G58)/(F69/1000000)) -> 0 | I104: =IFERROR(H104/Reference!$H$43, 0) -> 0
G105: Credit Adjustment | H105: =IFERROR(((('FS Fate'!C59*RNG!C50+'ULW Fate'!C60*RNG!E50+'OW Fate'!C58*RNG!G50)*Reference!F29)*(L55*1000000/Reference!C14*Reference!E14/1000/(('FS Fate'!C60*RNG!C50+'ULW Fate'!C61*RNG!E50+'OW Fate'!C59*RNG!G50)*Reference!F29))-(G79/25+G81/25))*44/16/$F$69*10^6,0) -> 0 | I105: =IFERROR(H105/Reference!$H$43, 0) -> 0
G106: Final CNG CI, g/MJ | I106: =IF(S50=0,0,(I64+I67+I68+I104+I105)*'EF Table'!L29+(I83+I99+I102)) -> 0
G107: Final LNG CI, g/MJ | I107: =IF(X50=0,0, (I64+I67+I68+I104+I105)*'EF Table'!L27*'EF Table'!L28*'EF Table'!L30+(I82+I84)*('EF Table'!L27)*('EF Table'!L28)+I96*'EF Table'!L28+I97+I103) -> 0
G108: Final L-CNG CI, g/MJ | I108: =IF(X50=0,0, (I64+I67+I68+I104+I105)*'EF Table'!L27*'EF Table'!L28*'EF Table'!L30+(I82+I84)*('EF Table'!L27)*('EF Table'!L28)+I96*'EF Table'!L28+I97+I102+I99) -> 0

Sheet BD RD Feedstock (hidden)
A1: Feedstock Production Data Summary | D1: Applicant: | E1: ABC Energy | G1: Facility Location: | I1: City, State | Q1: =IF(F3="None",0,1) -> 1 | AG1: Soy Oil | AH1: 1 | AI1: DNAVSO | AO1: Assumptions or Defaults
A2: Feedstock Production | C2: Feedstock 1 | D2: Feedstock 2 | E2: Feedstock 3 | F2: Feedstock 4 | G2: Feedstock 5 | H2: Feedstock 6 | I2: Feedstock 7 | J2: Feedstock 8 | K2: Feedstock 9 | L2: Feedstock 10 | M2: Feedstock 11 | N2: Feedstock 12 | AG2: Canola Oil | AH2: 2 | AI2: DNAVCAO | AO2: 1) Soybean Farming | AP2: Values | AQ2: 1) Canola Farming | AR2: Values | AS2: Note
B3: Step 1) Click to Select Feedstock | C3: Tallow | D3: Tallow | E3: Corn Oil | F3: Other | G3: None | H3: None | I3: None | J3: None | K3: None | L3: None | M3: None | N3: None | AG3: Corn Oil | AH3: 3 | AI3: DNAVDCO | AO3: a) Electricity Mix - US Ave | AQ3: a) Electricity Mix - US Ave
A4: For the same feedstock, specify each unique features (location, process…) | AG4: Used Cooking Oil | AH4: 4 | AI4: DNAVUCO | AO4: b) Energy Consumption (Btu/bushel) | AQ4: b) Energy Consumption (Btu/MT of rapeseed)
A5: If Other selected, specify feedstock type here | F5: Palm Oil | AG5: Tallow | AH5: 5 | AI5: DNAVTAL | AO5: Residual oil | AP5: 0 | AQ5: Residual oil | AR5: 0
B6: Step 2) Click to Select Oil Extraction | C6: Standard Values | D6: Site-Specific | E6: Site-Specific | F6: Site-Specific | G6: None | H6: None | I6: None | J6: None | K6: None | L6: None | M6: None | N6: None
A7: Step 3) Click to Select Feedstock and Electricity Source(s) | B7: Feedstock Sources | C7: User Defined | D7: California | E7: None | F7: U.S | G7: None | H7: None | I7: None | J7: None | K7: None | L7: None | M7: None | N7: None | AG7: Other | AH7: 6 | AI7: DNAVOTHER2 | AO7: Diesel fuel | AP7: 10766 | AQ7: Diesel fuel | AR7: 505339
B8: Electricity Sources | C8: 2-User Defined Mix | D8: 3-CAMX Mix | E8: None | F8: 2-User Defined Mix | G8: None | H8: None | I8: None | J8: None | K8: None | L8: None | M8: None | N8: None | AG8: Other | AH8: 7 | AI8: DNAVOTHER3 | AO8: Gasoline | AP8: 2976 | AQ8: Gasoline | AR8: 0
B9: Crude Sources | C9: User Defined Crude | D9: U.S. Ave Crude | E9: None | F9: U.S. Ave Crude | G9: None | H9: None | I9: None | J9: None | K9: None | L9: None | M9: None | N9: None | AG9: Other | AH9: 8 | AI9: DNAVOTHER4 | AO9: Natural gas | AP9: 1220 | AQ9: Natural gas | AR9: 1090 | CQ9: User Defined NG
B10: Natural Gas Sources | C10: User Defined NG | D10: U.S. Ave NG | E10: None | F10: U.S. Ave NG | G10: None | H10: None | I10: None | J10: None | K10: None | L10: None | M10: None | N10: None | AG10: Other | AH10: 9 | AI10: DNAVOTHER5 | AO10: Coal | AP10: 0 | AQ10: Coal | AR10: 0
A11: Step 4) Click Enter Data button to navigate to the selected feedstock for entering data | R11: Feedstock Transport (weighted average) | AE11: Other | AH11: 10 | AI11: DNAVOTHER6 | AL11: Liquefied petroleum gas | AM11: 1271 | AN11: Liquefied petroleum gas | AO11: 0
A12: Monthly Data Feedstock 1 | B12: Beginning Tallow Oil Inventory | C12: Oil Received | D12: Oil Used (Calculated) | E12: Ending Tallow Oil Inventory | F12: Moisture Content | G12: Thermal Energy Usage for Oil Extraction | H12: Eletricity Usage | I12: Total Energy for Oil Extraction | R12: by MDDT | S12: by HDDT | T12: by Ocean Tanker | U12: by Rail | V12: by Barge | AF12: Other | AH12: 11 | AI12: DNAVOTHER7 | AM12: Biomass | AN12: 0 | AO12: Biomass | AP12: 0
A13: Unit | B13: lbs. | C13: lbs. | D13: lbs. | E13: lbs. | F13: % | G13: Btu/lb Oil | H13: kWh/lb Oil | I13: Btu/lb Oil | R13: miles | S13: miles | T13: miles | U13: miles | V13: miles | AF13: Other | AH13: 12 | AI13: DNAVOTHER8 | AM13: Electricity | AN13: 485 | AO13: Electricity | AP13: 12771
A14: Month 1 | B14: 100000 | G14: 3500 | H14: 0.13 | I14: 3944 | R14: 0 | S14: 50 | T14: 1000 | U14: 10000 | V14: 1000 | AF14: Other | AH14: 13 | AI14: DNAVOTHER9 | AM14: Renewable natural gas | AN14: 0.3781718709 | AO14: Renewable natural gas | AP14: 0.3781718709
A15: Month 2 | B15: 100000 | C15: 100000 | D15: =B15+C15-E15 -> 155365 | E15: 44635 | F15: 0.05 | R15: 0 | S15: 50 | T15: 1000 | U15: 10000 | V15: 1000 | AM15: c) Fertilizer Use by Nutrient (grams/bushel) | AO15: c) Fertilizer Use by Nutrient (grams/dry MT)
A16: Month 3 | B16: 100000 | C16: 100000 | D16: =B16+C16-E16 -> 198744 | E16: 1256 | F16: 0.08 | R16: 0 | S16: 50 | T16: 1000 | U16: 10000 | V16: 1000 | AM16: Nitrogen | AN16: 49.9 | AO16: Nitrogen | AP16: 54698.9
A17: Month 4 | B17: 100000 | C17: 100000 | D17: 198441 | E17: 1559 | F17: 0.06 | R17: 0 | S17: 50 | T17: 1000 | U17: 10000 | V17: 1000 | AM17: P2O5 | AN17: 206.7 | AO17: P2O5 | AP17: 15298.9
A18: Month 5 | B18: 100000 | C18: 100000 | D18: 100000 | E18: 100000 | F18: 0.04 | R18: 0 | S18: 50 | T18: 1000 | U18: 10000 | V18: 1000 | AM18: K2O | AN18: 344.4 | AO18: K2O | AP18: 2946.15
A19: Month 6 | B19: 100000 | C19: 100000 | D19: 0 | E19: 200000 | F19: 0.08 | R19: 0 | S19: 50 | T19: 1000 | U19: 10000 | V19: 1000 | AM19: CaCO3 | AN19: 0 | AO19: CaCO3 | AP19: 0
A20: Month 7 | B20: 100000 | C20: 100000 | D20: 0 | E20: 200000 | F20: 0.1 | R20: 0 | S20: 50 | T20: 1000 | U20: 10000 | V20: 1000 | AM20: Herbicide | AN20: 20.7 | AO20: Herbicide | AP20: 300
A21: Month 8 | B21: 100000 | C21: 100000 | D21: 0 | E21: 200000 | F21: 0.09 | R21: 0 | S21: 50 | T21: 1000 | U21: 10000 | V21: 1000 | AM21: Insecticide | AN21: 0.6 | AO21: Insecticide | AP21: 42.86
A22: Month 9 | B22: 200000 | C22: 300000 | D22: 480000 | E22: 20000 | F22: 0.07 | R22: 0 | S22: 50 | T22: 1000 | U22: 10000 | V22: 1000 | AM22: d) N2O in Soil | AO22: d) N2O in Soil
A23: Month 10 | B23: 100000 | C23: 300000 | D23: 200000 | E23: 200000 | F23: 0.06 | R23: 0 | S23: 50 | T23: 1000 | U23: 10000 | V23: 1000 | AM23: N2O Emissions: N in N2O as % of N in N fertilizer | AN23: 0.01325 | AO23: N2O Emissions: N in N2O as % of N in N fertilizer | AP23: 0.01325
A24: Month 11 | B24: 100000 | C24: 300000 | D24: 200000 | E24: 200000 | F24: 0.08 | R24: 0 | S24: 50 | T24: 1000 | U24: 10000 | V24: 1000 | AM24: N2O Emissions: N in N2O as % of N biomass | AN24: 0.01225 | AO24: N2O Emissions: N in N2O as % of N biomass | AP24: 0.01225
A25: Month 12 | B25: 100000 | C25: 300000 | D25: 200000 | E25: 200000 | F25: 0.1 | R25: 0 | S25: 50 | T25: 1000 | U25: 10000 | V25: 1000 | AM25: N content of above and below ground biomass: (grams/bushel) | AN25: 200.7 | AO25: N content of above and below ground biomass: (grams/bushel) | AP25: 7125
A26: Month 13 | B26: 100000 | C26: 300000 | D26: 200000 | E26: 200000 | F26: 0.05 | R26: 0 | S26: 50 | T26: 1000 | U26: 10000 | V26: 1000 | AM26: e) Soybean Transport (miles) | AO26: e) Canola Transport (miles)
A27: Month 14 | B27: 100000 | C27: 300000 | D27: 200000 | E27: 200000 | F27: 0.04 | R27: 0 | S27: 50 | T27: 1000 | U27: 10000 | V27: 1000 | AM27: From field to collection center by Medium HD Truck | AN27: 10 | AO27: From field to collection center by Medium HD Truck | AP27: 10
A28: Month 15 | B28: 100000 | C28: 300000 | D28: 200000 | E28: 200000 | F28: 0.05 | R28: 0 | S28: 50 | T28: 1000 | U28: 10000 | V28: 1000 | AM28: From collection center to oil extraction plant HHD Truck | AN28: 50 | AO28: From collection center to oil extraction plant HHD Truck | AP28: 50
A29: Month 16 | B29: 100000 | C29: 300000 | D29: 200000 | E29: 200000 | F29: 0.03 | R29: 0 | S29: 50 | T29: 1000 | U29: 10000 | V29: 1000 | AM29: From oil extraction plant to BD plant by rail | AN29: ? | AO29: From oil extraction plant to BD plant by rail | AP29: ?
A30: Month 17 | B30: 100000 | C30: 300000 | D30: 200000 | E30: 200000 | F30: 0.01 | R30: 0 | S30: 50 | T30: 1000 | U30: 10000 | V30: 1000 | AM30: From oil extraction plant to BD plant by HDD truck | AN30: ? | AO30: From oil extraction plant to BD plant by HDD truck | AP30: ?
A31: Month 18 | B31: 100000 | C31: 300000 | D31: 200000 | E31: 200000 | F31: 0.05 | R31: 0 | S31: 50 | T31: 1000 | U31: 10000 | V31: 1000 | AM31: f) Soy Oil Extraction (BTU/lb oil) | AO31: f) Canola Oil Extraction (BTU/lb oil)
A32: Month 19 | B32: 100000 | C32: 200000 | D32: 100000 | E32: 200000 | F32: 0.08 | R32: 0 | S32: 50 | T32: 1000 | U32: 10000 | V32: 1000 | AM32: Residual Oil | AN32: 32.08 | AO32: Residual Oil | AP32: 0
A33: Month 20 | B33: 100000 | C33: 200000 | D33: 100000 | E33: 200000 | F33: 0.09 | R33: 0 | S33: 50 | T33: 1000 | U33: 10000 | V33: 1000 | AM33: Diesel Fuel | AN33: 15.85 | AO33: Diesel Fuel | AP33: 0
A34: Month 21 | B34: 100000 | C34: 200000 | D34: 100000 | E34: 200000 | F34: 0.04 | R34: 0 | S34: 50 | T34: 1000 | U34: 10000 | V34: 1000 | AM34: Gasoline | AN34: 0 | AO34: Gasoline | AP34: 0
A35: Month 22 | B35: 100000 | C35: 200000 | D35: 100000 | E35: 200000 | F35: 0.03 | R35: 0 | S35: 50 | T35: 1000 | U35: 10000 | V35: 1000 | AM35: Natural Gas | AN35: 2068.04 | AO35: Natural Gas | AP35: 1005
A36: Month 23 | B36: 100000 | C36: 200000 | D36: 100000 | E36: 200000 | F36: 0.02 | R36: 0 | S36: 50 | T36: 1000 | U36: 10000 | V36: 1000 | AM36: Coal | AN36: 1017.98 | AO36: Coal | AP36: 0
A37: Month 24 | B37: 100000 | C37: 200000 | D37: 100000 | E37: 200000 | F37: 0.02 | R37: 0 | S37: 50 | T37: 1000 | U37: 10000 | V37: 1000 | AM37: Liquefied petroleum gas | AN37: 0 | AO37: Liquefied petroleum gas | AP37: 0
A38: Total | B38: =SUM(B14:B37) -> 2500000 | C38: =SUM(C14:C37)*F38 -> 281217.3913 | D38: =SUM(D14:D37) -> 3532550 | E38: =SUM(E14:E37) -> 3767450 | F38: =IF(MAX($F14:$F37)<=0,"No Data",SUMIF($F14:$F37,">0")/COUNTIF($F14:$F37,">0")) -> 0.05739130435 | G38: 1000 | H38: 1000 | I38: =SUM(I14:I37) -> 3944 | J38: 1000 | K38: =SUM(K14:K37) -> 0 | L38: =SUM(L14:L37)+1000 -> 1000 | M38: =SUM(M14:M37) -> 0 | N38: =SUM(N14:N37) -> 0 | O38: =SUM(O14:O37) -> 0 | P38: =SUM(P14:P37) -> 0 | Q38: =SUM(Q14:Q37) -> 0 | R38: =IF(MAX(R14:R37)<=0,"No Data",SUMIF(R14:R37,">0")/COUNTIF(R14:R37,">0")) -> No Data | S38: =IF(MAX(S14:S37)<=0,"No Data",SUMIF(S14:S37,">0")/COUNTIF(S14:S37,">0")) -> 50 | T38: =IF(MAX(T14:T37)<=0,"No Data",SUMIF(T14:T37,">0")/COUNTIF(T14:T37,">0")) -> 1000 | U38: =IF(MAX(U14:U37)<=0,"No Data",SUMIF(U14:U37,">0")/COUNTIF(U14:U37,">0")) -> 10000 | V38: =IF(MAX(V14:V37)<=0,"No Data",SUMIF(V14:V37,">0")/COUNTIF(V14:V37,">0")) -> 1000 | AM38: Biomass | AN38: 32.08 | AO38: Biomass | AP38: 0
A39: Monthly Data Feedstock 2 | B39: Beginning Tallow Oil Inventory | C39: Oil Purchased | D39: Oil Used (Calculated) | E39: Ending Tallow Oil Inventory | F39: Moisture Content | R39: by MDDT | S39: by HDDT | T39: by Ocean Tanker | U39: by Rail | V39: by Barge | AM39: Electricity | AN39: 446.13 | AO39: Electricity | AP39: 178
A40: Unit | B40: lbs. | C40: lbs. | D40: lbs. | E40: lbs. | F40: % | R40: miles | S40: miles | T40: miles | U40: miles | V40: miles | AM40: Renewable gas | AN40: 15.85 | AO40: Renewable gas | AP40: 0
A41: Month 1 | B41: 0 | C41: 0 | D41: =B41+C41-E41 -> 0 | E41: 0 | F41: 0 | AM41: N-Hexane | AN41: 58.99 | AO41: N-Hexane | AP41: 54
A42: Month 2 | B42: 0 | C42: 0 | D42: =B42+C42-E42 -> 0 | E42: 0 | F42: 0 | AM42: g) Co-product displacement credit | AO42: g)Co-product displacement credit
A43: Month 3 | B43: 0 | C43: 0 | D43: =B43+C43-E43 -> 0 | E43: 0 | F43: 0 | AM43: Allocation Method: Hybrid (Mass for soy oil and energy for glycerine) | AO43: Allocation Method: Hybrid (Mass for canoal oil and energy for glycerine)
A44: Month 4 | B44: 0 | C44: 0 | D44: 0 | E44: 0 | F44: 0 | AM44: Soy Oil Mass allocation | AN44: 0.2 | AO44: Canola oil mass allocation | AP44: 0.428
A45: Month 5 | B45: 0 | C45: 0 | D45: 0 | E45: 0 | F45: 0 | H45: Please Use Tier 2 for Oil Extraction CI Calculation | AM45: Glycerine yield, lb/lb BD | AN45: 0.105 | AO45: Glycerine yield, lb/lb BD | AP45: 0.105
A46: Month 6 | B46: 0 | C46: 0 | D46: 0 | E46: 0 | F46: 0
A47: Month 7 | B47: 0 | C47: 0 | D47: 0 | E47: 0 | F47: 0 | S47: 100 | AM47: System energy allocation to BD | AN47: 0.9506 | AO47: System energy allocation to BD | AP47: 0.9506
A48: Month 8 | B48: 0 | C48: 0 | D48: 0 | E48: 0 | F48: 0 | T48: 0 | U48: 1500 | V48: 1000 | AM48: System energy allocation to glycerine | AN48: 0.0494 | AO48: System energy allocation to glycerine | AP48: 0.0494
A49: Month 9 | B49: 0 | C49: 0 | D49: 0 | E49: 0 | F49: 0
A50: Month 10 | B50: 0 | C50: 0 | D50: 0 | E50: 0 | F50: 0 | S50: 0
A51: Month 11 | B51: 0 | C51: 0 | D51: 0 | E51: 0 | F51: 0
A52: Month 12 | B52: 0 | C52: 0 | D52: 0 | E52: 0 | F52: 0
A53: Month 13 | B53: 0 | C53: 0 | D53: 0 | E53: 0 | F53: 0
A54: Month 14 | B54: 0 | C54: 0 | D54: 0 | E54: 0 | F54: 0
A55: Month 15 | B55: 0 | C55: 0 | D55: 0 | E55: 0 | F55: 0
A56: Month 16 | B56: 0 | C56: 0 | D56: 0 | E56: 0 | F56: 0
A57: Month 17 | B57: 0 | C57: 0 | D57: 0 | E57: 0 | F57: 0
A58: Month 18 | B58: 0 | C58: 0 | D58: 0 | E58: 0 | F58: 0
A59: Month 19 | B59: 0 | C59: 0 | D59: 0 | E59: 0 | F59: 0
A60: Month 20 | B60: 0 | C60: 0 | D60: 0 | E60: 0 | F60: 0
A61: Month 21 | B61: 0 | C61: 0 | D61: 0 | E61: 0 | F61: 0
A62: Month 22 | B62: 0 | C62: 0 | D62: 0 | E62: 0 | F62: 0
A63: Month 23 | B63: 0 | C63: 0 | D63: 0 | E63: 0 | F63: 0
A64: Month 24 | B64: 0 | C64: 0 | D64: 0 | E64: 0 | F64: 0
A65: Total | B65: =SUM(B41:B64) -> 0 | C65: =SUM(C41:C64) -> 0 | D65: =SUM(D41:D64) -> 0 | E65: =SUM(E41:E64) -> 0 | F65: =IF(MAX($F41:$F64)<=0,"No Data",SUMIF($F41:$F64,">0")/COUNTIF($F41:$F64,">0")) -> No Data | G65: =SUM(G41:G64) -> 0 | H65: 0 | I65: 0 | J65: 0 | K65: 0 | L65: 0 | M65: 0 | N65: 0 | O65: 0 | P65: 0 | Q65: 0 | R65: =IF(MAX(R41:R64)<=0,"No Data",SUMIF(R41:R64,">0")/COUNTIF(R41:R64,">0")) -> No Data | S65: =IF(MAX(S41:S64)<=0,"No Data",SUMIF(S41:S64,">0")/COUNTIF(S41:S64,">0")) -> 100 | T65: =IF(MAX(T41:T64)<=0,"No Data",SUMIF(T41:T64,">0")/COUNTIF(T41:T64,">0")) -> No Data | U65: =IF(MAX(U41:U64)<=0,"No Data",SUMIF(U41:U64,">0")/COUNTIF(U41:U64,">0")) -> 1500 | V65: =IF(MAX(V41:V64)<=0,"No Data",SUMIF(V41:V64,">0")/COUNTIF(V41:V64,">0")) -> 1000
A66: Monthly Data Feedstock 3 | B66: Beginning Corn Oil Inventory | C66: Oil Purchased | D66: Oil Used (Calculated) | E66: Ending Corn Oil Inventory | F66: Moisture Content | R66: by HDDT | S66: by HDDT | T66: by Ocean Tanker | U66: by Rail | V66: by Barge
A67: Unit | B67: lbs. | C67: lbs. | D67: lbs. | E67: lbs. | F67: % | R67: miles | S67: miles | T67: miles | U67: miles | V67: miles
A68: Month 1 | B68: 0 | C68: 0 | D68: =B68+C68-E68 -> 0 | E68: 0 | F68: 0
A69: Month 2 | B69: 0 | C69: 0 | D69: =B69+C69-E69 -> 0 | E69: 0 | F69: 0
A70: Month 3 | B70: 0 | C70: 0 | D70: =B70+C70-E70 -> 0 | E70: 0 | F70: 0
A71: Month 4 | B71: 0 | C71: 0 | D71: 0 | E71: 0 | F71: 0
A72: Month 5 | B72: 0 | C72: 0 | D72: 0 | E72: 0 | F72: 0 | H72: Please Use Tier 2 for Oil Extraction CI Calculation
A73: Month 6 | B73: 0 | C73: 0 | D73: 0 | E73: 0 | F73: 0
A74: Month 7 | B74: 0 | C74: 0 | D74: 0 | E74: 0 | F74: 0
A75: Month 8 | B75: 0 | C75: 0 | D75: 0 | E75: 0 | F75: 0
A76: Month 9 | B76: 0 | C76: 0 | D76: 0 | E76: 0 | F76: 0
A77: Month 10 | B77: 0 | C77: 0 | D77: 0 | E77: 0 | F77: 0
A78: Month 11 | B78: 0 | C78: 0 | D78: 0 | E78: 0 | F78: 0
A79: Month 12 | B79: 0 | C79: 0 | D79: 0 | E79: 0 | F79: 0
A80: Month 13 | B80: 0 | C80: 0 | D80: 0 | E80: 0 | F80: 0
A81: Month 14 | B81: 0 | C81: 0 | D81: 0 | E81: 0 | F81: 0
A82: Month 15 | B82: 0 | C82: 0 | D82: 0 | E82: 0 | F82: 0
A83: Month 16 | B83: 0 | C83: 0 | D83: 0 | E83: 0 | F83: 0
A84: Month 17 | B84: 0 | C84: 0 | D84: 0 | E84: 0 | F84: 0
A85: Month 18 | B85: 0 | C85: 0 | D85: 0 | E85: 0 | F85: 0
A86: Month 19 | B86: 0 | C86: 0 | D86: 0 | E86: 0 | F86: 0
A87: Month 20 | B87: 0 | C87: 0 | D87: 0 | E87: 0 | F87: 0
A88: Month 21 | B88: 0 | C88: 0 | D88: 0 | E88: 0 | F88: 0
A89: Month 22 | B89: 0 | C89: 0 | D89: 0 | E89: 0 | F89: 0
A90: Month 23 | B90: 0 | C90: 0 | D90: 0 | E90: 0 | F90: 0
A91: Month 24 | B91: 0 | C91: 0 | D91: 0 | E91: 0 | F91: 0
A92: Total | B92: =SUM(B68:B91) -> 0 | C92: =SUM(C68:C91) -> 0 | D92: =SUM(D68:D91) -> 0 | E92: =SUM(E68:E91) -> 0 | F92: =IF(MAX($F68:$F91)<=0,"No Data",SUMIF($F68:$F91,">0")/COUNTIF($F68:$F91,">0")) -> No Data | G92: =SUM(G68:G91) -> 0 | H92: 0 | I92: 0 | J92: 0 | K92: 0 | L92: 0 | M92: 0 | N92: 0 | O92: 0 | P92: 0 | Q92: 0 | R92: =IF(MAX(R68:R91)<=0,"No Data",SUMIF(R68:R91,">0")/COUNTIF(R68:R91,">0")) -> No Data | S92: =IF(MAX(S68:S91)<=0,"No Data",SUMIF(S68:S91,">0")/COUNTIF(S68:S91,">0")) -> No Data | T92: =IF(MAX(T68:T91)<=0,"No Data",SUMIF(T68:T91,">0")/COUNTIF(T68:T91,">0")) -> No Data | U92: =IF(MAX(U68:U91)<=0,"No Data",SUMIF(U68:U91,">0")/COUNTIF(U68:U91,">0")) -> No Data | V92: =IF(MAX(V68:V91)<=0,"No Data",SUMIF(V68:V91,">0")/COUNTIF(V68:V91,">0")) -> No Data
A93: Monthly Data Feedstock 4 | B93: Beginning Palm Oil Inventory | C93: Oil Purchased | D93: Oil Used (Calculated) | E93: Ending Palm Oil Inventory | F93: Moisture Content | G93: NG Use from Invoices for Palm Oil Oil Extraction | H93: Biomass Use for Oil Extraction from Invoices | I93: Biomass Transport | J93: Biogas Use for Oil Extraction from Invoices | K93: Biogas Pipeline Transport | L93: Residual Oil Use for Oil Extraction from Invoices | M93: Diesel Use for Oil Extraction from Invoices | N93: Coal Use for Oil Extraction from Invoices | O93: Electricity Use for Oil Extraction from Invoices | P93: N/A | R93: by HDDT | S93: by HDDT | T93: by Ocean Tanker | U93: by Rail | V93: by Barge
A94: Unit | B94: lbs. | C94: lbs. | D94: lbs. | E94: lbs. | F94: % | G94: MMBtu (HHV) | H94: Tons (HHV) | I94: Miles | J94: MMBtu (HHV) | K94: Miles | L94: MMBtu (HHV) | M94: Gallons (HHV) | N94: Tons (HHV) | O94: kWh (HHV) | R94: miles | S94: miles | T94: miles | U94: miles | V94: miles
A95: Month 1 | B95: 0 | C95: 0 | D95: =B95+C95-E95 -> 0 | E95: 0 | F95: 0
A96: Month 2 | B96: 0 | C96: 0 | D96: =B96+C96-E96 -> 0 | E96: 0 | F96: 0
A97: Month 3 | B97: 0 | C97: 0 | D97: =B97+C97-E97 -> 0 | E97: 0 | F97: 0
A98: Month 4 | B98: 0 | C98: 0 | D98: 0 | E98: 0 | F98: 0
A99: Month 5 | B99: 0 | C99: 0 | D99: 0 | E99: 0 | F99: 0 | S99: 100 | U99: 700 | V99: 4000
A100: Month 6 | B100: 0 | C100: 0 | D100: 0 | E100: 0 | F100: 0
A101: Month 7 | B101: 0 | C101: 0 | D101: 0 | E101: 0 | F101: 0
A102: Month 8 | B102: 0 | C102: 0 | D102: 0 | E102: 0 | F102: 0
A103: Month 9 | B103: 0 | C103: 0 | D103: 0 | E103: 0 | F103: 0
A104: Month 10 | B104: 0 | C104: 0 | D104: 0 | E104: 0 | F104: 0
A105: Month 11 | B105: 0 | C105: 0 | D105: 0 | E105: 0 | F105: 0
A106: Month 12 | B106: 0 | C106: 0 | D106: 0 | E106: 0 | F106: 0
A107: Month 13 | B107: 0 | C107: 0 | D107: 0 | E107: 0 | F107: 0
A108: Month 14 | B108: 0 | C108: 0 | D108: 0 | E108: 0 | F108: 0
A109: Month 15 | B109: 0 | C109: 0 | D109: 0 | E109: 0 | F109: 0
A110: Month 16 | B110: 0 | C110: 0 | D110: 0 | E110: 0 | F110: 0
A111: Month 17 | B111: 0 | C111: 0 | D111: 0 | E111: 0 | F111: 0
A112: Month 18 | B112: 0 | C112: 0 | D112: 0 | E112: 0 | F112: 0
A113: Month 19 | B113: 0 | C113: 0 | D113: 0 | E113: 0 | F113: 0
A114: Month 20 | B114: 0 | C114: 0 | D114: 0 | E114: 0 | F114: 0
A115: Month 21 | B115: 0 | C115: 0 | D115: 0 | E115: 0 | F115: 0
A116: Month 22 | B116: 0 | C116: 0 | D116: 0 | E116: 0 | F116: 0
A117: Month 23 | B117: 0 | C117: 0 | D117: 0 | E117: 0 | F117: 0
A118: Month 24 | B118: 0 | C118: 0 | D118: 0 | E118: 0 | F118: 0
A119: Total | B119: =SUM(B95:B118) -> 0 | C119: =SUM(C95:C118) -> 0 | D119: =SUM(D95:D118) -> 0 | E119: =SUM(E95:E118) -> 0 | F119: =IF(MAX($F95:$F118)<=0,"No Data",SUMIF($F95:$F118,">0")/COUNTIF($F95:$F118,">0")) -> No Data | G119: =SUM(G95:G118) -> 0 | H119: =SUM(H95:H118) -> 0 | I119: 0 | J119: 0 | K119: 0 | L119: 0 | M119: 0 | N119: 0 | O119: 0 | P119: 0 | Q119: 0 | R119: =IF(MAX(R95:R118)<=0,"No Data",SUMIF(R95:R118,">0")/COUNTIF(R95:R118,">0")) -> No Data | S119: =IF(MAX(S95:S118)<=0,"No Data",SUMIF(S95:S118,">0")/COUNTIF(S95:S118,">0")) -> 100 | T119: =IF(MAX(T95:T118)<=0,"No Data",SUMIF(T95:T118,">0")/COUNTIF(T95:T118,">0")) -> No Data | U119: =IF(MAX(U95:U118)<=0,"No Data",SUMIF(U95:U118,">0")/COUNTIF(U95:U118,">0")) -> 700 | V119: =IF(MAX(V95:V118)<=0,"No Data",SUMIF(V95:V118,">0")/COUNTIF(V95:V118,">0")) -> 4000
A120: Monthly Data Feedstock 5 | B120: No Bio-oil Used | C120: Oil Purchased | D120: Oil Used (Calculated) | E120: No Bio-oil Used | F120: Moisture Content | R120: by HDDT | S120: by HDDT | T120: by Ocean Tanker | U120: by Rail | V120: by Barge
A121: Unit | B121: lbs. | C121: lbs. | D121: lbs. | E121: lbs. | F121: % | R121: miles | S121: miles | T121: miles | U121: miles | V121: miles
A122: Month 1 | B122: 0 | C122: 0 | D122: =B122+C122-E122 -> 0 | E122: 0 | F122: 0
A123: Month 2 | B123: 0 | C123: 0 | D123: =B123+C123-E123 -> 0 | E123: 0 | F123: 0
A124: Month 3 | B124: 0 | C124: 0 | D124: =B124+C124-E124 -> 0 | E124: 0 | F124: 0
A125: Month 4 | B125: 0 | C125: 0 | D125: 0 | E125: 0 | F125: 0
A126: Month 5 | B126: 0 | C126: 0 | D126: 0 | E126: 0 | F126: 0 | H126: Please Use Tier 2 for Oil Extraction CI Calculation
A127: Month 6 | B127: 0 | C127: 0 | D127: 0 | E127: 0 | F127: 0
A128: Month 7 | B128: 0 | C128: 0 | D128: 0 | E128: 0 | F128: 0
A129: Month 8 | B129: 0 | C129: 0 | D129: 0 | E129: 0 | F129: 0
A130: Month 9 | B130: 0 | C130: 0 | D130: 0 | E130: 0 | F130: 0
A131: Month 10 | B131: 0 | C131: 0 | D131: 0 | E131: 0 | F131: 0
A132: Month 11 | B132: 0 | C132: 0 | D132: 0 | E132: 0 | F132: 0
A133: Month 12 | B133: 0 | C133: 0 | D133: 0 | E133: 0 | F133: 0
A134: Month 13 | B134: 0 | C134: 0 | D134: 0 | E134: 0 | F134: 0
A135: Month 14 | B135: 0 | C135: 0 | D135: 0 | E135: 0 | F135: 0
A136: Month 15 | B136: 0 | C136: 0 | D136: 0 | E136: 0 | F136: 0
A137: Month 16 | B137: 0 | C137: 0 | D137: 0 | E137: 0 | F137: 0
A138: Month 17 | B138: 0 | C138: 0 | D138: 0 | E138: 0 | F138: 0
A139: Month 18 | B139: 0 | C139: 0 | D139: 0 | E139: 0 | F139: 0
A140: Month 19 | B140: 0 | C140: 0 | D140: 0 | E140: 0 | F140: 0
A141: Month 20 | B141: 0 | C141: 0 | D141: 0 | E141: 0 | F141: 0
A142: Month 21 | B142: 0 | C142: 0 | D142: 0 | E142: 0 | F142: 0
A143: Month 22 | B143: 0 | C143: 0 | D143: 0 | E143: 0 | F143: 0
A144: Month 23 | B144: 0 | C144: 0 | D144: 0 | E144: 0 | F144: 0
A145: Month 24 | B145: 0 | C145: 0 | D145: 0 | E145: 0 | F145: 0
A146: Total | B146: =SUM(B122:B145) -> 0 | C146: =SUM(C122:C145) -> 0 | D146: =SUM(D122:D145) -> 0 | E146: =SUM(E122:E145) -> 0 | F146: =IF(MAX($F122:$F145)<=0,"No Data",SUMIF($F122:$F145,">0")/COUNTIF($F122:$F145,">0")) -> No Data | G146: =SUM(G122:G145) -> 0 | H146: 0 | I146: 0 | J146: 0 | K146: 0 | L146: 0 | M146: 0 | N146: 0 | O146: 0 | P146: 0 | Q146: 0 | R146: =IF(MAX(R122:R145)<=0,"No Data",SUMIF(R122:R145,">0")/COUNTIF(R122:R145,">0")) -> No Data | S146: =IF(MAX(S122:S145)<=0,"No Data",SUMIF(S122:S145,">0")/COUNTIF(S122:S145,">0")) -> No Data | T146: =IF(MAX(T122:T145)<=0,"No Data",SUMIF(T122:T145,">0")/COUNTIF(T122:T145,">0")) -> No Data | U146: =IF(MAX(U122:U145)<=0,"No Data",SUMIF(U122:U145,">0")/COUNTIF(U122:U145,">0")) -> No Data | V146: =IF(MAX(V122:V145)<=0,"No Data",SUMIF(V122:V145,">0")/COUNTIF(V122:V145,">0")) -> No Data
A147: Monthly Data Feedstock 6 | B147: No Bio-oil Used | C147: Oil Purchased | D147: Oil Used (Calculated) | E147: No Bio-oil Used | F147: Moisture Content | R147: by HDDT | S147: by HDDT | T147: by Ocean Tanker | U147: by Rail | V147: by Barge
A148: Unit | B148: lbs. | C148: lbs. | D148: lbs. | E148: lbs. | F148: % | R148: miles | S148: miles | T148: miles | U148: miles | V148: miles
A149: Month 1 | B149: 0 | C149: 0 | D149: =B149+C149-E149 -> 0 | E149: 0 | F149: 0
A150: Month 2 | B150: 0 | C150: 0 | D150: =B150+C150-E150 -> 0 | E150: 0 | F150: 0
A151: Month 3 | B151: 0 | C151: 0 | D151: =B151+C151-E151 -> 0 | E151: 0 | F151: 0
A152: Month 4 | B152: 0 | C152: 0 | D152: 0 | E152: 0 | F152: 0
A153: Month 5 | B153: 0 | C153: 0 | D153: 0 | E153: 0 | F153: 0 | H153: Please Use Tier 2 for Oil Extraction CI Calculation
A154: Month 6 | B154: 0 | C154: 0 | D154: 0 | E154: 0 | F154: 0
A155: Month 7 | B155: 0 | C155: 0 | D155: 0 | E155: 0 | F155: 0
A156: Month 8 | B156: 0 | C156: 0 | D156: 0 | E156: 0 | F156: 0
A157: Month 9 | B157: 0 | C157: 0 | D157: 0 | E157: 0 | F157: 0
A158: Month 10 | B158: 0 | C158: 0 | D158: 0 | E158: 0 | F158: 0
A159: Month 11 | B159: 0 | C159: 0 | D159: 0 | E159: 0 | F159: 0
A160: Month 12 | B160: 0 | C160: 0 | D160: 0 | E160: 0 | F160: 0
A161: Month 13 | B161: 0 | C161: 0 | D161: 0 | E161: 0 | F161: 0
A162: Month 14 | B162: 0 | C162: 0 | D162: 0 | E162: 0 | F162: 0
A163: Month 15 | B163: 0 | C163: 0 | D163: 0 | E163: 0 | F163: 0
A164: Month 16 | B164: 0 | C164: 0 | D164: 0 | E164: 0 | F164: 0
A165: Month 17 | B165: 0 | C165: 0 | D165: =B165+C165-E165 -> 0 | E165: 0 | F165: 0
A166: Month 18 | B166: 0 | C166: 0 | D166: 0 | E166: 0 | F166: 0
A167: Month 19 | B167: 0 | C167: 0 | D167: 0 | E167: 0 | F167: 0
A168: Month 20 | B168: 0 | C168: 0 | D168: 0 | E168: 0 | F168: 0
A169: Month 21 | B169: 0 | C169: 0 | D169: 0 | E169: 0 | F169: 0
A170: Month 22 | B170: 0 | C170: 0 | D170: 0 | E170: 0 | F170: 0
A171: Month 23 | B171: 0 | C171: 0 | D171: =B171+C171-E171 -> 0 | E171: 0 | F171: 0
A172: Month 24 | B172: 0 | C172: 0 | D172: =B172+C172-E172 -> 0 | E172: 0 | F172: 0
A173: Total | B173: =SUM(B149:B172) -> 0 | C173: =SUM(C149:C172) -> 0 | D173: =SUM(D149:D172) -> 0 | E173: =SUM(E149:E172) -> 0 | F173: =IF(MAX($F149:$F172)<=0,"No Data",SUMIF($F149:$F172,">0")/COUNTIF($F149:$F172,">0")) -> No Data | G173: =SUM(G149:G172) -> 0 | H173: =SUM(H149:H172) -> 0 | I173: 0 | J173: 0 | K173: 0 | L173: 0 | M173: 0 | N173: 0 | O173: 0 | P173: 0 | Q173: 0 | R173: =IF(MAX(R149:R172)<=0,"No Data",SUMIF(R149:R172,">0")/COUNTIF(R149:R172,">0")) -> No Data | S173: =IF(MAX(S149:S172)<=0,"No Data",SUMIF(S149:S172,">0")/COUNTIF(S149:S172,">0")) -> No Data | T173: =IF(MAX(T149:T172)<=0,"No Data",SUMIF(T149:T172,">0")/COUNTIF(T149:T172,">0")) -> No Data | U173: =IF(MAX(U149:U172)<=0,"No Data",SUMIF(U149:U172,">0")/COUNTIF(U149:U172,">0")) -> No Data | V173: =IF(MAX(V149:V172)<=0,"No Data",SUMIF(V149:V172,">0")/COUNTIF(V149:V172,">0")) -> No Data
A174: Monthly Data Feedstock 7 | B174: No Bio-oil Used | C174: Oil Purchased | D174: Oil Used (Calculated) | E174: No Bio-oil Used | F174: Moisture Content | R174: by HDDT | S174: by HDDT | T174: by Ocean Tanker | U174: by Rail | V174: by Barge
A175: Unit | B175: lbs. | C175: lbs. | D175: lbs. | E175: lbs. | F175: % | R175: miles | S175: miles | T175: miles | U175: miles | V175: miles
A176: Month 1 | B176: 0 | C176: 0 | D176: =B176+C176-E176 -> 0 | E176: 0 | F176: 0
A177: Month 2 | B177: 0 | C177: 0 | D177: =B177+C177-E177 -> 0 | E177: 0 | F177: 0
A178: Month 3 | B178: 0 | C178: 0 | D178: 0 | E178: 0 | F178: 0
A179: Month 4 | B179: 0 | C179: 0 | D179: 0 | E179: 0 | F179: 0
A180: Month 5 | B180: 0 | C180: 0 | D180: 0 | E180: 0 | F180: 0 | H180: Please Use Tier 2 for Oil Extraction CI Calculation
A181: Month 6 | B181: 0 | C181: 0 | D181: 0 | E181: 0 | F181: 0
A182: Month 7 | B182: 0 | C182: 0 | D182: 0 | E182: 0 | F182: 0
A183: Month 8 | B183: 0 | C183: 0 | D183: 0 | E183: 0 | F183: 0
A184: Month 9 | B184: 0 | C184: 0 | D184: 0 | E184: 0 | F184: 0
A185: Month 10 | B185: 0 | C185: 0 | D185: 0 | E185: 0 | F185: 0
A186: Month 11 | B186: 0 | C186: 0 | D186: 0 | E186: 0 | F186: 0
A187: Month 12 | B187: 0 | C187: 0 | D187: 0 | E187: 0 | F187: 0
A188: Month 13 | B188: 0 | C188: 0 | D188: 0 | E188: 0 | F188: 0
A189: Month 14 | B189: 0 | C189: 0 | D189: 0 | E189: 0 | F189: 0
A190: Month 15 | B190: 0 | C190: 0 | D190: 0 | E190: 0 | F190: 0
A191: Month 16 | B191: 0 | C191: 0 | D191: 0 | E191: 0 | F191: 0
A192: Month 17 | B192: 0 | C192: 0 | D192: 0 | E192: 0 | F192: 0
A193: Month 18 | B193: 0 | C193: 0 | D193: 0 | E193: 0 | F193: 0
A194: Month 19 | B194: 0 | C194: 0 | D194: 0 | E194: 0 | F194: 0
A195: Month 20 | B195: 0 | C195: 0 | D195: 0 | E195: 0 | F195: 0
A196: Month 21 | B196: 0 | C196: 0 | D196: 0 | E196: 0 | F196: 0
A197: Month 22 | B197: 0 | C197: 0 | D197: 0 | E197: 0 | F197: 0
A198: Month 23 | B198: 0 | C198: 0 | D198: 0 | E198: 0 | F198: 0
A199: Month 24 | B199: 0 | C199: 0 | D199: 0 | E199: 0 | F199: 0
A200: Total | B200: =SUM(B176:B199) -> 0 | C200: =SUM(C176:C199) -> 0 | D200: =SUM(D176:D199) -> 0 | E200: =SUM(E176:E199) -> 0 | F200: =IF(MAX($F176:$F199)<=0,"No Data",SUMIF($F176:$F199,">0")/COUNTIF($F176:$F199,">0")) -> No Data | G200: =SUM(G176:G199) -> 0 | H200: 0 | I200: 0 | J200: 0 | K200: 0 | L200: 0 | M200: 0 | N200: 0 | O200: 0 | P200: 0 | Q200: 0 | R200: =IF(MAX(R176:R199)<=0,"No Data",SUMIF(R176:R199,">0")/COUNTIF(R176:R199,">0")) -> No Data | S200: =IF(MAX(S176:S199)<=0,"No Data",SUMIF(S176:S199,">0")/COUNTIF(S176:S199,">0")) -> No Data | T200: =IF(MAX(T176:T199)<=0,"No Data",SUMIF(T176:T199,">0")/COUNTIF(T176:T199,">0")) -> No Data | U200: =IF(MAX(U176:U199)<=0,"No Data",SUMIF(U176:U199,">0")/COUNTIF(U176:U199,">0")) -> No Data | V200: =IF(MAX(V176:V199)<=0,"No Data",SUMIF(V176:V199,">0")/COUNTIF(V176:V199,">0")) -> No Data
... 157 more rows

Sheet BD-Rendering (hidden)
A1: Oil Producer Operational Data Summary | D1: Applicant: | E1: ='BD RD Feedstock'!E1:F1 -> ABC Energy | F1: Rendering Plant Location: | G1: Sac, CA | H1: Feedstock Location: | I1: Sac, CA | J1: Feedstocks: | K1: UCO | L1: Biofuel Plant Location: | M1: Sac,CA
A2: Monthly Data | B2: Beginning Raw UCO Inventory | C2: Purchased | D2: Ending Raw UCO Inventory | E2: NG Use from Utility Invoices | F2: Biomass Use from Invoices | G2: Biomass Transport Distance | H2: Biogas Use from Invoices | I2: Biogas Parameters | J2: Other Thermal Energy Use (Specify) | K2: Other Thermal Energy Use (Specify) | L2: Electricity from Utility Invoices | M2: Electricity from Other Sources (Specify) | N2: Electricity from Other Sources (Specify) | O2: Beginning Raw Tallow Inventory | P2: Purchased | Q2: Ending Raw Tallow Inventory | R2: NG Use from Utility Invoices | S2: Biomass Use from Invoices | T2: Biomass Transport Distance | U2: Biogas Use from Invoices | V2: Biogas Parameters | W2: Other Thermal Energy Use (Specify) | X2: Other Thermal Energy Use (Specify) | Y2: Electricity from Utility Invoices | Z2: Electricity from Other Sources (Specify) | AA2: Electricity from Other Sources (Specify) | AB2: Beginning Other Raw Inventory (Specify) | AC2: Purchased | AD2: Ending Other Raw Inventory (Specify) | AE2: NG Use from Utility Invoices | AF2: Biomass Use from Invoices | AG2: Biomass Transport Distance | AH2: Biogas Use from Invoices | AI2: Biogas Parameters | AJ2: Other Thermal Energy Use (Specify) | AK2: Other Thermal Energy Use (Specify) | AL2: Electricity from Utility Invoices | AM2: Electricity from Other Sources (Specify) | AN2: Electricity from Other Sources (Specify) | AO2: Beginning Other Raw Inventory (Specify) | AP2: Purchased | AQ2: Ending Other Raw Inventory (Specify) | AR2: NG Use from Utility Invoices | AS2: Biomass Use from Invoices | AT2: Biomass Transport Distance | AU2: Biogas Use from Invoices | AV2: Biogas Parameters | AW2: Other Thermal Energy Use | AX2: Other Thermal Energy Use (Specify) | AY2: Electricity from Utility Invoices | AZ2: Electricity from Other Sources | BA2: Electricity from Other Sources (Specify) | BB2: Beginning Other Raw Inventory (Specify) | BC2: Purchased | BD2: Ending Other Raw Inventory (Specify) | BE2: NG Use from Utility Invoices | BF2: Biomass Use from Invoices | BG2: Biomass Transport Distance | BH2: Biogas Use from Invoices | BI2: Biogas Parameters | BJ2: Other Thermal Energy Use | BK2: Other Thermal Energy Use (Specify) | BL2: Electricity from Utility Invoices | BM2: Electricity from Other Sources | BN2: Electricity from Other Sources (Specify) | BO2: Beginning Other Raw Inventory (Specify) | BP2: Purchased | BQ2: Ending Other Raw Inventory (Specify) | BR2: NG Use from Utility Invoices | BS2: Biomass Use from Invoices | BT2: Biomass Transport Distance | BU2: Biogas Use from Invoices | BV2: Biogas Parameters | BW2: Other Thermal Energy Use | BX2: Other Thermal Energy Use (Specify) | BY2: Electricity from Utility Invoices | BZ2: Electricity from Other Sources | CA2: Electricity from Other Sources (Specify) | CB2: Beginning Other Raw Inventory (Specify) | CC2: Purchased | CD2: Ending Other Raw Inventory (Specify) | CE2: NG Use from Utility Invoices | CF2: Biomass Use from Invoices | CG2: Biomass Transport Distance | CH2: Biogas Use from Invoices | CI2: Biogas Parameters | CJ2: Other Thermal Energy Use | CK2: Other Thermal Energy Use (Specify) | CL2: Electricity from Utility Invoices | CM2: Electricity from Other Sources | CN2: Electricity from Other Sources (Specify) | CO2: Beginning Other Raw Inventory (Specify) | CP2: Purchased | CQ2: Ending Other Raw Inventory (Specify) | CR2: NG Use from Utility Invoices | CS2: Biomass Use from Invoices | CT2: Biomass Transport Distance | CU2: Biogas Use from Invoices | CV2: Biogas Parameters | CW2: Other Thermal Energy Use | CX2: Other Thermal Energy Use (Specify) | CY2: Electricity from Utility Invoices | CZ2: Electricity from Other Sources | DA2: Electricity from Other Sources (Specify)
A3: Unit | B3: LBS | C3: LBS | D3: LBS | E3: MMBTU, HHV | F3: Dry Tons | G3: Miles | H3: MMBTU, HHV | I3: Miles | J3: MMBTU, HHV | K3: MMBTU, HHV | L3: kWh | M3: kWh | N3: kWh | O3: LBS | P3: LBS | Q3: LBS | R3: MMBTU, HHV | S3: Dry Tons | T3: Miles | U3: MMBTU, HHV | V3: Miles | W3: MMBTU, HHV | X3: MMBTU, HHV | Y3: kWh | Z3: kWh | AA3: kWh | AB3: LBS | AC3: LBS | AD3: LBS | AE3: MMBTU, HHV | AF3: Dry Tons | AG3: Miles | AH3: MMBTU, HHV | AI3: Miles | AJ3: MMBTU, HHV | AK3: MMBTU, HHV | AL3: kWh | AM3: kWh | AN3: kWh | AO3: LBS | AP3: LBS | AQ3: LBS | AR3: MMBTU, HHV | AS3: Dry Tons | AT3: Miles | AU3: MMBTU, HHV | AV3: Miles | AW3: MMBTU, HHV | AX3: MMBTU, HHV | AY3: kWh | AZ3: kWh | BA3: kWh | BB3: LBS | BC3: LBS | BD3: LBS | BE3: MMBTU, HHV | BF3: Dry Tons | BG3: Miles | BH3: MMBTU, HHV | BI3: Miles | BJ3: MMBTU, HHV | BK3: MMBTU, HHV | BL3: kWh | BM3: kWh | BN3: kWh | BO3: LBS | BP3: LBS | BQ3: LBS | BR3: MMBTU, HHV | BS3: Dry Tons | BT3: Miles | BU3: MMBTU, HHV | BV3: Miles | BW3: MMBTU, HHV | BX3: MMBTU, HHV | BY3: kWh | BZ3: kWh | CA3: kWh | CB3: LBS | CC3: LBS | CD3: LBS | CE3: MMBTU, HHV | CF3: Dry Tons | CG3: Miles | CH3: MMBTU, HHV | CI3: Miles | CJ3: MMBTU, HHV | CK3: MMBTU, HHV | CL3: kWh | CM3: kWh | CN3: kWh | CO3: LBS | CP3: LBS | CQ3: LBS | CR3: MMBTU, HHV | CS3: Dry Tons | CT3: Miles | CU3: MMBTU, HHV | CV3: Miles | CW3: MMBTU, HHV | CX3: MMBTU, HHV | CY3: kWh | CZ3: kWh | DA3: kWh
A4: Month 1 | B4: 100000 | D4: 50000 | E4: 100000 | G4: By HDT Truck | I4: Pipeline | N4: 0.1 | O4: 100000 | Q4: 50000 | R4: 100000 | T4: By HDT Truck | V4: Pipeline | AA4: 0.1 | AB4: 100000 | AD4: 50000 | AE4: 100000 | AG4: By HDT Truck | AI4: Pipeline | AN4: 0.1 | AO4: 100000 | AQ4: 50000 | AR4: 100000 | AT4: By HDT Truck | AV4: Pipeline | BA4: 0.1 | BB4: 100000 | BD4: 50000 | BE4: 100000 | BG4: By HDT Truck | BI4: Pipeline | BN4: 0.1 | BO4: 100000 | BQ4: 50000 | BR4: 100000 | BT4: By HDT Truck | BV4: Pipeline | CA4: 0.1 | CB4: 100000 | CD4: 50000 | CE4: 100000 | CG4: By HDT Truck | CI4: Pipeline | CN4: 0.1 | CO4: 100000 | CQ4: 50000 | CR4: 100000 | CT4: By HDT Truck | CV4: Pipeline | DA4: 0.1
A5: Month 2 | B5: 100000 | D5: 200000 | E5: 200000 | G5: 80 | I5: 80 | N5: 0.05 | O5: 100000 | Q5: 200000 | R5: 200000 | T5: 80 | V5: 80 | AA5: 0.05 | AB5: 100000 | AD5: 200000 | AE5: 200000 | AG5: 80 | AI5: 80 | AN5: 0.05 | AO5: 100000 | AQ5: 200000 | AR5: 200000 | AT5: 80 | AV5: 80 | BA5: 0.05 | BB5: 100000 | BD5: 200000 | BE5: 200000 | BG5: 80 | BI5: 80 | BN5: 0.05 | BO5: 100000 | BQ5: 200000 | BR5: 200000 | BT5: 80 | BV5: 80 | CA5: 0.05 | CB5: 100000 | CD5: 200000 | CE5: 200000 | CG5: 80 | CI5: 80 | CN5: 0.05 | CO5: 100000 | CQ5: 200000 | CR5: 200000 | CT5: 80 | CV5: 80 | DA5: 0.05
A6: Month 3 | B6: 100000 | D6: 200000 | E6: 200000 | G6: By Rail | N6: 0.08 | O6: 100000 | Q6: 200000 | R6: 200000 | T6: By Rail | AA6: 0.08 | AB6: 100000 | AD6: 200000 | AE6: 200000 | AG6: By Rail | AN6: 0.08 | AO6: 100000 | AQ6: 200000 | AR6: 200000 | AT6: By Rail | BA6: 0.08 | BB6: 100000 | BD6: 200000 | BE6: 200000 | BG6: By Rail | BN6: 0.08 | BO6: 100000 | BQ6: 200000 | BR6: 200000 | BT6: By Rail | CA6: 0.08 | CB6: 100000 | CD6: 200000 | CE6: 200000 | CG6: By Rail | CN6: 0.08 | CO6: 100000 | CQ6: 200000 | CR6: 200000 | CT6: By Rail | DA6: 0.08
A7: Month 4 | B7: 100000 | D7: 200000 | E7: 200000 | G7: 2000 | N7: 0.06 | O7: 100000 | Q7: 200000 | R7: 200000 | T7: 2000 | AA7: 0.06 | AB7: 100000 | AD7: 200000 | AE7: 200000 | AG7: 2000 | AN7: 0.06 | AO7: 100000 | AQ7: 200000 | AR7: 200000 | AT7: 2000 | BA7: 0.06 | BB7: 100000 | BD7: 200000 | BE7: 200000 | BG7: 2000 | BN7: 0.06 | BO7: 100000 | BQ7: 200000 | BR7: 200000 | BT7: 2000 | CA7: 0.06 | CB7: 100000 | CD7: 200000 | CE7: 200000 | CG7: 2000 | CN7: 0.06 | CO7: 100000 | CQ7: 200000 | CR7: 200000 | CT7: 2000 | DA7: 0.06
A8: Month 5 | B8: 100000 | D8: 200000 | E8: 200000 | N8: 0.04 | O8: 100000 | Q8: 200000 | R8: 200000 | AA8: 0.04 | AB8: 100000 | AD8: 200000 | AE8: 200000 | AN8: 0.04 | AO8: 100000 | AQ8: 200000 | AR8: 200000 | BA8: 0.04 | BB8: 100000 | BD8: 200000 | BE8: 200000 | BN8: 0.04 | BO8: 100000 | BQ8: 200000 | BR8: 200000 | CA8: 0.04 | CB8: 100000 | CD8: 200000 | CE8: 200000 | CN8: 0.04 | CO8: 100000 | CQ8: 200000 | CR8: 200000 | DA8: 0.04
A9: Month 6 | B9: 100000 | D9: 200000 | E9: 200000 | N9: 0.08 | O9: 100000 | Q9: 200000 | R9: 200000 | AA9: 0.08 | AB9: 100000 | AD9: 200000 | AE9: 200000 | AN9: 0.08 | AO9: 100000 | AQ9: 200000 | AR9: 200000 | BA9: 0.08 | BB9: 100000 | BD9: 200000 | BE9: 200000 | BN9: 0.08 | BO9: 100000 | BQ9: 200000 | BR9: 200000 | CA9: 0.08 | CB9: 100000 | CD9: 200000 | CE9: 200000 | CN9: 0.08 | CO9: 100000 | CQ9: 200000 | CR9: 200000 | DA9: 0.08
A10: Month 7 | B10: 100000 | D10: 200000 | E10: 200000 | N10: 0.1 | O10: 100000 | Q10: 200000 | R10: 200000 | AA10: 0.1 | AB10: 100000 | AD10: 200000 | AE10: 200000 | AN10: 0.1 | AO10: 100000 | AQ10: 200000 | AR10: 200000 | BA10: 0.1 | BB10: 100000 | BD10: 200000 | BE10: 200000 | BN10: 0.1 | BO10: 100000 | BQ10: 200000 | BR10: 200000 | CA10: 0.1 | CB10: 100000 | CD10: 200000 | CE10: 200000 | CN10: 0.1 | CO10: 100000 | CQ10: 200000 | CR10: 200000 | DA10: 0.1
A11: Month 8 | B11: 100000 | D11: 200000 | E11: 200000 | N11: 0.09 | O11: 100000 | Q11: 200000 | R11: 200000 | AA11: 0.09 | AB11: 100000 | AD11: 200000 | AE11: 200000 | AN11: 0.09 | AO11: 100000 | AQ11: 200000 | AR11: 200000 | BA11: 0.09 | BB11: 100000 | BD11: 200000 | BE11: 200000 | BN11: 0.09 | BO11: 100000 | BQ11: 200000 | BR11: 200000 | CA11: 0.09 | CB11: 100000 | CD11: 200000 | CE11: 200000 | CN11: 0.09 | CO11: 100000 | CQ11: 200000 | CR11: 200000 | DA11: 0.09
A12: Month 9 | B12: 100000 | D12: 200000 | E12: 200000 | N12: 0.07 | O12: 100000 | Q12: 200000 | R12: 200000 | AA12: 0.07 | AB12: 100000 | AD12: 200000 | AE12: 200000 | AN12: 0.07 | AO12: 100000 | AQ12: 200000 | AR12: 200000 | BA12: 0.07 | BB12: 100000 | BD12: 200000 | BE12: 200000 | BN12: 0.07 | BO12: 100000 | BQ12: 200000 | BR12: 200000 | CA12: 0.07 | CB12: 100000 | CD12: 200000 | CE12: 200000 | CN12: 0.07 | CO12: 100000 | CQ12: 200000 | CR12: 200000 | DA12: 0.07
A13: Month 10 | B13: 100000 | D13: 200000 | E13: 200000 | N13: 0.06 | O13: 100000 | Q13: 200000 | R13: 200000 | AA13: 0.06 | AB13: 100000 | AD13: 200000 | AE13: 200000 | AN13: 0.06 | AO13: 100000 | AQ13: 200000 | AR13: 200000 | BA13: 0.06 | BB13: 100000 | BD13: 200000 | BE13: 200000 | BN13: 0.06 | BO13: 100000 | BQ13: 200000 | BR13: 200000 | CA13: 0.06 | CB13: 100000 | CD13: 200000 | CE13: 200000 | CN13: 0.06 | CO13: 100000 | CQ13: 200000 | CR13: 200000 | DA13: 0.06
A14: Month 11 | B14: 100000 | D14: 200000 | E14: 200000 | N14: 0.08 | O14: 100000 | Q14: 200000 | R14: 200000 | AA14: 0.08 | AB14: 100000 | AD14: 200000 | AE14: 200000 | AN14: 0.08 | AO14: 100000 | AQ14: 200000 | AR14: 200000 | BA14: 0.08 | BB14: 100000 | BD14: 200000 | BE14: 200000 | BN14: 0.08 | BO14: 100000 | BQ14: 200000 | BR14: 200000 | CA14: 0.08 | CB14: 100000 | CD14: 200000 | CE14: 200000 | CN14: 0.08 | CO14: 100000 | CQ14: 200000 | CR14: 200000 | DA14: 0.08
A15: Month 12 | B15: 100000 | D15: 200000 | E15: 200000 | N15: 0.1 | O15: 100000 | Q15: 200000 | R15: 200000 | AA15: 0.1 | AB15: 100000 | AD15: 200000 | AE15: 200000 | AN15: 0.1 | AO15: 100000 | AQ15: 200000 | AR15: 200000 | BA15: 0.1 | BB15: 100000 | BD15: 200000 | BE15: 200000 | BN15: 0.1 | BO15: 100000 | BQ15: 200000 | BR15: 200000 | CA15: 0.1 | CB15: 100000 | CD15: 200000 | CE15: 200000 | CN15: 0.1 | CO15: 100000 | CQ15: 200000 | CR15: 200000 | DA15: 0.1
A16: Month 13 | B16: 100000 | D16: 200000 | E16: 200000 | N16: 0.05 | O16: 100000 | Q16: 200000 | R16: 200000 | AA16: 0.05 | AB16: 100000 | AD16: 200000 | AE16: 200000 | AN16: 0.05 | AO16: 100000 | AQ16: 200000 | AR16: 200000 | BA16: 0.05 | BB16: 100000 | BD16: 200000 | BE16: 200000 | BN16: 0.05 | BO16: 100000 | BQ16: 200000 | BR16: 200000 | CA16: 0.05 | CB16: 100000 | CD16: 200000 | CE16: 200000 | CN16: 0.05 | CO16: 100000 | CQ16: 200000 | CR16: 200000 | DA16: 0.05
A17: Month 14 | B17: 100000 | D17: 200000 | E17: 200000 | N17: 0.04 | O17: 100000 | Q17: 200000 | R17: 200000 | AA17: 0.04 | AB17: 100000 | AD17: 200000 | AE17: 200000 | AN17: 0.04 | AO17: 100000 | AQ17: 200000 | AR17: 200000 | BA17: 0.04 | BB17: 100000 | BD17: 200000 | BE17: 200000 | BN17: 0.04 | BO17: 100000 | BQ17: 200000 | BR17: 200000 | CA17: 0.04 | CB17: 100000 | CD17: 200000 | CE17: 200000 | CN17: 0.04 | CO17: 100000 | CQ17: 200000 | CR17: 200000 | DA17: 0.04
A18: Month 15 | B18: 100000 | D18: 200000 | E18: 200000 | N18: 0.05 | O18: 100000 | Q18: 200000 | R18: 200000 | AA18: 0.05 | AB18: 100000 | AD18: 200000 | AE18: 200000 | AN18: 0.05 | AO18: 100000 | AQ18: 200000 | AR18: 200000 | BA18: 0.05 | BB18: 100000 | BD18: 200000 | BE18: 200000 | BN18: 0.05 | BO18: 100000 | BQ18: 200000 | BR18: 200000 | CA18: 0.05 | CB18: 100000 | CD18: 200000 | CE18: 200000 | CN18: 0.05 | CO18: 100000 | CQ18: 200000 | CR18: 200000 | DA18: 0.05
A19: Month 16 | B19: 100000 | D19: 200000 | E19: 200000 | N19: 0.03 | O19: 100000 | Q19: 200000 | R19: 200000 | AA19: 0.03 | AB19: 100000 | AD19: 200000 | AE19: 200000 | AN19: 0.03 | AO19: 100000 | AQ19: 200000 | AR19: 200000 | BA19: 0.03 | BB19: 100000 | BD19: 200000 | BE19: 200000 | BN19: 0.03 | BO19: 100000 | BQ19: 200000 | BR19: 200000 | CA19: 0.03 | CB19: 100000 | CD19: 200000 | CE19: 200000 | CN19: 0.03 | CO19: 100000 | CQ19: 200000 | CR19: 200000 | DA19: 0.03
A20: Month 17 | B20: 100000 | D20: 200000 | E20: 200000 | N20: 0.01 | O20: 100000 | Q20: 200000 | R20: 200000 | AA20: 0.01 | AB20: 100000 | AD20: 200000 | AE20: 200000 | AN20: 0.01 | AO20: 100000 | AQ20: 200000 | AR20: 200000 | BA20: 0.01 | BB20: 100000 | BD20: 200000 | BE20: 200000 | BN20: 0.01 | BO20: 100000 | BQ20: 200000 | BR20: 200000 | CA20: 0.01 | CB20: 100000 | CD20: 200000 | CE20: 200000 | CN20: 0.01 | CO20: 100000 | CQ20: 200000 | CR20: 200000 | DA20: 0.01
A21: Month 18 | B21: 100000 | D21: 200000 | E21: 200000 | N21: 0.05 | O21: 100000 | Q21: 200000 | R21: 200000 | AA21: 0.05 | AB21: 100000 | AD21: 200000 | AE21: 200000 | AN21: 0.05 | AO21: 100000 | AQ21: 200000 | AR21: 200000 | BA21: 0.05 | BB21: 100000 | BD21: 200000 | BE21: 200000 | BN21: 0.05 | BO21: 100000 | BQ21: 200000 | BR21: 200000 | CA21: 0.05 | CB21: 100000 | CD21: 200000 | CE21: 200000 | CN21: 0.05 | CO21: 100000 | CQ21: 200000 | CR21: 200000 | DA21: 0.05
A22: Month 19 | B22: 100000 | D22: 200000 | E22: 200000 | N22: 0.08 | O22: 100000 | Q22: 200000 | R22: 200000 | AA22: 0.08 | AB22: 100000 | AD22: 200000 | AE22: 200000 | AN22: 0.08 | AO22: 100000 | AQ22: 200000 | AR22: 200000 | BA22: 0.08 | BB22: 100000 | BD22: 200000 | BE22: 200000 | BN22: 0.08 | BO22: 100000 | BQ22: 200000 | BR22: 200000 | CA22: 0.08 | CB22: 100000 | CD22: 200000 | CE22: 200000 | CN22: 0.08 | CO22: 100000 | CQ22: 200000 | CR22: 200000 | DA22: 0.08
A23: Month 20 | B23: 100000 | D23: 200000 | E23: 200000 | N23: 0.09 | O23: 100000 | Q23: 200000 | R23: 200000 | AA23: 0.09 | AB23: 100000 | AD23: 200000 | AE23: 200000 | AN23: 0.09 | AO23: 100000 | AQ23: 200000 | AR23: 200000 | BA23: 0.09 | BB23: 100000 | BD23: 200000 | BE23: 200000 | BN23: 0.09 | BO23: 100000 | BQ23: 200000 | BR23: 200000 | CA23: 0.09 | CB23: 100000 | CD23: 200000 | CE23: 200000 | CN23: 0.09 | CO23: 100000 | CQ23: 200000 | CR23: 200000 | DA23: 0.09
A24: Month 21 | B24: 100000 | D24: 200000 | E24: 200000 | N24: 0.04 | O24: 100000 | Q24: 200000 | R24: 200000 | AA24: 0.04 | AB24: 100000 | AD24: 200000 | AE24: 200000 | AN24: 0.04 | AO24: 100000 | AQ24: 200000 | AR24: 200000 | BA24: 0.04 | BB24: 100000 | BD24: 200000 | BE24: 200000 | BN24: 0.04 | BO24: 100000 | BQ24: 200000 | BR24: 200000 | CA24: 0.04 | CB24: 100000 | CD24: 200000 | CE24: 200000 | CN24: 0.04 | CO24: 100000 | CQ24: 200000 | CR24: 200000 | DA24: 0.04
A25: Month 22 | B25: 100000 | D25: 200000 | E25: 200000 | N25: 0.03 | O25: 100000 | Q25: 200000 | R25: 200000 | AA25: 0.03 | AB25: 100000 | AD25: 200000 | AE25: 200000 | AN25: 0.03 | AO25: 100000 | AQ25: 200000 | AR25: 200000 | BA25: 0.03 | BB25: 100000 | BD25: 200000 | BE25: 200000 | BN25: 0.03 | BO25: 100000 | BQ25: 200000 | BR25: 200000 | CA25: 0.03 | CB25: 100000 | CD25: 200000 | CE25: 200000 | CN25: 0.03 | CO25: 100000 | CQ25: 200000 | CR25: 200000 | DA25: 0.03
A26: Month 23 | B26: 100000 | D26: 200000 | E26: 200000 | N26: 0.02 | O26: 100000 | Q26: 200000 | R26: 200000 | AA26: 0.02 | AB26: 100000 | AD26: 200000 | AE26: 200000 | AN26: 0.02 | AO26: 100000 | AQ26: 200000 | AR26: 200000 | BA26: 0.02 | BB26: 100000 | BD26: 200000 | BE26: 200000 | BN26: 0.02 | BO26: 100000 | BQ26: 200000 | BR26: 200000 | CA26: 0.02 | CB26: 100000 | CD26: 200000 | CE26: 200000 | CN26: 0.02 | CO26: 100000 | CQ26: 200000 | CR26: 200000 | DA26: 0.02
A27: Month 24 | B27: 100000 | D27: 200000 | E27: 200000 | N27: 0.02 | O27: 100000 | Q27: 200000 | R27: 200000 | AA27: 0.02 | AB27: 100000 | AD27: 200000 | AE27: 200000 | AN27: 0.02 | AO27: 100000 | AQ27: 200000 | AR27: 200000 | BA27: 0.02 | BB27: 100000 | BD27: 200000 | BE27: 200000 | BN27: 0.02 | BO27: 100000 | BQ27: 200000 | BR27: 200000 | CA27: 0.02 | CB27: 100000 | CD27: 200000 | CE27: 200000 | CN27: 0.02 | CO27: 100000 | CQ27: 200000 | CR27: 200000 | DA27: 0.02
A28: Total | B28: 2400000 | C28: 0 | D28: 4650000 | E28: 4700000 | F28: 0 | H28: 0 | J28: 0 | K28: 0 | L28: 0 | M28: 0 | N28: 1.42 | O28: 2400000 | P28: 0 | Q28: 4650000 | R28: 4700000 | S28: 0 | U28: 0 | W28: 0 | X28: 0 | Y28: 0 | Z28: 0 | AA28: 1.42 | AB28: 2400000 | AC28: 0 | AD28: 4650000 | AE28: 4700000 | AF28: 0 | AH28: 0 | AJ28: 0 | AK28: 0 | AL28: 0 | AM28: 0 | AN28: 1.42 | AO28: 2400000 | AP28: 0 | AQ28: 4650000 | AR28: 4700000 | AS28: 0 | AU28: 0 | AW28: 0 | AX28: 0 | AY28: 0 | AZ28: 0 | BA28: 1.42 | BB28: 2400000 | BC28: 0 | BD28: 4650000 | BE28: 4700000 | BF28: 0 | BH28: 0 | BJ28: 0 | BK28: 0 | BL28: 0 | BM28: 0 | BN28: 1.42 | BO28: 2400000 | BP28: 0 | BQ28: 4650000 | BR28: 4700000 | BS28: 0 | BU28: 0 | BW28: 0 | BX28: 0 | BY28: 0 | BZ28: 0 | CA28: 1.42 | CB28: 2400000 | CC28: 0 | CD28: 4650000 | CE28: 4700000 | CF28: 0 | CH28: 0 | CJ28: 0 | CK28: 0 | CL28: 0 | CM28: 0 | CN28: 1.42 | CO28: 2400000 | CP28: 0 | CQ28: 4650000 | CR28: 4700000 | CS28: 0 | CU28: 0 | CW28: 0 | CX28: 0 | CY28: 0 | CZ28: 0 | DA28: 1.42

Sheet BD-Production (hidden)
A1: Fuel Production Data Summary | D1: Applicant: | E1: ='BD RD Feedstock'!E1:F1 -> ABC Energy | G1: Biofuel Location: | I1: ='BD RD Feedstock'!I1:J1 -> City, State
A2: Biodiesel CI, g/MJ | C2: =IF('BD RD Feedstock'!C3="Other",'BD RD Feedstock'!C5,'BD RD Feedstock'!C3) -> Tallow | D2: =IF(D3=0,"N/A",D238) ->  | E2: =IF('BD RD Feedstock'!D3="Other",'BD RD Feedstock'!D5,'BD RD Feedstock'!D3) -> Tallow | F2: =IF(F3=0,"N/A",D239) ->  | G2: =IF('BD RD Feedstock'!E3="Other",'BD RD Feedstock'!E5,'BD RD Feedstock'!E3) -> Corn Oil | H2: =IF(H3=0,"N/A",H240) ->  | I2: =IF('BD RD Feedstock'!F3="Other",'BD RD Feedstock'!F5,'BD RD Feedstock'!F3) -> Palm Oil | J2: =IF(J3=0,"N/A",D241) ->  | K2: =IF('BD RD Feedstock'!G3="Other",'BD RD Feedstock'!G5,'BD RD Feedstock'!G3) -> None | L2: =IF(L3=0,"N/A",D242) ->  | M2: =IF('BD RD Feedstock'!H3="Other",'BD RD Feedstock'!H5,'BD RD Feedstock'!H3) -> None | N2: =IF(N3=0,"N/A",D243) ->  | O2: =IF('BD RD Feedstock'!I3="Other",'BD RD Feedstock'!I5,'BD RD Feedstock'!I3) -> None | P2: =IF(P3=0,"N/A",D244) ->  | Q2: =IF('BD RD Feedstock'!J3="Other",'BD RD Feedstock'!J5,'BD RD Feedstock'!J3) -> None | R2: =IF(R3=0,"N/A",D245) ->  | S2: =IF('BD RD Feedstock'!K3="Other",'BD RD Feedstock'!K5,'BD RD Feedstock'!K3) -> None | T2: =IF(T3=0,"N/A",D246) ->  | U2: =IF('BD RD Feedstock'!L3="Other",'BD RD Feedstock'!L5,'BD RD Feedstock'!L3) -> None | V2: =IF(V3=0,"N/A",D247) ->  | W2: =IF('BD RD Feedstock'!M3="Other",'BD RD Feedstock'!M5,'BD RD Feedstock'!M3) -> None | X2: =IF(X3=0,"N/A",D248) ->  | Y2: =IF('BD RD Feedstock'!N3="Other",'BD RD Feedstock'!N5,'BD RD Feedstock'!N3) -> None | Z2: =IF(Z3=0,"N/A",D249) ->  | AA2: Total BD, gallons
A3: BD Allocation, gallons | D3: =C35*'BD RD Feedstock'!D38/('BD RD Feedstock'!$D$38+'BD RD Feedstock'!$D$65+'BD RD Feedstock'!$D$92+'BD RD Feedstock'!$D$119+'BD RD Feedstock'!$D$146+'BD RD Feedstock'!$D$173+'BD RD Feedstock'!$D$200+'BD RD Feedstock'!$D$227+'BD RD Feedstock'!$D$254+'BD RD Feedstock'!$D$281+'BD RD Feedstock'!$D$308+'BD RD Feedstock'!$D$335)/#REF! ->  | F3: =C35*'BD RD Feedstock'!D65/('BD RD Feedstock'!$D$38+'BD RD Feedstock'!$D$65+'BD RD Feedstock'!$D$92+'BD RD Feedstock'!$D$119+'BD RD Feedstock'!$D$146+'BD RD Feedstock'!$D$173+'BD RD Feedstock'!$D$200+'BD RD Feedstock'!$D$227+'BD RD Feedstock'!$D$254+'BD RD Feedstock'!$D$281+'BD RD Feedstock'!$D$308+'BD RD Feedstock'!$D$335)/#REF! ->  | H3: =C35*'BD RD Feedstock'!D92/('BD RD Feedstock'!$D$38+'BD RD Feedstock'!$D$65+'BD RD Feedstock'!$D$92+'BD RD Feedstock'!$D$119+'BD RD Feedstock'!$D$146+'BD RD Feedstock'!$D$173+'BD RD Feedstock'!$D$200+'BD RD Feedstock'!$D$227+'BD RD Feedstock'!$D$254+'BD RD Feedstock'!$D$281+'BD RD Feedstock'!$D$308+'BD RD Feedstock'!$D$335)/#REF! ->  | J3: =C35*'BD RD Feedstock'!D119/('BD RD Feedstock'!$D$38+'BD RD Feedstock'!$D$65+'BD RD Feedstock'!$D$92+'BD RD Feedstock'!$D$119+'BD RD Feedstock'!$D$146+'BD RD Feedstock'!$D$173+'BD RD Feedstock'!$D$200+'BD RD Feedstock'!$D$227+'BD RD Feedstock'!$D$254+'BD RD Feedstock'!$D$281+'BD RD Feedstock'!$D$308+'BD RD Feedstock'!$D$335)/#REF! ->  | L3: =C35*'BD RD Feedstock'!D146/('BD RD Feedstock'!$D$38+'BD RD Feedstock'!$D$65+'BD RD Feedstock'!$D$92+'BD RD Feedstock'!$D$119+'BD RD Feedstock'!$D$146+'BD RD Feedstock'!$D$173+'BD RD Feedstock'!$D$200+'BD RD Feedstock'!$D$227+'BD RD Feedstock'!$D$254+'BD RD Feedstock'!$D$281+'BD RD Feedstock'!$D$308+'BD RD Feedstock'!$D$335)/#REF! ->  | N3: =C35*'BD RD Feedstock'!D173/('BD RD Feedstock'!$D$38+'BD RD Feedstock'!$D$65+'BD RD Feedstock'!$D$92+'BD RD Feedstock'!$D$119+'BD RD Feedstock'!$D$146+'BD RD Feedstock'!$D$173+'BD RD Feedstock'!$D$200+'BD RD Feedstock'!$D$227+'BD RD Feedstock'!$D$254+'BD RD Feedstock'!$D$281+'BD RD Feedstock'!$D$308+'BD RD Feedstock'!$D$335)/#REF! ->  | P3: =C35*'BD RD Feedstock'!D200/('BD RD Feedstock'!$D$38+'BD RD Feedstock'!$D$65+'BD RD Feedstock'!$D$92+'BD RD Feedstock'!$D$119+'BD RD Feedstock'!$D$146+'BD RD Feedstock'!$D$173+'BD RD Feedstock'!$D$200+'BD RD Feedstock'!$D$227+'BD RD Feedstock'!$D$254+'BD RD Feedstock'!$D$281+'BD RD Feedstock'!$D$308+'BD RD Feedstock'!$D$335)/#REF! ->  | R3: =C35*'BD RD Feedstock'!D227/('BD RD Feedstock'!$D$38+'BD RD Feedstock'!$D$65+'BD RD Feedstock'!$D$92+'BD RD Feedstock'!$D$119+'BD RD Feedstock'!$D$146+'BD RD Feedstock'!$D$173+'BD RD Feedstock'!$D$200+'BD RD Feedstock'!$D$227+'BD RD Feedstock'!$D$254+'BD RD Feedstock'!$D$281+'BD RD Feedstock'!$D$308+'BD RD Feedstock'!$D$335)/#REF! ->  | T3: =C35*'BD RD Feedstock'!D254/('BD RD Feedstock'!$D$38+'BD RD Feedstock'!$D$65+'BD RD Feedstock'!$D$92+'BD RD Feedstock'!$D$119+'BD RD Feedstock'!$D$146+'BD RD Feedstock'!$D$173+'BD RD Feedstock'!$D$200+'BD RD Feedstock'!$D$227+'BD RD Feedstock'!$D$254+'BD RD Feedstock'!$D$281+'BD RD Feedstock'!$D$308+'BD RD Feedstock'!$D$335)/#REF! ->  | V3: =C35*'BD RD Feedstock'!D281/('BD RD Feedstock'!$D$38+'BD RD Feedstock'!$D$65+'BD RD Feedstock'!$D$92+'BD RD Feedstock'!$D$119+'BD RD Feedstock'!$D$146+'BD RD Feedstock'!$D$173+'BD RD Feedstock'!$D$200+'BD RD Feedstock'!$D$227+'BD RD Feedstock'!$D$254+'BD RD Feedstock'!$D$281+'BD RD Feedstock'!$D$308+'BD RD Feedstock'!$D$335)/#REF! ->  | X3: =C35*'BD RD Feedstock'!D308/('BD RD Feedstock'!$D$38+'BD RD Feedstock'!$D$65+'BD RD Feedstock'!$D$92+'BD RD Feedstock'!$D$119+'BD RD Feedstock'!$D$146+'BD RD Feedstock'!$D$173+'BD RD Feedstock'!$D$200+'BD RD Feedstock'!$D$227+'BD RD Feedstock'!$D$254+'BD RD Feedstock'!$D$281+'BD RD Feedstock'!$D$308+'BD RD Feedstock'!$D$335)/#REF! ->  | Z3: =C35*'BD RD Feedstock'!D335/('BD RD Feedstock'!$D$38+'BD RD Feedstock'!$D$65+'BD RD Feedstock'!$D$92+'BD RD Feedstock'!$D$119+'BD RD Feedstock'!$D$146+'BD RD Feedstock'!$D$173+'BD RD Feedstock'!$D$200+'BD RD Feedstock'!$D$227+'BD RD Feedstock'!$D$254+'BD RD Feedstock'!$D$281+'BD RD Feedstock'!$D$308+'BD RD Feedstock'!$D$335)/#REF! ->  | AA3: =SUM(C3:Z3) -> 
A4: BD Allocation, % | D4: =D3/$AA$3 ->  | F4: =F3/$AA$3 ->  | H4: =H3/$AA$3 ->  | J4: =J3/$AA$3 ->  | L4: =L3/$AA$3 ->  | N4: =N3/$AA$3 ->  | P4: =P3/$AA$3 ->  | R4: =R3/$AA$3 ->  | T4: =T3/$AA$3 ->  | V4: =V3/$AA$3 ->  | X4: =X3/$AA$3 ->  | Z4: =Z3/$AA$3 ->  | AA4: =SUM(C4:Z4) -> 
A5: Data Years | B5: Select Regional Electricity Mix for Fuel | H5: 1-U.S Ave Mix
B6: Regional Crude Mix | H6: U.S Ave Crude
B7: Regional Natural Gas Source | H7: U.S Ave NG
A8: Process | B8: Inputs for Biodiesel Production | R8: Co-Products | V8: Fuel Tranpsort
A9: Monthly Data | B9: Beginning Biodiesel Inventory (60 °F) | C9: Biodiesel Produced (Calculated) (60 °F) | D9: Ending Biodiesel Inventory (60 °F) | E9: Biodiesel Sold | F9: NG Use from Utility Invoices | G9: Biomass Use from Invoices | H9: Biomass Transport Distance | I9: Biogas Use from Invoices | J9: Biogas Parameters | K9: Other Fuel Use | L9: Electricity from Utility Invoices | M9: Other Electricity | N9: Beginning Methanol Inventory | O9: Methanol Used (Calculated) | P9: Purchased | Q9: Ending Methanol Inventory | R9: Distillate Bottoms Production | S9: Free Fatty Acids Production | T9: Glycerin Production | U9: Other Co-products (Specify here) | V9: Biodiesel Transportation to or in California
A10: Unit | B10: lbs. | C10: lbs. | D10: lbs. | E10: lbs. | F10: MMBTU, HHV | G10: Dry Tons | H10: Miles | I10: MMBTU, HHV | J10: Miles | K10: MMBTU, HHV | L10: KWh | M10: KWh | N10: lbs. | O10: lbs. | P10: lbs. | Q10: lbs. | R10: lbs. | S10: lbs. | T10: lbs. | U10: lbs. | V10: Mode | W10: Select Values | X10: Miles
A11: Month 1 | B11: 10000 | C11: =D11-B11+E11 -> 935000 | D11: 850000 | E11: 95000 | F11: 551 | G11: 12 | H11: By HDT Truck | J11: Pipeline | L11: 30000 | N11: 1000 | O11: =N11+P11-Q11 -> 66295 | P11: 65300 | Q11: 5 | V11: From BD plant to port/railyard by HDD Truck | W11: Standard Values | X11: 0
A12: Month 2 | B12: =E11 -> 95000 | C12: =D12-B12+E12 -> 810000 | D12: 780000 | E12: 125000 | F12: 551 | H12: 100 | I12: 10 | J12: 80 | L12: 30000 | N12: =Q11 -> 5 | O12: =N12+P12-Q12 -> 59990 | P12: 60000 | Q12: 15 | R12: These co-products are not functional yet | V12: From BD plant blending terminal by HDD Truck | W12: Standard Values | X12: 200
A13: Month 3 | B13: =E12 -> 125000 | C13: 780000 | D13: 780000 | E13: 125000 | F13: 551 | G13: 13 | H13: By Rail | J13: Source | L13: 50000 | N13: =Q12 -> 15 | O13: =N13+P13-Q13 -> 68866 | P13: 68881 | Q13: 30
A14: Month 4 | B14: 125000 | C14: 780000 | D14: 780000 | E14: 125000 | F14: 551 | G14: 20 | H14: 5000 | I14: 12 | J14: ABC Landfill | L14: 30000 | N14: 30 | O14: 45608 | P14: 45666 | Q14: 88
A15: Month 5 | B15: 125000 | C15: 780000 | D15: 780000 | E15: 125000 | F15: 551 | G15: 11 | I15: 15 | L15: 30000 | N15: 88 | O15: 50076 | P15: 50000 | Q15: 12
A16: Month 6 | B16: 125000 | C16: 780000 | D16: 780000 | E16: 125000 | F16: 551 | G16: 12 | L16: 30000 | N16: 12 | O16: 85812 | P16: 85866 | Q16: 66
A17: Month 7 | B17: 125000 | C17: 780000 | D17: 780000 | E17: 125000 | F17: 551 | L17: 30000 | N17: 66 | O17: 21289 | P17: 22222 | Q17: 999 | V17: By Rail | W17: Standard Values | X17: 0
A18: Month 8 | B18: 125000 | C18: 780000 | D18: 780000 | E18: 125000 | F18: 551 | G18: 5 | L18: 30000 | N18: 999 | O18: 90977 | P18: 90000 | Q18: 22
A19: Month 9 | B19: 125000 | C19: 780000 | D19: 780000 | E19: 125000 | F19: 551 | G19: 10 | K19: This fuel is not functional yet | L19: 30000 | M19: This fuel is not functional yet | N19: 22 | O19: 65310 | P19: 65300 | Q19: 12 | V19: By Ocean Tanker | W19: Standard Values | X19: 0
A20: Month 10 | B20: 125000 | C20: 780000 | D20: 780000 | E20: 125000 | F20: 551 | G20: 7 | I20: 80 | L20: 30000 | N20: 12 | O20: 65090 | P20: 65300 | Q20: 222
A21: Month 11 | B21: 125000 | C21: 780000 | D21: 780000 | E21: 125000 | F21: 551 | G21: 7 | I21: 9523 | L21: 30000 | N21: 222 | O21: 77049 | P21: 77777 | Q21: 950 | V21: By Barge | W21: Standard Values | X21: 5000
A22: Month 12 | B22: 125000 | C22: 780000 | D22: 780000 | E22: 125000 | F22: 551 | G22: 8 | I22: 6355 | L22: 30000 | N22: 950 | O22: 66127 | P22: 65300 | Q22: 123
A23: Month 13 | B23: 125000 | C23: 780000 | D23: 780000 | E23: 125000 | F23: 551 | G23: 8 | I23: 2633 | L23: 30000 | N23: 123 | O23: 12445 | P23: 12355 | Q23: 33
A24: Month 14 | B24: 125000 | C24: 780000 | D24: 780000 | E24: 125000 | F24: 551 | G24: 8 | I24: 44 | L24: 30000 | N24: 33 | O24: 65308 | P24: 65300 | Q24: 25
A25: Month 15 | B25: 125000 | C25: 780000 | D25: 780000 | E25: 125000 | F25: 551 | I25: 11 | L25: 30000 | N25: 25 | O25: 65266 | P25: 65300 | Q25: 59
A26: Month 16 | B26: 125000 | C26: 780000 | D26: 780000 | E26: 125000 | F26: 551 | I26: 223 | L26: 30000 | N26: 59 | O26: 65344 | P26: 65300 | Q26: 15
A27: Month 17 | B27: 125000 | C27: 780000 | D27: 780000 | E27: 125000 | F27: 551 | G27: 5 | I27: 99 | L27: 30000 | N27: 15 | O27: 65227 | P27: 65300 | Q27: 88
A28: Month 18 | B28: 125000 | C28: 780000 | D28: 780000 | E28: 125000 | F28: 551 | L28: 30000 | N28: 88 | O28: 65238 | P28: 65300 | Q28: 150
A29: Month 19 | B29: 125000 | C29: 780000 | D29: 780000 | E29: 125000 | F29: 551 | L29: 30000 | N29: 150 | O29: 24984 | P29: 25000 | Q29: 166
A30: Month 20 | B30: 125000 | C30: 780000 | D30: 780000 | E30: 125000 | F30: 551 | G30: 9 | L30: 30000 | N30: 166 | O30: 92166 | P30: 98000 | Q30: 6000
A31: Month 21 | B31: 125000 | C31: 780000 | D31: 780000 | E31: 125000 | F31: 551 | L31: 30000 | N31: 6000 | O31: 32549 | P31: 26555 | Q31: 6
A32: Month 22 | B32: 125000 | C32: 780000 | D32: 780000 | E32: 125000 | F32: 551 | G32: 10 | L32: 30000 | N32: 6 | O32: 36555 | P32: 36555 | Q32: 6
A33: Month 23 | B33: 125000 | C33: 780000 | D33: 780000 | E33: 125000 | F33: 551 | G33: 10 | L33: 30000 | N33: 6 | O33: 66660 | P33: 66666 | Q33: 12
A34: Month 24 | B34: =E33 -> 125000 | C34: 380000 | D34: 380000 | E34: 125000 | F34: 551 | L34: 30000 | N34: =Q33 -> 12 | O34: 15866 | P34: 15879 | Q34: 25
A35: Total | B35: =SUM(B11:B34) -> 2855000 | C35: =SUM(C11:C34) -> 18505000 | D35: =SUM(D11:D34) -> 18390000 | E35: =SUM(E11:E34) -> 2970000 | F35: =SUM(F11:F34) -> 13224 | G35: =SUM(G11:G34) -> 155 | H35: 5100 | I35: 19005 | K35: 0 | L35: 740000 | M35: 0 | N35: 10104 | O35: =SUM(O11:O34) -> 1370097 | P35: =SUM(P11:P34) -> 1369122 | Q35: 9129 | R35: 0 | S35: 0 | T35: 0 | U35: 0
A37: Carbon Intensity Breakdown to each Process | H37: Feedstock 1 | K37: Feedstock 2 | N37: Feedstock 3 | Q37: Feedstock 4 | T37: Feedstock 5 | W37: Feedstock 6 | Z37: Feedstock 7 | AC37: Feedstock 8 | AF37: Feedstock 9 | AI37: Feedstock 10 | AL37: Feedstock 11 | AO37: Feedstock 12
A38: Feedstock Production | B38: Process | D38: Inputs | F38: Values | G38: Region | H38: CI Outputs, g/MJ | I38: Values | J38: Region | K38: CI Outputs, g/MJ | L38: Values | M38: Region | N38: CI Outputs, g/MJ | O38: Values | P38: Region | Q38: CI Outputs, g/MJ | R38: Values | S38: Region | T38: CI Outputs, g/MJ | U38: Values | V38: Region | W38: CI Outputs, g/MJ | X38: Values | Y38: Region | Z38: CI Outputs, g/MJ | AA38: Values | AB38: Region | AC38: CI Outputs, g/MJ | AD38: Values | AE38: Region | AF38: CI Outputs, g/MJ | AG38: Values | AH38: Region | AI38: CI Outputs, g/MJ | AJ38: Values | AK38: Region | AL38: CI Outputs, g/MJ | AM38: Values | AN38: Region | AO38: CI Outputs, g/MJ
B39: Feedstock Production | F39: =IF('BD RD Feedstock'!C3="Soy Oil","Soy Oil 1","") ->  | G39: =IF(F39="Soy Oil 1",'BD RD Feedstock'!C8,"") ->  | H39: =H40+H41+H42+H43+H53 ->  | I39: =IF('BD RD Feedstock'!D3="Soy Oil","Soy Oil 2","") ->  | J39: =IF(I39="Soy Oil 2",'BD RD Feedstock'!D8,"") ->  | K39: =K40+K41+K42+K43+K53 ->  | L39: =IF('BD RD Feedstock'!E3="Soy Oil","Soy Oil 3","") ->  | M39: =IF(L39="Soy Oil 3",'BD RD Feedstock'!E8,"") ->  | N39: =N40+N41+N42+N43+N55+N56+N57+N58 ->  | O39: =IF('BD RD Feedstock'!F3="Soy Oil","Soy Oil 4","") ->  | P39: =IF(O39="Soy Oil 4",'BD RD Feedstock'!F8,"") ->  | Q39: =Q40+Q41+Q42+Q43+Q53 ->  | R39: =IF('BD RD Feedstock'!G3="Soy Oil","Soy Oil 5","") ->  | S39: =IF(R39="Soy Oil 5",'BD RD Feedstock'!G8,"") ->  | T39: =T40+T41+T42+T43+T53 ->  | U39: =IF('BD RD Feedstock'!H3="Soy Oil","Soy Oil 6","") ->  | V39: =IF(U39="Soy Oil 6",'BD RD Feedstock'!H8,"") ->  | W39: =W40+W41+W42+W43+W53 ->  | X39: =IF('BD RD Feedstock'!I3="Soy Oil","Soy Oil 7","") ->  | Y39: =IF(X39="Soy Oil 7",'BD RD Feedstock'!I8,"") ->  | Z39: =Z40+Z41+Z42+Z43+Z53 ->  | AA39: =IF('BD RD Feedstock'!J3="Soy Oil","Soy Oil 8","") ->  | AB39: =IF(AA39="Soy Oil 8",'BD RD Feedstock'!J8,"") ->  | AC39: =AC40+AC41+AC42+AC43+AC53 ->  | AD39: =IF('BD RD Feedstock'!K3="Soy Oil","Soy Oil 9","") ->  | AE39: =IF(AD39="Soy Oil 9",'BD RD Feedstock'!K8,"") ->  | AF39: =AF40+AF41+AF42+AF43+AF53 ->  | AG39: =IF('BD RD Feedstock'!L3="Soy Oil","Soy Oil 10","") ->  | AH39: =IF(AG39="Soy Oil 10",'BD RD Feedstock'!L8,"") ->  | AI39: =AI40+AI41+AI42+AI43+AI53 ->  | AJ39: =IF('BD RD Feedstock'!M3="Soy Oil","Soy Oil 11","") ->  | AK39: =IF(AJ39="Soy Oil 11",'BD RD Feedstock'!M8,"") ->  | AL39: =AL40+AL41+AL42+AL43+AL53 ->  | AM39: =IF('BD RD Feedstock'!N3="Soy Oil","Soy Oil 12","") ->  | AN39: =IF(AM39="Soy Oil 12",'BD RD Feedstock'!N8,"") ->  | AO39: =AO40+AO41+AO42+AO43+AO53 -> 
B40: Soybean Farming and Fertilizers | D40: Oil Yield, lb oil/lb soybean | F40: 0.2 | H40: =#REF! ->  | I40: 0.2 | K40: =#REF! ->  | N40: =#REF! ->  | Q40: =#REF! ->  | T40: =#REF! ->  | W40: =#REF! ->  | Z40: =#REF! ->  | AC40: =#REF! ->  | AF40: =#REF! ->  | AI40: =#REF! ->  | AL40: =#REF! ->  | AO40: =#REF! -> 
A41: Soy Oil | B41: Soybean Transport, miles | D41: Soybean transported by Medium Truck, miles | F41: 10 | H41: ='T&D'!$B$58*F41/10 ->  | I41: 10 | K41: ='T&D'!$B$58*F41/10 ->  | L41: 10 | N41: ='T&D'!$B$58*I41/10 ->  | O41: 10 | Q41: ='T&D'!$B$58*L41/10 ->  | R41: 10 | T41: ='T&D'!$B$58*O41/10 ->  | W41: ='T&D'!$B$58*U41/10 ->  | X41: 10 | Z41: ='T&D'!$B$58*X41/10 ->  | AA41: 10 | AC41: ='T&D'!$B$58*AA41/10 ->  | AD41: 10 | AF41: ='T&D'!$B$58*AD41/10 ->  | AG41: 10 | AI41: ='T&D'!$B$58*AG41/10 ->  | AJ41: 10 | AL41: ='T&D'!$B$58*AJ41/10 ->  | AO41: ='T&D'!$B$58*AM41/10 -> 
A42: =IF('BD RD Feedstock'!C3="Others",'BD RD Feedstock'!C5,"") ->  | D42: Soybean transported by Heavy Duty Diesel Truck, miles | F42: 50 | H42: ='T&D'!$J$96*F42/50 -> 0 | I42: 50 | K42: ='T&D'!$K$96*I42/50 ->  | L42: 50 | N42: ='T&D'!$L$96*L42/50 -> 0 | O42: 50 | Q42: ='T&D'!$M$96*O42/50 -> 0 | R42: 50 | T42: ='T&D'!$N$96*R42/50 -> 0 | W42: ='T&D'!$O$96*U42/50 -> 0 | Z42: ='T&D'!$P$96*X42/50 -> 0 | AC42: ='T&D'!$Q$96*AA42/50 -> 0 | AF42: ='T&D'!$R$96*AD42/50 -> 0 | AI42: ='T&D'!$S$96*AG42/50 -> 0 | AL42: ='T&D'!$T$96*AJ42/50 -> 0 | AO42: ='T&D'!$U$96*AM42/50 -> 0
B43: Soybean Extraction, Btu/lb oil | D43: Total, Btu/lb oil | F43: 3687 | H43: =IF('BD RD Feedstock'!C6="Use Standard Values",#REF!,SUM(H44:H52)) ->  | K43: =IF('BD RD Feedstock'!F6="Use Standard Values",#REF!,K44+K45+K46+K47+K48+K49+K50+K51+K52) -> 0 | N43: =IF('BD RD Feedstock'!E6="Use Standard Values",#REF!,N44+N45+N46+N47+N48+N49+N50+N51) -> 0 | Q43: =IF('BD RD Feedstock'!F6="Use Standard Values",#REF!,Q44+Q45+Q46+Q47+Q48+Q49+Q50+Q51) -> 0 | T43: =IF('BD RD Feedstock'!G6="Use Standard Values",#REF!,T44+T45+T46+T47+T48+T49+T50+T51) -> 0 | W43: =IF('BD RD Feedstock'!H6="Use Standard Values",#REF!,W44+W45+W46+W47+W48+W49+W50+W51) -> 0 | Z43: =IF('BD RD Feedstock'!K6="Use Standard Values",#REF!,Z44+Z45+Z46+Z47+Z48+Z49+Z50+Z51) -> 0 | AC43: =IF('BD RD Feedstock'!N6="Use Standard Values",#REF!,AC44+AC45+AC46+AC47+AC48+AC49+AC50+AC51) -> 0 | AF43: =IF('BD RD Feedstock'!Q6="Use Standard Values",#REF!,AF44+AF45+AF46+AF47+AF48+AF49+AF50+AF51) -> 0 | AI43: =IF('BD RD Feedstock'!T6="Use Standard Values",#REF!,AI44+AI45+AI46+AI47+AI48+AI49+AI50+AI51) -> 0 | AL43: =IF('BD RD Feedstock'!W6="Use Standard Values",#REF!,AL44+AL45+AL46+AL47+AL48+AL49+AL50+AL51) -> 0 | AO43: =IF('BD RD Feedstock'!Z6="Use Standard Values",#REF!,AO44+AO45+AO46+AO47+AO48+AO49+AO50+AO51) -> 0
D44: Residual Oil | F44: =$F$43*G44 -> 32.0769 | G44: 0.0087 | H44: =F44*(100%*EF!$M16+Petroleum!$B$21*Petroleum!$I$4+Petroleum!$I$21)/10^6*#REF!*(1-#REF!)/$F$173*$F$40/Reference!#REF!*Reference!#REF!/Reference!$E$27*1000000 -> 
D45: Diesel | F45: =$F$43*G45 -> 15.8541 | G45: 0.0043 | H45: =F45*(33%*EF!$Q16+33%*EF!$R16+34%*EF!$S16+Petroleum!$B$21*Petroleum!$J$4+Petroleum!$J$21)/1000000*#REF!*(1-#REF!)/$F$173*$F$40/Reference!#REF!*Reference!#REF!/Reference!$E$27*1000000 -> 
E46: Gasoline | F46: 0 | G46: 0 | H46: =F46*((EF!$V16+Petroleum!$B$21*Petroleum!$F$4+Petroleum!$F$21)/1000000)/Reference!#REF!*(Reference!#REF!/Reference!$E$27)/Reference!#REF!*(1-#REF!)/$F$173*$F$40/Reference!#REF!*Reference!#REF!/Reference!$E$27*1000000 -> 
D47: Natural Gas | F47: 2068.0383 | G47: 0.5609 | H47: =F47*(0*EF!$G16+0*EF!$D16+50%*EF!$B16+50%*EF!$C16+#REF!)/1000000*#REF!*(1-#REF!)/$F$173*$F$40/Reference!#REF!*Reference!#REF!/Reference!$E$27*1000000 -> 
D48: Coal | F48: 1017.9807 | G48: 0.2761 | H48: =F48*(100%*EF!$AC16+Coal!AH$5)/1000000*#REF!*(1-#REF!)/$F$173*$F$40/Reference!#REF!*Reference!#REF!/Reference!$E$27*1000000 -> 
E49: LPG | F49: 0 | G49: 0
D50: N-Hexane | F50: 58.992 | G50: 0.016 | H50: =F50*(Petroleum!$B$21*Petroleum!$H$4+Petroleum!$H$21)/1000000*#REF!*(1-#REF!)/$F$173*$F$40/Reference!#REF!*Reference!#REF!/Reference!$E$27*1000000+F50/Reference!#REF!*Reference!#REF!*#REF!*(1-#REF!)/$F$173*$F$40/Reference!#REF!*Reference!#REF!/Reference!$E$27*1000000/Reference!$H$43 -> 
D51: Eletricity | F51: 446.127 | G51: 0.121 | H51: =F51*(Electricity!BP$6+Electricity!BP$7)/1000000*#REF!*(1-#REF!)/$F$173*$F$40/Reference!#REF!*Reference!#REF!/Reference!$E$27*1000000 -> 
D52: Renewable NG | F52: 0 | G52: 0 | H52: =F52*(0*EF!$G16+0*EF!$D16+50%*EF!$B16+50%*EF!$C16+#REF!)/10^6*#REF!*(1-#REF!)*$F$173*$F$40/Reference!#REF!*Reference!#REF!/Reference!$E$27*1000000 -> 
B53: Soybean Oil Transport, miles | H53: =SUM(H54:H58) ->  | K53: =SUM(K54:K58) ->  | N53: =SUM(N54:N58) -> 0 | Q53: =SUM(Q54:Q58) ->  | T53: =SUM(T54:T58) -> 0 | W53: =SUM(W54:W58) -> 0 | Z53: =SUM(Z54:Z58) -> 0 | AC53: =SUM(AC54:AC58) -> 0 | AF53: =SUM(AF54:AF58) -> 0 | AI53: =SUM(AI54:AI58) -> 0 | AL53: =SUM(AL54:AL58) -> 0 | AO53: =SUM(AO54:AO58) -> 0
D54: Soy Oil transported by Medium Truck, miles | F54: ='BD RD Feedstock'!R38 -> No Data | H54: =IF(F54="No Data",0,F54/10*'T&D'!$C$58*$F$173/'T&D'!$E$45*#REF!*(1-#REF!)) -> 0 | I54: ='BD RD Feedstock'!R65 -> No Data | K54: =IF(I54="No Data",0,I54/10*'T&D'!$C$58*$F$173/'T&D'!$E$45*#REF!*(1-#REF!)) -> 0 | L54: ='BD RD Feedstock'!R92 -> No Data | N54: =IF(L54="No Data",0,L54/10*'T&D'!$C$58*$F$173/'T&D'!$E$45*#REF!*(1-#REF!)) -> 0 | O54: ='BD RD Feedstock'!R119 -> No Data | Q54: =IF(O54="No Data",0,O54/10*'T&D'!$C$58*$F$173/'T&D'!$E$45*#REF!*(1-#REF!)) -> 0 | R54: ='BD RD Feedstock'!R146 -> No Data | T54: =IF(R54="No Data",0,R54/10*'T&D'!$C$58*$F$173/'T&D'!$E$45*#REF!*(1-#REF!)) -> 0 | U54: ='BD RD Feedstock'!R173 -> No Data | W54: =IF(U54="No Data",0,U54/10*'T&D'!$C$58*$F$173/'T&D'!$E$45*#REF!*(1-#REF!)) -> 0 | X54: ='BD RD Feedstock'!$R$200 -> No Data | Z54: =IF(X54="No Data",0,X54/10*'T&D'!$C$58*$F$173/'T&D'!$E$45*#REF!*(1-#REF!)) -> 0 | AA54: ='BD RD Feedstock'!$R$200 -> No Data | AC54: =IF(AA54="No Data",0,AA54/10*'T&D'!$C$58*$F$173/'T&D'!$E$45*#REF!*(1-#REF!)) -> 0 | AD54: ='BD RD Feedstock'!$R$200 -> No Data | AF54: =IF(AD54="No Data",0,AD54/10*'T&D'!$C$58*$F$173/'T&D'!$E$45*#REF!*(1-#REF!)) -> 0 | AG54: ='BD RD Feedstock'!$R$200 -> No Data | AI54: =IF(AG54="No Data",0,AG54/10*'T&D'!$C$58*$F$173/'T&D'!$E$45*#REF!*(1-#REF!)) -> 0 | AJ54: ='BD RD Feedstock'!$R$200 -> No Data | AL54: =IF(AJ54="No Data",0,AJ54/10*'T&D'!$C$58*$F$173/'T&D'!$E$45*#REF!*(1-#REF!)) -> 0 | AM54: ='BD RD Feedstock'!$R$200 -> No Data | AO54: =IF(AM54="No Data",0,AM54/10*'T&D'!$C$58*$F$173/'T&D'!$E$45*#REF!*(1-#REF!)) -> 0
D55: Soy Oil transported by Heavy Duty Diesel Truck, miles | F55: ='BD RD Feedstock'!S38 -> 50 | H55: =IF(F55="No Data",0,F55/50*'T&D'!$J$92/Reference!$C$30/$F$173/Reference!#REF!*Reference!#REF!/Reference!$E$27*1000000*#REF!*(1-#REF!))/Reference!$H$43 ->  | I55: ='BD RD Feedstock'!S65 -> 100 | K55: =IF(I55="No Data",0,I55/50*'T&D'!$J$92/Reference!$C$30/$F$173/Reference!#REF!*Reference!#REF!/Reference!$E$27*1000000*#REF!*(1-#REF!))/Reference!$H$43 ->  | L55: ='BD RD Feedstock'!S92 -> No Data | N55: =IF(L55="No Data",0,L55/50*'T&D'!$J$92/Reference!$C$30/$F$173/Reference!#REF!*Reference!#REF!/Reference!$E$27*1000000*#REF!*(1-#REF!))/Reference!$H$43 -> 0 | O55: ='BD RD Feedstock'!S119 -> 100 | Q55: =IF(O55="No Data",0,O55/50*'T&D'!$J$92/Reference!$C$30/$F$173/Reference!#REF!*Reference!#REF!/Reference!$E$27*1000000*#REF!*(1-#REF!))/Reference!$H$43 ->  | R55: ='BD RD Feedstock'!S146 -> No Data | T55: =IF(R55="No Data",0,R55/50*'T&D'!$J$92/Reference!$C$30/$F$173/Reference!#REF!*Reference!#REF!/Reference!$E$27*1000000*#REF!*(1-#REF!))/Reference!$H$43 -> 0 | U55: ='BD RD Feedstock'!S173 -> No Data | W55: =IF(U55="No Data",0,U55/50*'T&D'!$J$92/Reference!$C$30/$F$173/Reference!#REF!*Reference!#REF!/Reference!$E$27*1000000*#REF!*(1-#REF!))/Reference!$H$43 -> 0 | X55: ='BD RD Feedstock'!$S$200 -> No Data | Z55: =IF(X55="No Data",0,X55/50*'T&D'!$J$92/Reference!$C$30/$F$173/Reference!#REF!*Reference!#REF!/Reference!$E$27*1000000*#REF!*(1-#REF!))/Reference!$H$43 -> 0 | AA55: ='BD RD Feedstock'!$S$200 -> No Data | AC55: =IF(AA55="No Data",0,AA55/50*'T&D'!$J$92/Reference!$C$30/$F$173/Reference!#REF!*Reference!#REF!/Reference!$E$27*1000000*#REF!*(1-#REF!))/Reference!$H$43 -> 0 | AD55: ='BD RD Feedstock'!$S$200 -> No Data | AF55: =IF(AD55="No Data",0,AD55/50*'T&D'!$J$92/Reference!$C$30/$F$173/Reference!#REF!*Reference!#REF!/Reference!$E$27*1000000*#REF!*(1-#REF!))/Reference!$H$43 -> 0 | AG55: ='BD RD Feedstock'!$S$200 -> No Data | AI55: =IF(AG55="No Data",0,AG55/50*'T&D'!$J$92/Reference!$C$30/$F$173/Reference!#REF!*Reference!#REF!/Reference!$E$27*1000000*#REF!*(1-#REF!))/Reference!$H$43 -> 0 | AJ55: ='BD RD Feedstock'!$S$200 -> No Data | AL55: =IF(AJ55="No Data",0,AJ55/50*'T&D'!$J$92/Reference!$C$30/$F$173/Reference!#REF!*Reference!#REF!/Reference!$E$27*1000000*#REF!*(1-#REF!))/Reference!$H$43 -> 0 | AM55: ='BD RD Feedstock'!$S$200 -> No Data | AO55: =IF(AM55="No Data",0,AM55/50*'T&D'!$J$92/Reference!$C$30/$F$173/Reference!#REF!*Reference!#REF!/Reference!$E$27*1000000*#REF!*(1-#REF!))/Reference!$H$43 -> 0
D56: Soy Oil transported by Ocean Tanker, miles | F56: ='BD RD Feedstock'!T38 -> 1000 | H56: =IF(F56="No Data",0,F56/1000*'T&D'!$J$93/Reference!$C$30/$F$173/Reference!#REF!*Reference!#REF!/Reference!$E$27*1000000*#REF!*(1-#REF!))/Reference!$H$43 ->  | I56: ='BD RD Feedstock'!T65 -> No Data | K56: =IF(I56="No Data",0,I56/1000*'T&D'!$J$93/Reference!$C$30/$F$173/Reference!#REF!*Reference!#REF!/Reference!$E$27*1000000*#REF!*(1-#REF!))/Reference!$H$43 -> 0 | L56: ='BD RD Feedstock'!T92 -> No Data | N56: =IF(L56="No Data",0,L56/1000*'T&D'!$J$93/Reference!$C$30/$F$173/Reference!#REF!*Reference!#REF!/Reference!$E$27*1000000*#REF!*(1-#REF!))/Reference!$H$43 -> 0 | O56: ='BD RD Feedstock'!T119 -> No Data | Q56: =IF(O56="No Data",0,O56/1000*'T&D'!$J$93/Reference!$C$30/$F$173/Reference!#REF!*Reference!#REF!/Reference!$E$27*1000000*#REF!*(1-#REF!))/Reference!$H$43 -> 0 | R56: ='BD RD Feedstock'!T146 -> No Data | T56: =IF(R56="No Data",0,R56/1000*'T&D'!$J$93/Reference!$C$30/$F$173/Reference!#REF!*Reference!#REF!/Reference!$E$27*1000000*#REF!*(1-#REF!))/Reference!$H$43 -> 0 | U56: ='BD RD Feedstock'!T173 -> No Data | W56: =IF(U56="No Data",0,U56/1000*'T&D'!$J$93/Reference!$C$30/$F$173/Reference!#REF!*Reference!#REF!/Reference!$E$27*1000000*#REF!*(1-#REF!))/Reference!$H$43 -> 0 | X56: ='BD RD Feedstock'!$T$200 -> No Data | Z56: =IF(X56="No Data",0,X56/1000*'T&D'!$J$93/Reference!$C$30/$F$173/Reference!#REF!*Reference!#REF!/Reference!$E$27*1000000*#REF!*(1-#REF!))/Reference!$H$43 -> 0 | AA56: ='BD RD Feedstock'!$T$200 -> No Data | AC56: =IF(AA56="No Data",0,AA56/1000*'T&D'!$J$93/Reference!$C$30/$F$173/Reference!#REF!*Reference!#REF!/Reference!$E$27*1000000*#REF!*(1-#REF!))/Reference!$H$43 -> 0 | AD56: ='BD RD Feedstock'!$T$200 -> No Data | AF56: =IF(AD56="No Data",0,AD56/1000*'T&D'!$J$93/Reference!$C$30/$F$173/Reference!#REF!*Reference!#REF!/Reference!$E$27*1000000*#REF!*(1-#REF!))/Reference!$H$43 -> 0 | AG56: ='BD RD Feedstock'!$T$200 -> No Data | AI56: =IF(AG56="No Data",0,AG56/1000*'T&D'!$J$93/Reference!$C$30/$F$173/Reference!#REF!*Reference!#REF!/Reference!$E$27*1000000*#REF!*(1-#REF!))/Reference!$H$43 -> 0 | AJ56: ='BD RD Feedstock'!$T$200 -> No Data | AL56: =IF(AJ56="No Data",0,AJ56/1000*'T&D'!$J$93/Reference!$C$30/$F$173/Reference!#REF!*Reference!#REF!/Reference!$E$27*1000000*#REF!*(1-#REF!))/Reference!$H$43 -> 0 | AM56: ='BD RD Feedstock'!$T$200 -> No Data | AO56: =IF(AM56="No Data",0,AM56/1000*'T&D'!$J$93/Reference!$C$30/$F$173/Reference!#REF!*Reference!#REF!/Reference!$E$27*1000000*#REF!*(1-#REF!))/Reference!$H$43 -> 0
D57: Soy Oil transported by Rail, miles | F57: ='BD RD Feedstock'!U38 -> 10000 | H57: =IF(F57="No Data",0,F57/10000*'T&D'!$J$94/Reference!$C$30/$F$173/Reference!#REF!*Reference!#REF!/Reference!$E$27*1000000*#REF!*(1-#REF!))/Reference!$H$43 ->  | I57: ='BD RD Feedstock'!U65 -> 1500 | K57: =IF(I57="No Data",0,I57/10000*'T&D'!$J$94/Reference!$C$30/$F$173/Reference!#REF!*Reference!#REF!/Reference!$E$27*1000000*#REF!*(1-#REF!))/Reference!$H$43 ->  | L57: ='BD RD Feedstock'!U92 -> No Data | N57: =IF(L57="No Data",0,L57/10000*'T&D'!$J$94/Reference!$C$30/$F$173/Reference!#REF!*Reference!#REF!/Reference!$E$27*1000000*#REF!*(1-#REF!))/Reference!$H$43 -> 0 | O57: ='BD RD Feedstock'!U119 -> 700 | Q57: =IF(O57="No Data",0,O57/10000*'T&D'!$J$94/Reference!$C$30/$F$173/Reference!#REF!*Reference!#REF!/Reference!$E$27*1000000*#REF!*(1-#REF!))/Reference!$H$43 ->  | R57: ='BD RD Feedstock'!U146 -> No Data | T57: =IF(R57="No Data",0,R57/10000*'T&D'!$J$94/Reference!$C$30/$F$173/Reference!#REF!*Reference!#REF!/Reference!$E$27*1000000*#REF!*(1-#REF!))/Reference!$H$43 -> 0 | U57: ='BD RD Feedstock'!U173 -> No Data | W57: =IF(U57="No Data",0,U57/10000*'T&D'!$J$94/Reference!$C$30/$F$173/Reference!#REF!*Reference!#REF!/Reference!$E$27*1000000*#REF!*(1-#REF!))/Reference!$H$43 -> 0 | X57: ='BD RD Feedstock'!$U$200 -> No Data | Z57: =IF(X57="No Data",0,X57/10000*'T&D'!$J$94/Reference!$C$30/$F$173/Reference!#REF!*Reference!#REF!/Reference!$E$27*1000000*#REF!*(1-#REF!))/Reference!$H$43 -> 0 | AA57: ='BD RD Feedstock'!$U$200 -> No Data | AC57: =IF(AA57="No Data",0,AA57/10000*'T&D'!$J$94/Reference!$C$30/$F$173/Reference!#REF!*Reference!#REF!/Reference!$E$27*1000000*#REF!*(1-#REF!))/Reference!$H$43 -> 0 | AD57: ='BD RD Feedstock'!$U$200 -> No Data | AF57: =IF(AD57="No Data",0,AD57/10000*'T&D'!$J$94/Reference!$C$30/$F$173/Reference!#REF!*Reference!#REF!/Reference!$E$27*1000000*#REF!*(1-#REF!))/Reference!$H$43 -> 0 | AG57: ='BD RD Feedstock'!$U$200 -> No Data | AI57: =IF(AG57="No Data",0,AG57/10000*'T&D'!$J$94/Reference!$C$30/$F$173/Reference!#REF!*Reference!#REF!/Reference!$E$27*1000000*#REF!*(1-#REF!))/Reference!$H$43 -> 0 | AJ57: ='BD RD Feedstock'!$U$200 -> No Data | AL57: =IF(AJ57="No Data",0,AJ57/10000*'T&D'!$J$94/Reference!$C$30/$F$173/Reference!#REF!*Reference!#REF!/Reference!$E$27*1000000*#REF!*(1-#REF!))/Reference!$H$43 -> 0 | AM57: ='BD RD Feedstock'!$U$200 -> No Data | AO57: =IF(AM57="No Data",0,AM57/10000*'T&D'!$J$94/Reference!$C$30/$F$173/Reference!#REF!*Reference!#REF!/Reference!$E$27*1000000*#REF!*(1-#REF!))/Reference!$H$43 -> 0
D58: Soy Oil transported by Barge, miles | F58: ='BD RD Feedstock'!V38 -> 1000 | H58: =IF(F58="No Data",0,F58/1000*'T&D'!$J$95/Reference!$C$30/$F$173/Reference!#REF!*Reference!#REF!/Reference!$E$27*1000000*#REF!*(1-#REF!))/Reference!$H$43 ->  | I58: ='BD RD Feedstock'!V65 -> 1000 | K58: =IF(I58="No Data",0,I58/1000*'T&D'!$J$95/Reference!$C$30/$F$173/Reference!#REF!*Reference!#REF!/Reference!$E$27*1000000*#REF!*(1-#REF!))/Reference!$H$43 ->  | L58: ='BD RD Feedstock'!V92 -> No Data | N58: =IF(L58="No Data",0,L58/1000*'T&D'!$J$95/Reference!$C$30/$F$173/Reference!#REF!*Reference!#REF!/Reference!$E$27*1000000*#REF!*(1-#REF!))/Reference!$H$43 -> 0 | O58: ='BD RD Feedstock'!V119 -> 4000 | Q58: =IF(O58="No Data",0,O58/1000*'T&D'!$J$95/Reference!$C$30/$F$173/Reference!#REF!*Reference!#REF!/Reference!$E$27*1000000*#REF!*(1-#REF!))/Reference!$H$43 ->  | R58: ='BD RD Feedstock'!V146 -> No Data | T58: =IF(R58="No Data",0,R58/1000*'T&D'!$J$95/Reference!$C$30/$F$173/Reference!#REF!*Reference!#REF!/Reference!$E$27*1000000*#REF!*(1-#REF!))/Reference!$H$43 -> 0 | U58: ='BD RD Feedstock'!V173 -> No Data | W58: =IF(U58="No Data",0,U58/1000*'T&D'!$J$95/Reference!$C$30/$F$173/Reference!#REF!*Reference!#REF!/Reference!$E$27*1000000*#REF!*(1-#REF!))/Reference!$H$43 -> 0 | X58: ='BD RD Feedstock'!$V$200 -> No Data | Z58: =IF(X58="No Data",0,X58/1000*'T&D'!$J$95/Reference!$C$30/$F$173/Reference!#REF!*Reference!#REF!/Reference!$E$27*1000000*#REF!*(1-#REF!))/Reference!$H$43 -> 0 | AA58: ='BD RD Feedstock'!$V$200 -> No Data | AC58: =IF(AA58="No Data",0,AA58/1000*'T&D'!$J$95/Reference!$C$30/$F$173/Reference!#REF!*Reference!#REF!/Reference!$E$27*1000000*#REF!*(1-#REF!))/Reference!$H$43 -> 0 | AD58: ='BD RD Feedstock'!$V$200 -> No Data | AF58: =IF(AD58="No Data",0,AD58/1000*'T&D'!$J$95/Reference!$C$30/$F$173/Reference!#REF!*Reference!#REF!/Reference!$E$27*1000000*#REF!*(1-#REF!))/Reference!$H$43 -> 0 | AG58: ='BD RD Feedstock'!$V$200 -> No Data | AI58: =IF(AG58="No Data",0,AG58/1000*'T&D'!$J$95/Reference!$C$30/$F$173/Reference!#REF!*Reference!#REF!/Reference!$E$27*1000000*#REF!*(1-#REF!))/Reference!$H$43 -> 0 | AJ58: ='BD RD Feedstock'!$V$200 -> No Data | AL58: =IF(AJ58="No Data",0,AJ58/1000*'T&D'!$J$95/Reference!$C$30/$F$173/Reference!#REF!*Reference!#REF!/Reference!$E$27*1000000*#REF!*(1-#REF!))/Reference!$H$43 -> 0 | AM58: ='BD RD Feedstock'!$V$200 -> No Data | AO58: =IF(AM58="No Data",0,AM58/1000*'T&D'!$J$95/Reference!$C$30/$F$173/Reference!#REF!*Reference!#REF!/Reference!$E$27*1000000*#REF!*(1-#REF!))/Reference!$H$43 -> 0
B59: ILUC | H59: 29.1 | K59: =H59 -> 29.1 | N59: =H59 -> 29.1 | Q59: =H59 -> 29.1 | T59: =K59 -> 29.1 | W59: =N59 -> 29.1 | Z59: =Q59 -> 29.1 | AC59: =T59 -> 29.1 | AF59: =W59 -> 29.1 | AI59: =Z59 -> 29.1 | AL59: =AC59 -> 29.1 | AO59: =AF59 -> 29.1
B60: Feedstock Production | F60: =IF('BD RD Feedstock'!C3="Canola Oil","Canola Oil 1","") ->  | G60: =IF(F60="Canola Oil 1",'BD RD Feedstock'!C8,"") ->  | H60: =H61+H62+H63+H64+H74 ->  | I60: =IF('BD RD Feedstock'!D3="Canola Oil","Canola Oil 2","") ->  | J60: =IF(I60="Canola Oil 2",'BD RD Feedstock'!D8,"") ->  | K60: =K61+K62+K63+K64+K74 ->  | L60: =IF('BD RD Feedstock'!E3="Canola Oil","Canola Oil 3","") ->  | M60: =IF(L60="Canola Oil 3",'BD RD Feedstock'!E8,"") ->  | N60: =N61+N62+N63+N64+N74 ->  | O60: =IF('BD RD Feedstock'!F3="Canola Oil","Canola Oil 4","") ->  | P60: =IF(O60="Canola Oil 4",'BD RD Feedstock'!F8,"") ->  | Q60: =Q61+Q62+Q63+Q64+Q74 ->  | R60: =IF('BD RD Feedstock'!G3="Canola Oil","Canola Oil 5","") ->  | S60: =IF(R60="Canola Oil 5",'BD RD Feedstock'!G8,"") ->  | T60: =T61+T62+T63+T64+T74 ->  | U60: =IF('BD RD Feedstock'!H3="Canola Oil","Canola Oil 6","") ->  | V60: =IF(U60="Canola Oil 6",'BD RD Feedstock'!H8,"") ->  | W60: =W61+W62+W63+W64+W74 ->  | X60: =IF('BD RD Feedstock'!I3="Canola Oil","Canola Oil 7","") ->  | Y60: =IF(X60="Canola Oil 7",'BD RD Feedstock'!I8,"") ->  | Z60: =Z61+Z62+Z63+Z64+Z74 ->  | AA60: =IF('BD RD Feedstock'!J3="Canola Oil","Canola Oil 8","") ->  | AB60: =IF(AA60="Canola Oil 8",'BD RD Feedstock'!J8,"") ->  | AC60: =AC61+AC62+AC63+AC64+AC74 ->  | AD60: =IF('BD RD Feedstock'!K3="Canola Oil","Canola Oil 9","") ->  | AE60: =IF(AD60="Canola Oil 9",'BD RD Feedstock'!K8,"") ->  | AF60: =AF61+AF62+AF63+AF64+AF74 ->  | AG60: =IF('BD RD Feedstock'!L3="Canola Oil","Canola Oil 9","") ->  | AH60: =IF(AG60="Canola Oil 9",'BD RD Feedstock'!L8,"") ->  | AI60: =AI61+AI62+AI63+AI64+AI74 ->  | AJ60: =IF('BD RD Feedstock'!M3="Canola Oil","Canola Oil 11","") ->  | AK60: =IF(AJ60="Canola Oil 11",'BD RD Feedstock'!M8,"") ->  | AL60: =AL61+AL62+AL63+AL64+AL74 ->  | AM60: =IF('BD RD Feedstock'!N3="Canola Oil","Canola Oil 12","") ->  | AN60: =IF(AM60="Canola Oil 12",'BD RD Feedstock'!N8,"") ->  | AO60: =AO61+AO62+AO63+AO64+AO74 -> 
B61: Canola Farming and Fertilizers | D61: Oil Yield, lb oil/lb canola | F61: 0.428 | H61: =#REF! ->  | I61: =F61 -> 0.428 | K61: =#REF! ->  | L61: =F61 -> 0.428 | N61: =#REF! ->  | O61: =F61 -> 0.428 | Q61: =#REF! ->  | T61: =#REF! ->  | U61: =F61 -> 0.428 | W61: =#REF! ->  | X61: =F61 -> 0.428 | Z61: =#REF! ->  | AA61: =F61 -> 0.428 | AC61: =#REF! ->  | AD61: =F61 -> 0.428 | AF61: =#REF! ->  | AG61: =F61 -> 0.428 | AI61: =#REF! ->  | AJ61: =F61 -> 0.428 | AL61: =#REF! ->  | AO61: =#REF! -> 
A62: Canola Oil | B62: Canola Transport | D62: Canola transported by Medium Truck, miles | F62: 10 | H62: ='T&D'!$B$58*F62/10 ->  | I62: 10 | K62: ='T&D'!$B$58*I62/10 ->  | L62: 10 | N62: ='T&D'!$B$58*L62/10 ->  | O62: 10 | Q62: ='T&D'!$B$58*O62/10 ->  | R62: 10 | T62: ='T&D'!$B$58*R62/10 ->  | U62: 10 | W62: ='T&D'!$B$58*U62/10 ->  | X62: 10 | Z62: ='T&D'!$B$58*X62/10 ->  | AA62: 10 | AC62: ='T&D'!$B$58*AA62/10 ->  | AD62: 10 | AF62: ='T&D'!$B$58*AD62/10 ->  | AG62: 10 | AI62: ='T&D'!$B$58*AG62/10 ->  | AJ62: 10 | AL62: ='T&D'!$B$58*AJ62/10 ->  | AM62: 10 | AO62: ='T&D'!$B$58*AM62/10 -> 
A63: =IF('BD RD Feedstock'!D3="Others",'BD RD Feedstock'!D5,"") ->  | D63: Canola transported by Heavy Duty Diesel Truck, miles | F63: 50 | H63: ='T&D'!$J$96*F63/50 -> 0 | I63: 50 | K63: ='T&D'!$K$96*I63/50 ->  | L63: 50 | N63: ='T&D'!$L$96*L63/50 -> 0 | O63: 50 | Q63: ='T&D'!$M$96*O63/50 -> 0 | R63: 50 | T63: ='T&D'!$N$96*R63/50 -> 0 | U63: 50 | W63: ='T&D'!$O$96*U63/50 -> 0 | X63: 50 | Z63: ='T&D'!$P$96*X63/50 -> 0 | AA63: 50 | AC63: ='T&D'!$Q$96*AA63/50 -> 0 | AD63: 50 | AF63: ='T&D'!$R$96*AD63/50 -> 0 | AG63: 50 | AI63: ='T&D'!$S$96*AG63/50 -> 0 | AJ63: 50 | AL63: ='T&D'!$T$96*AJ63/50 -> 0 | AM63: 50 | AO63: ='T&D'!$U$96*AM63/50 -> 0
B64: Canola Oil Extraction | D64: Total, Btu/lb oil | F64: 1238 | H64: =IF('BD RD Feedstock'!C6="Use Standard Values",#REF!,SUM(H65:H73)) ->  | K64: =IF('BD RD Feedstock'!D6="Use Standard Values",#REF!,SUM(K65:K73)) -> 0 | N64: =IF('BD RD Feedstock'!E6="Use Standard Values",#REF!,SUM(N65:N73)) -> 0 | Q64: =IF('BD RD Feedstock'!F6="Use Standard Values",#REF!,SUM(Q65:Q73)) -> 0 | T64: =IF('BD RD Feedstock'!E6="Use Standard Values",#REF!,SUM(T65:T73)) -> 0 | W64: =IF('BD RD Feedstock'!F6="Use Standard Values",#REF!,SUM(W65:W73)) -> 0 | Z64: =IF('BD RD Feedstock'!G6="Use Standard Values",#REF!,SUM(Z65:Z73)) -> 0 | AC64: =IF('BD RD Feedstock'!J6="Use Standard Values",#REF!,SUM(AC65:AC73)) -> 0 | AF64: =IF('BD RD Feedstock'!M6="Use Standard Values",#REF!,SUM(AF65:AF73)) -> 0 | AI64: =IF('BD RD Feedstock'!P6="Use Standard Values",#REF!,SUM(AI65:AI73)) -> 0 | AL64: =IF('BD RD Feedstock'!S6="Use Standard Values",#REF!,SUM(AL65:AL73)) -> 0 | AO64: =IF('BD RD Feedstock'!V6="Use Standard Values",#REF!,SUM(AO65:AO73)) -> 0
D65: Residual Oil | F65: =$F$64*G65 -> 0
D66: Diesel | F66: 0
E67: Gasoline | F67: 0
D68: Natural Gas | F68: 1005.256 | G68: 0.812 | H68: =F68*(0*EF!$G16+0*EF!$D16+50%*EF!$B16+50%*EF!$C16+#REF!)/1000000*#REF!*(1-#REF!)*$F$173*$F$61/Reference!#REF!*Reference!#REF!/Reference!$E$27*1000000 -> 
D69: Coal | F69: 0
E70: LPG | F70: 0
D71: N-Hexane | F71: 54.472 | G71: 0.044 | H71: =F71*(Petroleum!$B$21*Petroleum!$H$4+Petroleum!$H$21)/1000000*#REF!*(1-#REF!)*$F$173*$F$61/Reference!#REF!*Reference!#REF!/Reference!$E$27*1000000+F71/Reference!#REF!*Reference!#REF!*Reference!B20*#REF!*(1-#REF!)*$F$173*$F$61/Reference!#REF!*Reference!#REF!/Reference!$E$27*1000000/Reference!$H$43 -> 
D72: Eletricity | F72: 178.272 | G72: 0.144 | H72: =F72*(Electricity!BP$6+Electricity!BP$7)/1000000*#REF!*(1-#REF!)*$F$173*$F$61/Reference!#REF!*Reference!#REF!/Reference!$E$27*1000000 -> 
D73: Renewable NG | F73: 0
B74: Canola Oil Transport | H74: =SUM(H75:H79) ->  | K74: =SUM(K75:K79) ->  | N74: =SUM(N75:N79) -> 0 | Q74: =SUM(Q75:Q79) ->  | T74: =SUM(T75:T79) -> 0 | W74: =SUM(W75:W79) -> 0 | Z74: =SUM(Z75:Z79) -> 0 | AC74: =SUM(AC75:AC79) -> 0 | AF74: =SUM(AF75:AF79) -> 0 | AI74: =SUM(AI75:AI79) -> 0 | AL74: =SUM(AL75:AL79) -> 0 | AO74: =SUM(AO75:AO79) -> 0
D75: Canola Oil transported by Medium Truck, miles | F75: ='BD RD Feedstock'!R38 -> No Data | H75: =IF(F75="No Data",0,F75/10*'T&D'!$C$58*$F$173/'T&D'!$E$45*#REF!*(1-#REF!)) -> 0 | I75: ='BD RD Feedstock'!R65 -> No Data | K75: =IF(I75="No Data",0,I75/10*'T&D'!$C$58*$F$173/'T&D'!$E$45*#REF!*(1-#REF!)) -> 0 | L75: ='BD RD Feedstock'!R92 -> No Data | N75: =IF(L75="No Data",0,L75/10*'T&D'!$C$58*$F$173/'T&D'!$E$45*#REF!*(1-#REF!)) -> 0 | O75: ='BD RD Feedstock'!R119 -> No Data | Q75: =IF(O75="No Data",0,O75/10*'T&D'!$C$58*$F$173/'T&D'!$E$45*#REF!*(1-#REF!)) -> 0 | R75: ='BD RD Feedstock'!R146 -> No Data | T75: =IF(R75="No Data",0,R75/10*'T&D'!$C$58*$F$173/'T&D'!$E$45*#REF!*(1-#REF!)) -> 0 | U75: ='BD RD Feedstock'!R173 -> No Data | W75: =IF(U75="No Data",0,U75/10*'T&D'!$C$58*$F$173/'T&D'!$E$45*#REF!*(1-#REF!)) -> 0 | X75: ='BD RD Feedstock'!$R$200 -> No Data | Z75: =IF(X75="No Data",0,X75/10*'T&D'!$C$58*$F$173/'T&D'!$E$45*#REF!*(1-#REF!)) -> 0 | AA75: ='BD RD Feedstock'!$R$200 -> No Data | AC75: =IF(AA75="No Data",0,AA75/10*'T&D'!$C$58*$F$173/'T&D'!$E$45*#REF!*(1-#REF!)) -> 0 | AD75: ='BD RD Feedstock'!$R$200 -> No Data | AF75: =IF(AD75="No Data",0,AD75/10*'T&D'!$C$58*$F$173/'T&D'!$E$45*#REF!*(1-#REF!)) -> 0 | AG75: ='BD RD Feedstock'!$R$200 -> No Data | AI75: =IF(AG75="No Data",0,AG75/10*'T&D'!$C$58*$F$173/'T&D'!$E$45*#REF!*(1-#REF!)) -> 0 | AJ75: ='BD RD Feedstock'!$R$200 -> No Data | AL75: =IF(AJ75="No Data",0,AJ75/10*'T&D'!$C$58*$F$173/'T&D'!$E$45*#REF!*(1-#REF!)) -> 0 | AM75: ='BD RD Feedstock'!$R$200 -> No Data | AO75: =IF(AM75="No Data",0,AM75/10*'T&D'!$C$58*$F$173/'T&D'!$E$45*#REF!*(1-#REF!)) -> 0
D76: Canola Oil transported by Heavy Duty Diesel Truck, miles | F76: ='BD RD Feedstock'!S38 -> 50 | H76: =IF(F76="No Data",0,F76/50*'T&D'!$J$92/Reference!$C$30/$F$173/Reference!#REF!*Reference!#REF!/Reference!$E$27*1000000*#REF!*(1-#REF!))/Reference!$H$43 ->  | I76: ='BD RD Feedstock'!S65 -> 100 | K76: =IF(I76="No Data",0,I76/50*'T&D'!$J$92/Reference!$C$30/$F$173/Reference!#REF!*Reference!#REF!/Reference!$E$27*1000000*#REF!*(1-#REF!))/Reference!$H$43 ->  | L76: ='BD RD Feedstock'!S92 -> No Data | N76: =IF(L76="No Data",0,L76/50*'T&D'!$J$92/Reference!$C$30/$F$173/Reference!#REF!*Reference!#REF!/Reference!$E$27*1000000*#REF!*(1-#REF!))/Reference!$H$43 -> 0 | O76: ='BD RD Feedstock'!S119 -> 100 | Q76: =IF(O76="No Data",0,O76/50*'T&D'!$J$92/Reference!$C$30/$F$173/Reference!#REF!*Reference!#REF!/Reference!$E$27*1000000*#REF!*(1-#REF!))/Reference!$H$43 ->  | R76: ='BD RD Feedstock'!S146 -> No Data | T76: =IF(R76="No Data",0,R76/50*'T&D'!$J$92/Reference!$C$30/$F$173/Reference!#REF!*Reference!#REF!/Reference!$E$27*1000000*#REF!*(1-#REF!))/Reference!$H$43 -> 0 | U76: ='BD RD Feedstock'!S173 -> No Data | W76: =IF(U76="No Data",0,U76/50*'T&D'!$J$92/Reference!$C$30/$F$173/Reference!#REF!*Reference!#REF!/Reference!$E$27*1000000*#REF!*(1-#REF!))/Reference!$H$43 -> 0 | X76: ='BD RD Feedstock'!$S$200 -> No Data | Z76: =IF(X76="No Data",0,X76/50*'T&D'!$J$92/Reference!$C$30/$F$173/Reference!#REF!*Reference!#REF!/Reference!$E$27*1000000*#REF!*(1-#REF!))/Reference!$H$43 -> 0 | AA76: ='BD RD Feedstock'!$S$200 -> No Data | AC76: =IF(AA76="No Data",0,AA76/50*'T&D'!$J$92/Reference!$C$30/$F$173/Reference!#REF!*Reference!#REF!/Reference!$E$27*1000000*#REF!*(1-#REF!))/Reference!$H$43 -> 0 | AD76: ='BD RD Feedstock'!$S$200 -> No Data | AF76: =IF(AD76="No Data",0,AD76/50*'T&D'!$J$92/Reference!$C$30/$F$173/Reference!#REF!*Reference!#REF!/Reference!$E$27*1000000*#REF!*(1-#REF!))/Reference!$H$43 -> 0 | AG76: ='BD RD Feedstock'!$S$200 -> No Data | AI76: =IF(AG76="No Data",0,AG76/50*'T&D'!$J$92/Reference!$C$30/$F$173/Reference!#REF!*Reference!#REF!/Reference!$E$27*1000000*#REF!*(1-#REF!))/Reference!$H$43 -> 0 | AJ76: ='BD RD Feedstock'!$S$200 -> No Data | AL76: =IF(AJ76="No Data",0,AJ76/50*'T&D'!$J$92/Reference!$C$30/$F$173/Reference!#REF!*Reference!#REF!/Reference!$E$27*1000000*#REF!*(1-#REF!))/Reference!$H$43 -> 0 | AM76: ='BD RD Feedstock'!$S$200 -> No Data | AO76: =IF(AM76="No Data",0,AM76/50*'T&D'!$J$92/Reference!$C$30/$F$173/Reference!#REF!*Reference!#REF!/Reference!$E$27*1000000*#REF!*(1-#REF!))/Reference!$H$43 -> 0
D77: Canola Oil transported by Ocean Tanker, miles | F77: ='BD RD Feedstock'!T38 -> 1000 | H77: =IF(F77="No Data",0,F77/1000*'T&D'!$J$93/Reference!$C$30/$F$173/Reference!#REF!*Reference!#REF!/Reference!$E$27*1000000*#REF!*(1-#REF!))/Reference!$H$43 ->  | I77: ='BD RD Feedstock'!T65 -> No Data | K77: =IF(I77="No Data",0,I77/1000*'T&D'!$J$93/Reference!$C$30/$F$173/Reference!#REF!*Reference!#REF!/Reference!$E$27*1000000*#REF!*(1-#REF!))/Reference!$H$43 -> 0 | L77: ='BD RD Feedstock'!T92 -> No Data | N77: =IF(L77="No Data",0,L77/1000*'T&D'!$J$93/Reference!$C$30/$F$173/Reference!#REF!*Reference!#REF!/Reference!$E$27*1000000*#REF!*(1-#REF!))/Reference!$H$43 -> 0 | O77: ='BD RD Feedstock'!T119 -> No Data | Q77: =IF(O77="No Data",0,O77/1000*'T&D'!$J$93/Reference!$C$30/$F$173/Reference!#REF!*Reference!#REF!/Reference!$E$27*1000000*#REF!*(1-#REF!))/Reference!$H$43 -> 0 | R77: ='BD RD Feedstock'!T146 -> No Data | T77: =IF(R77="No Data",0,R77/1000*'T&D'!$J$93/Reference!$C$30/$F$173/Reference!#REF!*Reference!#REF!/Reference!$E$27*1000000*#REF!*(1-#REF!))/Reference!$H$43 -> 0 | U77: ='BD RD Feedstock'!T173 -> No Data | W77: =IF(U77="No Data",0,U77/1000*'T&D'!$J$93/Reference!$C$30/$F$173/Reference!#REF!*Reference!#REF!/Reference!$E$27*1000000*#REF!*(1-#REF!))/Reference!$H$43 -> 0 | X77: ='BD RD Feedstock'!$T$200 -> No Data | Z77: =IF(X77="No Data",0,X77/1000*'T&D'!$J$93/Reference!$C$30/$F$173/Reference!#REF!*Reference!#REF!/Reference!$E$27*1000000*#REF!*(1-#REF!))/Reference!$H$43 -> 0 | AA77: ='BD RD Feedstock'!$T$200 -> No Data | AC77: =IF(AA77="No Data",0,AA77/1000*'T&D'!$J$93/Reference!$C$30/$F$173/Reference!#REF!*Reference!#REF!/Reference!$E$27*1000000*#REF!*(1-#REF!))/Reference!$H$43 -> 0 | AD77: ='BD RD Feedstock'!$T$200 -> No Data | AF77: =IF(AD77="No Data",0,AD77/1000*'T&D'!$J$93/Reference!$C$30/$F$173/Reference!#REF!*Reference!#REF!/Reference!$E$27*1000000*#REF!*(1-#REF!))/Reference!$H$43 -> 0 | AG77: ='BD RD Feedstock'!$T$200 -> No Data | AI77: =IF(AG77="No Data",0,AG77/1000*'T&D'!$J$93/Reference!$C$30/$F$173/Reference!#REF!*Reference!#REF!/Reference!$E$27*1000000*#REF!*(1-#REF!))/Reference!$H$43 -> 0 | AJ77: ='BD RD Feedstock'!$T$200 -> No Data | AL77: =IF(AJ77="No Data",0,AJ77/1000*'T&D'!$J$93/Reference!$C$30/$F$173/Reference!#REF!*Reference!#REF!/Reference!$E$27*1000000*#REF!*(1-#REF!))/Reference!$H$43 -> 0 | AM77: ='BD RD Feedstock'!$T$200 -> No Data | AO77: =IF(AM77="No Data",0,AM77/1000*'T&D'!$J$93/Reference!$C$30/$F$173/Reference!#REF!*Reference!#REF!/Reference!$E$27*1000000*#REF!*(1-#REF!))/Reference!$H$43 -> 0
D78: Canola Oil transported by Rail, miles | F78: ='BD RD Feedstock'!U38 -> 10000 | H78: =IF(F78="No Data",0,F78/10000*'T&D'!$J$94/Reference!$C$30/$F$173/Reference!#REF!*Reference!#REF!/Reference!$E$27*1000000*#REF!*(1-#REF!))/Reference!$H$43 ->  | I78: ='BD RD Feedstock'!U65 -> 1500 | K78: =IF(I78="No Data",0,I78/10000*'T&D'!$J$94/Reference!$C$30/$F$173/Reference!#REF!*Reference!#REF!/Reference!$E$27*1000000*#REF!*(1-#REF!))/Reference!$H$43 ->  | L78: ='BD RD Feedstock'!U92 -> No Data | N78: =IF(L78="No Data",0,L78/10000*'T&D'!$J$94/Reference!$C$30/$F$173/Reference!#REF!*Reference!#REF!/Reference!$E$27*1000000*#REF!*(1-#REF!))/Reference!$H$43 -> 0 | O78: ='BD RD Feedstock'!U119 -> 700 | Q78: =IF(O78="No Data",0,O78/10000*'T&D'!$J$94/Reference!$C$30/$F$173/Reference!#REF!*Reference!#REF!/Reference!$E$27*1000000*#REF!*(1-#REF!))/Reference!$H$43 ->  | R78: ='BD RD Feedstock'!U146 -> No Data | T78: =IF(R78="No Data",0,R78/10000*'T&D'!$J$94/Reference!$C$30/$F$173/Reference!#REF!*Reference!#REF!/Reference!$E$27*1000000*#REF!*(1-#REF!))/Reference!$H$43 -> 0 | U78: ='BD RD Feedstock'!U173 -> No Data | W78: =IF(U78="No Data",0,U78/10000*'T&D'!$J$94/Reference!$C$30/$F$173/Reference!#REF!*Reference!#REF!/Reference!$E$27*1000000*#REF!*(1-#REF!))/Reference!$H$43 -> 0 | X78: ='BD RD Feedstock'!$U$200 -> No Data | Z78: =IF(X78="No Data",0,X78/10000*'T&D'!$J$94/Reference!$C$30/$F$173/Reference!#REF!*Reference!#REF!/Reference!$E$27*1000000*#REF!*(1-#REF!))/Reference!$H$43 -> 0 | AA78: ='BD RD Feedstock'!$U$200 -> No Data | AC78: =IF(AA78="No Data",0,AA78/10000*'T&D'!$J$94/Reference!$C$30/$F$173/Reference!#REF!*Reference!#REF!/Reference!$E$27*1000000*#REF!*(1-#REF!))/Reference!$H$43 -> 0 | AD78: ='BD RD Feedstock'!$U$200 -> No Data | AF78: =IF(AD78="No Data",0,AD78/10000*'T&D'!$J$94/Reference!$C$30/$F$173/Reference!#REF!*Reference!#REF!/Reference!$E$27*1000000*#REF!*(1-#REF!))/Reference!$H$43 -> 0 | AG78: ='BD RD Feedstock'!$U$200 -> No Data | AI78: =IF(AG78="No Data",0,AG78/10000*'T&D'!$J$94/Reference!$C$30/$F$173/Reference!#REF!*Reference!#REF!/Reference!$E$27*1000000*#REF!*(1-#REF!))/Reference!$H$43 -> 0 | AJ78: ='BD RD Feedstock'!$U$200 -> No Data | AL78: =IF(AJ78="No Data",0,AJ78/10000*'T&D'!$J$94/Reference!$C$30/$F$173/Reference!#REF!*Reference!#REF!/Reference!$E$27*1000000*#REF!*(1-#REF!))/Reference!$H$43 -> 0 | AM78: ='BD RD Feedstock'!$U$200 -> No Data | AO78: =IF(AM78="No Data",0,AM78/10000*'T&D'!$J$94/Reference!$C$30/$F$173/Reference!#REF!*Reference!#REF!/Reference!$E$27*1000000*#REF!*(1-#REF!))/Reference!$H$43 -> 0
D79: Canola Oil transported by Barge, miles | F79: ='BD RD Feedstock'!V38 -> 1000 | H79: =IF(F79="No Data",0,F79/1000*'T&D'!$J$95/Reference!$C$30/$F$173/Reference!#REF!*Reference!#REF!/Reference!$E$27*1000000*#REF!*(1-#REF!))/Reference!$H$43 ->  | I79: ='BD RD Feedstock'!V65 -> 1000 | K79: =IF(I79="No Data",0,I79/1000*'T&D'!$J$95/Reference!$C$30/$F$173/Reference!#REF!*Reference!#REF!/Reference!$E$27*1000000*#REF!*(1-#REF!))/Reference!$H$43 ->  | L79: ='BD RD Feedstock'!V92 -> No Data | N79: =IF(L79="No Data",0,L79/1000*'T&D'!$J$95/Reference!$C$30/$F$173/Reference!#REF!*Reference!#REF!/Reference!$E$27*1000000*#REF!*(1-#REF!))/Reference!$H$43 -> 0 | O79: ='BD RD Feedstock'!V119 -> 4000 | Q79: =IF(O79="No Data",0,O79/1000*'T&D'!$J$95/Reference!$C$30/$F$173/Reference!#REF!*Reference!#REF!/Reference!$E$27*1000000*#REF!*(1-#REF!))/Reference!$H$43 ->  | R79: ='BD RD Feedstock'!V146 -> No Data | T79: =IF(R79="No Data",0,R79/1000*'T&D'!$J$95/Reference!$C$30/$F$173/Reference!#REF!*Reference!#REF!/Reference!$E$27*1000000*#REF!*(1-#REF!))/Reference!$H$43 -> 0 | U79: ='BD RD Feedstock'!V173 -> No Data | W79: =IF(U79="No Data",0,U79/1000*'T&D'!$J$95/Reference!$C$30/$F$173/Reference!#REF!*Reference!#REF!/Reference!$E$27*1000000*#REF!*(1-#REF!))/Reference!$H$43 -> 0 | X79: ='BD RD Feedstock'!$V$200 -> No Data | Z79: =IF(X79="No Data",0,X79/1000*'T&D'!$J$95/Reference!$C$30/$F$173/Reference!#REF!*Reference!#REF!/Reference!$E$27*1000000*#REF!*(1-#REF!))/Reference!$H$43 -> 0 | AA79: ='BD RD Feedstock'!$V$200 -> No Data | AC79: =IF(AA79="No Data",0,AA79/1000*'T&D'!$J$95/Reference!$C$30/$F$173/Reference!#REF!*Reference!#REF!/Reference!$E$27*1000000*#REF!*(1-#REF!))/Reference!$H$43 -> 0 | AD79: ='BD RD Feedstock'!$V$200 -> No Data | AF79: =IF(AD79="No Data",0,AD79/1000*'T&D'!$J$95/Reference!$C$30/$F$173/Reference!#REF!*Reference!#REF!/Reference!$E$27*1000000*#REF!*(1-#REF!))/Reference!$H$43 -> 0 | AG79: ='BD RD Feedstock'!$V$200 -> No Data | AI79: =IF(AG79="No Data",0,AG79/1000*'T&D'!$J$95/Reference!$C$30/$F$173/Reference!#REF!*Reference!#REF!/Reference!$E$27*1000000*#REF!*(1-#REF!))/Reference!$H$43 -> 0 | AJ79: ='BD RD Feedstock'!$V$200 -> No Data | AL79: =IF(AJ79="No Data",0,AJ79/1000*'T&D'!$J$95/Reference!$C$30/$F$173/Reference!#REF!*Reference!#REF!/Reference!$E$27*1000000*#REF!*(1-#REF!))/Reference!$H$43 -> 0 | AM79: ='BD RD Feedstock'!$V$200 -> No Data | AO79: =IF(AM79="No Data",0,AM79/1000*'T&D'!$J$95/Reference!$C$30/$F$173/Reference!#REF!*Reference!#REF!/Reference!$E$27*1000000*#REF!*(1-#REF!))/Reference!$H$43 -> 0
B80: ILUC | H80: =14.5 -> 14.5 | K80: =H80 -> 14.5 | N80: =H80 -> 14.5 | Q80: =H80 -> 14.5 | T80: =H80 -> 14.5 | W80: =H80 -> 14.5 | Z80: =K80 -> 14.5 | AC80: =N80 -> 14.5 | AF80: =Q80 -> 14.5 | AI80: =T80 -> 14.5 | AL80: =W80 -> 14.5 | AO80: =Z80 -> 14.5
B81: Feedstock Production | F81: =IF('BD RD Feedstock'!C3="Corn Oil","Corn Oil 1","") ->  | G81: =IF(F81="Corn Oil 1",'BD RD Feedstock'!C8,"") ->  | H81: =H82+H83+H84+H85+H95 ->  | I81: =IF('BD RD Feedstock'!D3="Corn Oil","Corn Oil 2","") ->  | J81: =IF(I81="Corn Oil 2",'BD RD Feedstock'!D8,"") ->  | K81: =K82+K83+K84+K85+K95 ->  | L81: =IF('BD RD Feedstock'!E3="Corn Oil","Corn Oil 3","") -> Corn Oil 3 | M81: =IF(L81="Corn Oil 3",'BD RD Feedstock'!E8,"") -> None | N81: =N82+N83+N84+N85+N95 ->  | O81: =IF('BD RD Feedstock'!F3="Corn Oil","Corn Oil 4","") ->  | P81: =IF(O81="Corn Oil 4",'BD RD Feedstock'!F8,"") ->  | Q81: =Q82+Q83+Q84+Q85+Q95 ->  | R81: =IF('BD RD Feedstock'!G3="Corn Oil","Corn Oil 5","") ->  | S81: =IF(R81="Corn Oil 5",'BD RD Feedstock'!G8,"") ->  | T81: =T82+T83+T84+T85+T95 ->  | U81: =IF('BD RD Feedstock'!H3="Corn Oil","Corn Oil 6","") ->  | V81: =IF(U81="Corn Oil 6",'BD RD Feedstock'!H8,"") ->  | W81: =W82+W83+W84+W85+W95 ->  | X81: =IF('BD RD Feedstock'!I3="Corn Oil","Corn Oil 7","") ->  | Y81: =IF(X81="Corn Oil 7",'BD RD Feedstock'!I8,"") ->  | Z81: =Z82+Z83+Z84+Z85+Z95 ->  | AA81: =IF('BD RD Feedstock'!J3="Corn Oil","Corn Oil 8","") ->  | AB81: =IF(AA81="Corn Oil 8",'BD RD Feedstock'!J8,"") ->  | AC81: =AC82+AC83+AC84+AC85+AC95 ->  | AD81: =IF('BD RD Feedstock'!K3="Corn Oil","Corn Oil 9","") ->  | AE81: =IF(AD81="Corn Oil 9",'BD RD Feedstock'!K8,"") ->  | AF81: =AF82+AF83+AF84+AF85+AF95 ->  | AG81: =IF('BD RD Feedstock'!L3="Corn Oil","Corn Oil 10","") ->  | AH81: =IF(AG81="Corn Oil 10",'BD RD Feedstock'!L8,"") ->  | AI81: =AI82+AI83+AI84+AI85+AI95 ->  | AJ81: =IF('BD RD Feedstock'!M3="Corn Oil","Corn Oil 11","") ->  | AK81: =IF(AJ81="Corn Oil 11",'BD RD Feedstock'!M8,"") ->  | AL81: =AL82+AL83+AL84+AL85+AL95 ->  | AM81: =IF('BD RD Feedstock'!N3="Corn Oil","Corn Oil 12","") ->  | AN81: =IF(AM81="Corn Oil 12",'BD RD Feedstock'!N8,"") ->  | AO81: =AO82+AO83+AO84+AO85+AO95 -> 
B82: Corn Oil Extraction Yield | D82: Oil Yield, lb oil/lb DGS | F82: =0.02/5.635 -> 0.003549245785
A83: Corn Oil | B83: Corn Oil Transport | D83: Corn Oil transported by Medium Truck, miles | F83: 10 | H83: ='T&D'!$B$58*F83/10 ->  | I83: 10 | K83: ='T&D'!$B$58*I83/10 ->  | L83: 10 | N83: ='T&D'!$B$58*L83/10 ->  | O83: 10 | Q83: ='T&D'!$B$58*O83/10 ->  | R83: 10 | T83: ='T&D'!$B$58*R83/10 ->  | U83: 10 | W83: ='T&D'!$B$58*U83/10 ->  | X83: 10 | Z83: ='T&D'!$B$58*X83/10 ->  | AA83: 10 | AC83: ='T&D'!$B$58*AA83/10 ->  | AD83: 10 | AF83: ='T&D'!$B$58*AD83/10 ->  | AG83: 10 | AI83: ='T&D'!$B$58*AG83/10 ->  | AJ83: 10 | AL83: ='T&D'!$B$58*AJ83/10 ->  | AM83: 10 | AO83: ='T&D'!$B$58*AM83/10 -> 
D84: Corn Oil transported by Heavy Duty Diesel Truck, miles | F84: 50 | H84: ='T&D'!$J$96*F84/50 -> 0 | I84: 50 | K84: ='T&D'!$K$96*I84/50 ->  | L84: 50 | N84: ='T&D'!$L$96*L84/50 -> 0 | O84: 50 | Q84: ='T&D'!$M$96*O84/50 -> 0 | R84: 50 | T84: ='T&D'!$N$96*R84/50 -> 0 | U84: 50 | W84: ='T&D'!$O$96*U84/50 -> 0 | X84: 50 | Z84: ='T&D'!$P$96*X84/50 -> 0 | AA84: 50 | AC84: ='T&D'!$Q$96*AA84/50 -> 0 | AD84: 50 | AF84: ='T&D'!$R$96*AD84/50 -> 0 | AG84: 50 | AI84: ='T&D'!$S$96*AG84/50 -> 0 | AJ84: 50 | AL84: ='T&D'!$T$96*AJ84/50 -> 0 | AM84: 50 | AO84: ='T&D'!$U$96*AM84/50 -> 0
B85: Corn Oil Extraction | D85: Total, Btu/lb oil | F85: 924.29 | H85: =IF('BD RD Feedstock'!C6="Use Standard Values",#REF!,SUM(H86:H94)) ->  | K85: =IF('BD RD Feedstock'!D6="Use Standard Values",#REF!,SUM(K86:K94)) -> 0 | N85: =IF('BD RD Feedstock'!E6="Use Standard Values",#REF!,SUM(N86:N94)) -> 0 | Q85: =IF('BD RD Feedstock'!F6="Use Standard Values",#REF!,SUM(Q86:Q94)) -> 0 | T85: =IF('BD RD Feedstock'!G6="Use Standard Values",#REF!,SUM(T86:T94)) -> 0 | W85: =IF('BD RD Feedstock'!H6="Use Standard Values",#REF!,SUM(W86:W94)) -> 0 | Z85: =IF('BD RD Feedstock'!I6="Use Standard Values",#REF!,SUM(Z86:Z94)) -> 0 | AC85: =IF('BD RD Feedstock'!L6="Use Standard Values",#REF!,SUM(AC86:AC94)) -> 0 | AF85: =IF('BD RD Feedstock'!O6="Use Standard Values",#REF!,SUM(AF86:AF94)) -> 0 | AI85: =IF('BD RD Feedstock'!R6="Use Standard Values",#REF!,SUM(AI86:AI94)) -> 0 | AL85: =IF('BD RD Feedstock'!U6="Use Standard Values",#REF!,SUM(AL86:AL94)) -> 0 | AO85: =IF('BD RD Feedstock'!X6="Use Standard Values",#REF!,SUM(AO86:AO94)) -> 0
D86: Residual Oil
D87: Diesel
E88: Gasoline
D89: Natural Gas | F89: 767.25 | G89: =F89/F85 -> 0.8300966147 | H89: =F89*(0*EF!$G16+0*EF!$D16+50%*EF!$B16+50%*EF!$C16+#REF!)/Reference!#REF!*#REF!*(1-#REF!) -> 
D90: Coal | H90: =F90*(100%*EF!$AC6+Coal!$AH$5)/1000000*#REF!*(1-#REF!) -> 
E91: LPG
D92: N-Hexane
D93: Eletricity | F93: 157.03 | G93: =F93/F85 -> 0.1698925662 | H93: =F93*(Electricity!BP$6+Electricity!BP$7)/Reference!#REF!*#REF!*(1-#REF!) -> 
D94: Renewable NG
B95: Corn Oil Transport | H95: =SUM(H96:H100) ->  | K95: =SUM(K96:K100) ->  | N95: =SUM(N96:N100) -> 0 | Q95: =SUM(Q96:Q100) ->  | T95: =SUM(T96:T100) -> 0 | W95: =SUM(W96:W100) -> 0 | Z95: =SUM(Z96:Z100) -> 0 | AC95: =SUM(AC96:AC100) -> 0 | AF95: =SUM(AF96:AF100) -> 0 | AI95: =SUM(AI96:AI100) -> 0 | AL95: =SUM(AL96:AL100) -> 0 | AO95: =SUM(AO96:AO100) -> 0
D96: Corn Oil transported by Medium Truck, miles | F96: ='BD RD Feedstock'!R38 -> No Data | H96: =IF(F96="No Data",0,F96/10*'T&D'!$C$58/Reference!$C$30/$F$173/Reference!#REF!*Reference!#REF!/Reference!$E$27*1000000*#REF!*(1-#REF!))/Reference!$H$43 -> 0 | I96: ='BD RD Feedstock'!R65 -> No Data | K96: =IF(I96="No Data",0,I96/10*'T&D'!$C$58*$F$173/'T&D'!$E$45*#REF!*(1-#REF!)) -> 0 | L96: ='BD RD Feedstock'!R92 -> No Data | N96: =IF(L96="No Data",0,L96/10*'T&D'!$C$58*$F$173/'T&D'!$E$45*#REF!*(1-#REF!)) -> 0 | O96: ='BD RD Feedstock'!R119 -> No Data | Q96: =IF(O96="No Data",0,O96/10*'T&D'!$C$58*$F$173/'T&D'!$E$45*#REF!*(1-#REF!)) -> 0 | R96: ='BD RD Feedstock'!R146 -> No Data | T96: =IF(R96="No Data",0,R96/10*'T&D'!$C$58*$F$173/'T&D'!$E$45*#REF!*(1-#REF!)) -> 0 | U96: ='BD RD Feedstock'!R173 -> No Data | W96: =IF(U96="No Data",0,U96/10*'T&D'!$C$58*$F$173/'T&D'!$E$45*#REF!*(1-#REF!)) -> 0 | X96: ='BD RD Feedstock'!$R$200 -> No Data | Z96: =IF(X96="No Data",0,X96/10*'T&D'!$C$58*$F$173/'T&D'!$E$45*#REF!*(1-#REF!)) -> 0 | AA96: ='BD RD Feedstock'!$R$200 -> No Data | AC96: =IF(AA96="No Data",0,AA96/10*'T&D'!$C$58*$F$173/'T&D'!$E$45*#REF!*(1-#REF!)) -> 0 | AD96: ='BD RD Feedstock'!$R$200 -> No Data | AF96: =IF(AD96="No Data",0,AD96/10*'T&D'!$C$58*$F$173/'T&D'!$E$45*#REF!*(1-#REF!)) -> 0 | AG96: ='BD RD Feedstock'!$R$200 -> No Data | AI96: =IF(AG96="No Data",0,AG96/10*'T&D'!$C$58*$F$173/'T&D'!$E$45*#REF!*(1-#REF!)) -> 0 | AJ96: ='BD RD Feedstock'!$R$200 -> No Data | AL96: =IF(AJ96="No Data",0,AJ96/10*'T&D'!$C$58*$F$173/'T&D'!$E$45*#REF!*(1-#REF!)) -> 0 | AM96: ='BD RD Feedstock'!$R$200 -> No Data | AO96: =IF(AM96="No Data",0,AM96/10*'T&D'!$C$58*$F$173/'T&D'!$E$45*#REF!*(1-#REF!)) -> 0
D97: Corn Oil transported by Heavy Duty Diesel Truck, miles | F97: ='BD RD Feedstock'!S38 -> 50 | H97: =IF(F97="No Data",0,F97/50*'T&D'!$J$92/Reference!$C$30/$F$173/Reference!#REF!*Reference!#REF!/Reference!$E$27*1000000*#REF!*(1-#REF!))/Reference!$H$43 ->  | I97: ='BD RD Feedstock'!S65 -> 100 | K97: =IF(I97="No Data",0,I97/50*'T&D'!$J$92/Reference!$C$30/$F$173/Reference!#REF!*Reference!#REF!/Reference!$E$27*1000000*#REF!*(1-#REF!))/Reference!$H$43 ->  | L97: ='BD RD Feedstock'!S92 -> No Data | N97: =IF(L97="No Data",0,L97/50*'T&D'!$J$92/Reference!$C$30/$F$173/Reference!#REF!*Reference!#REF!/Reference!$E$27*1000000*#REF!*(1-#REF!))/Reference!$H$43 -> 0 | O97: ='BD RD Feedstock'!S119 -> 100 | Q97: =IF(O97="No Data",0,O97/50*'T&D'!$J$92/Reference!$C$30/$F$173/Reference!#REF!*Reference!#REF!/Reference!$E$27*1000000*#REF!*(1-#REF!))/Reference!$H$43 ->  | R97: ='BD RD Feedstock'!S146 -> No Data | T97: =IF(R97="No Data",0,R97/50*'T&D'!$J$92/Reference!$C$30/$F$173/Reference!#REF!*Reference!#REF!/Reference!$E$27*1000000*#REF!*(1-#REF!))/Reference!$H$43 -> 0 | U97: ='BD RD Feedstock'!S173 -> No Data | W97: =IF(U97="No Data",0,U97/50*'T&D'!$J$92/Reference!$C$30/$F$173/Reference!#REF!*Reference!#REF!/Reference!$E$27*1000000*#REF!*(1-#REF!))/Reference!$H$43 -> 0 | X97: ='BD RD Feedstock'!$S$200 -> No Data | Z97: =IF(X97="No Data",0,X97/50*'T&D'!$J$92/Reference!$C$30/$F$173/Reference!#REF!*Reference!#REF!/Reference!$E$27*1000000*#REF!*(1-#REF!))/Reference!$H$43 -> 0 | AA97: ='BD RD Feedstock'!$S$200 -> No Data | AC97: =IF(AA97="No Data",0,AA97/50*'T&D'!$J$92/Reference!$C$30/$F$173/Reference!#REF!*Reference!#REF!/Reference!$E$27*1000000*#REF!*(1-#REF!))/Reference!$H$43 -> 0 | AD97: ='BD RD Feedstock'!$S$200 -> No Data | AF97: =IF(AD97="No Data",0,AD97/50*'T&D'!$J$92/Reference!$C$30/$F$173/Reference!#REF!*Reference!#REF!/Reference!$E$27*1000000*#REF!*(1-#REF!))/Reference!$H$43 -> 0 | AG97: ='BD RD Feedstock'!$S$200 -> No Data | AI97: =IF(AG97="No Data",0,AG97/50*'T&D'!$J$92/Reference!$C$30/$F$173/Reference!#REF!*Reference!#REF!/Reference!$E$27*1000000*#REF!*(1-#REF!))/Reference!$H$43 -> 0 | AJ97: ='BD RD Feedstock'!$S$200 -> No Data | AL97: =IF(AJ97="No Data",0,AJ97/50*'T&D'!$J$92/Reference!$C$30/$F$173/Reference!#REF!*Reference!#REF!/Reference!$E$27*1000000*#REF!*(1-#REF!))/Reference!$H$43 -> 0 | AM97: ='BD RD Feedstock'!$S$200 -> No Data | AO97: =IF(AM97="No Data",0,AM97/50*'T&D'!$J$92/Reference!$C$30/$F$173/Reference!#REF!*Reference!#REF!/Reference!$E$27*1000000*#REF!*(1-#REF!))/Reference!$H$43 -> 0
D98: Corn Oil transported by Ocean Tanker, miles | F98: ='BD RD Feedstock'!T38 -> 1000 | H98: =IF(F98="No Data",0,F98/1000*'T&D'!$J$93/Reference!$C$30/$F$173/Reference!#REF!*Reference!#REF!/Reference!$E$27*1000000*#REF!*(1-#REF!))/Reference!$H$43 ->  | I98: ='BD RD Feedstock'!T65 -> No Data | K98: =IF(I98="No Data",0,I98/1000*'T&D'!$J$93/Reference!$C$30/$F$173/Reference!#REF!*Reference!#REF!/Reference!$E$27*1000000*#REF!*(1-#REF!))/Reference!$H$43 -> 0 | L98: ='BD RD Feedstock'!T92 -> No Data | N98: =IF(L98="No Data",0,L98/1000*'T&D'!$J$93/Reference!$C$30/$F$173/Reference!#REF!*Reference!#REF!/Reference!$E$27*1000000*#REF!*(1-#REF!))/Reference!$H$43 -> 0 | O98: ='BD RD Feedstock'!T119 -> No Data | Q98: =IF(O98="No Data",0,O98/1000*'T&D'!$J$93/Reference!$C$30/$F$173/Reference!#REF!*Reference!#REF!/Reference!$E$27*1000000*#REF!*(1-#REF!))/Reference!$H$43 -> 0 | R98: ='BD RD Feedstock'!T146 -> No Data | T98: =IF(R98="No Data",0,R98/1000*'T&D'!$J$93/Reference!$C$30/$F$173/Reference!#REF!*Reference!#REF!/Reference!$E$27*1000000*#REF!*(1-#REF!))/Reference!$H$43 -> 0 | U98: ='BD RD Feedstock'!T173 -> No Data | W98: =IF(U98="No Data",0,U98/1000*'T&D'!$J$93/Reference!$C$30/$F$173/Reference!#REF!*Reference!#REF!/Reference!$E$27*1000000*#REF!*(1-#REF!))/Reference!$H$43 -> 0 | X98: ='BD RD Feedstock'!$T$200 -> No Data | Z98: =IF(X98="No Data",0,X98/1000*'T&D'!$J$93/Reference!$C$30/$F$173/Reference!#REF!*Reference!#REF!/Reference!$E$27*1000000*#REF!*(1-#REF!))/Reference!$H$43 -> 0 | AA98: ='BD RD Feedstock'!$T$200 -> No Data | AC98: =IF(AA98="No Data",0,AA98/1000*'T&D'!$J$93/Reference!$C$30/$F$173/Reference!#REF!*Reference!#REF!/Reference!$E$27*1000000*#REF!*(1-#REF!))/Reference!$H$43 -> 0 | AD98: ='BD RD Feedstock'!$T$200 -> No Data | AF98: =IF(AD98="No Data",0,AD98/1000*'T&D'!$J$93/Reference!$C$30/$F$173/Reference!#REF!*Reference!#REF!/Reference!$E$27*1000000*#REF!*(1-#REF!))/Reference!$H$43 -> 0 | AG98: ='BD RD Feedstock'!$T$200 -> No Data | AI98: =IF(AG98="No Data",0,AG98/1000*'T&D'!$J$93/Reference!$C$30/$F$173/Reference!#REF!*Reference!#REF!/Reference!$E$27*1000000*#REF!*(1-#REF!))/Reference!$H$43 -> 0 | AJ98: ='BD RD Feedstock'!$T$200 -> No Data | AL98: =IF(AJ98="No Data",0,AJ98/1000*'T&D'!$J$93/Reference!$C$30/$F$173/Reference!#REF!*Reference!#REF!/Reference!$E$27*1000000*#REF!*(1-#REF!))/Reference!$H$43 -> 0 | AM98: ='BD RD Feedstock'!$T$200 -> No Data | AO98: =IF(AM98="No Data",0,AM98/1000*'T&D'!$J$93/Reference!$C$30/$F$173/Reference!#REF!*Reference!#REF!/Reference!$E$27*1000000*#REF!*(1-#REF!))/Reference!$H$43 -> 0
D99: Corn Oil transported by Rail, miles | F99: ='BD RD Feedstock'!U38 -> 10000 | H99: =IF(F99="No Data",0,F99/10000*'T&D'!$J$94/Reference!$C$30/$F$173/Reference!#REF!*Reference!#REF!/Reference!$E$27*1000000*#REF!*(1-#REF!))/Reference!$H$43 ->  | I99: ='BD RD Feedstock'!U65 -> 1500 | K99: =IF(I99="No Data",0,I99/10000*'T&D'!$J$94/Reference!$C$30/$F$173/Reference!#REF!*Reference!#REF!/Reference!$E$27*1000000*#REF!*(1-#REF!))/Reference!$H$43 ->  | L99: ='BD RD Feedstock'!U92 -> No Data | N99: =IF(L99="No Data",0,L99/10000*'T&D'!$J$94/Reference!$C$30/$F$173/Reference!#REF!*Reference!#REF!/Reference!$E$27*1000000*#REF!*(1-#REF!))/Reference!$H$43 -> 0 | O99: ='BD RD Feedstock'!U119 -> 700 | Q99: =IF(O99="No Data",0,O99/10000*'T&D'!$J$94/Reference!$C$30/$F$173/Reference!#REF!*Reference!#REF!/Reference!$E$27*1000000*#REF!*(1-#REF!))/Reference!$H$43 ->  | R99: ='BD RD Feedstock'!U146 -> No Data | T99: =IF(R99="No Data",0,R99/10000*'T&D'!$J$94/Reference!$C$30/$F$173/Reference!#REF!*Reference!#REF!/Reference!$E$27*1000000*#REF!*(1-#REF!))/Reference!$H$43 -> 0 | U99: ='BD RD Feedstock'!U173 -> No Data | W99: =IF(U99="No Data",0,U99/10000*'T&D'!$J$94/Reference!$C$30/$F$173/Reference!#REF!*Reference!#REF!/Reference!$E$27*1000000*#REF!*(1-#REF!))/Reference!$H$43 -> 0 | X99: ='BD RD Feedstock'!$U$200 -> No Data | Z99: =IF(X99="No Data",0,X99/10000*'T&D'!$J$94/Reference!$C$30/$F$173/Reference!#REF!*Reference!#REF!/Reference!$E$27*1000000*#REF!*(1-#REF!))/Reference!$H$43 -> 0 | AA99: ='BD RD Feedstock'!$U$200 -> No Data | AC99: =IF(AA99="No Data",0,AA99/10000*'T&D'!$J$94/Reference!$C$30/$F$173/Reference!#REF!*Reference!#REF!/Reference!$E$27*1000000*#REF!*(1-#REF!))/Reference!$H$43 -> 0 | AD99: ='BD RD Feedstock'!$U$200 -> No Data | AF99: =IF(AD99="No Data",0,AD99/10000*'T&D'!$J$94/Reference!$C$30/$F$173/Reference!#REF!*Reference!#REF!/Reference!$E$27*1000000*#REF!*(1-#REF!))/Reference!$H$43 -> 0 | AG99: ='BD RD Feedstock'!$U$200 -> No Data | AI99: =IF(AG99="No Data",0,AG99/10000*'T&D'!$J$94/Reference!$C$30/$F$173/Reference!#REF!*Reference!#REF!/Reference!$E$27*1000000*#REF!*(1-#REF!))/Reference!$H$43 -> 0 | AJ99: ='BD RD Feedstock'!$U$200 -> No Data | AL99: =IF(AJ99="No Data",0,AJ99/10000*'T&D'!$J$94/Reference!$C$30/$F$173/Reference!#REF!*Reference!#REF!/Reference!$E$27*1000000*#REF!*(1-#REF!))/Reference!$H$43 -> 0 | AM99: ='BD RD Feedstock'!$U$200 -> No Data | AO99: =IF(AM99="No Data",0,AM99/10000*'T&D'!$J$94/Reference!$C$30/$F$173/Reference!#REF!*Reference!#REF!/Reference!$E$27*1000000*#REF!*(1-#REF!))/Reference!$H$43 -> 0
D100: Corn Oil transported by Barge, miles | F100: ='BD RD Feedstock'!V38 -> 1000 | H100: =IF(F100="No Data",0,F100/1000*'T&D'!$J$95/Reference!$C$30/$F$173/Reference!#REF!*Reference!#REF!/Reference!$E$27*1000000*#REF!*(1-#REF!))/Reference!$H$43 ->  | I100: ='BD RD Feedstock'!V65 -> 1000 | K100: =IF(I100="No Data",0,I100/1000*'T&D'!$J$95/Reference!$C$30/$F$173/Reference!#REF!*Reference!#REF!/Reference!$E$27*1000000*#REF!*(1-#REF!))/Reference!$H$43 ->  | L100: ='BD RD Feedstock'!V92 -> No Data | N100: =IF(L100="No Data",0,L100/1000*'T&D'!$J$95/Reference!$C$30/$F$173/Reference!#REF!*Reference!#REF!/Reference!$E$27*1000000*#REF!*(1-#REF!))/Reference!$H$43 -> 0 | O100: ='BD RD Feedstock'!V119 -> 4000 | Q100: =IF(O100="No Data",0,O100/1000*'T&D'!$J$95/Reference!$C$30/$F$173/Reference!#REF!*Reference!#REF!/Reference!$E$27*1000000*#REF!*(1-#REF!))/Reference!$H$43 ->  | R100: ='BD RD Feedstock'!V146 -> No Data | T100: =IF(R100="No Data",0,R100/1000*'T&D'!$J$95/Reference!$C$30/$F$173/Reference!#REF!*Reference!#REF!/Reference!$E$27*1000000*#REF!*(1-#REF!))/Reference!$H$43 -> 0 | U100: ='BD RD Feedstock'!V173 -> No Data | W100: =IF(U100="No Data",0,U100/1000*'T&D'!$J$95/Reference!$C$30/$F$173/Reference!#REF!*Reference!#REF!/Reference!$E$27*1000000*#REF!*(1-#REF!))/Reference!$H$43 -> 0 | X100: ='BD RD Feedstock'!$V$200 -> No Data | Z100: =IF(X100="No Data",0,X100/1000*'T&D'!$J$95/Reference!$C$30/$F$173/Reference!#REF!*Reference!#REF!/Reference!$E$27*1000000*#REF!*(1-#REF!))/Reference!$H$43 -> 0 | AA100: ='BD RD Feedstock'!$V$200 -> No Data | AC100: =IF(AA100="No Data",0,AA100/1000*'T&D'!$J$95/Reference!$C$30/$F$173/Reference!#REF!*Reference!#REF!/Reference!$E$27*1000000*#REF!*(1-#REF!))/Reference!$H$43 -> 0 | AD100: ='BD RD Feedstock'!$V$200 -> No Data | AF100: =IF(AD100="No Data",0,AD100/1000*'T&D'!$J$95/Reference!$C$30/$F$173/Reference!#REF!*Reference!#REF!/Reference!$E$27*1000000*#REF!*(1-#REF!))/Reference!$H$43 -> 0 | AG100: ='BD RD Feedstock'!$V$200 -> No Data | AI100: =IF(AG100="No Data",0,AG100/1000*'T&D'!$J$95/Reference!$C$30/$F$173/Reference!#REF!*Reference!#REF!/Reference!$E$27*1000000*#REF!*(1-#REF!))/Reference!$H$43 -> 0 | AJ100: ='BD RD Feedstock'!$V$200 -> No Data | AL100: =IF(AJ100="No Data",0,AJ100/1000*'T&D'!$J$95/Reference!$C$30/$F$173/Reference!#REF!*Reference!#REF!/Reference!$E$27*1000000*#REF!*(1-#REF!))/Reference!$H$43 -> 0 | AM100: ='BD RD Feedstock'!$V$200 -> No Data | AO100: =IF(AM100="No Data",0,AM100/1000*'T&D'!$J$95/Reference!$C$30/$F$173/Reference!#REF!*Reference!#REF!/Reference!$E$27*1000000*#REF!*(1-#REF!))/Reference!$H$43 -> 0
B101: ILUC | H101: 0 | K101: =H101 -> 0 | N101: =K101 -> 0
B102: Feedstock Production | F102: =IF('BD RD Feedstock'!C3="Used Cooking Oil","UCO 1","") ->  | G102: =IF(F81="UCO 1",'BD RD Feedstock'!C8,"") ->  | H102: =H103+H104+H105+H106+H115 ->  | I102: =IF('BD RD Feedstock'!D3="Used Cooking Oil","UCO 2","") ->  | J102: =IF(I102="UCO 2",'BD RD Feedstock'!D8,"") ->  | K102: =K103+K104+K105+K106+K115 ->  | L102: =IF('BD RD Feedstock'!E3="Used Cooking Oil","UCO 3","") ->  | M102: =IF(L102="UCO 3",'BD RD Feedstock'!E8,"") ->  | N102: =N103+N104+N105+N106+N115 -> 0 | O102: =IF('BD RD Feedstock'!F3="Used Cooking Oil","UCO 4","") ->  | P102: =IF(O102="UCO 4",'BD RD Feedstock'!F8,"") ->  | Q102: =Q103+Q104+Q105+Q106+Q115 ->  | R102: =IF('BD RD Feedstock'!G3="Used Cooking Oil","UCO 5","") ->  | S102: =IF(R102="UCO 5",'BD RD Feedstock'!G8,"") ->  | T102: =T103+T104+T105+T106+T115 -> 0 | U102: =IF('BD RD Feedstock'!H3="Used Cooking Oil","UCO 6","") ->  | V102: =IF(U102="UCO 6",'BD RD Feedstock'!H8,"") ->  | W102: =W103+W104+W105+W106+W115 -> 0 | X102: =IF('BD RD Feedstock'!I3="Used Cooking Oil","UCO 7","") ->  | Y102: =IF(X102="UCO 7",'BD RD Feedstock'!I8,"") ->  | Z102: =Z103+Z104+Z105+Z106+Z115 -> 0 | AA102: =IF('BD RD Feedstock'!J3="Used Cooking Oil","UCO 8","") ->  | AB102: =IF(AA102="UCO8",'BD RD Feedstock'!J8,"") ->  | AC102: =AC103+AC104+AC105+AC106+AC115 -> 0 | AD102: =IF('BD RD Feedstock'!K3="Used Cooking Oil","UCO 9","") ->  | AE102: =IF(AD102="UCO 9",'BD RD Feedstock'!K8,"") ->  | AF102: =AF103+AF104+AF105+AF106+AF115 -> 0 | AG102: =IF('BD RD Feedstock'!L3="Used Cooking Oil","UCO 10","") ->  | AH102: =IF(AG102="UCO 10",'BD RD Feedstock'!L8,"") ->  | AI102: =AI103+AI104+AI105+AI106+AI115 -> 0 | AJ102: =IF('BD RD Feedstock'!M3="Used Cooking Oil","UCO 11","") ->  | AK102: =IF(AJ102="UCO 11",'BD RD Feedstock'!M8,"") ->  | AL102: =AL103+AL104+AL105+AL106+AL115 -> 0 | AM102: =IF('BD RD Feedstock'!N3="Used Cooking Oil","UCO 12","") ->  | AN102: =IF(AM102="UCO 12",'BD RD Feedstock'!N8,"") ->  | AO102: =AO103+AO104+AO105+AO106+AO115 -> 0
B103: Raw UCO Collection | D103: Oil Yield, lb oil/lb raw UCO | F103: 1.25 | I103: =F103 -> 1.25 | L103: =F103 -> 1.25 | O103: =F103 -> 1.25 | R103: =L103 -> 1.25 | U103: =R103 -> 1.25 | X103: =U103 -> 1.25 | AA103: =X103 -> 1.25 | AD103: =AA103 -> 1.25 | AG103: =AD103 -> 1.25 | AJ103: =AG103 -> 1.25 | AM103: =AJ103 -> 1.25
A104: Used Cooking Oil | B104: Raw UCO Transport | D104: Raw UCO transported by Heavy Truck, miles | F104: 50 | H104: ='T&D'!$J$96*F104/50 -> 0 | I104: 50 | K104: ='T&D'!$K$96*I104/50 ->  | L104: 50 | N104: ='T&D'!$L$96*L104/50 -> 0 | O104: 50 | Q104: ='T&D'!$M$96*O104/50 -> 0 | R104: 50 | T104: ='T&D'!$N$96*R104/50 -> 0 | U104: 50 | W104: ='T&D'!$O$96*U104/50 -> 0 | X104: 50 | Z104: ='T&D'!$P$96*X104/50 -> 0 | AA104: 50 | AC104: ='T&D'!$Q$96*AA104/50 -> 0 | AD104: 50 | AF104: ='T&D'!$R$96*AD104/50 -> 0 | AG104: 50 | AI104: ='T&D'!$S$96*AG104/50 -> 0 | AJ104: 50 | AL104: ='T&D'!$T$96*AJ104/50 -> 0 | AM104: 50 | AO104: ='T&D'!$U$96*AM104/50 -> 0
B105: UCO Treatment | D105: Total, Btu/lb oil | F105: 1073 | H105: =IF('BD RD Feedstock'!C6="Use Standard Values",4.15,SUM(H106:H114)) ->  | K105: =IF('BD RD Feedstock'!D6="Use Standard Values",4.15,SUM(K106:K114)) -> 0 | N105: =IF('BD RD Feedstock'!E6="Use Standard Values",4.15,SUM(N106:N114)) -> 0 | Q105: =IF('BD RD Feedstock'!F6="Use Standard Values",4.15,SUM(Q106:Q114)) -> 0 | T105: =IF('BD RD Feedstock'!G6="Use Standard Values",4.15,SUM(T106:T114)) -> 0 | W105: =IF('BD RD Feedstock'!H6="Use Standard Values",4.15,SUM(W106:W114)) -> 0 | Z105: =IF('BD RD Feedstock'!I6="Use Standard Values",4.15,SUM(Z106:Z114)) -> 0 | AC105: =IF('BD RD Feedstock'!L6="Use Standard Values",4.15,SUM(AC106:AC114)) -> 0 | AF105: =IF('BD RD Feedstock'!O6="Use Standard Values",4.15,SUM(AF106:AF114)) -> 0 | AI105: =IF('BD RD Feedstock'!R6="Use Standard Values",4.15,SUM(AI106:AI114)) -> 0 | AL105: =IF('BD RD Feedstock'!U6="Use Standard Values",4.15,SUM(AL106:AL114)) -> 0 | AO105: =IF('BD RD Feedstock'!X6="Use Standard Values",4.15,SUM(AO106:AO114)) -> 0
D106: Residual Oil
D107: Diesel
E108: Gasoline
D109: Natural Gas | F109: 963 | G109: =F109/F105 -> 0.8974836906 | H109: =F109*(0*EF!$G35+0*EF!$D35+50%*EF!$B35+50%*EF!$C35+#REF!)/1000000*#REF!*(1-#REF!)*$F$173*$F$61/Reference!#REF!*Reference!#REF!/Reference!$E$27*1000000 -> 
D110: Coal
E111: LPG
D112: N-Hexane
D113: Eletricity | F113: 110 | G113: =F113/F105 -> 0.1025163094 | H113: =F113*(Electricity!BP$6+Electricity!BP$7)/1000000*#REF!*(1-#REF!)*$F$173*1/Reference!#REF!*Reference!#REF!/Reference!$E$27*1000000 -> 
D114: Renewable NG
B115: Rendered Oill Transport | H115: =SUM(H116:H120) ->  | K115: =SUM(K116:K120) ->  | N115: =SUM(N116:N120) -> 0 | Q115: =SUM(Q116:Q120) ->  | T115: =SUM(T116:T120) -> 0 | W115: =SUM(W116:W120) -> 0 | Z115: =SUM(Z116:Z120) -> 0 | AC115: =SUM(AC116:AC120) -> 0 | AF115: =SUM(AF116:AF120) -> 0 | AI115: =SUM(AI116:AI120) -> 0 | AL115: =SUM(AL116:AL120) -> 0 | AO115: =SUM(AO116:AO120) -> 0
D116: Rendered Oil transported by Medium Truck, miles | F116: ='BD RD Feedstock'!R38 -> No Data | H116: =IF(F116="No Data",0,F116/10*'T&D'!$C$58/Reference!$C$30/$F$173/Reference!#REF!*Reference!#REF!/Reference!$E$27*1000000*#REF!*(1-#REF!))/Reference!$H$43 -> 0 | I116: ='BD RD Feedstock'!R65 -> No Data | K116: =IF(I116="No Data",0,I116/10*'T&D'!$C$58/Reference!$C$30/$F$173/Reference!#REF!*Reference!#REF!/Reference!$E$27*1000000*#REF!*(1-#REF!))/Reference!$H$43 -> 0 | L116: ='BD RD Feedstock'!R92 -> No Data | N116: =IF(L116="No Data",0,L116/10*'T&D'!$C$58/Reference!$C$30/$F$173/Reference!#REF!*Reference!#REF!/Reference!$E$27*1000000*#REF!*(1-#REF!))/Reference!$H$43 -> 0 | O116: ='BD RD Feedstock'!R119 -> No Data | Q116: =IF(O116="No Data",0,O116/10*'T&D'!$C$58/Reference!$C$30/$F$173/Reference!#REF!*Reference!#REF!/Reference!$E$27*1000000*#REF!*(1-#REF!))/Reference!$H$43 -> 0 | R116: ='BD RD Feedstock'!R146 -> No Data | T116: =IF(R116="No Data",0,R116/10*'T&D'!$C$58/Reference!$C$30/$F$173/Reference!#REF!*Reference!#REF!/Reference!$E$27*1000000*#REF!*(1-#REF!))/Reference!$H$43 -> 0 | U116: ='BD RD Feedstock'!R173 -> No Data | W116: =IF(U116="No Data",0,U116/10*'T&D'!$C$58/Reference!$C$30/$F$173/Reference!#REF!*Reference!#REF!/Reference!$E$27*1000000*#REF!*(1-#REF!))/Reference!$H$43 -> 0 | X116: ='BD RD Feedstock'!$R$200 -> No Data | Z116: =IF(X116="No Data",0,X116/10*'T&D'!$C$58/Reference!$C$30/$F$173/Reference!#REF!*Reference!#REF!/Reference!$E$27*1000000*#REF!*(1-#REF!))/Reference!$H$43 -> 0 | AA116: ='BD RD Feedstock'!$R$200 -> No Data | AC116: =IF(AA116="No Data",0,AA116/10*'T&D'!$C$58/Reference!$C$30/$F$173/Reference!#REF!*Reference!#REF!/Reference!$E$27*1000000*#REF!*(1-#REF!))/Reference!$H$43 -> 0 | AD116: ='BD RD Feedstock'!$R$200 -> No Data | AF116: =IF(AD116="No Data",0,AD116/10*'T&D'!$C$58/Reference!$C$30/$F$173/Reference!#REF!*Reference!#REF!/Reference!$E$27*1000000*#REF!*(1-#REF!))/Reference!$H$43 -> 0 | AG116: ='BD RD Feedstock'!$R$200 -> No Data | AI116: =IF(AG116="No Data",0,AG116/10*'T&D'!$C$58/Reference!$C$30/$F$173/Reference!#REF!*Reference!#REF!/Reference!$E$27*1000000*#REF!*(1-#REF!))/Reference!$H$43 -> 0 | AJ116: ='BD RD Feedstock'!$R$200 -> No Data | AL116: =IF(AJ116="No Data",0,AJ116/10*'T&D'!$C$58/Reference!$C$30/$F$173/Reference!#REF!*Reference!#REF!/Reference!$E$27*1000000*#REF!*(1-#REF!))/Reference!$H$43 -> 0 | AM116: ='BD RD Feedstock'!$R$200 -> No Data | AO116: =IF(AM116="No Data",0,AM116/10*'T&D'!$C$58/Reference!$C$30/$F$173/Reference!#REF!*Reference!#REF!/Reference!$E$27*1000000*#REF!*(1-#REF!))/Reference!$H$43 -> 0
D117: Rendered UCO transported by Heavy Duty Diesel Truck, miles | F117: ='BD RD Feedstock'!S38 -> 50 | H117: =IF(F117="No Data",0,F117/50*'T&D'!$J$92/Reference!$C$30/$F$173/Reference!#REF!*Reference!#REF!/Reference!$E$27*1000000*#REF!*(1-#REF!))/Reference!$H$43 ->  | I117: ='BD RD Feedstock'!S65 -> 100 | K117: =IF(I117="No Data",0,I117/50*'T&D'!$J$92/Reference!$C$30/$F$173/Reference!#REF!*Reference!#REF!/Reference!$E$27*1000000*#REF!*(1-#REF!))/Reference!$H$43 ->  | L117: ='BD RD Feedstock'!S92 -> No Data | N117: =IF(L117="No Data",0,L117/50*'T&D'!$J$92/Reference!$C$30/$F$173/Reference!#REF!*Reference!#REF!/Reference!$E$27*1000000*#REF!*(1-#REF!))/Reference!$H$43 -> 0 | O117: ='BD RD Feedstock'!S119 -> 100 | Q117: =IF(O117="No Data",0,O117/50*'T&D'!$J$92/Reference!$C$30/$F$173/Reference!#REF!*Reference!#REF!/Reference!$E$27*1000000*#REF!*(1-#REF!))/Reference!$H$43 ->  | R117: ='BD RD Feedstock'!S146 -> No Data | T117: =IF(R117="No Data",0,R117/50*'T&D'!$J$92/Reference!$C$30/$F$173/Reference!#REF!*Reference!#REF!/Reference!$E$27*1000000*#REF!*(1-#REF!))/Reference!$H$43 -> 0 | U117: ='BD RD Feedstock'!S173 -> No Data | W117: =IF(U117="No Data",0,U117/50*'T&D'!$J$92/Reference!$C$30/$F$173/Reference!#REF!*Reference!#REF!/Reference!$E$27*1000000*#REF!*(1-#REF!))/Reference!$H$43 -> 0 | X117: ='BD RD Feedstock'!$S$200 -> No Data | Z117: =IF(X117="No Data",0,X117/50*'T&D'!$J$92/Reference!$C$30/$F$173/Reference!#REF!*Reference!#REF!/Reference!$E$27*1000000*#REF!*(1-#REF!))/Reference!$H$43 -> 0 | AA117: ='BD RD Feedstock'!$S$200 -> No Data | AC117: =IF(AA117="No Data",0,AA117/50*'T&D'!$J$92/Reference!$C$30/$F$173/Reference!#REF!*Reference!#REF!/Reference!$E$27*1000000*#REF!*(1-#REF!))/Reference!$H$43 -> 0 | AD117: ='BD RD Feedstock'!$S$200 -> No Data | AF117: =IF(AD117="No Data",0,AD117/50*'T&D'!$J$92/Reference!$C$30/$F$173/Reference!#REF!*Reference!#REF!/Reference!$E$27*1000000*#REF!*(1-#REF!))/Reference!$H$43 -> 0 | AG117: ='BD RD Feedstock'!$S$200 -> No Data | AI117: =IF(AG117="No Data",0,AG117/50*'T&D'!$J$92/Reference!$C$30/$F$173/Reference!#REF!*Reference!#REF!/Reference!$E$27*1000000*#REF!*(1-#REF!))/Reference!$H$43 -> 0 | AJ117: ='BD RD Feedstock'!$S$200 -> No Data | AL117: =IF(AJ117="No Data",0,AJ117/50*'T&D'!$J$92/Reference!$C$30/$F$173/Reference!#REF!*Reference!#REF!/Reference!$E$27*1000000*#REF!*(1-#REF!))/Reference!$H$43 -> 0 | AM117: ='BD RD Feedstock'!$S$200 -> No Data | AO117: =IF(AM117="No Data",0,AM117/50*'T&D'!$J$92/Reference!$C$30/$F$173/Reference!#REF!*Reference!#REF!/Reference!$E$27*1000000*#REF!*(1-#REF!))/Reference!$H$43 -> 0
D118: Rendered UCO transported by Ocean Tanker, miles | F118: ='BD RD Feedstock'!T38 -> 1000 | H118: =IF(F118="No Data",0,F118/1000*'T&D'!$J$93/Reference!$C$30/$F$173/Reference!#REF!*Reference!#REF!/Reference!$E$27*1000000*#REF!*(1-#REF!))/Reference!$H$43 ->  | I118: ='BD RD Feedstock'!T65 -> No Data | K118: =IF(I118="No Data",0,I118/1000*'T&D'!$J$93/Reference!$C$30/$F$173/Reference!#REF!*Reference!#REF!/Reference!$E$27*1000000*#REF!*(1-#REF!))/Reference!$H$43 -> 0 | L118: ='BD RD Feedstock'!T92 -> No Data | N118: =IF(L118="No Data",0,L118/1000*'T&D'!$J$93/Reference!$C$30/$F$173/Reference!#REF!*Reference!#REF!/Reference!$E$27*1000000*#REF!*(1-#REF!))/Reference!$H$43 -> 0 | O118: ='BD RD Feedstock'!T119 -> No Data | Q118: =IF(O118="No Data",0,O118/1000*'T&D'!$J$93/Reference!$C$30/$F$173/Reference!#REF!*Reference!#REF!/Reference!$E$27*1000000*#REF!*(1-#REF!))/Reference!$H$43 -> 0 | R118: ='BD RD Feedstock'!T146 -> No Data | T118: =IF(R118="No Data",0,R118/1000*'T&D'!$J$93/Reference!$C$30/$F$173/Reference!#REF!*Reference!#REF!/Reference!$E$27*1000000*#REF!*(1-#REF!))/Reference!$H$43 -> 0 | U118: ='BD RD Feedstock'!T173 -> No Data | W118: =IF(U118="No Data",0,U118/1000*'T&D'!$J$93/Reference!$C$30/$F$173/Reference!#REF!*Reference!#REF!/Reference!$E$27*1000000*#REF!*(1-#REF!))/Reference!$H$43 -> 0 | X118: ='BD RD Feedstock'!$T$200 -> No Data | Z118: =IF(X118="No Data",0,X118/1000*'T&D'!$J$93/Reference!$C$30/$F$173/Reference!#REF!*Reference!#REF!/Reference!$E$27*1000000*#REF!*(1-#REF!))/Reference!$H$43 -> 0 | AA118: ='BD RD Feedstock'!$T$200 -> No Data | AC118: =IF(AA118="No Data",0,AA118/1000*'T&D'!$J$93/Reference!$C$30/$F$173/Reference!#REF!*Reference!#REF!/Reference!$E$27*1000000*#REF!*(1-#REF!))/Reference!$H$43 -> 0 | AD118: ='BD RD Feedstock'!$T$200 -> No Data | AF118: =IF(AD118="No Data",0,AD118/1000*'T&D'!$J$93/Reference!$C$30/$F$173/Reference!#REF!*Reference!#REF!/Reference!$E$27*1000000*#REF!*(1-#REF!))/Reference!$H$43 -> 0 | AG118: ='BD RD Feedstock'!$T$200 -> No Data | AI118: =IF(AG118="No Data",0,AG118/1000*'T&D'!$J$93/Reference!$C$30/$F$173/Reference!#REF!*Reference!#REF!/Reference!$E$27*1000000*#REF!*(1-#REF!))/Reference!$H$43 -> 0 | AJ118: ='BD RD Feedstock'!$T$200 -> No Data | AL118: =IF(AJ118="No Data",0,AJ118/1000*'T&D'!$J$93/Reference!$C$30/$F$173/Reference!#REF!*Reference!#REF!/Reference!$E$27*1000000*#REF!*(1-#REF!))/Reference!$H$43 -> 0 | AM118: ='BD RD Feedstock'!$T$200 -> No Data | AO118: =IF(AM118="No Data",0,AM118/1000*'T&D'!$J$93/Reference!$C$30/$F$173/Reference!#REF!*Reference!#REF!/Reference!$E$27*1000000*#REF!*(1-#REF!))/Reference!$H$43 -> 0
D119: Rendered UCO transported by Rail, miles | F119: ='BD RD Feedstock'!U38 -> 10000 | H119: =IF(F119="No Data",0,F119/10000*'T&D'!$J$94/Reference!$C$30/$F$173/Reference!#REF!*Reference!#REF!/Reference!$E$27*1000000*#REF!*(1-#REF!))/Reference!$H$43 ->  | I119: ='BD RD Feedstock'!U65 -> 1500 | K119: =IF(I119="No Data",0,I119/10000*'T&D'!$J$94/Reference!$C$30/$F$173/Reference!#REF!*Reference!#REF!/Reference!$E$27*1000000*#REF!*(1-#REF!))/Reference!$H$43 ->  | L119: ='BD RD Feedstock'!U92 -> No Data | N119: =IF(L119="No Data",0,L119/10000*'T&D'!$J$94/Reference!$C$30/$F$173/Reference!#REF!*Reference!#REF!/Reference!$E$27*1000000*#REF!*(1-#REF!))/Reference!$H$43 -> 0 | O119: ='BD RD Feedstock'!U119 -> 700 | Q119: =IF(O119="No Data",0,O119/10000*'T&D'!$J$94/Reference!$C$30/$F$173/Reference!#REF!*Reference!#REF!/Reference!$E$27*1000000*#REF!*(1-#REF!))/Reference!$H$43 ->  | R119: ='BD RD Feedstock'!U146 -> No Data | T119: =IF(R119="No Data",0,R119/10000*'T&D'!$J$94/Reference!$C$30/$F$173/Reference!#REF!*Reference!#REF!/Reference!$E$27*1000000*#REF!*(1-#REF!))/Reference!$H$43 -> 0 | U119: ='BD RD Feedstock'!U173 -> No Data | W119: =IF(U119="No Data",0,U119/10000*'T&D'!$J$94/Reference!$C$30/$F$173/Reference!#REF!*Reference!#REF!/Reference!$E$27*1000000*#REF!*(1-#REF!))/Reference!$H$43 -> 0 | X119: ='BD RD Feedstock'!$U$200 -> No Data | Z119: =IF(X119="No Data",0,X119/10000*'T&D'!$J$94/Reference!$C$30/$F$173/Reference!#REF!*Reference!#REF!/Reference!$E$27*1000000*#REF!*(1-#REF!))/Reference!$H$43 -> 0 | AA119: ='BD RD Feedstock'!$U$200 -> No Data | AC119: =IF(AA119="No Data",0,AA119/10000*'T&D'!$J$94/Reference!$C$30/$F$173/Reference!#REF!*Reference!#REF!/Reference!$E$27*1000000*#REF!*(1-#REF!))/Reference!$H$43 -> 0 | AD119: ='BD RD Feedstock'!$U$200 -> No Data | AF119: =IF(AD119="No Data",0,AD119/10000*'T&D'!$J$94/Reference!$C$30/$F$173/Reference!#REF!*Reference!#REF!/Reference!$E$27*1000000*#REF!*(1-#REF!))/Reference!$H$43 -> 0 | AG119: ='BD RD Feedstock'!$U$200 -> No Data | AI119: =IF(AG119="No Data",0,AG119/10000*'T&D'!$J$94/Reference!$C$30/$F$173/Reference!#REF!*Reference!#REF!/Reference!$E$27*1000000*#REF!*(1-#REF!))/Reference!$H$43 -> 0 | AJ119: ='BD RD Feedstock'!$U$200 -> No Data | AL119: =IF(AJ119="No Data",0,AJ119/10000*'T&D'!$J$94/Reference!$C$30/$F$173/Reference!#REF!*Reference!#REF!/Reference!$E$27*1000000*#REF!*(1-#REF!))/Reference!$H$43 -> 0 | AM119: ='BD RD Feedstock'!$U$200 -> No Data | AO119: =IF(AM119="No Data",0,AM119/10000*'T&D'!$J$94/Reference!$C$30/$F$173/Reference!#REF!*Reference!#REF!/Reference!$E$27*1000000*#REF!*(1-#REF!))/Reference!$H$43 -> 0
D120: Rendered UCO transported by Barge, miles | F120: ='BD RD Feedstock'!V38 -> 1000 | H120: =IF(F120="No Data",0,F120/1000*'T&D'!$J$95/Reference!$C$30/$F$173/Reference!#REF!*Reference!#REF!/Reference!$E$27*1000000*#REF!*(1-#REF!))/Reference!$H$43 ->  | I120: ='BD RD Feedstock'!V65 -> 1000 | K120: =IF(I120="No Data",0,I120/1000*'T&D'!$J$95/Reference!$C$30/$F$173/Reference!#REF!*Reference!#REF!/Reference!$E$27*1000000*#REF!*(1-#REF!))/Reference!$H$43 ->  | L120: ='BD RD Feedstock'!V92 -> No Data | N120: =IF(L120="No Data",0,L120/1000*'T&D'!$J$95/Reference!$C$30/$F$173/Reference!#REF!*Reference!#REF!/Reference!$E$27*1000000*#REF!*(1-#REF!))/Reference!$H$43 -> 0 | O120: ='BD RD Feedstock'!V119 -> 4000 | Q120: =IF(O120="No Data",0,O120/1000*'T&D'!$J$95/Reference!$C$30/$F$173/Reference!#REF!*Reference!#REF!/Reference!$E$27*1000000*#REF!*(1-#REF!))/Reference!$H$43 ->  | R120: ='BD RD Feedstock'!V146 -> No Data | T120: =IF(R120="No Data",0,R120/1000*'T&D'!$J$95/Reference!$C$30/$F$173/Reference!#REF!*Reference!#REF!/Reference!$E$27*1000000*#REF!*(1-#REF!))/Reference!$H$43 -> 0 | U120: ='BD RD Feedstock'!V173 -> No Data | W120: =IF(U120="No Data",0,U120/1000*'T&D'!$J$95/Reference!$C$30/$F$173/Reference!#REF!*Reference!#REF!/Reference!$E$27*1000000*#REF!*(1-#REF!))/Reference!$H$43 -> 0 | X120: ='BD RD Feedstock'!$V$200 -> No Data | Z120: =IF(X120="No Data",0,X120/1000*'T&D'!$J$95/Reference!$C$30/$F$173/Reference!#REF!*Reference!#REF!/Reference!$E$27*1000000*#REF!*(1-#REF!))/Reference!$H$43 -> 0 | AA120: ='BD RD Feedstock'!$V$200 -> No Data | AC120: =IF(AA120="No Data",0,AA120/1000*'T&D'!$J$95/Reference!$C$30/$F$173/Reference!#REF!*Reference!#REF!/Reference!$E$27*1000000*#REF!*(1-#REF!))/Reference!$H$43 -> 0 | AD120: ='BD RD Feedstock'!$V$200 -> No Data | AF120: =IF(AD120="No Data",0,AD120/1000*'T&D'!$J$95/Reference!$C$30/$F$173/Reference!#REF!*Reference!#REF!/Reference!$E$27*1000000*#REF!*(1-#REF!))/Reference!$H$43 -> 0 | AG120: ='BD RD Feedstock'!$V$200 -> No Data | AI120: =IF(AG120="No Data",0,AG120/1000*'T&D'!$J$95/Reference!$C$30/$F$173/Reference!#REF!*Reference!#REF!/Reference!$E$27*1000000*#REF!*(1-#REF!))/Reference!$H$43 -> 0 | AJ120: ='BD RD Feedstock'!$V$200 -> No Data | AL120: =IF(AJ120="No Data",0,AJ120/1000*'T&D'!$J$95/Reference!$C$30/$F$173/Reference!#REF!*Reference!#REF!/Reference!$E$27*1000000*#REF!*(1-#REF!))/Reference!$H$43 -> 0 | AM120: ='BD RD Feedstock'!$V$200 -> No Data | AO120: =IF(AM120="No Data",0,AM120/1000*'T&D'!$J$95/Reference!$C$30/$F$173/Reference!#REF!*Reference!#REF!/Reference!$E$27*1000000*#REF!*(1-#REF!))/Reference!$H$43 -> 0
B121: ILUC
B122: Feedstock Production | F122: =IF('BD RD Feedstock'!C3="Tallow","Tallow 1","") -> Tallow 1 | G122: =IF(F122="Tallow 1",'BD RD Feedstock'!C8,"") -> 2-User Defined Mix | H122: =H123+H124+H125+H126+H136 ->  | I122: =IF('BD RD Feedstock'!D3="Tallow","Tallow 2","") -> Tallow 2 | J122: =IF(I122="Tallow 2",'BD RD Feedstock'!D8,"") -> 3-CAMX Mix | K122: =K123+K124+K125+K126+K136 ->  | L122: =IF('BD RD Feedstock'!E3="Tallow","Tallow 3","") ->  | M122: =IF(L122="Tallow 3",'BD RD Feedstock'!E8,"") ->  | N122: =N123+N124+N125+N126+N136 -> 0 | O122: =IF('BD RD Feedstock'!F3="Tallow","Tallow 4","") ->  | P122: =IF(O122="Tallow 4",'BD RD Feedstock'!F8,"") ->  | Q122: =Q123+Q124+Q125+Q126+Q136 ->  | R122: =IF('BD RD Feedstock'!G3="Tallow","Tallow 5","") ->  | S122: =IF(R122="Tallow 5",'BD RD Feedstock'!G8,"") ->  | T122: =T123+T124+T125+T126+T136 -> 0 | U122: =IF('BD RD Feedstock'!H3="Tallow","Tallow 6","") ->  | V122: =IF(U122="Tallow 6",'BD RD Feedstock'!H8,"") ->  | W122: =W123+W124+W125+W126+W136 -> 0 | X122: =IF('BD RD Feedstock'!I3="Tallow","Tallow 7","") ->  | Y122: =IF(X122="Tallow 7",'BD RD Feedstock'!I8,"") ->  | Z122: =Z123+Z124+Z125+Z126+Z136 -> 0 | AA122: =IF('BD RD Feedstock'!J3="Tallow","Tallow 8","") ->  | AB122: =IF(AA122="Tallow 8",'BD RD Feedstock'!J8,"") ->  | AC122: =AC123+AC124+AC125+AC126+AC136 -> 0 | AD122: =IF('BD RD Feedstock'!K3="Tallow","Tallow 9","") ->  | AE122: =IF(AD122="Tallow 9",'BD RD Feedstock'!K8,"") ->  | AF122: =AF123+AF124+AF125+AF126+AF136 -> 0 | AG122: =IF('BD RD Feedstock'!L3="Tallow","Tallow 10","") ->  | AH122: =IF(AG122="Tallow 10",'BD RD Feedstock'!L8,"") ->  | AI122: =AI123+AI124+AI125+AI126+AI136 -> 0 | AJ122: =IF('BD RD Feedstock'!M3="Tallow","Tallow 11","") ->  | AK122: =IF(AJ122="Tallow 11",'BD RD Feedstock'!M8,"") ->  | AL122: =AL123+AL124+AL125+AL126+AL136 -> 0 | AM122: =IF('BD RD Feedstock'!N3="Tallow","Tallow 12","") ->  | AN122: =IF(AM122="Tallow 12",'BD RD Feedstock'!N8,"") ->  | AO122: =AO123+AO124+AO125+AO126+AO136 -> 0
B123: Tallow Collection | D123: Oil Yield, lb oil/lb raw Tallow | F123: =1/3.37 -> 0.296735905
A124: Tallow | B124: Raw Tallow Transport | D124: Raw tallow transported by Heavy Truck, miles | F124: 50 | H124: ='T&D'!$J$96*F124/50 -> 0 | I124: 50 | K124: ='T&D'!$K$96*I124/50 ->  | L124: 50 | N124: ='T&D'!$L$96*L124/50 -> 0 | O124: 50 | Q124: ='T&D'!$M$96*O124/50 -> 0 | R124: 50 | T124: ='T&D'!$N$96*R124/50 -> 0 | U124: 50 | W124: ='T&D'!$O$96*U124/50 -> 0 | X124: 50 | Z124: ='T&D'!$P$96*X124/50 -> 0 | AA124: 50 | AC124: ='T&D'!$Q$96*AA124/50 -> 0 | AD124: 50 | AF124: ='T&D'!$R$96*AD124/50 -> 0 | AG124: 50 | AI124: ='T&D'!$S$96*AG124/50 -> 0 | AJ124: 50 | AL124: ='T&D'!$T$96*AJ124/50 -> 0 | AM124: 50 | AO124: ='T&D'!$U$96*AM124/50 -> 0
B125: Tallow Rendering | D125: Total, Btu/lb oil | F125: =SUM(F126:F135) -> 3944 | H125: =IF('BD RD Feedstock'!C6="Use Standard Values",17.82,SUM(H126:H135)) ->  | K125: =IF('BD RD Feedstock'!D6="Use Standard Values",17.82,SUM(K126:K135)) -> 0 | N125: =IF('BD RD Feedstock'!E6="Use Standard Values",17.82,SUM(N126:N135)) -> 0 | Q125: =IF('BD RD Feedstock'!F6="Use Standard Values",17.82,SUM(Q126:Q135)) -> 0 | T125: =IF('BD RD Feedstock'!G6="Use Standard Values",17.82,SUM(T126:T135)) -> 0 | W125: =IF('BD RD Feedstock'!H6="Use Standard Values",17.82,SUM(W126:W135)) -> 0 | Z125: =IF('BD RD Feedstock'!I6="Use Standard Values",17.82,SUM(Z126:Z135)) -> 0 | AC125: =IF('BD RD Feedstock'!J6="Use Standard Values",17.82,SUM(AC126:AC135)) -> 0 | AF125: =IF('BD RD Feedstock'!K6="Use Standard Values",17.82,SUM(AF126:AF135)) -> 0 | AI125: =IF('BD RD Feedstock'!L6="Use Standard Values",17.82,SUM(AI126:AI135)) -> 0 | AL125: =IF('BD RD Feedstock'!M6="Use Standard Values",17.82,SUM(AL126:AL135)) -> 0 | AO125: =IF('BD RD Feedstock'!N6="Use Standard Values",17.82,SUM(AO126:AO135)) -> 0
D126: Residual Oil | F126: 1056 | G126: =F126/$F$125 -> 0.2677484787 | H126: =(F126*(100%*EF!$M16+Petroleum!$AM$26*Petroleum!$I$4+Petroleum!$AM$30)/10^6)/'BD-Production'!$F$173/Reference!#REF!*Reference!#REF!/Reference!$E$27*1000000*#REF!*(1-#REF!) -> 
D127: Diesel | G127: =F127/$F$125 -> 0
E128: Gasoline | G128: 0
D129: Natural Gas | F129: 1611 | G129: 0.4084685598 | H129: =F129*(0*EF!$G16+0*EF!$D16+50%*EF!$B16+50%*EF!$C16+#REF!)/1000000/F$173/Reference!#REF!*Reference!#REF!/Reference!$E$27*1000000*#REF!*(1-#REF!) -> 
D130: Coal | G130: 0
E131: LPG | G131: 0
D132: N-Hexane | G132: 0
D133: Eletricity | F133: 444 | G133: 0.1125760649 | H133: =(F133*(Electricity!$BP$6+Electricity!$BP$7)/1000000)/$F$173/Reference!#REF!*Reference!#REF!/Reference!$E$27*1000000*#REF!*(1-#REF!) -> 
D134: Renewable NG | G134: 0
E135: Fat | F135: 833 | G135: 0.2112068966
B136: Rendered Oil Transport | H136: =SUM(H137:H141) ->  | K136: =SUM(K137:K141) ->  | N136: =SUM(N137:N141) -> 0 | Q136: =SUM(Q137:Q141) ->  | T136: =SUM(T137:T141) -> 0 | W136: =SUM(W137:W141) -> 0 | Z136: =SUM(Z137:Z141) -> 0 | AC136: =SUM(AC137:AC141) -> 0 | AF136: =SUM(AF137:AF141) -> 0 | AI136: =SUM(AI137:AI141) -> 0 | AL136: =SUM(AL137:AL141) -> 0 | AO136: =SUM(AO137:AO141) -> 0
D137: Rendered Tallow Oil transported by Medium Truck, miles | F137: ='BD RD Feedstock'!R38 -> No Data | H137: =IF(F137="No Data",0,F137/10*'T&D'!$C$58*$F$173/'T&D'!$E$45*#REF!*(1-#REF!)) -> 0 | I137: ='BD RD Feedstock'!$R$65 -> No Data | K137: =IF(I137="No Data",0,I137/10*'T&D'!$C$58*$F$173/'T&D'!$E$45*#REF!*(1-#REF!)) -> 0 | L137: ='BD RD Feedstock'!$R$92 -> No Data | N137: =IF(L137="No Data",0,L137/10*'T&D'!$C$58*$F$173/'T&D'!$E$45*#REF!*(1-#REF!)) -> 0 | O137: ='BD RD Feedstock'!$R$119 -> No Data | Q137: =IF(O137="No Data",0,O137/10*'T&D'!$C$58*$F$173/'T&D'!$E$45*#REF!*(1-#REF!)) -> 0 | R137: ='BD RD Feedstock'!$R$146 -> No Data | T137: =IF(R137="No Data",0,R137/10*'T&D'!$C$58*$F$173/'T&D'!$E$45*#REF!*(1-#REF!)) -> 0 | U137: ='BD RD Feedstock'!$R$173 -> No Data | W137: =IF(U137="No Data",0,U137/10*'T&D'!$C$58*$F$173/'T&D'!$E$45*#REF!*(1-#REF!)) -> 0 | X137: ='BD RD Feedstock'!$R$200 -> No Data | Z137: =IF(X137="No Data",0,X137/10*'T&D'!$C$58*$F$173/'T&D'!$E$45*#REF!*(1-#REF!)) -> 0 | AA137: ='BD RD Feedstock'!$R$200 -> No Data | AC137: =IF(AA137="No Data",0,AA137/10*'T&D'!$C$58*$F$173/'T&D'!$E$45*#REF!*(1-#REF!)) -> 0 | AD137: ='BD RD Feedstock'!$R$200 -> No Data | AF137: =IF(AD137="No Data",0,AD137/10*'T&D'!$C$58*$F$173/'T&D'!$E$45*#REF!*(1-#REF!)) -> 0 | AG137: ='BD RD Feedstock'!$R$200 -> No Data | AI137: =IF(AG137="No Data",0,AG137/10*'T&D'!$C$58*$F$173/'T&D'!$E$45*#REF!*(1-#REF!)) -> 0 | AJ137: ='BD RD Feedstock'!$R$200 -> No Data | AL137: =IF(AJ137="No Data",0,AJ137/10*'T&D'!$C$58*$F$173/'T&D'!$E$45*#REF!*(1-#REF!)) -> 0 | AM137: ='BD RD Feedstock'!$R$200 -> No Data | AO137: =IF(AM137="No Data",0,AM137/10*'T&D'!$C$58*$F$173/'T&D'!$E$45*#REF!*(1-#REF!)) -> 0
D138: Tallow Oil transported by Heavy Duty Diesel Truck, miles | F138: ='BD RD Feedstock'!S38 -> 50 | H138: =IF(F138="No Data",0,F138/50*'T&D'!$J$92/Reference!$C$30/$F$173/Reference!#REF!*Reference!#REF!/Reference!$E$27*1000000*#REF!*(1-#REF!))/Reference!$H$43 ->  | I138: ='BD RD Feedstock'!$S$65 -> 100 | K138: =IF(I138="No Data",0,I138/50*'T&D'!$J$92/Reference!$C$30/$F$173/Reference!#REF!*Reference!#REF!/Reference!$E$27*1000000*#REF!*(1-#REF!))/Reference!$H$43 ->  | L138: ='BD RD Feedstock'!$S$92 -> No Data | N138: =IF(L138="No Data",0,L138/50*'T&D'!$J$92/Reference!$C$30/$F$173/Reference!#REF!*Reference!#REF!/Reference!$E$27*1000000*#REF!*(1-#REF!))/Reference!$H$43 -> 0 | O138: ='BD RD Feedstock'!$S$119 -> 100 | Q138: =IF(O138="No Data",0,O138/50*'T&D'!$J$92/Reference!$C$30/$F$173/Reference!#REF!*Reference!#REF!/Reference!$E$27*1000000*#REF!*(1-#REF!))/Reference!$H$43 ->  | R138: ='BD RD Feedstock'!$S$146 -> No Data | T138: =IF(R138="No Data",0,R138/50*'T&D'!$J$92/Reference!$C$30/$F$173/Reference!#REF!*Reference!#REF!/Reference!$E$27*1000000*#REF!*(1-#REF!))/Reference!$H$43 -> 0 | U138: ='BD RD Feedstock'!$S$173 -> No Data | W138: =IF(U138="No Data",0,U138/50*'T&D'!$J$92/Reference!$C$30/$F$173/Reference!#REF!*Reference!#REF!/Reference!$E$27*1000000*#REF!*(1-#REF!))/Reference!$H$43 -> 0 | X138: ='BD RD Feedstock'!$S$200 -> No Data | Z138: =IF(X138="No Data",0,X138/50*'T&D'!$J$92/Reference!$C$30/$F$173/Reference!#REF!*Reference!#REF!/Reference!$E$27*1000000*#REF!*(1-#REF!))/Reference!$H$43 -> 0 | AA138: ='BD RD Feedstock'!$S$200 -> No Data | AC138: =IF(AA138="No Data",0,AA138/50*'T&D'!$J$92/Reference!$C$30/$F$173/Reference!#REF!*Reference!#REF!/Reference!$E$27*1000000*#REF!*(1-#REF!))/Reference!$H$43 -> 0 | AD138: ='BD RD Feedstock'!$S$200 -> No Data | AF138: =IF(AD138="No Data",0,AD138/50*'T&D'!$J$92/Reference!$C$30/$F$173/Reference!#REF!*Reference!#REF!/Reference!$E$27*1000000*#REF!*(1-#REF!))/Reference!$H$43 -> 0 | AG138: ='BD RD Feedstock'!$S$200 -> No Data | AI138: =IF(AG138="No Data",0,AG138/50*'T&D'!$J$92/Reference!$C$30/$F$173/Reference!#REF!*Reference!#REF!/Reference!$E$27*1000000*#REF!*(1-#REF!))/Reference!$H$43 -> 0 | AJ138: ='BD RD Feedstock'!$S$200 -> No Data | AL138: =IF(AJ138="No Data",0,AJ138/50*'T&D'!$J$92/Reference!$C$30/$F$173/Reference!#REF!*Reference!#REF!/Reference!$E$27*1000000*#REF!*(1-#REF!))/Reference!$H$43 -> 0 | AM138: ='BD RD Feedstock'!$S$200 -> No Data | AO138: =IF(AM138="No Data",0,AM138/50*'T&D'!$J$92/Reference!$C$30/$F$173/Reference!#REF!*Reference!#REF!/Reference!$E$27*1000000*#REF!*(1-#REF!))/Reference!$H$43 -> 0
D139: Tallow transported by Rail, miles | F139: ='BD RD Feedstock'!T38 -> 1000 | H139: =IF(F139="No Data",0,F139/1000*'T&D'!$J$93/Reference!$C$30/$F$173/Reference!#REF!*Reference!#REF!/Reference!$E$27*1000000*#REF!*(1-#REF!))/Reference!$H$43 ->  | I139: ='BD RD Feedstock'!$T$65 -> No Data | K139: =IF(I139="No Data",0,I139/1000*'T&D'!$J$93/Reference!$C$30/$F$173/Reference!#REF!*Reference!#REF!/Reference!$E$27*1000000*#REF!*(1-#REF!))/Reference!$H$43 -> 0 | L139: ='BD RD Feedstock'!$T$92 -> No Data | N139: =IF(L139="No Data",0,L139/1000*'T&D'!$J$93/Reference!$C$30/$F$173/Reference!#REF!*Reference!#REF!/Reference!$E$27*1000000*#REF!*(1-#REF!))/Reference!$H$43 -> 0 | O139: ='BD RD Feedstock'!$T$119 -> No Data | Q139: =IF(O139="No Data",0,O139/1000*'T&D'!$J$93/Reference!$C$30/$F$173/Reference!#REF!*Reference!#REF!/Reference!$E$27*1000000*#REF!*(1-#REF!))/Reference!$H$43 -> 0 | R139: ='BD RD Feedstock'!$T$146 -> No Data | T139: =IF(R139="No Data",0,R139/1000*'T&D'!$J$93/Reference!$C$30/$F$173/Reference!#REF!*Reference!#REF!/Reference!$E$27*1000000*#REF!*(1-#REF!))/Reference!$H$43 -> 0 | U139: ='BD RD Feedstock'!$T$173 -> No Data | W139: =IF(U139="No Data",0,U139/1000*'T&D'!$J$93/Reference!$C$30/$F$173/Reference!#REF!*Reference!#REF!/Reference!$E$27*1000000*#REF!*(1-#REF!))/Reference!$H$43 -> 0 | X139: ='BD RD Feedstock'!$T$200 -> No Data | Z139: =IF(X139="No Data",0,X139/1000*'T&D'!$J$93/Reference!$C$30/$F$173/Reference!#REF!*Reference!#REF!/Reference!$E$27*1000000*#REF!*(1-#REF!))/Reference!$H$43 -> 0 | AA139: ='BD RD Feedstock'!$T$200 -> No Data | AC139: =IF(AA139="No Data",0,AA139/1000*'T&D'!$J$93/Reference!$C$30/$F$173/Reference!#REF!*Reference!#REF!/Reference!$E$27*1000000*#REF!*(1-#REF!))/Reference!$H$43 -> 0 | AD139: ='BD RD Feedstock'!$T$200 -> No Data | AF139: =IF(AD139="No Data",0,AD139/1000*'T&D'!$J$93/Reference!$C$30/$F$173/Reference!#REF!*Reference!#REF!/Reference!$E$27*1000000*#REF!*(1-#REF!))/Reference!$H$43 -> 0 | AG139: ='BD RD Feedstock'!$T$200 -> No Data | AI139: =IF(AG139="No Data",0,AG139/1000*'T&D'!$J$93/Reference!$C$30/$F$173/Reference!#REF!*Reference!#REF!/Reference!$E$27*1000000*#REF!*(1-#REF!))/Reference!$H$43 -> 0 | AJ139: ='BD RD Feedstock'!$T$200 -> No Data | AL139: =IF(AJ139="No Data",0,AJ139/1000*'T&D'!$J$93/Reference!$C$30/$F$173/Reference!#REF!*Reference!#REF!/Reference!$E$27*1000000*#REF!*(1-#REF!))/Reference!$H$43 -> 0 | AM139: ='BD RD Feedstock'!$T$200 -> No Data | AO139: =IF(AM139="No Data",0,AM139/1000*'T&D'!$J$93/Reference!$C$30/$F$173/Reference!#REF!*Reference!#REF!/Reference!$E$27*1000000*#REF!*(1-#REF!))/Reference!$H$43 -> 0
D140: Tallow transported by Ocean Tanker, miles | F140: ='BD RD Feedstock'!U38 -> 10000 | H140: =IF(F140="No Data",0,F140/10000*'T&D'!$J$94/Reference!$C$30/$F$173/Reference!#REF!*Reference!#REF!/Reference!$E$27*1000000*#REF!*(1-#REF!))/Reference!$H$43 ->  | I140: ='BD RD Feedstock'!$U$65 -> 1500 | K140: =IF(I140="No Data",0,I140/10000*'T&D'!$J$94/Reference!$C$30/$F$173/Reference!#REF!*Reference!#REF!/Reference!$E$27*1000000*#REF!*(1-#REF!))/Reference!$H$43 ->  | L140: ='BD RD Feedstock'!$U$92 -> No Data | N140: =IF(L140="No Data",0,L140/10000*'T&D'!$J$94/Reference!$C$30/$F$173/Reference!#REF!*Reference!#REF!/Reference!$E$27*1000000*#REF!*(1-#REF!))/Reference!$H$43 -> 0 | O140: ='BD RD Feedstock'!$U$119 -> 700 | Q140: =IF(O140="No Data",0,O140/10000*'T&D'!$J$94/Reference!$C$30/$F$173/Reference!#REF!*Reference!#REF!/Reference!$E$27*1000000*#REF!*(1-#REF!))/Reference!$H$43 ->  | R140: ='BD RD Feedstock'!$U$146 -> No Data | T140: =IF(R140="No Data",0,R140/10000*'T&D'!$J$94/Reference!$C$30/$F$173/Reference!#REF!*Reference!#REF!/Reference!$E$27*1000000*#REF!*(1-#REF!))/Reference!$H$43 -> 0 | U140: ='BD RD Feedstock'!$U$173 -> No Data | W140: =IF(U140="No Data",0,U140/10000*'T&D'!$J$94/Reference!$C$30/$F$173/Reference!#REF!*Reference!#REF!/Reference!$E$27*1000000*#REF!*(1-#REF!))/Reference!$H$43 -> 0 | X140: ='BD RD Feedstock'!$U$200 -> No Data | Z140: =IF(X140="No Data",0,X140/10000*'T&D'!$J$94/Reference!$C$30/$F$173/Reference!#REF!*Reference!#REF!/Reference!$E$27*1000000*#REF!*(1-#REF!))/Reference!$H$43 -> 0 | AA140: ='BD RD Feedstock'!$U$200 -> No Data | AC140: =IF(AA140="No Data",0,AA140/10000*'T&D'!$J$94/Reference!$C$30/$F$173/Reference!#REF!*Reference!#REF!/Reference!$E$27*1000000*#REF!*(1-#REF!))/Reference!$H$43 -> 0 | AD140: ='BD RD Feedstock'!$U$200 -> No Data | AF140: =IF(AD140="No Data",0,AD140/10000*'T&D'!$J$94/Reference!$C$30/$F$173/Reference!#REF!*Reference!#REF!/Reference!$E$27*1000000*#REF!*(1-#REF!))/Reference!$H$43 -> 0 | AG140: ='BD RD Feedstock'!$U$200 -> No Data | AI140: =IF(AG140="No Data",0,AG140/10000*'T&D'!$J$94/Reference!$C$30/$F$173/Reference!#REF!*Reference!#REF!/Reference!$E$27*1000000*#REF!*(1-#REF!))/Reference!$H$43 -> 0 | AJ140: ='BD RD Feedstock'!$U$200 -> No Data | AL140: =IF(AJ140="No Data",0,AJ140/10000*'T&D'!$J$94/Reference!$C$30/$F$173/Reference!#REF!*Reference!#REF!/Reference!$E$27*1000000*#REF!*(1-#REF!))/Reference!$H$43 -> 0 | AM140: ='BD RD Feedstock'!$U$200 -> No Data | AO140: =IF(AM140="No Data",0,AM140/10000*'T&D'!$J$94/Reference!$C$30/$F$173/Reference!#REF!*Reference!#REF!/Reference!$E$27*1000000*#REF!*(1-#REF!))/Reference!$H$43 -> 0
D141: Tallow transported by Barge, miles | F141: ='BD RD Feedstock'!V38 -> 1000 | H141: =IF(F141="No Data",0,F141/1000*'T&D'!$J$95/Reference!$C$30/$F$173/Reference!#REF!*Reference!#REF!/Reference!$E$27*1000000*#REF!*(1-#REF!))/Reference!$H$43 ->  | I141: ='BD RD Feedstock'!$V$65 -> 1000 | K141: =IF(I141="No Data",0,I141/1000*'T&D'!$J$95/Reference!$C$30/$F$173/Reference!#REF!*Reference!#REF!/Reference!$E$27*1000000*#REF!*(1-#REF!))/Reference!$H$43 ->  | L141: ='BD RD Feedstock'!$V$92 -> No Data | N141: =IF(L141="No Data",0,L141/1000*'T&D'!$J$95/Reference!$C$30/$F$173/Reference!#REF!*Reference!#REF!/Reference!$E$27*1000000*#REF!*(1-#REF!))/Reference!$H$43 -> 0 | O141: ='BD RD Feedstock'!$V$119 -> 4000 | Q141: =IF(O141="No Data",0,O141/1000*'T&D'!$J$95/Reference!$C$30/$F$173/Reference!#REF!*Reference!#REF!/Reference!$E$27*1000000*#REF!*(1-#REF!))/Reference!$H$43 ->  | R141: ='BD RD Feedstock'!$V$146 -> No Data | T141: =IF(R141="No Data",0,R141/1000*'T&D'!$J$95/Reference!$C$30/$F$173/Reference!#REF!*Reference!#REF!/Reference!$E$27*1000000*#REF!*(1-#REF!))/Reference!$H$43 -> 0 | U141: ='BD RD Feedstock'!$V$173 -> No Data | W141: =IF(U141="No Data",0,U141/1000*'T&D'!$J$95/Reference!$C$30/$F$173/Reference!#REF!*Reference!#REF!/Reference!$E$27*1000000*#REF!*(1-#REF!))/Reference!$H$43 -> 0 | X141: ='BD RD Feedstock'!$V$200 -> No Data | Z141: =IF(X141="No Data",0,X141/1000*'T&D'!$J$95/Reference!$C$30/$F$173/Reference!#REF!*Reference!#REF!/Reference!$E$27*1000000*#REF!*(1-#REF!))/Reference!$H$43 -> 0 | AA141: ='BD RD Feedstock'!$V$200 -> No Data | AC141: =IF(AA141="No Data",0,AA141/1000*'T&D'!$J$95/Reference!$C$30/$F$173/Reference!#REF!*Reference!#REF!/Reference!$E$27*1000000*#REF!*(1-#REF!))/Reference!$H$43 -> 0 | AD141: ='BD RD Feedstock'!$V$200 -> No Data | AF141: =IF(AD141="No Data",0,AD141/1000*'T&D'!$J$95/Reference!$C$30/$F$173/Reference!#REF!*Reference!#REF!/Reference!$E$27*1000000*#REF!*(1-#REF!))/Reference!$H$43 -> 0 | AG141: ='BD RD Feedstock'!$V$200 -> No Data | AI141: =IF(AG141="No Data",0,AG141/1000*'T&D'!$J$95/Reference!$C$30/$F$173/Reference!#REF!*Reference!#REF!/Reference!$E$27*1000000*#REF!*(1-#REF!))/Reference!$H$43 -> 0 | AJ141: ='BD RD Feedstock'!$V$200 -> No Data | AL141: =IF(AJ141="No Data",0,AJ141/1000*'T&D'!$J$95/Reference!$C$30/$F$173/Reference!#REF!*Reference!#REF!/Reference!$E$27*1000000*#REF!*(1-#REF!))/Reference!$H$43 -> 0 | AM141: ='BD RD Feedstock'!$V$200 -> No Data | AO141: =IF(AM141="No Data",0,AM141/1000*'T&D'!$J$95/Reference!$C$30/$F$173/Reference!#REF!*Reference!#REF!/Reference!$E$27*1000000*#REF!*(1-#REF!))/Reference!$H$43 -> 0
B143: Feedstock Production | F143: =IF('BD RD Feedstock'!C3="Other","Other 1","") ->  | G143: =IF(F143="Other 1",'BD RD Feedstock'!C8,"") ->  | H143: =H144+H145+H146+H158+H147 ->  | I143: =IF('BD RD Feedstock'!D3="Other","Other 2","") ->  | J143: =IF(I143="Other 2",'BD RD Feedstock'!D8,"") ->  | K143: =K144+K145+K146+K158 ->  | L143: =IF('BD RD Feedstock'!E3="Other","Other 3","") ->  | M143: =IF(L143="Other 3",'BD RD Feedstock'!E8,"") ->  | N143: =N144+N145+N146+N158 ->  | O143: =IF('BD RD Feedstock'!F3="Other","Other 4","") -> Other 4 | P143: =IF(O143="Otherl 4",'BD RD Feedstock'!F8,"") ->  | Q143: =Q144+Q145+Q147+Q148+Q160+Q161+Q162+Q163+Q159 ->  | R143: =IF('BD RD Feedstock'!G3="Other","Other 5","") ->  | S143: =IF(R143="Other 5",'BD RD Feedstock'!G8,"") ->  | T143: =T144+T145+T146+T158 ->  | U143: =IF('BD RD Feedstock'!H3="Other","Other 6","") ->  | V143: =IF(U143="Other 6",'BD RD Feedstock'!H8,"") ->  | W143: =W144+W145+W146+W158 ->  | X143: =IF('BD RD Feedstock'!I3="Other","Other 7","") ->  | Y143: =IF(X143="Other 7",'BD RD Feedstock'!I8,"") ->  | Z143: =Z144+Z145+Z146+Z158 ->  | AA143: =IF('BD RD Feedstock'!J3="Other","Other 8","") ->  | AB143: =IF(AA143="Other 8",'BD RD Feedstock'!J8,"") ->  | AC143: =AC144+AC145+AC146+AC158 ->  | AD143: =IF('BD RD Feedstock'!K3="Other","Other 9","") ->  | AE143: =IF(AD143="Other 9",'BD RD Feedstock'!K8,"") ->  | AF143: =AF144+AF145+AF146+AF158 ->  | AG143: =IF('BD RD Feedstock'!L3="Other","Other 10","") ->  | AH143: =IF(AG143="Other 10",'BD RD Feedstock'!L8,"") ->  | AI143: =AI144+AI145+AI146+AI158 ->  | AJ143: =IF('BD RD Feedstock'!M3="Other","Other 11","") ->  | AK143: =IF(AJ143="Other 11",'BD RD Feedstock'!M8,"") ->  | AL143: =AL144+AL145+AL146+AL158 ->  | AM143: =IF('BD RD Feedstock'!N3="Other","Other 12","") ->  | AN143: =IF(AM143="Other 12",'BD RD Feedstock'!N8,"") ->  | AO143: =AO144+AO145+AO146+AO158 -> 
B144: Collection | D144: Oil Yield, lb oil/lb raw feedstock
A145: Other | B145: Transport | D145: Raw feedstock transported by Medium Truck, miles | F145: 10 | H145: ='T&D'!$B$58/10*F$145*(1-#REF!) ->  | I145: 20 | K145: ='T&D'!$B$58/10*I$145*(1-#REF!) ->  | L145: 20 | N145: ='T&D'!$B$58/10*L$145*(1-#REF!) ->  | O145: 20 | Q145: ='T&D'!$B$58/10*O$145*(1-#REF!) ->  | R145: 20 | T145: ='T&D'!$B$58/10*R$145*(1-#REF!) ->  | U145: 20 | W145: ='T&D'!$B$58/10*U$145*(1-#REF!) ->  | X145: 20 | Z145: ='T&D'!$B$58/10*X$145*(1-#REF!) ->  | AA145: 20 | AC145: ='T&D'!$B$58/10*AA$145*(1-#REF!) ->  | AD145: 20 | AF145: ='T&D'!$B$58/10*AD$145*(1-#REF!) ->  | AG145: 20 | AI145: ='T&D'!$B$58/10*AG$145*(1-#REF!) ->  | AJ145: 20 | AL145: ='T&D'!$B$58/10*AJ$145*(1-#REF!) ->  | AM145: 20 | AO145: ='T&D'!$B$58/10*AM$145*(1-#REF!) -> 
D146: Raw feedstock transported by HD Truck, miles | F146: 40 | H146: ='T&D'!$J$96*F146/50 -> 0 | I146: 30 | K146: ='T&D'!$K$96*I146/50 ->  | L146: 30 | N146: ='T&D'!$L$96*L146/50 -> 0 | O146: 30 | Q146: ='T&D'!$M$96*O146/50 -> 0 | R146: 30 | T146: ='T&D'!$N$96*R146/50 -> 0 | U146: 30 | W146: ='T&D'!$O$96*U146/50 -> 0 | X146: 30 | Z146: ='T&D'!$P$96*X146/50 -> 0 | AA146: 30 | AC146: ='T&D'!$Q$96*AA146/50 -> 0 | AD146: 30 | AF146: ='T&D'!$R$96*AD146/50 -> 0 | AG146: 30 | AI146: ='T&D'!$S$96*AG146/50 -> 0 | AJ146: 30 | AL146: ='T&D'!$T$96*AJ146/50 -> 0 | AM146: 30 | AO146: ='T&D'!$U$96*AM146/50 -> 0
B147: Rendering/Treatment/Extraction | D147: Total, Btu/lb oil | F147: =SUM(F148:F156) -> 7548.7929 | H147: =SUM(H148:H156) ->  | U147: =SUM(U148:U156) -> 700
D148: Residual Oil | F148: ='BD RD Feedstock'!G38*Reference!$F$13*10^6/$C$35 -> 48.79290037 | G148: =F148/$F$147 -> 0.006463669227 | H148: =F148*(100%*EF!$M120+Petroleum!$B$21*Petroleum!$I$4+Petroleum!$I$21)/10^6*#REF!*(1-#REF!)/$F$173*$F$40/Reference!#REF!*Reference!#REF!/Reference!$E$27*1000000 ->  | U148: ='BD RD Feedstock'!G173*Reference!$F$13*10^6/$C$35 -> 0 | V148: =U148/$F$147 -> 0 | W148: =(U148*(100%*EF!$M38+Petroleum!$AM$26*Petroleum!$I$4+Petroleum!$AM$30)/10^6)/'BD-Production'!$F$173/Reference!#REF!*Reference!#REF!/Reference!$E$27*1000000*#REF!*(1-#REF!) -> 
D149: Diesel | F149: 500 | G149: =F149/$F$147 -> 0.06623575538 | H149: =F149*(33%*EF!$Q120+33%*EF!$R120+34%*EF!$S120+Petroleum!$B$21*Petroleum!$J$4+Petroleum!$J$21)/1000000*#REF!*(1-#REF!)/$F$173*$F$40/Reference!#REF!*Reference!#REF!/Reference!$E$27*1000000 ->  | U149: ='BD RD Feedstock'!M173*Reference!$B$7/'BD-Production'!$C$35 -> 0 | V149: =U149/$F$147 -> 0 | W149: =U149*(0*EF!$Q120+20%*EF!$R120+0*EF!$S120+80%*EF!$T120+Petroleum!$B$21*Petroleum!$J$4+Petroleum!$J$21)/Reference!#REF!*(Reference!#REF!/Reference!$E$27)/Reference!#REF!*(1-#REF!)*$F$173*$F$40/Reference!#REF!*Reference!#REF!/Reference!$E$27*1000000 -> 
E150: Gasoline | F150: 1000 | G150: 0.1324715108 | H150: =F150*((EF!$V120+Petroleum!$B$21*Petroleum!$F$4+Petroleum!$F$21)/1000000)/Reference!#REF!*(Reference!#REF!/Reference!$E$27)/Reference!#REF!*(1-#REF!)/$F$173*$F$40/Reference!#REF!*Reference!#REF!/Reference!$E$27*1000000 ->  | U150: 100 | V150: 0.01324715108
D151: Natural Gas | F151: 1000 | G151: 0.1324715108 | H151: =F151*(0*EF!$G120+0*EF!$D120+50%*EF!$B120+50%*EF!$C120+#REF!)/1000000*#REF!*(1-#REF!)/$F$173*$F$40/Reference!#REF!*Reference!#REF!/Reference!$E$27*1000000 ->  | U151: 100 | V151: 0.01324715108
D152: Coal | F152: 1000 | G152: 0.1324715108 | H152: =F152*(100%*EF!$AC120+Coal!AH$5)/1000000*#REF!*(1-#REF!)/$F$173*$F$40/Reference!#REF!*Reference!#REF!/Reference!$E$27*1000000 ->  | U152: 100 | V152: 0.01324715108
E153: LPG | F153: 1000 | G153: 0.1324715108 | U153: 100 | V153: 0.01324715108
D154: N-Hexane | F154: 1000 | G154: 0.1324715108 | H154: =F154*(Petroleum!$B$21*Petroleum!$H$4+Petroleum!$H$21)/1000000*#REF!*(1-#REF!)/$F$173*$F$40/Reference!#REF!*Reference!#REF!/Reference!$E$27*1000000+F154/Reference!#REF!*Reference!#REF!*#REF!*(1-#REF!)/$F$173*$F$40/Reference!#REF!*Reference!#REF!/Reference!$E$27*1000000/Reference!$H$43 ->  | U154: 100 | V154: 0.01324715108
D155: Eletricity | F155: 1000 | G155: 0.1324715108 | H155: =F155*(Electricity!BP$6+Electricity!BP$7)/1000000*#REF!*(1-#REF!)/$F$173*$F$40/Reference!#REF!*Reference!#REF!/Reference!$E$27*1000000 ->  | U155: 100 | V155: 0.01324715108
D156: Renewable NG | F156: 1000 | G156: 0.1324715108 | H156: =F156*(0*EF!$G120+0*EF!$D120+50%*EF!$B120+50%*EF!$C120+#REF!)/10^6*#REF!*(1-#REF!)*$F$173*$F$40/Reference!#REF!*Reference!#REF!/Reference!$E$27*1000000 ->  | U156: 100 | V156: 0.01324715108
E157: Fat
B158: Transport | H158: =SUM(H159:H163) ->  | K158: =SUM(K159:K163) ->  | N158: =SUM(N159:N163) -> 0 | T158: =SUM(T159:T163) -> 0 | W158: =SUM(W159:W163) -> 0
D159: Rendered Oil transported by Medium Truck, miles | F159: ='BD RD Feedstock'!R38 -> No Data | H159: =IF(F159="No Data",0,F159/10*'T&D'!$C$58*$F$173/'T&D'!$E$45*#REF!*(1-#REF!)) -> 0 | I159: ='BD RD Feedstock'!$R$65 -> No Data | K159: =IF(I159="No Data",0,I159/10*'T&D'!$C$58*$F$173/'T&D'!$E$45*#REF!*(1-#REF!)) -> 0 | L159: ='BD RD Feedstock'!$R$92 -> No Data | N159: =IF(L159="No Data","N/A",L159/10*'T&D'!$C$58*$F$173/'T&D'!$E$45*#REF!*(1-#REF!)) -> N/A | O159: ='BD RD Feedstock'!$R$119 -> No Data | Q159: =IF(O159="No Data",0,O159/10*'T&D'!$C$58*$F$173/'T&D'!$E$45*#REF!*(1-#REF!)) -> 0 | R159: ='BD RD Feedstock'!$R$146 -> No Data | T159: =IF(R159="No Data",0,R159/10*'T&D'!$C$58*$F$173/'T&D'!$E$45*#REF!*(1-#REF!)) -> 0 | U159: ='BD RD Feedstock'!$R$173 -> No Data | W159: =IF(U159="No Data",0,U159/10*'T&D'!$C$58*$F$173/'T&D'!$E$45*#REF!*(1-#REF!)) -> 0 | X159: ='BD RD Feedstock'!$R$200 -> No Data | Z159: =IF(X159="No Data",0,X159/10*'T&D'!$C$58*$F$173/'T&D'!$E$45*#REF!*(1-#REF!)) -> 0 | AA159: ='BD RD Feedstock'!$R$200 -> No Data | AC159: =IF(AA159="No Data",0,AA159/10*'T&D'!$C$58*$F$173/'T&D'!$E$45*#REF!*(1-#REF!)) -> 0 | AD159: ='BD RD Feedstock'!$R$200 -> No Data | AF159: =IF(AD159="No Data",0,AD159/10*'T&D'!$C$58*$F$173/'T&D'!$E$45*#REF!*(1-#REF!)) -> 0 | AG159: ='BD RD Feedstock'!$R$200 -> No Data | AI159: =IF(AG159="No Data",0,AG159/10*'T&D'!$C$58*$F$173/'T&D'!$E$45*#REF!*(1-#REF!)) -> 0 | AJ159: ='BD RD Feedstock'!$R$200 -> No Data | AL159: =IF(AJ159="No Data",0,AJ159/10*'T&D'!$C$58*$F$173/'T&D'!$E$45*#REF!*(1-#REF!)) -> 0 | AM159: ='BD RD Feedstock'!$R$200 -> No Data | AO159: =IF(AM159="No Data",0,AM159/10*'T&D'!$C$58*$F$173/'T&D'!$E$45*#REF!*(1-#REF!)) -> 0
D160: Rendered Oil transported by Heavy Duty Diesel Truck, miles | F160: ='BD RD Feedstock'!S38 -> 50 | H160: =IF(F160="No Data",0,F160/50*'T&D'!$J$92/Reference!$C$30/$F$173/Reference!#REF!*Reference!#REF!/Reference!$E$27*1000000*#REF!*(1-#REF!))/Reference!$H$43 ->  | I160: ='BD RD Feedstock'!$S$65 -> 100 | K160: =IF(I160="No Data",0,I160/50*'T&D'!$J$92/Reference!$C$30/$F$173/Reference!#REF!*Reference!#REF!/Reference!$E$27*1000000*#REF!*(1-#REF!))/Reference!$H$43 ->  | L160: ='BD RD Feedstock'!$S$92 -> No Data | N160: =IF(L160="No Data","N/A",(L160/50*'T&D'!$J$92/Reference!$C$30/$F$173/Reference!#REF!*Reference!#REF!/Reference!$E$27*1000000*#REF!*(1-#REF!))/Reference!$H$43) -> N/A | O160: ='BD RD Feedstock'!$S$119 -> 100 | Q160: =IF(O160="No Data",0,O160/50*'T&D'!$J$92/Reference!$C$30/$F$173/Reference!#REF!*Reference!#REF!/Reference!$E$27*1000000*#REF!*(1-#REF!))/Reference!$H$43 ->  | R160: ='BD RD Feedstock'!$S$146 -> No Data | T160: =IF(R160="No Data",0,R160/50*'T&D'!$J$92/Reference!$C$30/$F$173/Reference!#REF!*Reference!#REF!/Reference!$E$27*1000000*#REF!*(1-#REF!))/Reference!$H$43 -> 0 | U160: ='BD RD Feedstock'!$S$173 -> No Data | W160: =IF(U160="No Data",0,U160/50*'T&D'!$J$92/Reference!$C$30/$F$173/Reference!#REF!*Reference!#REF!/Reference!$E$27*1000000*#REF!*(1-#REF!))/Reference!$H$43 -> 0 | X160: ='BD RD Feedstock'!$S$200 -> No Data | Z160: =IF(X160="No Data",0,X160/50*'T&D'!$J$92/Reference!$C$30/$F$173/Reference!#REF!*Reference!#REF!/Reference!$E$27*1000000*#REF!*(1-#REF!))/Reference!$H$43 -> 0 | AA160: ='BD RD Feedstock'!$S$200 -> No Data | AC160: =IF(AA160="No Data",0,AA160/50*'T&D'!$J$92/Reference!$C$30/$F$173/Reference!#REF!*Reference!#REF!/Reference!$E$27*1000000*#REF!*(1-#REF!))/Reference!$H$43 -> 0 | AD160: ='BD RD Feedstock'!$S$200 -> No Data | AF160: =IF(AD160="No Data",0,AD160/50*'T&D'!$J$92/Reference!$C$30/$F$173/Reference!#REF!*Reference!#REF!/Reference!$E$27*1000000*#REF!*(1-#REF!))/Reference!$H$43 -> 0 | AG160: ='BD RD Feedstock'!$S$200 -> No Data | AI160: =IF(AG160="No Data",0,AG160/50*'T&D'!$J$92/Reference!$C$30/$F$173/Reference!#REF!*Reference!#REF!/Reference!$E$27*1000000*#REF!*(1-#REF!))/Reference!$H$43 -> 0 | AJ160: ='BD RD Feedstock'!$S$200 -> No Data | AL160: =IF(AJ160="No Data",0,AJ160/50*'T&D'!$J$92/Reference!$C$30/$F$173/Reference!#REF!*Reference!#REF!/Reference!$E$27*1000000*#REF!*(1-#REF!))/Reference!$H$43 -> 0 | AM160: ='BD RD Feedstock'!$S$200 -> No Data | AO160: =IF(AM160="No Data",0,AM160/50*'T&D'!$J$92/Reference!$C$30/$F$173/Reference!#REF!*Reference!#REF!/Reference!$E$27*1000000*#REF!*(1-#REF!))/Reference!$H$43 -> 0
D161: Renderes Oil transported by Ocean Tanker, miles | F161: ='BD RD Feedstock'!T38 -> 1000 | H161: =IF(F161="No Data",0,F161/1000*'T&D'!$J$93/Reference!$C$30/$F$173/Reference!#REF!*Reference!#REF!/Reference!$E$27*1000000*#REF!*(1-#REF!))/Reference!$H$43 ->  | I161: ='BD RD Feedstock'!$T$65 -> No Data | K161: =IF(I161="No Data",0,I161/1000*'T&D'!$J$93/Reference!$C$30/$F$173/Reference!#REF!*Reference!#REF!/Reference!$E$27*1000000*#REF!*(1-#REF!))/Reference!$H$43 -> 0 | L161: ='BD RD Feedstock'!$T$92 -> No Data | N161: =IF(L161="No Data","N/A",(L161/1000*'T&D'!$J$93/Reference!$C$30/$F$173/Reference!#REF!*Reference!#REF!/Reference!$E$27*1000000*#REF!*(1-#REF!))/Reference!$H$43) -> N/A | O161: ='BD RD Feedstock'!$T$119 -> No Data | Q161: =IF(O161="No Data",0,O161/1000*'T&D'!$J$93/Reference!$C$30/$F$173/Reference!#REF!*Reference!#REF!/Reference!$E$27*1000000*#REF!*(1-#REF!))/Reference!$H$43 -> 0 | R161: ='BD RD Feedstock'!$T$146 -> No Data | T161: =IF(R161="No Data",0,R161/1000*'T&D'!$J$93/Reference!$C$30/$F$173/Reference!#REF!*Reference!#REF!/Reference!$E$27*1000000*#REF!*(1-#REF!))/Reference!$H$43 -> 0 | U161: ='BD RD Feedstock'!$T$173 -> No Data | W161: =IF(U161="No Data",0,U161/1000*'T&D'!$J$93/Reference!$C$30/$F$173/Reference!#REF!*Reference!#REF!/Reference!$E$27*1000000*#REF!*(1-#REF!))/Reference!$H$43 -> 0 | X161: ='BD RD Feedstock'!$T$200 -> No Data | Z161: =IF(X161="No Data",0,X161/1000*'T&D'!$J$93/Reference!$C$30/$F$173/Reference!#REF!*Reference!#REF!/Reference!$E$27*1000000*#REF!*(1-#REF!))/Reference!$H$43 -> 0 | AA161: ='BD RD Feedstock'!$T$200 -> No Data | AC161: =IF(AA161="No Data",0,AA161/1000*'T&D'!$J$93/Reference!$C$30/$F$173/Reference!#REF!*Reference!#REF!/Reference!$E$27*1000000*#REF!*(1-#REF!))/Reference!$H$43 -> 0 | AD161: ='BD RD Feedstock'!$T$200 -> No Data | AF161: =IF(AD161="No Data",0,AD161/1000*'T&D'!$J$93/Reference!$C$30/$F$173/Reference!#REF!*Reference!#REF!/Reference!$E$27*1000000*#REF!*(1-#REF!))/Reference!$H$43 -> 0 | AG161: ='BD RD Feedstock'!$T$200 -> No Data | AI161: =IF(AG161="No Data",0,AG161/1000*'T&D'!$J$93/Reference!$C$30/$F$173/Reference!#REF!*Reference!#REF!/Reference!$E$27*1000000*#REF!*(1-#REF!))/Reference!$H$43 -> 0 | AJ161: ='BD RD Feedstock'!$T$200 -> No Data | AL161: =IF(AJ161="No Data",0,AJ161/1000*'T&D'!$J$93/Reference!$C$30/$F$173/Reference!#REF!*Reference!#REF!/Reference!$E$27*1000000*#REF!*(1-#REF!))/Reference!$H$43 -> 0 | AM161: ='BD RD Feedstock'!$T$200 -> No Data | AO161: =IF(AM161="No Data",0,AM161/1000*'T&D'!$J$93/Reference!$C$30/$F$173/Reference!#REF!*Reference!#REF!/Reference!$E$27*1000000*#REF!*(1-#REF!))/Reference!$H$43 -> 0
D162: Rendered Oil transported by Rail, miles | F162: ='BD RD Feedstock'!U38 -> 10000 | H162: =IF(F162="No Data",0,F162/10000*'T&D'!$J$94/Reference!$C$30/$F$173/Reference!#REF!*Reference!#REF!/Reference!$E$27*1000000*#REF!*(1-#REF!))/Reference!$H$43 ->  | I162: ='BD RD Feedstock'!$U$65 -> 1500 | K162: =IF(I162="No Data",0,I162/10000*'T&D'!$J$94/Reference!$C$30/$F$173/Reference!#REF!*Reference!#REF!/Reference!$E$27*1000000*#REF!*(1-#REF!))/Reference!$H$43 ->  | L162: ='BD RD Feedstock'!$U$92 -> No Data | N162: =IF(L162="No Data","N/A",(L162/10000*'T&D'!$J$94/Reference!$C$30/$F$173/Reference!#REF!*Reference!#REF!/Reference!$E$27*1000000*#REF!*(1-#REF!)/Reference!$H$43)) -> N/A | O162: ='BD RD Feedstock'!$U$119 -> 700 | Q162: =IF(O162="No Data",0,O162/10000*'T&D'!$J$94/Reference!$C$30/$F$173/Reference!#REF!*Reference!#REF!/Reference!$E$27*1000000*#REF!*(1-#REF!))/Reference!$H$43 ->  | R162: ='BD RD Feedstock'!$U$146 -> No Data | T162: =IF(R162="No Data",0,R162/10000*'T&D'!$J$94/Reference!$C$30/$F$173/Reference!#REF!*Reference!#REF!/Reference!$E$27*1000000*#REF!*(1-#REF!))/Reference!$H$43 -> 0 | U162: ='BD RD Feedstock'!$U$173 -> No Data | W162: =IF(U162="No Data",0,U162/10000*'T&D'!$J$94/Reference!$C$30/$F$173/Reference!#REF!*Reference!#REF!/Reference!$E$27*1000000*#REF!*(1-#REF!))/Reference!$H$43 -> 0 | X162: ='BD RD Feedstock'!$U$200 -> No Data | Z162: =IF(X162="No Data",0,X162/10000*'T&D'!$J$94/Reference!$C$30/$F$173/Reference!#REF!*Reference!#REF!/Reference!$E$27*1000000*#REF!*(1-#REF!))/Reference!$H$43 -> 0 | AA162: ='BD RD Feedstock'!$U$200 -> No Data | AC162: =IF(AA162="No Data",0,AA162/10000*'T&D'!$J$94/Reference!$C$30/$F$173/Reference!#REF!*Reference!#REF!/Reference!$E$27*1000000*#REF!*(1-#REF!))/Reference!$H$43 -> 0 | AD162: ='BD RD Feedstock'!$U$200 -> No Data | AF162: =IF(AD162="No Data",0,AD162/10000*'T&D'!$J$94/Reference!$C$30/$F$173/Reference!#REF!*Reference!#REF!/Reference!$E$27*1000000*#REF!*(1-#REF!))/Reference!$H$43 -> 0 | AG162: ='BD RD Feedstock'!$U$200 -> No Data | AI162: =IF(AG162="No Data",0,AG162/10000*'T&D'!$J$94/Reference!$C$30/$F$173/Reference!#REF!*Reference!#REF!/Reference!$E$27*1000000*#REF!*(1-#REF!))/Reference!$H$43 -> 0 | AJ162: ='BD RD Feedstock'!$U$200 -> No Data | AL162: =IF(AJ162="No Data",0,AJ162/10000*'T&D'!$J$94/Reference!$C$30/$F$173/Reference!#REF!*Reference!#REF!/Reference!$E$27*1000000*#REF!*(1-#REF!))/Reference!$H$43 -> 0 | AM162: ='BD RD Feedstock'!$U$200 -> No Data | AO162: =IF(AM162="No Data",0,AM162/10000*'T&D'!$J$94/Reference!$C$30/$F$173/Reference!#REF!*Reference!#REF!/Reference!$E$27*1000000*#REF!*(1-#REF!))/Reference!$H$43 -> 0
D163: Rendered Oil transported by Barge, miles | F163: ='BD RD Feedstock'!V38 -> 1000 | H163: =IF(F163="No Data",0,F163/1000*'T&D'!$J$95/Reference!$C$30/$F$173/Reference!#REF!*Reference!#REF!/Reference!$E$27*1000000*#REF!*(1-#REF!))/Reference!$H$43 ->  | I163: ='BD RD Feedstock'!$V$65 -> 1000 | K163: =IF(I163="No Data",0,I163/1000*'T&D'!$J$95/Reference!$C$30/$F$173/Reference!#REF!*Reference!#REF!/Reference!$E$27*1000000*#REF!*(1-#REF!))/Reference!$H$43 ->  | L163: ='BD RD Feedstock'!$V$92 -> No Data | N163: =IF(L163="No Data","N/A",(L163/1000*'T&D'!$J$95/Reference!$C$30/$F$173/Reference!#REF!*Reference!#REF!/Reference!$E$27*1000000*#REF!*(1-#REF!))/Reference!$H$43) -> N/A | O163: ='BD RD Feedstock'!$V$119 -> 4000 | Q163: =IF(O163="No Data",0,O163/1000*'T&D'!$J$95/Reference!$C$30/$F$173/Reference!#REF!*Reference!#REF!/Reference!$E$27*1000000*#REF!*(1-#REF!))/Reference!$H$43 ->  | R163: ='BD RD Feedstock'!$V$146 -> No Data | T163: =IF(R163="No Data",0,R163/1000*'T&D'!$J$95/Reference!$C$30/$F$173/Reference!#REF!*Reference!#REF!/Reference!$E$27*1000000*#REF!*(1-#REF!))/Reference!$H$43 -> 0 | U163: ='BD RD Feedstock'!$V$173 -> No Data | W163: =IF(U163="No Data",0,U163/1000*'T&D'!$J$95/Reference!$C$30/$F$173/Reference!#REF!*Reference!#REF!/Reference!$E$27*1000000*#REF!*(1-#REF!))/Reference!$H$43 -> 0 | X163: ='BD RD Feedstock'!$V$200 -> No Data | Z163: =IF(X163="No Data",0,X163/1000*'T&D'!$J$95/Reference!$C$30/$F$173/Reference!#REF!*Reference!#REF!/Reference!$E$27*1000000*#REF!*(1-#REF!))/Reference!$H$43 -> 0 | AA163: ='BD RD Feedstock'!$V$200 -> No Data | AC163: =IF(AA163="No Data",0,AA163/1000*'T&D'!$J$95/Reference!$C$30/$F$173/Reference!#REF!*Reference!#REF!/Reference!$E$27*1000000*#REF!*(1-#REF!))/Reference!$H$43 -> 0 | AD163: ='BD RD Feedstock'!$V$200 -> No Data | AF163: =IF(AD163="No Data",0,AD163/1000*'T&D'!$J$95/Reference!$C$30/$F$173/Reference!#REF!*Reference!#REF!/Reference!$E$27*1000000*#REF!*(1-#REF!))/Reference!$H$43 -> 0 | AG163: ='BD RD Feedstock'!$V$200 -> No Data | AI163: =IF(AG163="No Data",0,AG163/1000*'T&D'!$J$95/Reference!$C$30/$F$173/Reference!#REF!*Reference!#REF!/Reference!$E$27*1000000*#REF!*(1-#REF!))/Reference!$H$43 -> 0 | AJ163: ='BD RD Feedstock'!$V$200 -> No Data | AL163: =IF(AJ163="No Data",0,AJ163/1000*'T&D'!$J$95/Reference!$C$30/$F$173/Reference!#REF!*Reference!#REF!/Reference!$E$27*1000000*#REF!*(1-#REF!))/Reference!$H$43 -> 0 | AM163: ='BD RD Feedstock'!$V$200 -> No Data | AO163: =IF(AM163="No Data",0,AM163/1000*'T&D'!$J$95/Reference!$C$30/$F$173/Reference!#REF!*Reference!#REF!/Reference!$E$27*1000000*#REF!*(1-#REF!))/Reference!$H$43 -> 0
B164: ILUC | H164: 0 | K164: 0 | N164: 0 | Q164: 0
A165: ='BD RD Feedstock'!I8 -> None | B165: Feedstock Production | I165: =IF('BD RD Feedstock'!D3="None","None 2","") -> 
A167: No Oil Used
A169: ='BD RD Feedstock'!J8 -> None
A171: =IF('BD RD Feedstock'!J3="Other",'BD RD Feedstock'!J5,'BD RD Feedstock'!J3) -> None
A172: ='BD-Production'!H5 -> 1-U.S Ave Mix | B172: Transesterification | H172: =H174+H188+H196+H197 -> 
B173: Average Biodesel Yield, lb BD/lb Feedstock | F173: =C35/('BD RD Feedstock'!D38+'BD RD Feedstock'!D65+'BD RD Feedstock'!D92+'BD RD Feedstock'!D119+'BD RD Feedstock'!D146+'BD RD Feedstock'!D173+'BD RD Feedstock'!D200+'BD RD Feedstock'!D227+'BD RD Feedstock'!D254+'BD RD Feedstock'!D281+'BD RD Feedstock'!D308+'BD RD Feedstock'!D335) -> 5.2384255
B174: (Pre-treatment/FFA Removal included) | D174: Natural gas, MMBtu (HHV) | F174: =F35 -> 13224 | H174: =SUM(H175:H187) -> 
E175: Convert to Btu/lb BD (LHV) | F175: =F174*Reference!$F$13*10^6/$C$35 -> 645.2373145 | G175: =F175/($F$175+$F$177+$F$179+$F$181+$F$183+$F$185+$F$187) ->  | H175: =F175*(0%*EF!$G16+0%*EF!$D16+50%*EF!$B16+50%*EF!$C16+#REF!)/1000000*#REF!*(1-#REF!)/Reference!#REF!*Reference!#REF!/Reference!$E$27*1000000 -> 
D176: Biomass Use, MMBtu (HHV) | F176: =G35*Reference!#REF!/10^6 -> 
E177: Convert to Btu/lb fuel (LHV) | F177: =F176*Reference!#REF!*10^6/$C$35 ->  | G177: =F177/($F$175+$F$177+$F$179+$F$181+$F$183+$F$185+$F$187) ->  | H177: =(F177*(100%*(100%*EF!$AX16+0%*EF!$AW16+0%*EF!$BA164))/1000000+F177*(100%*#REF!/Reference!#REF!))*#REF!*(1-#REF!)/Reference!#REF!*Reference!#REF!/Reference!$E$27*1000000-F177*(100%*Reference!#REF!/Reference!#REF!)*Reference!$F$27/Reference!#REF!*#REF!*(1-#REF!)/Reference!#REF!*Reference!#REF!/Reference!$E$27*1000000/1055.0559 -> 
D178: Biogas Use, MMBtu (HHV) | F178: =I35 -> 19005
E179: Convert to Btu/lb fuel (LHV) | F179: =F178*Reference!$F$14*10^6/$C$35 -> 925.0870551 | G179: =F179/($F$175+$F$177+$F$179+$F$181+$F$183+$F$185+$F$187) ->  | H179: =F179*(0*EF!$G16+0*EF!$D16+0.5*EF!$B16+0.5*EF!$C16+RNG!$C364*RNG!$L$348+RNG!$L367)/1000000*#REF!*(1-#REF!)/Reference!#REF!*Reference!#REF!/Reference!$E$27*1000000 -> 
D180: Electricity, kWh | F180: =L35 -> 740000
E181: Convert to Btu/lb fuel (LHV) | F181: =F180*Reference!$F$46/$C$35 -> 136.4487876 | G181: =F181/($F$175+$F$177+$F$179+$F$181+$F$183+$F$185+$F$187) ->  | H181: =F181*(Electricity!BP$6+Electricity!BP$7)/10^6*#REF!*(1-#REF!)/Reference!#REF!*Reference!#REF!/Reference!$E$27*1000000 -> 
D182: Other Fuel, MMBtu (HHV) | F182: =K35 -> 0
E183: Convert to Btu/lb fuel (LHV) | F183: =F182*10^6*#REF!/$C$35 ->  | G183: =F183/($F$175+$F$177+$F$179+$F$181+$F$183+$F$185+$F$187) ->  | H183: =F183*(#REF!+#REF!)/10^6*#REF!*(1-#REF!)/Reference!#REF!*Reference!#REF!/Reference!$E$27*1000000 -> 
D184: Other Electricity Use, kWh | F184: =M35 -> 0
E185: Convert to Btu/lb fuel (LHV) | F185: =F184*Reference!$F$46/$C$35 -> 0 | G185: =F185/($F$175+$F$177+$F$179+$F$181+$F$183+$F$185+$F$187) ->  | H185: =F185*(#REF!+#REF!)/10^6*#REF!*(1-#REF!)/Reference!#REF!*Reference!#REF!/Reference!$E$27*1000000 -> 
D186: Methanol Use, lbs (HHV) | F186: =O35 -> 1370097
E187: Convert to Btu/lb fuel (LHV) | F187: =F186*Reference!#REF!*Reference!$E$27/Reference!#REF!*Reference!#REF!/$C$35 ->  | G187: =F187/($F$175+$F$177+$F$179+$F$181+$F$183+$F$185+$F$187) ->  | H187: =F187*(#REF!*#REF!+#REF!)/1000000*#REF!*(1-#REF!)/Reference!#REF!*Reference!#REF!/Reference!$E$27*1000000+(F187/Reference!#REF!*Reference!#REF!*Reference!#REF!/Reference!#REF!+10.48/Reference!#REF!*Reference!#REF!*Reference!#REF!/Reference!#REF!)*#REF!*(1-#REF!)/Reference!#REF!*Reference!#REF!/Reference!$E$27*1000000/Reference!$H$43 -> 
D188: Chemical Use CI, g/MJ | H188: 2.62
D189: Total Thermal energy, Btu/lb fuel | F189: =F175+F177+F179+F183+F187 -> 
D190: Total Electricity energy, Btu/lb fuel | F190: =F185+F181 -> 136.4487876
D191: Total Energy, Btu/lb fuel | F191: =F189+F190 -> 
B192: Co-product Credit | D192: Distillate Bottoms, lbs | F192: =R35 -> 0 | G192: =F192*Reference!#REF!/2000/(F192*Reference!#REF!/2000+'BD-Production'!C35*Reference!#REF!) -> 
B193: (Energy Allocation) | D193: Free Fatty Acids, lbs | F193: =S35 -> 0
D194: Glycerin, lbs | F194: =T35 -> 0 | G194: 0.049
D195: Other, lbs | F195: =U35 -> 0
B196: Corn Oil Co-product Deficit | D196: DGS reduction due to Corn Oil extraction | G196: 0.043 | H196: 10.6
B197: Biodiesel Transport | H197: =H198+H199+H200+H201 -> 
D198: by Diesel HDT, miles | F198: =X11 -> 0 | G198: 1 | H198: =F198/100*'T&D'!$B$43*G198 -> 0
D199: by Rail, miles | F199: =X17 -> 0 | G199: 1 | H199: =F199/1000*'T&D'!$Y$43*G199*#REF! -> 
D200: By Ocean Tanker, nautical miles | F200: =X19 -> 0 | G200: 1 | H200: =F200/1000*'T&D'!AC43*G200*#REF! -> 
D201: by Barge, miles | F201: =X21 -> 5000 | G201: 1
B202: Tailpipe Emissions | D202: Feedstock 1 | H202: 0.76 | L202: Feedstock 2 | P202: Feedstock 3 | T202: Feedstock 4 | X202: Feedstock 5 | AC202: Feedstock 6 | AG202: Feedstock 7 | AK202: Feedstock 8 | AO202: Feedstock 9 | AS202: Feedstock 10 | AW202: Feedstock 11 | BA202: Feedstock 12
B203: CI Summary | D203: BD from Soy Oil, gCO2e/MJ | H203: =SUM(H204:H207) ->  | I203: BD from Soy Oil, gCO2e/MJ | L203: =SUM(L204:L207) ->  | M203: BD from Soy Oil, gCO2e/MJ | P203: =SUM(P204:P207) ->  | Q203: BD from Soy Oil, gCO2e/MJ | S203: SO4 | T203: =SUM(T204:T207) ->  | U203: BD from Soy Oil, gCO2e/MJ | X203: =SUM(X204:X207) ->  | Y203: BD from Soy Oil, gCO2e/MJ | AC203: =SUM(AC204:AC207) ->  | AD203: BD from Soy Oil, gCO2e/MJ | AG203: =SUM(AG204:AG207) ->  | AH203: BD from Soy Oil, gCO2e/MJ | AK203: =SUM(AK204:AK207) ->  | AL203: BD from Soy Oil, gCO2e/MJ | AO203: =SUM(AO204:AO207) ->  | AP203: BD from Soy Oil, gCO2e/MJ | AS203: =SUM(AS204:AS207) ->  | AT203: BD from Soy Oil, gCO2e/MJ | AW203: =SUM(AW204:AW207) ->  | AX203: BD from Soy Oil, gCO2e/MJ | BA203: =SUM(BA204:BA207) -> 
D204: Feedstock Production, gCO2e/MJ | H204: =H39 ->  | I204: Feedstock Production, gCO2e/MJ | L204: =K39 ->  | M204: Feedstock Production, gCO2e/MJ | P204: =N39 ->  | Q204: Feedstock Production, gCO2e/MJ | T204: =Q39 ->  | U204: Feedstock Production, gCO2e/MJ | X204: =T39 ->  | Y204: Feedstock Production, gCO2e/MJ | AC204: =W39 ->  | AD204: Feedstock Production, gCO2e/MJ | AG204: =AF39 ->  | AH204: Feedstock Production, gCO2e/MJ | AK204: =AI39 ->  | AL204: Feedstock Production, gCO2e/MJ | AO204: =AL39 ->  | AP204: Feedstock Production, gCO2e/MJ | AS204: =AP39 -> 0 | AT204: Feedstock Production, gCO2e/MJ | AW204: =AT39 -> 0 | AX204: Feedstock Production, gCO2e/MJ | BA204: =AX39 -> 0
D205: Fuel Production, gCO2e/MJ | H205: =H172 ->  | I205: Fuel Production, gCO2e/MJ | L205: =H172 ->  | M205: Fuel Production, gCO2e/MJ | P205: =H172+H197+H193+H194+H192+H195 ->  | Q205: Fuel Production, gCO2e/MJ | T205: =H172+H197+H193+H194+H192+H195 ->  | U205: Fuel Production, gCO2e/MJ | X205: =H172+H197+H193+H194+H192+H195 ->  | Y205: Fuel Production, gCO2e/MJ | AC205: =H172+H197+H193+H194+H192+H195 ->  | AD205: Fuel Production, gCO2e/MJ | AG205: =H172+H197+H193+H194+H192+H195 ->  | AH205: Fuel Production, gCO2e/MJ | AK205: =H172+H197+H193+H194+H192+H195 ->  | AL205: Fuel Production, gCO2e/MJ | AO205: =H172+H197+H193+H194+H192+H195 ->  | AP205: Fuel Production, gCO2e/MJ | AS205: =H172+H197+H193+H194+H192+H195 ->  | AT205: Fuel Production, gCO2e/MJ | AW205: =H172+H197+H193+H194+H192+H195 ->  | AX205: Fuel Production, gCO2e/MJ | BA205: =H172+H197+H193+H194+H192+H195 -> 
... 113 more rows

Sheet RD-Production 1 (hidden)
A1: Producer Operational Data Summary | D1: Applicant: | E1: ABC Energy | F1: Feedstocks: | G1: UCO | H1: Biofuel Location: | I1: Sac, CA
A2: Renewable Diesel CI, g/MJ | C2: =IF('BD RD Feedstock'!C3="Other",'BD RD Feedstock'!$C$5,'BD RD Feedstock'!$C$3) -> Tallow | E2: =IF('BD RD Feedstock'!D3="Other",'BD RD Feedstock'!$D$5,'BD RD Feedstock'!$D$3) -> Tallow | G2: =IF('BD RD Feedstock'!E3="Other",'BD RD Feedstock'!$E$5,'BD RD Feedstock'!$E$3) -> Corn Oil | I2: =IF('BD RD Feedstock'!F3="Other",'BD RD Feedstock'!F5,'BD RD Feedstock'!F3) -> Palm Oil | K2: =IF('BD RD Feedstock'!G3="Other",'BD RD Feedstock'!$G$5,'BD RD Feedstock'!$G$3) -> None | M2: =IF('BD RD Feedstock'!H3="Other",'BD RD Feedstock'!$H$5,'BD RD Feedstock'!$H$3) -> None | O2: =IF('BD RD Feedstock'!I3="Other",'BD RD Feedstock'!$I$5,'BD RD Feedstock'!$I$3) -> None | Q2: =IF('BD RD Feedstock'!J3="Other",'BD RD Feedstock'!$J$5,'BD RD Feedstock'!$J$3) -> None | S2: =IF('BD RD Feedstock'!K3="Other",'BD RD Feedstock'!$K$5,'BD RD Feedstock'!$K$3) -> None
A3: Volume, gallons
A4: Data Years | B4: Select Fuel Production Region
B5: Select Regional Electricity Mix for Fuel | H5: 2-User Defined Mix for Fuel Production
B6: Regional Crude Mix | H6: Brazilian Ave Crude
B7: Regional Natural Gas Source | H7: Brazilian Ave NG
A8: Process | B8: Inputs for Renewable Diesel Production | O8: Co-Products
A9: Monthly Data | B9: Beginning Renewable Diesel Inventory (60 °F) | C9: Renewable Diesel Produced (60 °F) | D9: Ending Renewable Diesel Inventory (60 °F) | E9: Renewable Diesel Sold | F9: NG Use from Utility Invoices | G9: Biomass Use from Invoices | H9: Biomass Transport Distance | I9: Biogas Use from Invoices | J9: Biogas Parameters | K9: Other Thermal Energy Use (Specify) | L9: Electricity from Utility Invoices | M9: Electricity from Other Sources (Specify) | N9: Hydrogen from Utility Invoices | O9: Naptha | P9: Purge Gas | Q9: Other Co-products (Specify here) | R9: Transportation and Distribution
A10: Unit | B10: Gallons | C10: Gallons | D10: Gallons | E10: Gallons | F10: MMBTU, HHV | G10: Dry Tons | H10: Miles | I10: MMBTU, HHV | J10: Miles | K10: MMBTU, HHV | L10: KWh | M10: KWh | N10: MMBTU, HHV | O10: LBS | P10: SCF | Q10: LBS | R10: Mode | S10: Miles
A11: Month 1 | B11: 100 | C11: =D11-B11+E11 -> 500 | D11: 100 | E11: 500 | F11: 12652 | H11: By HDT Truck | J11: Pipeline | L11: 4592 | R11: From BD plant to port/railyard or to Blending terminal by HDD Truck
A12: Month 2 | B12: 100 | C12: =D12-B12+E12 -> 250 | D12: 50 | E12: 300 | F12: 12999 | H12: 80 | J12: 80 | L12: 4413
A13: Month 3 | C13: =D13-B13+E13 -> 0 | F13: 1187 | H13: By Rail | J13: Source | L13: 997
A14: Month 4 | C14: 0 | F14: 12372 | H14: 2000 | J14: ABC Landfill | L14: 2378
A15: Month 5 | C15: 0 | F15: 16648 | L15: 4783
A16: Month 6 | C16: 0 | F16: 16864 | L16: 4620 | R16: By Rail
A17: Month 7 | C17: 0 | F17: 19557 | L17: 4907
A18: Month 8 | C18: 0 | F18: 20744 | L18: 4844 | R18: By Ocean Tanker
A19: Month 9 | C19: 0 | F19: 19018 | L19: 4385
A20: Month 10 | C20: 0 | F20: 18090 | L20: 4220 | R20: By Barge
A21: Month 11 | C21: 0 | F21: 20089 | L21: 4598
A22: Month 12 | C22: 0 | F22: 19901 | L22: 4747
A23: Month 13 | C23: 0 | F23: 18131 | L23: 4438
A24: Month 14 | C24: 0 | F24: 15004 | L24: 4479
A25: Month 15 | C25: 0 | F25: 17223 | L25: 4419
A26: Month 16 | C26: 0 | F26: 18030 | L26: 4355
A27: Month 17 | C27: 0 | F27: 19422 | L27: 4412
A28: Month 18 | C28: 0 | F28: 18973 | L28: 4309
A29: Month 19 | C29: 0 | F29: 20166 | L29: 4487
A30: Month 20 | C30: 0 | F30: 20322 | L30: 4019
A31: Month 21 | C31: 0 | F31: 6318 | L31: 2035
A32: Month 22 | C32: 0 | F32: 14070 | L32: 4405
A33: Month 23 | C33: 0 | F33: 11188 | L33: 4445
A34: Month 24 | C34: 0 | F34: 11446 | L34: 4592
A35: Total | B35: 200 | C35: 700 | D35: 300 | F35: 380414 | G35: 0 | I35: 0 | K35: 0 | L35: 99879 | M35: 0 | N35: 0 | O35: 0 | P35: 0 | Q35: 0

Sheet RD-Production (hidden)
A1: Fuel Production Data Summary | D1: Applicant: | E1: ='BD RD Feedstock'!E1:F1 -> ABC Energy | G1: Biofuel Location: | I1: ='BD RD Feedstock'!I1:J1 -> City, State
A2: Renewable Diesel CI, g/MJ | C2: =IF('BD RD Feedstock'!C3="Other",'BD RD Feedstock'!C5,'BD RD Feedstock'!C3) -> Tallow | D2: =D238 ->  | E2: =IF('BD RD Feedstock'!D3="Other",'BD RD Feedstock'!D5,'BD RD Feedstock'!D3) -> Tallow | F2: =D239 ->  | G2: =IF('BD RD Feedstock'!E3="Other",'BD RD Feedstock'!E5,'BD RD Feedstock'!E3) -> Corn Oil | H2: =D240 ->  | I2: =IF('BD RD Feedstock'!F3="Other",'BD RD Feedstock'!F5,'BD RD Feedstock'!F3) -> Palm Oil | J2: =D241 ->  | K2: =IF('BD RD Feedstock'!G3="Other",'BD RD Feedstock'!G5,'BD RD Feedstock'!G3) -> None | L2: =D242 -> 0 | M2: =IF('BD RD Feedstock'!H3="Other",'BD RD Feedstock'!H5,'BD RD Feedstock'!H3) -> None | N2: =D243 -> 0 | O2: =IF('BD RD Feedstock'!I3="Other",'BD RD Feedstock'!I5,'BD RD Feedstock'!I3) -> None | P2: =D244 -> 0 | Q2: =IF('BD RD Feedstock'!J3="Other",'BD RD Feedstock'!J5,'BD RD Feedstock'!J3) -> None | R2: =D245 -> 0 | S2: =IF('BD RD Feedstock'!K3="Other",'BD RD Feedstock'!K5,'BD RD Feedstock'!K3) -> None | T2: =D246 -> 0 | U2: =IF('BD RD Feedstock'!L3="Other",'BD RD Feedstock'!L5,'BD RD Feedstock'!L3) -> None | V2: =D247 -> 0 | W2: =IF('BD RD Feedstock'!M3="Other",'BD RD Feedstock'!M5,'BD RD Feedstock'!M3) -> None | X2: =D248 -> 0 | Y2: =IF('BD RD Feedstock'!N3="Other",'BD RD Feedstock'!N5,'BD RD Feedstock'!N3) -> None | Z2: =D249 -> 0 | AA2: Total RD, gal
A3: RD Allocation, gallons | D3: =C35*'BD RD Feedstock'!D38/('BD RD Feedstock'!$D$38+'BD RD Feedstock'!$D$65+'BD RD Feedstock'!$D$92+'BD RD Feedstock'!$D$119+'BD RD Feedstock'!$D$146+'BD RD Feedstock'!$D$173+'BD RD Feedstock'!$D$200+'BD RD Feedstock'!$D$227+'BD RD Feedstock'!$D$254+'BD RD Feedstock'!$D$281+'BD RD Feedstock'!$D$308+'BD RD Feedstock'!$D$335)/#REF! ->  | F3: =C35*'BD RD Feedstock'!D65/('BD RD Feedstock'!$D$38+'BD RD Feedstock'!$D$65+'BD RD Feedstock'!$D$92+'BD RD Feedstock'!$D$119+'BD RD Feedstock'!$D$146+'BD RD Feedstock'!$D$173+'BD RD Feedstock'!$D$200+'BD RD Feedstock'!$D$227+'BD RD Feedstock'!$D$254+'BD RD Feedstock'!$D$281+'BD RD Feedstock'!$D$308+'BD RD Feedstock'!$D$335)/#REF! ->  | H3: =C35*'BD RD Feedstock'!D92/('BD RD Feedstock'!$D$38+'BD RD Feedstock'!$D$65+'BD RD Feedstock'!$D$92+'BD RD Feedstock'!$D$119+'BD RD Feedstock'!$D$146+'BD RD Feedstock'!$D$173+'BD RD Feedstock'!$D$200+'BD RD Feedstock'!$D$227+'BD RD Feedstock'!$D$254+'BD RD Feedstock'!$D$281+'BD RD Feedstock'!$D$308+'BD RD Feedstock'!$D$335)/#REF! ->  | J3: =C35*'BD RD Feedstock'!D119/('BD RD Feedstock'!$D$38+'BD RD Feedstock'!$D$65+'BD RD Feedstock'!$D$92+'BD RD Feedstock'!$D$119+'BD RD Feedstock'!$D$146+'BD RD Feedstock'!$D$173+'BD RD Feedstock'!$D$200+'BD RD Feedstock'!$D$227+'BD RD Feedstock'!$D$254+'BD RD Feedstock'!$D$281+'BD RD Feedstock'!$D$308+'BD RD Feedstock'!$D$335) -> 0 | L3: =C35*'BD RD Feedstock'!D146/('BD RD Feedstock'!$D$38+'BD RD Feedstock'!$D$65+'BD RD Feedstock'!$D$92+'BD RD Feedstock'!$D$119+'BD RD Feedstock'!$D$146+'BD RD Feedstock'!$D$173+'BD RD Feedstock'!$D$200+'BD RD Feedstock'!$D$227+'BD RD Feedstock'!$D$254+'BD RD Feedstock'!$D$281+'BD RD Feedstock'!$D$308+'BD RD Feedstock'!$D$335)/#REF! ->  | N3: =C35*'BD RD Feedstock'!D173/('BD RD Feedstock'!$D$38+'BD RD Feedstock'!$D$65+'BD RD Feedstock'!$D$92+'BD RD Feedstock'!$D$119+'BD RD Feedstock'!$D$146+'BD RD Feedstock'!$D$173+'BD RD Feedstock'!$D$200+'BD RD Feedstock'!$D$227+'BD RD Feedstock'!$D$254+'BD RD Feedstock'!$D$281+'BD RD Feedstock'!$D$308+'BD RD Feedstock'!$D$335)/#REF! ->  | P3: =C35*'BD RD Feedstock'!D200/('BD RD Feedstock'!$D$38+'BD RD Feedstock'!$D$65+'BD RD Feedstock'!$D$92+'BD RD Feedstock'!$D$119+'BD RD Feedstock'!$D$146+'BD RD Feedstock'!$D$173+'BD RD Feedstock'!$D$200+'BD RD Feedstock'!$D$227+'BD RD Feedstock'!$D$254+'BD RD Feedstock'!$D$281+'BD RD Feedstock'!$D$308+'BD RD Feedstock'!$D$335)/#REF! ->  | R3: =C35*'BD RD Feedstock'!D227/('BD RD Feedstock'!$D$38+'BD RD Feedstock'!$D$65+'BD RD Feedstock'!$D$92+'BD RD Feedstock'!$D$119+'BD RD Feedstock'!$D$146+'BD RD Feedstock'!$D$173+'BD RD Feedstock'!$D$200+'BD RD Feedstock'!$D$227+'BD RD Feedstock'!$D$254+'BD RD Feedstock'!$D$281+'BD RD Feedstock'!$D$308+'BD RD Feedstock'!$D$335)/#REF! ->  | T3: =C35*'BD RD Feedstock'!D254/('BD RD Feedstock'!$D$38+'BD RD Feedstock'!$D$65+'BD RD Feedstock'!$D$92+'BD RD Feedstock'!$D$119+'BD RD Feedstock'!$D$146+'BD RD Feedstock'!$D$173+'BD RD Feedstock'!$D$200+'BD RD Feedstock'!$D$227+'BD RD Feedstock'!$D$254+'BD RD Feedstock'!$D$281+'BD RD Feedstock'!$D$308+'BD RD Feedstock'!$D$335)/#REF! ->  | V3: =C35*'BD RD Feedstock'!D281/('BD RD Feedstock'!$D$38+'BD RD Feedstock'!$D$65+'BD RD Feedstock'!$D$92+'BD RD Feedstock'!$D$119+'BD RD Feedstock'!$D$146+'BD RD Feedstock'!$D$173+'BD RD Feedstock'!$D$200+'BD RD Feedstock'!$D$227+'BD RD Feedstock'!$D$254+'BD RD Feedstock'!$D$281+'BD RD Feedstock'!$D$308+'BD RD Feedstock'!$D$335)/#REF! ->  | X3: =C35*'BD RD Feedstock'!D308/('BD RD Feedstock'!$D$38+'BD RD Feedstock'!$D$65+'BD RD Feedstock'!$D$92+'BD RD Feedstock'!$D$119+'BD RD Feedstock'!$D$146+'BD RD Feedstock'!$D$173+'BD RD Feedstock'!$D$200+'BD RD Feedstock'!$D$227+'BD RD Feedstock'!$D$254+'BD RD Feedstock'!$D$281+'BD RD Feedstock'!$D$308+'BD RD Feedstock'!$D$335)/#REF! ->  | Z3: =C35*'BD RD Feedstock'!D335/('BD RD Feedstock'!$D$38+'BD RD Feedstock'!$D$65+'BD RD Feedstock'!$D$92+'BD RD Feedstock'!$D$119+'BD RD Feedstock'!$D$146+'BD RD Feedstock'!$D$173+'BD RD Feedstock'!$D$200+'BD RD Feedstock'!$D$227+'BD RD Feedstock'!$D$254+'BD RD Feedstock'!$D$281+'BD RD Feedstock'!$D$308+'BD RD Feedstock'!$D$335)/#REF! ->  | AA3: =SUM(C3:Z3) -> 
A4: RD Allocation, % | D4: =D3/$AA$3 ->  | F4: =F3/$AA$3 ->  | H4: =H3/$AA$3 ->  | J4: =J3/$AA$3 ->  | L4: =L3/$AA$3 ->  | N4: =N3/$AA$3 ->  | P4: =P3/$AA$3 ->  | R4: =R3/$AA$3 ->  | T4: =T3/$AA$3 ->  | V4: =V3/$AA$3 ->  | X4: =X3/$AA$3 ->  | Z4: =Z3/$AA$3 ->  | AA4: =SUM(C4:Z4) -> 
A5: Data Years | B5: Select Regional Electricity Mix for Fuel | H5: 3-CAMX Mix
B6: Regional Crude Mix | H6: U.S Ave Crude
B7: Regional Natural Gas Source | H7: U.S Ave NG
A8: Process | B8: Inputs for Biodiesel Production | O8: Co-Products
A9: Monthly Data | B9: Beginning RD Inventory (60 °F) | C9: RD Produced (Calculated) (60 °F) | D9: Ending Biodiesel Inventory (60 °F) | E9: RD Sold | F9: NG Use from Utility Invoices | G9: Biomass Use from Invoices | H9: Biomass Transport Distance | I9: Biogas Use from Invoices | J9: Biogas Parameters | K9: Other Fuel Use | L9: Electricity from Utility Invoices | M9: Other Electricity | N9: Hydrogen Purchased | O9: Purge Gas | P9: Naptha | Q9: Propane | R9: Other Co-products (Specify here) | S9: Renewable Diesel Transportation to California
A10: Unit | B10: lbs. | C10: lbs | D10: lbs. | E10: lbs. | F10: MMBTU, HHV | G10: Dry Tons | H10: Miles | I10: MMBTU, HHV | J10: Miles | K10: MMBTU, HHV | L10: KWh | M10: KWh | N10: lbs. | O10: lbs. | P10: lbs. | Q10: lbs. | R10: lbs. | S10: Mode | T10: Miles
A11: Month 1 | B11: 10000 | C11: =D11-B11+E11 -> 785000 | D11: 700000 | E11: 95000 | F11: 1134 | H11: By HDT Truck | J11: Pipeline | L11: 1000 | N11: 2300 | S11: From BD plant to port/railyard or to Blending terminal by HDD Truck | T11: 100
A12: Month 2 | B12: =E11 -> 95000 | C12: =D12-B12+E12 -> 760000 | D12: 760000 | E12: 95000 | F12: 1135 | H12: 100 | J12: 80 | L12: 1500 | N12: 2300 | O12: These co-products are not functional yet
A13: Month 3 | B13: =E12 -> 95000 | C13: =D13-B31+E13 -> 750000 | D13: 750000 | E13: 95000 | F13: 1135 | H13: By Rail | J13: Source | K13: This is not functional yet | L13: 1500 | M13: This is not functional yet | N13: 2300
A14: Month 4 | B14: 95000 | C14: 750000 | D14: 750000 | E14: 95000 | F14: 1135 | H14: 2000 | J14: ABC Landfill | L14: 1500 | N14: 2300
A15: Month 5 | B15: 95000 | C15: 750000 | D15: 750000 | E15: 95000 | F15: 1135 | L15: 1500 | N15: 2300
A16: Month 6 | B16: 95000 | C16: 750000 | D16: 750000 | E16: 95000 | F16: 1135 | L16: 1500 | N16: 2300
A17: Month 7 | B17: 95000 | C17: 750000 | D17: 750000 | E17: 95000 | F17: 1135 | L17: 1500 | N17: 2300 | S17: By Rail | T17: 2000
A18: Month 8 | B18: 95000 | C18: 750000 | D18: 750000 | E18: 95000 | F18: 1135 | L18: 1500 | N18: 2300
A19: Month 9 | B19: 95000 | C19: 750000 | D19: 750000 | E19: 95000 | F19: 1135 | L19: 1500 | N19: 2300 | S19: By Ocean Tanker | T19: 0
A20: Month 10 | B20: 95000 | C20: 750000 | D20: 750000 | E20: 95000 | F20: 1135 | L20: 1500 | N20: 2300
A21: Month 11 | B21: 95000 | C21: 750000 | D21: 750000 | E21: 95000 | F21: 1135 | L21: 1500 | N21: 2300 | S21: By Barge | T21: 0
A22: Month 12 | B22: 95000 | C22: 750000 | D22: 750000 | E22: 95000 | F22: 1135 | L22: 1500 | N22: 2300
A23: Month 13 | B23: 95000 | C23: 750000 | D23: 750000 | E23: 95000 | F23: 1135 | L23: 1500 | N23: 2300
A24: Month 14 | B24: 95000 | C24: 750000 | D24: 750000 | E24: 95000 | F24: 1135 | L24: 1500 | N24: 2300
A25: Month 15 | B25: 95000 | C25: 750000 | D25: 750000 | E25: 95000 | F25: 1135 | L25: 1500 | N25: 2300
A26: Month 16 | B26: 95000 | C26: 750000 | D26: 750000 | E26: 95000 | F26: 1135 | L26: 1500 | N26: 2300
A27: Month 17 | B27: 95000 | C27: 750000 | D27: 750000 | E27: 95000 | F27: 1135 | L27: 1500 | N27: 2300
A28: Month 18 | B28: 95000 | C28: 750000 | D28: 750000 | E28: 95000 | F28: 1135 | L28: 1500 | N28: 2300
A29: Month 19 | B29: 95000 | C29: 750000 | D29: 750000 | E29: 95000 | F29: 1135 | L29: 1500 | N29: 2300
A30: Month 20 | B30: 95000 | C30: 750000 | D30: 750000 | E30: 95000 | F30: 1135 | L30: 1500 | N30: 2300
A31: Month 21 | B31: 95000 | C31: 750000 | D31: 750000 | E31: 95000 | F31: 1135 | L31: 1500 | N31: 2300
A32: Month 22 | B32: 95000 | C32: 750000 | D32: 750000 | E32: 95000 | F32: 1135 | L32: 1500 | N32: 2300
A33: Month 23 | B33: 95000 | C33: 750000 | D33: 750000 | E33: 95000 | F33: 1135 | L33: 1500 | N33: 2300
A34: Month 24 | B34: 95000 | C34: 760000 | D34: 760000 | E34: 95000 | F34: 1123 | L34: 1200 | N34: 2300
A35: Total | B35: =SUM(B11:B34) -> 2195000 | C35: =SUM(C11:C34) -> 18055000 | D35: =SUM(D11:D34) -> 17970000 | E35: =SUM(E11:E34) -> 2280000 | F35: =SUM(F11:F34) -> 27227 | G35: =SUM(G11:G34) -> 0 | H35: 2100 | I35: 0 | K35: 0 | L35: 35200 | M35: 0 | N35: 55200 | O35: 0 | P35: 0 | Q35: 0 | R35: 0
A37: Carbon Intensity Breakdown to each Process | H37: Feedstock 1 | K37: Feedstock 2 | N37: Feedstock 3 | Q37: Feedstock 4 | T37: Feedstock 5 | W37: Feedstock 6 | Z37: Feedstock 7 | AC37: Feedstock 8 | AF37: Feedstock 9 | AI37: Feedstock 10 | AL37: Feedstock 11 | AO37: Feedstock 12
A38: Feedstock Production | B38: Process | D38: Inputs | F38: Values | G38: Region | H38: CI Outputs, g/MJ | I38: Values | J38: Region | K38: CI Outputs, g/MJ | L38: Values | M38: Region | N38: CI Outputs, g/MJ | O38: Values | P38: Region | Q38: CI Outputs, g/MJ | R38: Values | S38: Region | T38: CI Outputs, g/MJ | U38: Values | V38: Region | W38: CI Outputs, g/MJ | X38: Values | Y38: Region | Z38: CI Outputs, g/MJ | AA38: Values | AB38: Region | AC38: CI Outputs, g/MJ | AD38: Values | AE38: Region | AF38: CI Outputs, g/MJ | AG38: Values | AH38: Region | AI38: CI Outputs, g/MJ | AJ38: Values | AK38: Region | AL38: CI Outputs, g/MJ | AM38: Values | AN38: Region | AO38: CI Outputs, g/MJ
B39: Feedstock Production | F39: =IF('BD RD Feedstock'!C3="Soy Oil","Soy Oil 1","") ->  | G39: =IF(F39="Soy Oil 1",'BD RD Feedstock'!C8,"") ->  | H39: =H40+H41+H42+H43+H53 ->  | I39: =IF('BD RD Feedstock'!D3="Soy Oil","Soy Oil 2","") ->  | J39: =IF(I39="Soy Oil 2",'BD RD Feedstock'!D8,"") ->  | K39: =K40+K41+K42+K43+K53 ->  | L39: =IF('BD RD Feedstock'!E3="Soy Oil","Soy Oil 3","") ->  | M39: =IF(L39="Soy Oil 3",'BD RD Feedstock'!E8,"") ->  | N39: =N40+N41+N42+N43+N55+N56+N57+N58 ->  | O39: =IF('BD RD Feedstock'!F3="Soy Oil","Soy Oil 4","") ->  | P39: =IF(O39="Soy Oil 4",'BD RD Feedstock'!F8,"") ->  | Q39: =Q40+Q41+Q42+Q43+Q53 ->  | R39: =IF('BD RD Feedstock'!G3="Soy Oil","Soy Oil 5","") ->  | S39: =IF(R39="Soy Oil 5",'BD RD Feedstock'!G8,"") ->  | T39: =T40+T41+T42+T43+T53 ->  | U39: =IF('BD RD Feedstock'!H3="Soy Oil","Soy Oil 6","") ->  | V39: =IF(U39="Soy Oil 6",'BD RD Feedstock'!H8,"") ->  | W39: =W40+W41+W42+W43+W53 ->  | X39: =IF('BD RD Feedstock'!I3="Soy Oil","Soy Oil 7","") ->  | Y39: =IF(X39="Soy Oil 7",'BD RD Feedstock'!I8,"") ->  | Z39: =Z40+Z41+Z42+Z43+Z53 ->  | AA39: =IF('BD RD Feedstock'!J3="Soy Oil","Soy Oil 8","") ->  | AB39: =IF(AA39="Soy Oil 8",'BD RD Feedstock'!J8,"") ->  | AC39: =AC40+AC41+AC42+AC43+AC53 ->  | AD39: =IF('BD RD Feedstock'!K3="Soy Oil","Soy Oil 9","") ->  | AE39: =IF(AD39="Soy Oil 9",'BD RD Feedstock'!K8,"") ->  | AF39: =AF40+AF41+AF42+AF43+AF53 ->  | AG39: =IF('BD RD Feedstock'!L3="Soy Oil","Soy Oil 10","") ->  | AH39: =IF(AG39="Soy Oil 10",'BD RD Feedstock'!L8,"") ->  | AI39: =AI40+AI41+AI42+AI43+AI53 ->  | AJ39: =IF('BD RD Feedstock'!M3="Soy Oil","Soy Oil 11","") ->  | AK39: =IF(AJ39="Soy Oil 11",'BD RD Feedstock'!M8,"") ->  | AL39: =AL40+AL41+AL42+AL43+AL53 ->  | AM39: =IF('BD RD Feedstock'!N3="Soy Oil","Soy Oil 12","") ->  | AN39: =IF(AM39="Soy Oil 12",'BD RD Feedstock'!N8,"") ->  | AO39: =AO40+AO41+AO42+AO43+AO53 -> 
